{"text_format":"1","workbook":"xlsx","n_sheets":3,"sheets":["Résultats Automatismes 5e","Graphique Eva5e","Bilan données "],"not_rendered":{"charts":31,"images":32,"macros":1,"external_links":0,"defined_names":2,"comments":0,"pivot_tables":1},"unopened":[],"bounds":{"document_bytes":16777216,"sheet_cells":100000,"rows_first":2000,"rows_last":500,"rows_between":2000,"halvings":0,"cell_chars":16384,"cell_head_chars":4096},"cells_cut":0,"cells_raw":0,"read":"whole","date_system":"1900"}

{"sheet":"Résultats Automatismes 5e","index":0,"n_rows":1,"n_cols":64,"rows_kept":1,"cut":false,"hidden":false,"merged":[]}
["Classe","NOM","PRENOM","Score du test spécifique","Automatismes Q01 - réponse","Automatismes Q01 - score","Automatismes Q02 - réponse","Automatismes Q02 - score","Automatismes Q03 - réponse","Automatismes Q03 - score","Automatismes Q04 - réponse","Automatismes Q04 - score","Automatismes Q05 - réponse","Automatismes Q05 - score","Automatismes Q06 - réponse","Automatismes Q06 - score","Automatismes Q07 - réponse","Automatismes Q07 - score","Automatismes Q08 - réponse","Automatismes Q08 - score","Automatismes Q09 - réponse","Automatismes Q09 - score","Automatismes Q10 - réponse","Automatismes Q10 - score","Automatismes Q11 - réponse","Automatismes Q11 - score","Automatismes Q12 - réponse","Automatismes Q12 - score","Automatismes Q13 - réponse","Automatismes Q13 - score","Automatismes Q14 - réponse","Automatismes Q14 - score","Automatismes Q15 - réponse","Automatismes Q15 - score","Automatismes Q16 - réponse","Automatismes Q16 - score","Automatismes Q17 - réponse","Automatismes Q17 - score","Automatismes Q18 - réponse","Automatismes Q18 - score","Automatismes Q19 - réponse","Automatismes Q19 - score","Automatismes Q20 - réponse","Automatismes Q20 - score","Automatismes Q21 - réponse","Automatismes Q21 - score","Automatismes Q22 - réponse","Automatismes Q22 - score","Automatismes Q23 - réponse","Automatismes Q23 - score","Automatismes Q24 - réponse","Automatismes Q24 - score","Automatismes Q25 - réponse","Automatismes Q25 - score","Automatismes Q26 - réponse","Automatismes Q26 - score","Automatismes Q27 - réponse","Automatismes Q27 - score","Automatismes Q28 - réponse","Automatismes Q28 - score","Automatismes Q29 - réponse","Automatismes Q29 - score","Automatismes Q30 - réponse","Automatismes Q30 - score"]

{"sheet":"Graphique Eva5e","index":1,"n_rows":34,"n_cols":96,"rows_kept":34,"cut":false,"hidden":false,"merged":[[0,36,0,37],[0,38,0,39],[0,40,0,41],[0,42,0,43],[0,44,0,45],[0,46,0,47],[0,48,0,49],[0,50,0,51],[0,52,0,53],[0,54,0,55],[0,56,0,57],[0,58,0,59],[0,72,0,73],[0,74,0,75],[0,76,0,77],[0,60,0,61],[0,62,0,63],[0,64,0,65],[0,66,0,67],[0,68,0,69],[1,66,1,67],[0,78,0,79],[0,80,0,81],[0,70,0,71],[1,76,1,77],[1,78,1,79],[1,80,1,81],[1,44,1,45],[1,58,1,59],[1,60,1,61],[1,62,1,63],[1,64,1,65],[2,31,6,35],[0,31,1,35],[1,70,1,71],[1,72,1,73],[1,74,1,75],[1,46,1,47],[1,48,1,49],[1,50,1,51],[1,52,1,53],[1,54,1,55],[1,68,1,69],[1,56,1,57],[1,36,1,37],[1,38,1,39],[1,40,1,41],[1,42,1,43],[0,92,0,93],[0,94,0,95],[1,82,1,83],[1,84,1,85],[1,86,1,87],[1,88,1,89],[1,90,1,91],[1,92,1,93],[1,94,1,95],[0,82,0,83],[0,84,0,85],[0,86,0,87],[0,88,0,89],[0,90,0,91]]}
[null,null,null,null,null,null,null,null,null,null,null,null,null,null,null,null,null,null,null,null,null,null,null,null,null,null,null,null,null,null,null,"\n"]
[]
["Étiquettes de lignes","Somme de % réussite ",null,null,null,null,null,null,null,null,null,null,null,null,null,null,null,null,null,null,null,null,null,null,null,null,null,null,null,null,null,null,null,null,null,null,"4/5",{"$f":"COUNTIF(OFFSET('Résultats Automatismes 5e'!E$1,0,0,'Bilan données '!$B$34,1),AK3)/'Bilan données '!$B$34","v":{"$error":"#REF!"}},3564,{"$f":"COUNTIF(OFFSET('Résultats Automatismes 5e'!G$1,0,0,'Bilan données '!$B$34,1),AM3)/'Bilan données '!$B$34","v":{"$error":"#REF!"}},"Cent-dix-mille",{"$f":"COUNTIF(OFFSET('Résultats Automatismes 5e'!I$1,0,0,'Bilan données '!$B$34,1),AO4)/'Bilan données '!$B$34","v":{"$error":"#REF!"}},4,{"$f":"COUNTIF(OFFSET('Résultats Automatismes 5e'!K$1,0,0,'Bilan données '!$B$34,1),AQ3)/'Bilan données '!$B$34","v":{"$error":"#REF!"}},25,{"$f":"COUNTIF(OFFSET('Résultats Automatismes 5e'!M$1,0,0,'Bilan données '!$B$34,1),AS3)/'Bilan données '!$B$34","v":{"$error":"#REF!"}},"1/2",{"$f":"COUNTIF(OFFSET('Résultats Automatismes 5e'!O$1,0,0,'Bilan données '!$B$34,1),AU3)/'Bilan données '!$B$34","v":{"$error":"#REF!"}},225,{"$f":"COUNTIF(OFFSET('Résultats Automatismes 5e'!Q$1,0,0,'Bilan données '!$B$34,1),AW3)/'Bilan données '!$B$34","v":{"$error":"#REF!"}},215,{"$f":"COUNTIF(OFFSET('Résultats Automatismes 5e'!S$1,0,0,'Bilan données '!$B$34,1),AY3)/'Bilan données '!$B$34","v":{"$error":"#REF!"}},225,{"$f":"COUNTIF(OFFSET('Résultats Automatismes 5e'!U$1,0,0,'Bilan données '!$B$34,1),BA3)/'Bilan données '!$B$34","v":{"$error":"#REF!"}},3.8,{"$f":"COUNTIF(OFFSET('Résultats Automatismes 5e'!W$1,0,0,'Bilan données '!$B$34,1),BC3)/'Bilan données '!$B$34","v":{"$error":"#REF!"}},15,{"$f":"COUNTIF(OFFSET('Résultats Automatismes 5e'!Y$1,0,0,'Bilan données '!$B$34,1),BE3)/'Bilan données '!$B$34","v":{"$error":"#REF!"}},7.12,{"$f":"COUNTIF(OFFSET('Résultats Automatismes 5e'!AA$1,0,0,'Bilan données '!$B$34,1),BG3)/'Bilan données '!$B$34","v":{"$error":"#REF!"}},14.6188,{"$f":"COUNTIF(OFFSET('Résultats Automatismes 5e'!AC$1,0,0,'Bilan données '!$B$34,1),BI3)/'Bilan données '!$B$34","v":{"$error":"#REF!"}},10,{"$f":"COUNTIF(OFFSET('Résultats Automatismes 5e'!AE$1,0,0,'Bilan données '!$B$34,1),BK3)/'Bilan données '!$B$34","v":{"$error":"#REF!"}},50.03,{"$f":"COUNTIF(OFFSET('Résultats Automatismes 5e'!AG$1,0,0,'Bilan données '!$B$34,1),BM3)/'Bilan données '!$B$34","v":{"$error":"#REF!"}},"13,1",{"$f":"COUNTIF(OFFSET('Résultats Automatismes 5e'!AI$1,0,0,'Bilan données '!$B$34,1),BO3)/'Bilan données '!$B$34","v":{"$error":"#REF!"}},"999 < 9,998 < 1 000",{"$f":"COUNTIF(OFFSET('Résultats Automatismes 5e'!AK$1,0,0,'Bilan données '!$B$34,1),BQ3)/'Bilan données '!$B$34","v":{"$error":"#REF!"}},"millièmes.",{"$f":"COUNTIF(OFFSET('Résultats Automatismes 5e'!AM$1,0,0,'Bilan données '!$B$34,1),BS3)/'Bilan données '!$B$34","v":{"$error":"#REF!"}},"3,600",{"$f":"COUNTIF(OFFSET('Résultats Automatismes 5e'!AO$1,0,0,'Bilan données '!$B$34,1),BU3)/'Bilan données '!$B$34","v":{"$error":"#REF!"}},"50 % de 12.",{"$f":"COUNTIF(OFFSET('Résultats Automatismes 5e'!AQ$1,0,0,'Bilan données '!$B$34,1),BW3)/'Bilan données '!$B$34","v":{"$error":"#REF!"}},"0,84",{"$f":"COUNTIF(OFFSET('Résultats Automatismes 5e'!AS$1,0,0,'Bilan données '!$B$34,1),BY3)/'Bilan données '!$B$34","v":{"$error":"#REF!"}},"( 2 + 3,5 ) × 0,1",{"$f":"COUNTIF(OFFSET('Résultats Automatismes 5e'!AU$1,0,0,'Bilan données '!$B$34,1),CA3)/'Bilan données '!$B$34","v":{"$error":"#REF!"}},"14",{"$f":"COUNTIF(OFFSET('Résultats Automatismes 5e'!AW$1,0,0,'Bilan données '!$B$34,1),CC3)/'Bilan données '!$B$34","v":{"$error":"#REF!"}},"11/10",{"$f":"COUNTIF(OFFSET('Résultats Automatismes 5e'!AY$1,0,0,'Bilan données '!$B$34,1),CE3)/'Bilan données '!$B$34","v":{"$error":"#REF!"}},"6,5224",{"$f":"COUNTIF(OFFSET('Résultats Automatismes 5e'!BA$1,0,0,'Bilan données '!$B$34,1),CG3)/'Bilan données '!$B$34","v":{"$error":"#REF!"}},"13 cm³",{"$f":"COUNTIF(OFFSET('Résultats Automatismes 5e'!BC$1,0,0,'Bilan données '!$B$34,1),CI3)/'Bilan données '!$B$34","v":{"$error":"#REF!"}},"3/7",{"$f":"COUNTIF(OFFSET('Résultats Automatismes 5e'!BE$1,0,0,'Bilan données '!$B$34,1),CK3)/'Bilan données '!$B$34","v":{"$error":"#REF!"}},"780 : 10",{"$f":"COUNTIF(OFFSET('Résultats Automatismes 5e'!BG$1,0,0,'Bilan données '!$B$34,1),CM3)/'Bilan données '!$B$34","v":{"$error":"#REF!"}},"3",{"$f":"COUNTIF(OFFSET('Résultats Automatismes 5e'!BI$1,0,0,'Bilan données '!$B$34,1),CO3)/'Bilan données '!$B$34","v":{"$error":"#REF!"}},"40 800 000 400",{"$f":"COUNTIF(OFFSET('Résultats Automatismes 5e'!BK$1,0,0,'Bilan données '!$B$34,1),CQ3)/'Bilan données '!$B$34","v":{"$error":"#REF!"}}]
["Question 01",{"$error":"#DIV/0!"},null,null,null,null,null,null,null,null,null,null,null,null,null,null,null,null,null,null,null,null,null,null,null,null,null,null,null,null,null,null,null,null,null,null,"5/5",{"$f":"COUNTIF(OFFSET('Résultats Automatismes 5e'!E$1,0,0,'Bilan données '!$B$34,1),AK4)/'Bilan données '!$B$34","v":{"$error":"#REF!"}},35064,{"$f":"COUNTIF(OFFSET('Résultats Automatismes 5e'!G$1,0,0,'Bilan données '!$B$34,1),AM4)/'Bilan données '!$B$34","v":{"$error":"#REF!"}},"Cent-dix-millions",{"$f":"COUNTIF(OFFSET('Résultats Automatismes 5e'!I$1,0,0,'Bilan données '!$B$34,1),AO5)/'Bilan données '!$B$34","v":{"$error":"#REF!"}},5,{"$f":"COUNTIF(OFFSET('Résultats Automatismes 5e'!K$1,0,0,'Bilan données '!$B$34,1),AQ4)/'Bilan données '!$B$34","v":{"$error":"#REF!"}},30,{"$f":"COUNTIF(OFFSET('Résultats Automatismes 5e'!M$1,0,0,'Bilan données '!$B$34,1),AS4)/'Bilan données '!$B$34","v":{"$error":"#REF!"}},"1/3",{"$f":"COUNTIF(OFFSET('Résultats Automatismes 5e'!O$1,0,0,'Bilan données '!$B$34,1),AU4)/'Bilan données '!$B$34","v":{"$error":"#REF!"}},227,{"$f":"COUNTIF(OFFSET('Résultats Automatismes 5e'!Q$1,0,0,'Bilan données '!$B$34,1),AW4)/'Bilan données '!$B$34","v":{"$error":"#REF!"}},430,{"$f":"COUNTIF(OFFSET('Résultats Automatismes 5e'!S$1,0,0,'Bilan données '!$B$34,1),AY4)/'Bilan données '!$B$34","v":{"$error":"#REF!"}},200,{"$f":"COUNTIF(OFFSET('Résultats Automatismes 5e'!U$1,0,0,'Bilan données '!$B$34,1),BA4)/'Bilan données '!$B$34","v":{"$error":"#REF!"}},4.5999999999999996,{"$f":"COUNTIF(OFFSET('Résultats Automatismes 5e'!W$1,0,0,'Bilan données '!$B$34,1),BC4)/'Bilan données '!$B$34","v":{"$error":"#REF!"}},105,{"$f":"COUNTIF(OFFSET('Résultats Automatismes 5e'!Y$1,0,0,'Bilan données '!$B$34,1),BE4)/'Bilan données '!$B$34","v":{"$error":"#REF!"}},"712,100",{"$f":"COUNTIF(OFFSET('Résultats Automatismes 5e'!AA$1,0,0,'Bilan données '!$B$34,1),BG4)/'Bilan données '!$B$34","v":{"$error":"#REF!"}},14.69,{"$f":"COUNTIF(OFFSET('Résultats Automatismes 5e'!AC$1,0,0,'Bilan données '!$B$34,1),BI4)/'Bilan données '!$B$34","v":{"$error":"#REF!"}},100,{"$f":"COUNTIF(OFFSET('Résultats Automatismes 5e'!AE$1,0,0,'Bilan données '!$B$34,1),BK4)/'Bilan données '!$B$34","v":{"$error":"#REF!"}},"50,300",{"$f":"COUNTIF(OFFSET('Résultats Automatismes 5e'!AG$1,0,0,'Bilan données '!$B$34,1),BM4)/'Bilan données '!$B$34","v":{"$error":"#REF!"}},"17,7",{"$f":"COUNTIF(OFFSET('Résultats Automatismes 5e'!AI$1,0,0,'Bilan données '!$B$34,1),BO4)/'Bilan données '!$B$34","v":{"$error":"#REF!"}},"99 < 9,998 < 100",{"$f":"COUNTIF(OFFSET('Résultats Automatismes 5e'!AK$1,0,0,'Bilan données '!$B$34,1),BQ4)/'Bilan données '!$B$34","v":{"$error":"#REF!"}},"unités.",{"$f":"COUNTIF(OFFSET('Résultats Automatismes 5e'!AM$1,0,0,'Bilan données '!$B$34,1),BS4)/'Bilan données '!$B$34","v":{"$error":"#REF!"}},"300,6",{"$f":"COUNTIF(OFFSET('Résultats Automatismes 5e'!AO$1,0,0,'Bilan données '!$B$34,1),BU4)/'Bilan données '!$B$34","v":{"$error":"#REF!"}},"25 % de 12.",{"$f":"COUNTIF(OFFSET('Résultats Automatismes 5e'!AQ$1,0,0,'Bilan données '!$B$34,1),BW4)/'Bilan données '!$B$34","v":{"$error":"#REF!"}},"408",{"$f":"COUNTIF(OFFSET('Résultats Automatismes 5e'!AS$1,0,0,'Bilan données '!$B$34,1),BY4)/'Bilan données '!$B$34","v":{"$error":"#REF!"}},"2 + 3,5 × 0,1",{"$f":"COUNTIF(OFFSET('Résultats Automatismes 5e'!AU$1,0,0,'Bilan données '!$B$34,1),CA4)/'Bilan données '!$B$34","v":{"$error":"#REF!"}},"20",{"$f":"COUNTIF(OFFSET('Résultats Automatismes 5e'!AW$1,0,0,'Bilan données '!$B$34,1),CC4)/'Bilan données '!$B$34","v":{"$error":"#REF!"}},"101/100",{"$f":"COUNTIF(OFFSET('Résultats Automatismes 5e'!AY$1,0,0,'Bilan données '!$B$34,1),CE4)/'Bilan données '!$B$34","v":{"$error":"#REF!"}},"6,5220",{"$f":"COUNTIF(OFFSET('Résultats Automatismes 5e'!BA$1,0,0,'Bilan données '!$B$34,1),CG4)/'Bilan données '!$B$34","v":{"$error":"#REF!"}},"30 cm³",{"$f":"COUNTIF(OFFSET('Résultats Automatismes 5e'!BC$1,0,0,'Bilan données '!$B$34,1),CI4)/'Bilan données '!$B$34","v":{"$error":"#REF!"}},"6/7",{"$f":"COUNTIF(OFFSET('Résultats Automatismes 5e'!BE$1,0,0,'Bilan données '!$B$34,1),CK4)/'Bilan données '!$B$34","v":{"$error":"#REF!"}},"780 : 1/10",{"$f":"COUNTIF(OFFSET('Résultats Automatismes 5e'!BG$1,0,0,'Bilan données '!$B$34,1),CM4)/'Bilan données '!$B$34","v":{"$error":"#REF!"}},"15",{"$f":"COUNTIF(OFFSET('Résultats Automatismes 5e'!BI$1,0,0,'Bilan données '!$B$34,1),CO4)/'Bilan données '!$B$34","v":{"$error":"#REF!"}},"40 800 400",{"$f":"COUNTIF(OFFSET('Résultats Automatismes 5e'!BK$1,0,0,'Bilan données '!$B$34,1),CQ4)/'Bilan données '!$B$34","v":{"$error":"#REF!"}}]
["Question 02",{"$error":"#DIV/0!"},null,null,null,null,null,null,null,null,null,null,null,null,null,null,null,null,null,null,null,null,null,null,null,null,null,null,null,null,null,null,null,null,null,null,"1/5",{"$f":"COUNTIF(OFFSET('Résultats Automatismes 5e'!E$1,0,0,'Bilan données '!$B$34,1),AK5)/'Bilan données '!$B$34","v":{"$error":"#REF!"}},6435,{"$f":"COUNTIF(OFFSET('Résultats Automatismes 5e'!G$1,0,0,'Bilan données '!$B$34,1),AM5)/'Bilan données '!$B$34","v":{"$error":"#REF!"}},"Onze-milliards",{"$f":"COUNTIF(OFFSET('Résultats Automatismes 5e'!I$1,0,0,'Bilan données '!$B$34,1),AO6)/'Bilan données '!$B$34","v":{"$error":"#REF!"}},6,{"$f":"COUNTIF(OFFSET('Résultats Automatismes 5e'!K$1,0,0,'Bilan données '!$B$34,1),AQ5)/'Bilan données '!$B$34","v":{"$error":"#REF!"}},35,{"$f":"COUNTIF(OFFSET('Résultats Automatismes 5e'!M$1,0,0,'Bilan données '!$B$34,1),AS5)/'Bilan données '!$B$34","v":{"$error":"#REF!"}},"1/4",{"$f":"COUNTIF(OFFSET('Résultats Automatismes 5e'!O$1,0,0,'Bilan données '!$B$34,1),AU5)/'Bilan données '!$B$34","v":{"$error":"#REF!"}},115,{"$f":"COUNTIF(OFFSET('Résultats Automatismes 5e'!Q$1,0,0,'Bilan données '!$B$34,1),AW5)/'Bilan données '!$B$34","v":{"$error":"#REF!"}},86,{"$f":"COUNTIF(OFFSET('Résultats Automatismes 5e'!S$1,0,0,'Bilan données '!$B$34,1),AY5)/'Bilan données '!$B$34","v":{"$error":"#REF!"}},210,{"$f":"COUNTIF(OFFSET('Résultats Automatismes 5e'!U$1,0,0,'Bilan données '!$B$34,1),BA5)/'Bilan données '!$B$34","v":{"$error":"#REF!"}},3.16,{"$f":"COUNTIF(OFFSET('Résultats Automatismes 5e'!W$1,0,0,'Bilan données '!$B$34,1),BC5)/'Bilan données '!$B$34","v":{"$error":"#REF!"}},150,{"$f":"COUNTIF(OFFSET('Résultats Automatismes 5e'!Y$1,0,0,'Bilan données '!$B$34,1),BE5)/'Bilan données '!$B$34","v":{"$error":"#REF!"}},71200,{"$f":"COUNTIF(OFFSET('Résultats Automatismes 5e'!AA$1,0,0,'Bilan données '!$B$34,1),BG5)/'Bilan données '!$B$34","v":{"$error":"#REF!"}},"14,68",{"$f":"COUNTIF(OFFSET('Résultats Automatismes 5e'!AC$1,0,0,'Bilan données '!$B$34,1),BI5)/'Bilan données '!$B$34","v":{"$error":"#REF!"}},1000,{"$f":"COUNTIF(OFFSET('Résultats Automatismes 5e'!AE$1,0,0,'Bilan données '!$B$34,1),BK5)/'Bilan données '!$B$34","v":{"$error":"#REF!"}},"300,50",{"$f":"COUNTIF(OFFSET('Résultats Automatismes 5e'!AG$1,0,0,'Bilan données '!$B$34,1),BM5)/'Bilan données '!$B$34","v":{"$error":"#REF!"}},"12,9",{"$f":"COUNTIF(OFFSET('Résultats Automatismes 5e'!AI$1,0,0,'Bilan données '!$B$34,1),BO5)/'Bilan données '!$B$34","v":{"$error":"#REF!"}},"9 < 9,998 < 10",{"$f":"COUNTIF(OFFSET('Résultats Automatismes 5e'!AK$1,0,0,'Bilan données '!$B$34,1),BQ5)/'Bilan données '!$B$34","v":{"$error":"#REF!"}},"milliers.",{"$f":"COUNTIF(OFFSET('Résultats Automatismes 5e'!AM$1,0,0,'Bilan données '!$B$34,1),BS5)/'Bilan données '!$B$34","v":{"$error":"#REF!"}},"3600",{"$f":"COUNTIF(OFFSET('Résultats Automatismes 5e'!AO$1,0,0,'Bilan données '!$B$34,1),BU5)/'Bilan données '!$B$34","v":{"$error":"#REF!"}},"1,2 % de 12.",{"$f":"COUNTIF(OFFSET('Résultats Automatismes 5e'!AQ$1,0,0,'Bilan données '!$B$34,1),BW5)/'Bilan données '!$B$34","v":{"$error":"#REF!"}},"480",{"$f":"COUNTIF(OFFSET('Résultats Automatismes 5e'!AS$1,0,0,'Bilan données '!$B$34,1),BY5)/'Bilan données '!$B$34","v":{"$error":"#REF!"}},"2 × 0,1 + 3,5",{"$f":"COUNTIF(OFFSET('Résultats Automatismes 5e'!AU$1,0,0,'Bilan données '!$B$34,1),CA5)/'Bilan données '!$B$34","v":{"$error":"#REF!"}},"12",{"$f":"COUNTIF(OFFSET('Résultats Automatismes 5e'!AW$1,0,0,'Bilan données '!$B$34,1),CC5)/'Bilan données '!$B$34","v":{"$error":"#REF!"}},"1/10",{"$f":"COUNTIF(OFFSET('Résultats Automatismes 5e'!AY$1,0,0,'Bilan données '!$B$34,1),CE5)/'Bilan données '!$B$34","v":{"$error":"#REF!"}},"6,5201",{"$f":"COUNTIF(OFFSET('Résultats Automatismes 5e'!BA$1,0,0,'Bilan données '!$B$34,1),CG5)/'Bilan données '!$B$34","v":{"$error":"#REF!"}},"60 cm³",{"$f":"COUNTIF(OFFSET('Résultats Automatismes 5e'!BC$1,0,0,'Bilan données '!$B$34,1),CI5)/'Bilan données '!$B$34","v":{"$error":"#REF!"}},"6/14",{"$f":"COUNTIF(OFFSET('Résultats Automatismes 5e'!BE$1,0,0,'Bilan données '!$B$34,1),CK5)/'Bilan données '!$B$34","v":{"$error":"#REF!"}},"780 × 0,01",{"$f":"COUNTIF(OFFSET('Résultats Automatismes 5e'!BG$1,0,0,'Bilan données '!$B$34,1),CM5)/'Bilan données '!$B$34","v":{"$error":"#REF!"}},"5",{"$f":"COUNTIF(OFFSET('Résultats Automatismes 5e'!BI$1,0,0,'Bilan données '!$B$34,1),CO5)/'Bilan données '!$B$34","v":{"$error":"#REF!"}},"484 000 000 000",{"$f":"COUNTIF(OFFSET('Résultats Automatismes 5e'!BK$1,0,0,'Bilan données '!$B$34,1),CQ5)/'Bilan données '!$B$34","v":{"$error":"#REF!"}}]
["Question 03",{"$error":"#DIV/0!"},null,null,null,null,null,null,null,null,null,null,null,null,null,null,null,null,null,null,null,null,null,null,null,null,null,null,null,null,null,null,null,null,null,null,"6/5",{"$f":"COUNTIF(OFFSET('Résultats Automatismes 5e'!E$1,0,0,'Bilan données '!$B$34,1),AK6)/'Bilan données '!$B$34","v":{"$error":"#REF!"}},64035,{"$f":"COUNTIF(OFFSET('Résultats Automatismes 5e'!G$1,0,0,'Bilan données '!$B$34,1),AM6)/'Bilan données '!$B$34","v":{"$error":"#REF!"}},"Onze-millions",{"$f":"COUNTIF(OFFSET('Résultats Automatismes 5e'!I$1,0,0,'Bilan données '!$B$34,1),AO7)/'Bilan données '!$B$34","v":{"$error":"#REF!"}},7,{"$f":"COUNTIF(OFFSET('Résultats Automatismes 5e'!K$1,0,0,'Bilan données '!$B$34,1),AQ6)/'Bilan données '!$B$34","v":{"$error":"#REF!"}},40,{"$f":"COUNTIF(OFFSET('Résultats Automatismes 5e'!M$1,0,0,'Bilan données '!$B$34,1),AS6)/'Bilan données '!$B$34","v":{"$error":"#REF!"}},"3/4",{"$f":"COUNTIF(OFFSET('Résultats Automatismes 5e'!O$1,0,0,'Bilan données '!$B$34,1),AU6)/'Bilan données '!$B$34","v":{"$error":"#REF!"}},226,{"$f":"COUNTIF(OFFSET('Résultats Automatismes 5e'!Q$1,0,0,'Bilan données '!$B$34,1),AW6)/'Bilan données '!$B$34","v":{"$error":"#REF!"}},205,{"$f":"COUNTIF(OFFSET('Résultats Automatismes 5e'!S$1,0,0,'Bilan données '!$B$34,1),AY6)/'Bilan données '!$B$34","v":{"$error":"#REF!"}},275,{"$f":"COUNTIF(OFFSET('Résultats Automatismes 5e'!U$1,0,0,'Bilan données '!$B$34,1),BA6)/'Bilan données '!$B$34","v":{"$error":"#REF!"}},3.6,{"$f":"COUNTIF(OFFSET('Résultats Automatismes 5e'!W$1,0,0,'Bilan données '!$B$34,1),BC6)/'Bilan données '!$B$34","v":{"$error":"#REF!"}},11,{"$f":"COUNTIF(OFFSET('Résultats Automatismes 5e'!Y$1,0,0,'Bilan données '!$B$34,1),BE6)/'Bilan données '!$B$34","v":{"$error":"#REF!"}},0.71199999999999997,{"$f":"COUNTIF(OFFSET('Résultats Automatismes 5e'!AA$1,0,0,'Bilan données '!$B$34,1),BG6)/'Bilan données '!$B$34","v":{"$error":"#REF!"}},"14,6180",{"$f":"COUNTIF(OFFSET('Résultats Automatismes 5e'!AC$1,0,0,'Bilan données '!$B$34,1),BI6)/'Bilan données '!$B$34","v":{"$error":"#REF!"}},10000,{"$f":"COUNTIF(OFFSET('Résultats Automatismes 5e'!AE$1,0,0,'Bilan données '!$B$34,1),BK6)/'Bilan données '!$B$34","v":{"$error":"#REF!"}},350,{"$f":"COUNTIF(OFFSET('Résultats Automatismes 5e'!AG$1,0,0,'Bilan données '!$B$34,1),BM6)/'Bilan données '!$B$34","v":{"$error":"#REF!"}},"13,9",{"$f":"COUNTIF(OFFSET('Résultats Automatismes 5e'!AI$1,0,0,'Bilan données '!$B$34,1),BO6)/'Bilan données '!$B$34","v":{"$error":"#REF!"}},"9 999 < 9,998 < 10 000",{"$f":"COUNTIF(OFFSET('Résultats Automatismes 5e'!AK$1,0,0,'Bilan données '!$B$34,1),BQ6)/'Bilan données '!$B$34","v":{"$error":"#REF!"}},"centièmes.",{"$f":"COUNTIF(OFFSET('Résultats Automatismes 5e'!AM$1,0,0,'Bilan données '!$B$34,1),BS6)/'Bilan données '!$B$34","v":{"$error":"#REF!"}},"360",{"$f":"COUNTIF(OFFSET('Résultats Automatismes 5e'!AO$1,0,0,'Bilan données '!$B$34,1),BU6)/'Bilan données '!$B$34","v":{"$error":"#REF!"}},"1,5 % de 12.",{"$f":"COUNTIF(OFFSET('Résultats Automatismes 5e'!AQ$1,0,0,'Bilan données '!$B$34,1),BW6)/'Bilan données '!$B$34","v":{"$error":"#REF!"}},"0,48",{"$f":"COUNTIF(OFFSET('Résultats Automatismes 5e'!AS$1,0,0,'Bilan données '!$B$34,1),BY6)/'Bilan données '!$B$34","v":{"$error":"#REF!"}},"2 + ( 3,5 × 0,1 )",{"$f":"COUNTIF(OFFSET('Résultats Automatismes 5e'!AU$1,0,0,'Bilan données '!$B$34,1),CA6)/'Bilan données '!$B$34","v":{"$error":"#REF!"}},"16",{"$f":"COUNTIF(OFFSET('Résultats Automatismes 5e'!AW$1,0,0,'Bilan données '!$B$34,1),CC6)/'Bilan données '!$B$34","v":{"$error":"#REF!"}},"11/100",{"$f":"COUNTIF(OFFSET('Résultats Automatismes 5e'!AY$1,0,0,'Bilan données '!$B$34,1),CE6)/'Bilan données '!$B$34","v":{"$error":"#REF!"}},"6,5230",{"$f":"COUNTIF(OFFSET('Résultats Automatismes 5e'!BA$1,0,0,'Bilan données '!$B$34,1),CG6)/'Bilan données '!$B$34","v":{"$error":"#REF!"}},"3600 cm³",{"$f":"COUNTIF(OFFSET('Résultats Automatismes 5e'!BC$1,0,0,'Bilan données '!$B$34,1),CI6)/'Bilan données '!$B$34","v":{"$error":"#REF!"}},"9/49",{"$f":"COUNTIF(OFFSET('Résultats Automatismes 5e'!BE$1,0,0,'Bilan données '!$B$34,1),CK6)/'Bilan données '!$B$34","v":{"$error":"#REF!"}},"780 × 1/100",{"$f":"COUNTIF(OFFSET('Résultats Automatismes 5e'!BG$1,0,0,'Bilan données '!$B$34,1),CM6)/'Bilan données '!$B$34","v":{"$error":"#REF!"}},"3/5",{"$f":"COUNTIF(OFFSET('Résultats Automatismes 5e'!BI$1,0,0,'Bilan données '!$B$34,1),CO6)/'Bilan données '!$B$34","v":{"$error":"#REF!"}},"40 800 000 40",{"$f":"COUNTIF(OFFSET('Résultats Automatismes 5e'!BK$1,0,0,'Bilan données '!$B$34,1),CQ6)/'Bilan données '!$B$34","v":{"$error":"#REF!"}}]
["Question 04",{"$error":"#DIV/0!"},null,null,null,null,null,null,null,null,null,null,null,null,null,null,null,null,null,null,null,null,null,null,null,null,null,null,null,null,null,null,null,null,null,null,"NR",{"$f":"1-SUM(AL3:AL6)","v":{"$error":"#REF!"}},"NR",{"$f":"1-SUM(AN3:AN6)","v":{"$error":"#REF!"}},"NR",{"$f":"1-SUM(AP3:AP6)","v":{"$error":"#REF!"}},"NR",{"$f":"1-SUM(AR3:AR6)","v":{"$error":"#REF!"}},"NR",{"$f":"1-SUM(AT3:AT6)","v":{"$error":"#REF!"}},"NR",{"$f":"1-SUM(AV3:AV6)","v":{"$error":"#REF!"}},"NR",{"$f":"1-SUM(AX3:AX6)","v":{"$error":"#REF!"}},"NR",{"$f":"1-SUM(AZ3:AZ6)","v":{"$error":"#REF!"}},"NR",{"$f":"1-SUM(BB3:BB6)","v":{"$error":"#REF!"}},"NR",{"$f":"1-SUM(BD3:BD6)","v":{"$error":"#REF!"}},"NR",{"$f":"1-SUM(BF3:BF6)","v":{"$error":"#REF!"}},"NR",{"$f":"1-SUM(BH3:BH6)","v":{"$error":"#REF!"}},"NR",{"$f":"1-SUM(BJ3:BJ6)","v":{"$error":"#REF!"}},"NR",{"$f":"1-SUM(BL3:BL6)","v":{"$error":"#REF!"}},"NR",{"$f":"1-SUM(BN3:BN6)","v":{"$error":"#REF!"}},"NR",{"$f":"1-SUM(BP3:BP6)","v":{"$error":"#REF!"}},"NR",{"$f":"1-SUM(BR3:BR6)","v":{"$error":"#REF!"}},"NR",{"$f":"1-SUM(BT3:BT6)","v":{"$error":"#REF!"}},"NR",{"$f":"1-SUM(BV3:BV6)","v":{"$error":"#REF!"}},"NR",{"$f":"1-SUM(BX3:BX6)","v":{"$error":"#REF!"}},"NR",{"$f":"1-SUM(BZ3:BZ6)","v":{"$error":"#REF!"}},"NR",{"$f":"1-SUM(CB3:CB6)","v":{"$error":"#REF!"}},"NR",{"$f":"1-SUM(CD3:CD6)","v":{"$error":"#REF!"}},"NR",{"$f":"1-SUM(CF3:CF6)","v":{"$error":"#REF!"}},"NR",{"$f":"1-SUM(CH3:CH6)","v":{"$error":"#REF!"}},"NR",{"$f":"1-SUM(CJ3:CJ6)","v":{"$error":"#REF!"}},"NR",{"$f":"1-SUM(CL3:CL6)","v":{"$error":"#REF!"}},"NR",{"$f":"1-SUM(CN3:CN6)","v":{"$error":"#REF!"}},"NR",{"$f":"1-SUM(CP3:CP6)","v":{"$error":"#REF!"}},"NR",{"$f":"1-SUM(CR3:CR6)","v":{"$error":"#REF!"}}]
["Question 05",{"$error":"#DIV/0!"}]
["Question 06",{"$error":"#DIV/0!"}]
["Question 07",{"$error":"#DIV/0!"}]
["Question 08",{"$error":"#DIV/0!"}]
["Question 09",{"$error":"#DIV/0!"}]
["Question 10",{"$error":"#DIV/0!"}]
["Question 11",{"$error":"#DIV/0!"}]
["Question 12",{"$error":"#DIV/0!"}]
["Question 13",{"$error":"#DIV/0!"}]
["Question 14",{"$error":"#DIV/0!"}]
["Question 15",{"$error":"#DIV/0!"}]
["Question 16",{"$error":"#DIV/0!"}]
["Question 17",{"$error":"#DIV/0!"}]
["Question 18",{"$error":"#DIV/0!"}]
["Question 19",{"$error":"#DIV/0!"}]
["Question 20",{"$error":"#DIV/0!"}]
["Question 21",{"$error":"#DIV/0!"}]
["Question 22",{"$error":"#DIV/0!"}]
["Question 23",{"$error":"#DIV/0!"}]
["Question 24",{"$error":"#DIV/0!"}]
["Question 25",{"$error":"#DIV/0!"}]
["Question 26",{"$error":"#DIV/0!"}]
["Question 27",{"$error":"#DIV/0!"}]
["Question 28",{"$error":"#DIV/0!"}]
["Question 29",{"$error":"#DIV/0!"}]
["Question 30",{"$error":"#DIV/0!"}]
["Total général",{"$error":"#DIV/0!"}]

{"sheet":"Bilan données ","index":2,"n_rows":9721,"n_cols":3,"rows_kept":9721,"cut":false,"hidden":true,"merged":[]}
["Test spécifique Automatismes 5e","Questions","% réussite "]
[null,"Question 01",{"$f":"100*COUNTIF('Résultats Automatismes 5e'!F:F,1)/$B$34","v":{"$error":"#DIV/0!"}}]
[null,"Question 02",{"$f":"100*COUNTIF('Résultats Automatismes 5e'!H:H,1)/$B$34","v":{"$error":"#DIV/0!"}}]
[null,"Question 03",{"$f":"100*COUNTIF('Résultats Automatismes 5e'!J:J,1)/$B$34","v":{"$error":"#DIV/0!"}}]
[null,"Question 04",{"$f":"100*COUNTIF('Résultats Automatismes 5e'!L:L,1)/$B$34","v":{"$error":"#DIV/0!"}}]
[null,"Question 05",{"$f":"100*COUNTIF('Résultats Automatismes 5e'!N:N,1)/$B$34","v":{"$error":"#DIV/0!"}}]
[null,"Question 06",{"$f":"100*COUNTIF('Résultats Automatismes 5e'!P:P,1)/$B$34","v":{"$error":"#DIV/0!"}}]
[null,"Question 07",{"$f":"100*COUNTIF('Résultats Automatismes 5e'!R:R,1)/$B$34","v":{"$error":"#DIV/0!"}}]
[null,"Question 08",{"$f":"100*COUNTIF('Résultats Automatismes 5e'!T:T,1)/$B$34","v":{"$error":"#DIV/0!"}}]
[null,"Question 09",{"$f":"100*COUNTIF('Résultats Automatismes 5e'!V:V,1)/$B$34","v":{"$error":"#DIV/0!"}}]
[null,"Question 10",{"$f":"100*COUNTIF('Résultats Automatismes 5e'!X:X,1)/$B$34","v":{"$error":"#DIV/0!"}}]
[null,"Question 11",{"$f":"100*COUNTIF('Résultats Automatismes 5e'!Z:Z,1)/$B$34","v":{"$error":"#DIV/0!"}}]
[null,"Question 12",{"$f":"100*COUNTIF('Résultats Automatismes 5e'!AB:AB,1)/$B$34","v":{"$error":"#DIV/0!"}}]
[null,"Question 13",{"$f":"100*COUNTIF('Résultats Automatismes 5e'!AD:AD,1)/$B$34","v":{"$error":"#DIV/0!"}}]
[null,"Question 14",{"$f":"100*COUNTIF('Résultats Automatismes 5e'!AF:AF,1)/$B$34","v":{"$error":"#DIV/0!"}}]
[null,"Question 15",{"$f":"100*COUNTIF('Résultats Automatismes 5e'!AH:AH,1)/$B$34","v":{"$error":"#DIV/0!"}}]
[null,"Question 16",{"$f":"100*COUNTIF('Résultats Automatismes 5e'!AJ:AJ,1)/$B$34","v":{"$error":"#DIV/0!"}}]
[null,"Question 17",{"$f":"100*COUNTIF('Résultats Automatismes 5e'!AL:AL,1)/$B$34","v":{"$error":"#DIV/0!"}}]
[null,"Question 18",{"$f":"100*COUNTIF('Résultats Automatismes 5e'!AN:AN,1)/$B$34","v":{"$error":"#DIV/0!"}}]
[null,"Question 19",{"$f":"100*COUNTIF('Résultats Automatismes 5e'!AP:AP,1)/$B$34","v":{"$error":"#DIV/0!"}}]
[null,"Question 20",{"$f":"100*COUNTIF('Résultats Automatismes 5e'!AR:AR,1)/$B$34","v":{"$error":"#DIV/0!"}}]
[null,"Question 21",{"$f":"100*COUNTIF('Résultats Automatismes 5e'!AT:AT,1)/$B$34","v":{"$error":"#DIV/0!"}}]
[null,"Question 22",{"$f":"100*COUNTIF('Résultats Automatismes 5e'!AV:AV,1)/$B$34","v":{"$error":"#DIV/0!"}}]
[null,"Question 23",{"$f":"100*COUNTIF('Résultats Automatismes 5e'!AX:AX,1)/$B$34","v":{"$error":"#DIV/0!"}}]
[null,"Question 24",{"$f":"100*COUNTIF('Résultats Automatismes 5e'!AZ:AZ,1)/$B$34","v":{"$error":"#DIV/0!"}}]
[null,"Question 25",{"$f":"100*COUNTIF('Résultats Automatismes 5e'!BB:BB,1)/$B$34","v":{"$error":"#DIV/0!"}}]
[null,"Question 26",{"$f":"100*COUNTIF('Résultats Automatismes 5e'!BD:BD,1)/$B$34","v":{"$error":"#DIV/0!"}}]
[null,"Question 27",{"$f":"100*COUNTIF('Résultats Automatismes 5e'!BF:BF,1)/$B$34","v":{"$error":"#DIV/0!"}}]
[null,"Question 28",{"$f":"100*COUNTIF('Résultats Automatismes 5e'!BH:BH,1)/$B$34","v":{"$error":"#DIV/0!"}}]
[null,"Question 29",{"$f":"100*COUNTIF('Résultats Automatismes 5e'!BJ:BJ,1)/$B$34","v":{"$error":"#DIV/0!"}}]
[null,"Question 30",{"$f":"100*COUNTIF('Résultats Automatismes 5e'!BL:BL,1)/$B$34","v":{"$error":"#DIV/0!"}}]
[]
[]
["Nombre élèves 5e ",{"$f":"COUNTIF('Résultats Automatismes 5e'!F$2:F$500,1)+COUNTIF('Résultats Automatismes 5e'!F$2:F$500,0)","v":0}]
[]
[]
[]
[]
[]
[]
[]
[]
[]
[]
[]
[]
[]
[]
[]
[]
[]
[]
[]
[]
[]
[]
[]
[]
[]
[]
[]
[]
[]
[]
[]
[]
[]
[]
[]
["Test spécifique - 4e MA - Automatismes","Question 01",88.6]
["Test spécifique - 4e MA - Automatismes","Question 02",87.1]
["Test spécifique - 4e MA - Automatismes","Question 03",70]
["Test spécifique - 4e MA - Automatismes","Question 04",80]
["Test spécifique - 4e MA - Automatismes","Question 05",65.7]
["Test spécifique - 4e MA - Automatismes","Question 06",51.4]
["Test spécifique - 4e MA - Automatismes","Question 07",62.9]
["Test spécifique - 4e MA - Automatismes","Question 08",62.9]
["Test spécifique - 4e MA - Automatismes","Question 09",22.9]
["Test spécifique - 4e MA - Automatismes","Question 10",54.3]
["Test spécifique - 4e MA - Automatismes","Question 11",28.6]
["Test spécifique - 4e MA - Automatismes","Question 12",47.1]
["Test spécifique - 4e MA - Automatismes","Question 13",32.9]
["Test spécifique - 4e MA - Automatismes","Question 14",12.9]
["Test spécifique - 4e MA - Automatismes","Question 15",45.7]
["Test spécifique - 4e MA - Automatismes","Question 16",32.9]
["Test spécifique - 4e MA - Automatismes","Question 17",34.299999999999997]
["Test spécifique - 4e MA - Automatismes","Question 18",50]
["Test spécifique - 4e MA - Automatismes","Question 19",30]
["Test spécifique - 4e MA - Automatismes","Question 20",35.700000000000003]
["Test spécifique - 4e MA - Automatismes","Question 21",20]
["Test spécifique - 4e MA - Automatismes","Question 22",31.4]
[]
[]
[]
[]
[]
[]
[]
[]
[]
[]
[]
[]
[]
[]
[]
[]
[]
[]
[]
[]
[]
[]
[]
["Test spécifique - 4e MA - Automatismes","Question 01",84.2]
["Test spécifique - 4e MA - Automatismes","Question 02",76.2]
["Test spécifique - 4e MA - Automatismes","Question 03",77.2]
["Test spécifique - 4e MA - Automatismes","Question 04",77.2]
["Test spécifique - 4e MA - Automatismes","Question 05",45.5]
["Test spécifique - 4e MA - Automatismes","Question 06",71.3]
["Test spécifique - 4e MA - Automatismes","Question 07",44.6]
["Test spécifique - 4e MA - Automatismes","Question 08",47.5]
["Test spécifique - 4e MA - Automatismes","Question 09",30.7]
["Test spécifique - 4e MA - Automatismes","Question 10",38.6]
["Test spécifique - 4e MA - Automatismes","Question 11",38.6]
["Test spécifique - 4e MA - Automatismes","Question 12",43.6]
["Test spécifique - 4e MA - Automatismes","Question 13",15.8]
["Test spécifique - 4e MA - Automatismes","Question 14",4]
["Test spécifique - 4e MA - Automatismes","Question 15",45.5]
["Test spécifique - 4e MA - Automatismes","Question 16",23.8]
["Test spécifique - 4e MA - Automatismes","Question 17",28.7]
["Test spécifique - 4e MA - Automatismes","Question 18",26.7]
["Test spécifique - 4e MA - Automatismes","Question 19",17.8]
["Test spécifique - 4e MA - Automatismes","Question 20",53.5]
["Test spécifique - 4e MA - Automatismes","Question 21",17.8]
["Test spécifique - 4e MA - Automatismes","Question 22",36.6]
[]
[]
[]
[]
[]
[]
[]
[]
[]
[]
[]
[]
[]
[]
[]
[]
[]
[]
[]
[]
[]
[]
[]
["Test spécifique - 4e MA - Automatismes","Question 01",94]
["Test spécifique - 4e MA - Automatismes","Question 02",89.7]
["Test spécifique - 4e MA - Automatismes","Question 03",91.4]
["Test spécifique - 4e MA - Automatismes","Question 04",83.6]
["Test spécifique - 4e MA - Automatismes","Question 05",74.099999999999994]
["Test spécifique - 4e MA - Automatismes","Question 06",55.2]
["Test spécifique - 4e MA - Automatismes","Question 07",59.5]
["Test spécifique - 4e MA - Automatismes","Question 08",54.3]
["Test spécifique - 4e MA - Automatismes","Question 09",30.2]
["Test spécifique - 4e MA - Automatismes","Question 10",63.8]
["Test spécifique - 4e MA - Automatismes","Question 11",41.4]
["Test spécifique - 4e MA - Automatismes","Question 12",51.7]
["Test spécifique - 4e MA - Automatismes","Question 13",49.1]
["Test spécifique - 4e MA - Automatismes","Question 14",48.3]
["Test spécifique - 4e MA - Automatismes","Question 15",57.8]
["Test spécifique - 4e MA - Automatismes","Question 16",51.7]
["Test spécifique - 4e MA - Automatismes","Question 17",30.2]
["Test spécifique - 4e MA - Automatismes","Question 18",34.5]
["Test spécifique - 4e MA - Automatismes","Question 19",32.799999999999997]
["Test spécifique - 4e MA - Automatismes","Question 20",45.7]
["Test spécifique - 4e MA - Automatismes","Question 21",30.2]
["Test spécifique - 4e MA - Automatismes","Question 22",39.700000000000003]
[]
[]
[]
[]
[]
[]
[]
[]
[]
[]
[]
[]
[]
[]
[]
[]
[]
[]
[]
[]
[]
[]
[]
["Test spécifique - 4e MA - Automatismes","Question 01",93.7]
["Test spécifique - 4e MA - Automatismes","Question 02",88.6]
["Test spécifique - 4e MA - Automatismes","Question 03",84.8]
["Test spécifique - 4e MA - Automatismes","Question 04",82.3]
["Test spécifique - 4e MA - Automatismes","Question 05",65.8]
["Test spécifique - 4e MA - Automatismes","Question 06",63.9]
["Test spécifique - 4e MA - Automatismes","Question 07",65.2]
["Test spécifique - 4e MA - Automatismes","Question 08",66.5]
["Test spécifique - 4e MA - Automatismes","Question 09",51.3]
["Test spécifique - 4e MA - Automatismes","Question 10",57]
["Test spécifique - 4e MA - Automatismes","Question 11",59.5]
["Test spécifique - 4e MA - Automatismes","Question 12",59.5]
["Test spécifique - 4e MA - Automatismes","Question 13",48.7]
["Test spécifique - 4e MA - Automatismes","Question 14",52.5]
["Test spécifique - 4e MA - Automatismes","Question 15",57]
["Test spécifique - 4e MA - Automatismes","Question 16",53.8]
["Test spécifique - 4e MA - Automatismes","Question 17",32.299999999999997]
["Test spécifique - 4e MA - Automatismes","Question 18",42.4]
["Test spécifique - 4e MA - Automatismes","Question 19",33.5]
["Test spécifique - 4e MA - Automatismes","Question 20",39.200000000000003]
["Test spécifique - 4e MA - Automatismes","Question 21",32.299999999999997]
["Test spécifique - 4e MA - Automatismes","Question 22",41.1]
[]
[]
[]
[]
[]
[]
[]
[]
[]
[]
[]
[]
[]
[]
[]
[]
[]
[]
[]
[]
[]
[]
[]
["Test spécifique - 4e MA - Automatismes","Question 01",94.2]
["Test spécifique - 4e MA - Automatismes","Question 02",95.2]
["Test spécifique - 4e MA - Automatismes","Question 03",81.7]
["Test spécifique - 4e MA - Automatismes","Question 04",88.5]
["Test spécifique - 4e MA - Automatismes","Question 05",84.6]
["Test spécifique - 4e MA - Automatismes","Question 06",62.5]
["Test spécifique - 4e MA - Automatismes","Question 07",68.3]
["Test spécifique - 4e MA - Automatismes","Question 08",70.2]
["Test spécifique - 4e MA - Automatismes","Question 09",45.2]
["Test spécifique - 4e MA - Automatismes","Question 10",47.1]
["Test spécifique - 4e MA - Automatismes","Question 11",53.8]
["Test spécifique - 4e MA - Automatismes","Question 12",53.8]
["Test spécifique - 4e MA - Automatismes","Question 13",35.6]
["Test spécifique - 4e MA - Automatismes","Question 14",18.3]
["Test spécifique - 4e MA - Automatismes","Question 15",52.9]
["Test spécifique - 4e MA - Automatismes","Question 16",45.2]
["Test spécifique - 4e MA - Automatismes","Question 17",34.6]
["Test spécifique - 4e MA - Automatismes","Question 18",51.9]
["Test spécifique - 4e MA - Automatismes","Question 19",25]
["Test spécifique - 4e MA - Automatismes","Question 20",63.5]
["Test spécifique - 4e MA - Automatismes","Question 21",23.1]
["Test spécifique - 4e MA - Automatismes","Question 22",34.6]
[]
[]
[]
[]
[]
[]
[]
[]
[]
[]
[]
[]
[]
[]
[]
[]
[]
[]
[]
[]
[]
[]
[]
["Test spécifique - 4e MA - Automatismes","Question 01",92.2]
["Test spécifique - 4e MA - Automatismes","Question 02",94.1]
["Test spécifique - 4e MA - Automatismes","Question 03",75.5]
["Test spécifique - 4e MA - Automatismes","Question 04",84.3]
["Test spécifique - 4e MA - Automatismes","Question 05",75.5]
["Test spécifique - 4e MA - Automatismes","Question 06",54.9]
["Test spécifique - 4e MA - Automatismes","Question 07",58.8]
["Test spécifique - 4e MA - Automatismes","Question 08",63.7]
["Test spécifique - 4e MA - Automatismes","Question 09",55.9]
["Test spécifique - 4e MA - Automatismes","Question 10",50]
["Test spécifique - 4e MA - Automatismes","Question 11",49]
["Test spécifique - 4e MA - Automatismes","Question 12",64.7]
["Test spécifique - 4e MA - Automatismes","Question 13",36.299999999999997]
["Test spécifique - 4e MA - Automatismes","Question 14",27.5]
["Test spécifique - 4e MA - Automatismes","Question 15",47.1]
["Test spécifique - 4e MA - Automatismes","Question 16",52.9]
["Test spécifique - 4e MA - Automatismes","Question 17",34.299999999999997]
["Test spécifique - 4e MA - Automatismes","Question 18",47.1]
["Test spécifique - 4e MA - Automatismes","Question 19",21.6]
["Test spécifique - 4e MA - Automatismes","Question 20",47.1]
["Test spécifique - 4e MA - Automatismes","Question 21",34.299999999999997]
["Test spécifique - 4e MA - Automatismes","Question 22",32.4]
[]
[]
[]
[]
[]
[]
[]
[]
[]
[]
[]
[]
[]
[]
[]
[]
[]
[]
[]
[]
[]
[]
[]
["Test spécifique - 4e MA - Automatismes","Question 01",94.6]
["Test spécifique - 4e MA - Automatismes","Question 02",92.4]
["Test spécifique - 4e MA - Automatismes","Question 03",81.5]
["Test spécifique - 4e MA - Automatismes","Question 04",76.099999999999994]
["Test spécifique - 4e MA - Automatismes","Question 05",66.3]
["Test spécifique - 4e MA - Automatismes","Question 06",50]
["Test spécifique - 4e MA - Automatismes","Question 07",66.3]
["Test spécifique - 4e MA - Automatismes","Question 08",64.099999999999994]
["Test spécifique - 4e MA - Automatismes","Question 09",38]
["Test spécifique - 4e MA - Automatismes","Question 10",50]
["Test spécifique - 4e MA - Automatismes","Question 11",44.6]
["Test spécifique - 4e MA - Automatismes","Question 12",62]
["Test spécifique - 4e MA - Automatismes","Question 13",33.700000000000003]
["Test spécifique - 4e MA - Automatismes","Question 14",19.600000000000001]
["Test spécifique - 4e MA - Automatismes","Question 15",51.1]
["Test spécifique - 4e MA - Automatismes","Question 16",50]
["Test spécifique - 4e MA - Automatismes","Question 17",53.3]
["Test spécifique - 4e MA - Automatismes","Question 18",42.4]
["Test spécifique - 4e MA - Automatismes","Question 19",54.3]
["Test spécifique - 4e MA - Automatismes","Question 20",35.9]
["Test spécifique - 4e MA - Automatismes","Question 21",17.399999999999999]
["Test spécifique - 4e MA - Automatismes","Question 22",33.700000000000003]
[]
[]
[]
[]
[]
[]
[]
[]
[]
[]
[]
[]
[]
[]
[]
[]
[]
[]
[]
[]
[]
[]
[]
["Test spécifique - 4e MA - Automatismes","Question 01",92.4]
["Test spécifique - 4e MA - Automatismes","Question 02",86.1]
["Test spécifique - 4e MA - Automatismes","Question 03",83.5]
["Test spécifique - 4e MA - Automatismes","Question 04",89.9]
["Test spécifique - 4e MA - Automatismes","Question 05",73.400000000000006]
["Test spécifique - 4e MA - Automatismes","Question 06",58.2]
["Test spécifique - 4e MA - Automatismes","Question 07",62]
["Test spécifique - 4e MA - Automatismes","Question 08",62]
["Test spécifique - 4e MA - Automatismes","Question 09",36.700000000000003]
["Test spécifique - 4e MA - Automatismes","Question 10",48.1]
["Test spécifique - 4e MA - Automatismes","Question 11",41.8]
["Test spécifique - 4e MA - Automatismes","Question 12",50.6]
["Test spécifique - 4e MA - Automatismes","Question 13",40.5]
["Test spécifique - 4e MA - Automatismes","Question 14",24.1]
["Test spécifique - 4e MA - Automatismes","Question 15",50.6]
["Test spécifique - 4e MA - Automatismes","Question 16",43]
["Test spécifique - 4e MA - Automatismes","Question 17",27.8]
["Test spécifique - 4e MA - Automatismes","Question 18",30.4]
["Test spécifique - 4e MA - Automatismes","Question 19",39.200000000000003]
["Test spécifique - 4e MA - Automatismes","Question 20",41.8]
["Test spécifique - 4e MA - Automatismes","Question 21",32.9]
["Test spécifique - 4e MA - Automatismes","Question 22",30.4]
[]
[]
[]
[]
[]
[]
[]
[]
[]
[]
[]
[]
[]
[]
[]
[]
[]
[]
[]
[]
[]
[]
[]
["Test spécifique - 4e MA - Automatismes","Question 01",95]
["Test spécifique - 4e MA - Automatismes","Question 02",91.7]
["Test spécifique - 4e MA - Automatismes","Question 03",87.6]
["Test spécifique - 4e MA - Automatismes","Question 04",81]
["Test spécifique - 4e MA - Automatismes","Question 05",66.900000000000006]
["Test spécifique - 4e MA - Automatismes","Question 06",70.2]
["Test spécifique - 4e MA - Automatismes","Question 07",57]
["Test spécifique - 4e MA - Automatismes","Question 08",53.7]
["Test spécifique - 4e MA - Automatismes","Question 09",32.200000000000003]
["Test spécifique - 4e MA - Automatismes","Question 10",43]
["Test spécifique - 4e MA - Automatismes","Question 11",46.3]
["Test spécifique - 4e MA - Automatismes","Question 12",57]
["Test spécifique - 4e MA - Automatismes","Question 13",34.700000000000003]
["Test spécifique - 4e MA - Automatismes","Question 14",45.5]
["Test spécifique - 4e MA - Automatismes","Question 15",39.700000000000003]
["Test spécifique - 4e MA - Automatismes","Question 16",42.1]
["Test spécifique - 4e MA - Automatismes","Question 17",24.8]
["Test spécifique - 4e MA - Automatismes","Question 18",40.5]
["Test spécifique - 4e MA - Automatismes","Question 19",35.5]
["Test spécifique - 4e MA - Automatismes","Question 20",40.5]
["Test spécifique - 4e MA - Automatismes","Question 21",19.8]
["Test spécifique - 4e MA - Automatismes","Question 22",33.9]
[]
[]
[]
[]
[]
[]
[]
[]
[]
[]
[]
[]
[]
[]
[]
[]
[]
[]
[]
[]
[]
[]
[]
["Test spécifique - 4e MA - Automatismes","Question 01",95.7]
["Test spécifique - 4e MA - Automatismes","Question 02",92.5]
["Test spécifique - 4e MA - Automatismes","Question 03",81.7]
["Test spécifique - 4e MA - Automatismes","Question 04",92.5]
["Test spécifique - 4e MA - Automatismes","Question 05",86]
["Test spécifique - 4e MA - Automatismes","Question 06",66.7]
["Test spécifique - 4e MA - Automatismes","Question 07",69.900000000000006]
["Test spécifique - 4e MA - Automatismes","Question 08",62.4]
["Test spécifique - 4e MA - Automatismes","Question 09",41.9]
["Test spécifique - 4e MA - Automatismes","Question 10",62.4]
["Test spécifique - 4e MA - Automatismes","Question 11",59.1]
["Test spécifique - 4e MA - Automatismes","Question 12",62.4]
["Test spécifique - 4e MA - Automatismes","Question 13",48.4]
["Test spécifique - 4e MA - Automatismes","Question 14",25.8]
["Test spécifique - 4e MA - Automatismes","Question 15",68.8]
["Test spécifique - 4e MA - Automatismes","Question 16",59.1]
["Test spécifique - 4e MA - Automatismes","Question 17",25.8]
["Test spécifique - 4e MA - Automatismes","Question 18",53.8]
["Test spécifique - 4e MA - Automatismes","Question 19",40.9]
["Test spécifique - 4e MA - Automatismes","Question 20",57]
["Test spécifique - 4e MA - Automatismes","Question 21",32.299999999999997]
["Test spécifique - 4e MA - Automatismes","Question 22",44.1]
[]
[]
[]
[]
[]
[]
[]
[]
[]
[]
[]
[]
[]
[]
[]
[]
[]
[]
[]
[]
[]
[]
[]
["Test spécifique - 4e MA - Automatismes","Question 01",92.4]
["Test spécifique - 4e MA - Automatismes","Question 02",74.3]
["Test spécifique - 4e MA - Automatismes","Question 03",69.5]
["Test spécifique - 4e MA - Automatismes","Question 04",79]
["Test spécifique - 4e MA - Automatismes","Question 05",63.8]
["Test spécifique - 4e MA - Automatismes","Question 06",57.1]
["Test spécifique - 4e MA - Automatismes","Question 07",41.9]
["Test spécifique - 4e MA - Automatismes","Question 08",56.2]
["Test spécifique - 4e MA - Automatismes","Question 09",26.7]
["Test spécifique - 4e MA - Automatismes","Question 10",37.1]
["Test spécifique - 4e MA - Automatismes","Question 11",30.5]
["Test spécifique - 4e MA - Automatismes","Question 12",43.8]
["Test spécifique - 4e MA - Automatismes","Question 13",19]
["Test spécifique - 4e MA - Automatismes","Question 14",32.4]
["Test spécifique - 4e MA - Automatismes","Question 15",32.4]
["Test spécifique - 4e MA - Automatismes","Question 16",24.8]
["Test spécifique - 4e MA - Automatismes","Question 17",48.6]
["Test spécifique - 4e MA - Automatismes","Question 18",38.1]
["Test spécifique - 4e MA - Automatismes","Question 19",28.6]
["Test spécifique - 4e MA - Automatismes","Question 20",38.1]
["Test spécifique - 4e MA - Automatismes","Question 21",12.4]
["Test spécifique - 4e MA - Automatismes","Question 22",19]
[]
[]
[]
[]
[]
[]
[]
[]
[]
[]
[]
[]
[]
[]
[]
[]
[]
[]
[]
[]
[]
[]
[]
["Test spécifique - 4e MA - Automatismes","Question 01",97.4]
["Test spécifique - 4e MA - Automatismes","Question 02",96.1]
["Test spécifique - 4e MA - Automatismes","Question 03",90.8]
["Test spécifique - 4e MA - Automatismes","Question 04",81.599999999999994]
["Test spécifique - 4e MA - Automatismes","Question 05",64.5]
["Test spécifique - 4e MA - Automatismes","Question 06",69.7]
["Test spécifique - 4e MA - Automatismes","Question 07",67.099999999999994]
["Test spécifique - 4e MA - Automatismes","Question 08",57.9]
["Test spécifique - 4e MA - Automatismes","Question 09",59.2]
["Test spécifique - 4e MA - Automatismes","Question 10",61.8]
["Test spécifique - 4e MA - Automatismes","Question 11",51.3]
["Test spécifique - 4e MA - Automatismes","Question 12",50]
["Test spécifique - 4e MA - Automatismes","Question 13",55.3]
["Test spécifique - 4e MA - Automatismes","Question 14",32.9]
["Test spécifique - 4e MA - Automatismes","Question 15",68.400000000000006]
["Test spécifique - 4e MA - Automatismes","Question 16",50]
["Test spécifique - 4e MA - Automatismes","Question 17",59.2]
["Test spécifique - 4e MA - Automatismes","Question 18",53.9]
["Test spécifique - 4e MA - Automatismes","Question 19",56.6]
["Test spécifique - 4e MA - Automatismes","Question 20",44.7]
["Test spécifique - 4e MA - Automatismes","Question 21",57.9]
["Test spécifique - 4e MA - Automatismes","Question 22",34.200000000000003]
[]
[]
[]
[]
[]
[]
[]
[]
[]
[]
[]
[]
[]
[]
[]
[]
[]
[]
[]
[]
[]
[]
[]
["Test spécifique - 4e MA - Automatismes","Question 01",94.8]
["Test spécifique - 4e MA - Automatismes","Question 02",88.5]
["Test spécifique - 4e MA - Automatismes","Question 03",81.3]
["Test spécifique - 4e MA - Automatismes","Question 04",81.3]
["Test spécifique - 4e MA - Automatismes","Question 05",70.8]
["Test spécifique - 4e MA - Automatismes","Question 06",58.3]
["Test spécifique - 4e MA - Automatismes","Question 07",63.5]
["Test spécifique - 4e MA - Automatismes","Question 08",63.5]
["Test spécifique - 4e MA - Automatismes","Question 09",37.5]
["Test spécifique - 4e MA - Automatismes","Question 10",44.8]
["Test spécifique - 4e MA - Automatismes","Question 11",46.9]
["Test spécifique - 4e MA - Automatismes","Question 12",55.2]
["Test spécifique - 4e MA - Automatismes","Question 13",39.6]
["Test spécifique - 4e MA - Automatismes","Question 14",27.1]
["Test spécifique - 4e MA - Automatismes","Question 15",53.1]
["Test spécifique - 4e MA - Automatismes","Question 16",40.6]
["Test spécifique - 4e MA - Automatismes","Question 17",37.5]
["Test spécifique - 4e MA - Automatismes","Question 18",40.6]
["Test spécifique - 4e MA - Automatismes","Question 19",58.3]
["Test spécifique - 4e MA - Automatismes","Question 20",51]
["Test spécifique - 4e MA - Automatismes","Question 21",36.5]
["Test spécifique - 4e MA - Automatismes","Question 22",35.4]
[]
[]
[]
[]
[]
[]
[]
[]
[]
[]
[]
[]
[]
[]
[]
[]
[]
[]
[]
[]
[]
[]
[]
["Test spécifique - 4e MA - Automatismes","Question 01",90.1]
["Test spécifique - 4e MA - Automatismes","Question 02",76.5]
["Test spécifique - 4e MA - Automatismes","Question 03",77.8]
["Test spécifique - 4e MA - Automatismes","Question 04",79]
["Test spécifique - 4e MA - Automatismes","Question 05",54.3]
["Test spécifique - 4e MA - Automatismes","Question 06",71.599999999999994]
["Test spécifique - 4e MA - Automatismes","Question 07",45.7]
["Test spécifique - 4e MA - Automatismes","Question 08",50.6]
["Test spécifique - 4e MA - Automatismes","Question 09",32.1]
["Test spécifique - 4e MA - Automatismes","Question 10",43.2]
["Test spécifique - 4e MA - Automatismes","Question 11",39.5]
["Test spécifique - 4e MA - Automatismes","Question 12",45.7]
["Test spécifique - 4e MA - Automatismes","Question 13",29.6]
["Test spécifique - 4e MA - Automatismes","Question 14",16]
["Test spécifique - 4e MA - Automatismes","Question 15",49.4]
["Test spécifique - 4e MA - Automatismes","Question 16",39.5]
["Test spécifique - 4e MA - Automatismes","Question 17",33.299999999999997]
["Test spécifique - 4e MA - Automatismes","Question 18",32.1]
["Test spécifique - 4e MA - Automatismes","Question 19",22.2]
["Test spécifique - 4e MA - Automatismes","Question 20",40.700000000000003]
["Test spécifique - 4e MA - Automatismes","Question 21",17.3]
["Test spécifique - 4e MA - Automatismes","Question 22",32.1]
[]
[]
[]
[]
[]
[]
[]
[]
[]
[]
[]
[]
[]
[]
[]
[]
[]
[]
[]
[]
[]
[]
[]
["Test spécifique - 4e MA - Automatismes","Question 01",87.2]
["Test spécifique - 4e MA - Automatismes","Question 02",84.6]
["Test spécifique - 4e MA - Automatismes","Question 03",84.6]
["Test spécifique - 4e MA - Automatismes","Question 04",82.1]
["Test spécifique - 4e MA - Automatismes","Question 05",69.2]
["Test spécifique - 4e MA - Automatismes","Question 06",51.3]
["Test spécifique - 4e MA - Automatismes","Question 07",51.3]
["Test spécifique - 4e MA - Automatismes","Question 08",56.4]
["Test spécifique - 4e MA - Automatismes","Question 09",43.6]
["Test spécifique - 4e MA - Automatismes","Question 10",41]
["Test spécifique - 4e MA - Automatismes","Question 11",46.2]
["Test spécifique - 4e MA - Automatismes","Question 12",69.2]
["Test spécifique - 4e MA - Automatismes","Question 13",28.2]
["Test spécifique - 4e MA - Automatismes","Question 14",82.1]
["Test spécifique - 4e MA - Automatismes","Question 15",43.6]
["Test spécifique - 4e MA - Automatismes","Question 16",46.2]
["Test spécifique - 4e MA - Automatismes","Question 17",56.4]
["Test spécifique - 4e MA - Automatismes","Question 18",51.3]
["Test spécifique - 4e MA - Automatismes","Question 19",17.899999999999999]
["Test spécifique - 4e MA - Automatismes","Question 20",59]
["Test spécifique - 4e MA - Automatismes","Question 21",25.6]
["Test spécifique - 4e MA - Automatismes","Question 22",33.299999999999997]
[]
[]
[]
[]
[]
[]
[]
[]
[]
[]
[]
[]
[]
[]
[]
[]
[]
[]
[]
[]
[]
[]
[]
["Test spécifique - 4e MA - Automatismes","Question 01",97.1]
["Test spécifique - 4e MA - Automatismes","Question 02",100]
["Test spécifique - 4e MA - Automatismes","Question 03",94.1]
["Test spécifique - 4e MA - Automatismes","Question 04",91.2]
["Test spécifique - 4e MA - Automatismes","Question 05",82.4]
["Test spécifique - 4e MA - Automatismes","Question 06",88.2]
["Test spécifique - 4e MA - Automatismes","Question 07",67.599999999999994]
["Test spécifique - 4e MA - Automatismes","Question 08",67.599999999999994]
["Test spécifique - 4e MA - Automatismes","Question 09",35.299999999999997]
["Test spécifique - 4e MA - Automatismes","Question 10",55.9]
["Test spécifique - 4e MA - Automatismes","Question 11",50]
["Test spécifique - 4e MA - Automatismes","Question 12",50]
["Test spécifique - 4e MA - Automatismes","Question 13",64.7]
["Test spécifique - 4e MA - Automatismes","Question 14",52.9]
["Test spécifique - 4e MA - Automatismes","Question 15",52.9]
["Test spécifique - 4e MA - Automatismes","Question 16",52.9]
["Test spécifique - 4e MA - Automatismes","Question 17",41.2]
["Test spécifique - 4e MA - Automatismes","Question 18",55.9]
["Test spécifique - 4e MA - Automatismes","Question 19",47.1]
["Test spécifique - 4e MA - Automatismes","Question 20",64.7]
["Test spécifique - 4e MA - Automatismes","Question 21",61.8]
["Test spécifique - 4e MA - Automatismes","Question 22",38.200000000000003]
[]
[]
[]
[]
[]
[]
[]
[]
[]
[]
[]
[]
[]
[]
[]
[]
[]
[]
[]
[]
[]
[]
[]
["Test spécifique - 4e MA - Automatismes","Question 01",92.1]
["Test spécifique - 4e MA - Automatismes","Question 02",80.3]
["Test spécifique - 4e MA - Automatismes","Question 03",78.900000000000006]
["Test spécifique - 4e MA - Automatismes","Question 04",85.5]
["Test spécifique - 4e MA - Automatismes","Question 05",73.7]
["Test spécifique - 4e MA - Automatismes","Question 06",48.7]
["Test spécifique - 4e MA - Automatismes","Question 07",44.7]
["Test spécifique - 4e MA - Automatismes","Question 08",68.400000000000006]
["Test spécifique - 4e MA - Automatismes","Question 09",34.200000000000003]
["Test spécifique - 4e MA - Automatismes","Question 10",52.6]
["Test spécifique - 4e MA - Automatismes","Question 11",55.3]
["Test spécifique - 4e MA - Automatismes","Question 12",55.3]
["Test spécifique - 4e MA - Automatismes","Question 13",47.4]
["Test spécifique - 4e MA - Automatismes","Question 14",7.9]
["Test spécifique - 4e MA - Automatismes","Question 15",52.6]
["Test spécifique - 4e MA - Automatismes","Question 16",50]
["Test spécifique - 4e MA - Automatismes","Question 17",48.7]
["Test spécifique - 4e MA - Automatismes","Question 18",47.4]
["Test spécifique - 4e MA - Automatismes","Question 19",44.7]
["Test spécifique - 4e MA - Automatismes","Question 20",43.4]
["Test spécifique - 4e MA - Automatismes","Question 21",52.6]
["Test spécifique - 4e MA - Automatismes","Question 22",46.1]
[]
[]
[]
[]
[]
[]
[]
[]
[]
[]
[]
[]
[]
[]
[]
[]
[]
[]
[]
[]
[]
[]
[]
["Test spécifique - 4e MA - Automatismes","Question 01",86.6]
["Test spécifique - 4e MA - Automatismes","Question 02",87.8]
["Test spécifique - 4e MA - Automatismes","Question 03",74.400000000000006]
["Test spécifique - 4e MA - Automatismes","Question 04",82.9]
["Test spécifique - 4e MA - Automatismes","Question 05",58.5]
["Test spécifique - 4e MA - Automatismes","Question 06",59.8]
["Test spécifique - 4e MA - Automatismes","Question 07",37.799999999999997]
["Test spécifique - 4e MA - Automatismes","Question 08",59.8]
["Test spécifique - 4e MA - Automatismes","Question 09",25.6]
["Test spécifique - 4e MA - Automatismes","Question 10",53.7]
["Test spécifique - 4e MA - Automatismes","Question 11",29.3]
["Test spécifique - 4e MA - Automatismes","Question 12",53.7]
["Test spécifique - 4e MA - Automatismes","Question 13",15.9]
["Test spécifique - 4e MA - Automatismes","Question 14",7.3]
["Test spécifique - 4e MA - Automatismes","Question 15",26.8]
["Test spécifique - 4e MA - Automatismes","Question 16",41.5]
["Test spécifique - 4e MA - Automatismes","Question 17",39]
["Test spécifique - 4e MA - Automatismes","Question 18",39]
["Test spécifique - 4e MA - Automatismes","Question 19",47.6]
["Test spécifique - 4e MA - Automatismes","Question 20",46.3]
["Test spécifique - 4e MA - Automatismes","Question 21",22]
["Test spécifique - 4e MA - Automatismes","Question 22",36.6]
[]
[]
[]
[]
[]
[]
[]
[]
[]
[]
[]
[]
[]
[]
[]
[]
[]
[]
[]
[]
[]
[]
[]
["Test spécifique - 4e MA - Automatismes","Question 01",90.6]
["Test spécifique - 4e MA - Automatismes","Question 02",88.5]
["Test spécifique - 4e MA - Automatismes","Question 03",69.8]
["Test spécifique - 4e MA - Automatismes","Question 04",83.3]
["Test spécifique - 4e MA - Automatismes","Question 05",66.7]
["Test spécifique - 4e MA - Automatismes","Question 06",66.7]
["Test spécifique - 4e MA - Automatismes","Question 07",53.1]
["Test spécifique - 4e MA - Automatismes","Question 08",68.8]
["Test spécifique - 4e MA - Automatismes","Question 09",39.6]
["Test spécifique - 4e MA - Automatismes","Question 10",51]
["Test spécifique - 4e MA - Automatismes","Question 11",38.5]
["Test spécifique - 4e MA - Automatismes","Question 12",59.4]
["Test spécifique - 4e MA - Automatismes","Question 13",35.4]
["Test spécifique - 4e MA - Automatismes","Question 14",61.5]
["Test spécifique - 4e MA - Automatismes","Question 15",53.1]
["Test spécifique - 4e MA - Automatismes","Question 16",43.8]
["Test spécifique - 4e MA - Automatismes","Question 17",34.4]
["Test spécifique - 4e MA - Automatismes","Question 18",29.2]
["Test spécifique - 4e MA - Automatismes","Question 19",33.299999999999997]
["Test spécifique - 4e MA - Automatismes","Question 20",36.5]
["Test spécifique - 4e MA - Automatismes","Question 21",31.3]
["Test spécifique - 4e MA - Automatismes","Question 22",38.5]
[]
[]
[]
[]
[]
[]
[]
[]
[]
[]
[]
[]
[]
[]
[]
[]
[]
[]
[]
[]
[]
[]
[]
["Test spécifique - 4e MA - Automatismes","Question 01",90.2]
["Test spécifique - 4e MA - Automatismes","Question 02",84.1]
["Test spécifique - 4e MA - Automatismes","Question 03",61]
["Test spécifique - 4e MA - Automatismes","Question 04",76.8]
["Test spécifique - 4e MA - Automatismes","Question 05",51.2]
["Test spécifique - 4e MA - Automatismes","Question 06",74.400000000000006]
["Test spécifique - 4e MA - Automatismes","Question 07",43.9]
["Test spécifique - 4e MA - Automatismes","Question 08",35.4]
["Test spécifique - 4e MA - Automatismes","Question 09",15.9]
["Test spécifique - 4e MA - Automatismes","Question 10",35.4]
["Test spécifique - 4e MA - Automatismes","Question 11",31.7]
["Test spécifique - 4e MA - Automatismes","Question 12",58.5]
["Test spécifique - 4e MA - Automatismes","Question 13",14.6]
["Test spécifique - 4e MA - Automatismes","Question 14",7.3]
["Test spécifique - 4e MA - Automatismes","Question 15",26.8]
["Test spécifique - 4e MA - Automatismes","Question 16",24.4]
["Test spécifique - 4e MA - Automatismes","Question 17",32.9]
["Test spécifique - 4e MA - Automatismes","Question 18",35.4]
["Test spécifique - 4e MA - Automatismes","Question 19",34.1]
["Test spécifique - 4e MA - Automatismes","Question 20",30.5]
["Test spécifique - 4e MA - Automatismes","Question 21",20.7]
["Test spécifique - 4e MA - Automatismes","Question 22",25.6]
[]
[]
[]
[]
[]
[]
[]
[]
[]
[]
[]
[]
[]
[]
[]
[]
[]
[]
[]
[]
[]
[]
[]
["Test spécifique - 4e MA - Automatismes","Question 01",91.9]
["Test spécifique - 4e MA - Automatismes","Question 02",86.5]
["Test spécifique - 4e MA - Automatismes","Question 03",77.7]
["Test spécifique - 4e MA - Automatismes","Question 04",79.7]
["Test spécifique - 4e MA - Automatismes","Question 05",65.5]
["Test spécifique - 4e MA - Automatismes","Question 06",54.1]
["Test spécifique - 4e MA - Automatismes","Question 07",60.8]
["Test spécifique - 4e MA - Automatismes","Question 08",55.4]
["Test spécifique - 4e MA - Automatismes","Question 09",25]
["Test spécifique - 4e MA - Automatismes","Question 10",43.2]
["Test spécifique - 4e MA - Automatismes","Question 11",41.9]
["Test spécifique - 4e MA - Automatismes","Question 12",44.6]
["Test spécifique - 4e MA - Automatismes","Question 13",32.4]
["Test spécifique - 4e MA - Automatismes","Question 14",25.7]
["Test spécifique - 4e MA - Automatismes","Question 15",45.3]
["Test spécifique - 4e MA - Automatismes","Question 16",40.5]
["Test spécifique - 4e MA - Automatismes","Question 17",38.5]
["Test spécifique - 4e MA - Automatismes","Question 18",33.1]
["Test spécifique - 4e MA - Automatismes","Question 19",44.6]
["Test spécifique - 4e MA - Automatismes","Question 20",31.1]
["Test spécifique - 4e MA - Automatismes","Question 21",26.4]
["Test spécifique - 4e MA - Automatismes","Question 22",31.8]
[]
[]
[]
[]
[]
[]
[]
[]
[]
[]
[]
[]
[]
[]
[]
[]
[]
[]
[]
[]
[]
[]
[]
["Test spécifique - 4e MA - Automatismes","Question 01",92.2]
["Test spécifique - 4e MA - Automatismes","Question 02",93.8]
["Test spécifique - 4e MA - Automatismes","Question 03",87.5]
["Test spécifique - 4e MA - Automatismes","Question 04",90.6]
["Test spécifique - 4e MA - Automatismes","Question 05",54.7]
["Test spécifique - 4e MA - Automatismes","Question 06",57.8]
["Test spécifique - 4e MA - Automatismes","Question 07",68.8]
["Test spécifique - 4e MA - Automatismes","Question 08",59.4]
["Test spécifique - 4e MA - Automatismes","Question 09",32.799999999999997]
["Test spécifique - 4e MA - Automatismes","Question 10",62.5]
["Test spécifique - 4e MA - Automatismes","Question 11",46.9]
["Test spécifique - 4e MA - Automatismes","Question 12",64.099999999999994]
["Test spécifique - 4e MA - Automatismes","Question 13",48.4]
["Test spécifique - 4e MA - Automatismes","Question 14",57.8]
["Test spécifique - 4e MA - Automatismes","Question 15",37.5]
["Test spécifique - 4e MA - Automatismes","Question 16",45.3]
["Test spécifique - 4e MA - Automatismes","Question 17",34.4]
["Test spécifique - 4e MA - Automatismes","Question 18",39.1]
["Test spécifique - 4e MA - Automatismes","Question 19",46.9]
["Test spécifique - 4e MA - Automatismes","Question 20",65.599999999999994]
["Test spécifique - 4e MA - Automatismes","Question 21",20.3]
["Test spécifique - 4e MA - Automatismes","Question 22",39.1]
[]
[]
[]
[]
[]
[]
[]
[]
[]
[]
[]
[]
[]
[]
[]
[]
[]
[]
[]
[]
[]
[]
[]
["Test spécifique - 4e MA - Automatismes","Question 01",96.6]
["Test spécifique - 4e MA - Automatismes","Question 02",95.4]
["Test spécifique - 4e MA - Automatismes","Question 03",93.1]
["Test spécifique - 4e MA - Automatismes","Question 04",88.5]
["Test spécifique - 4e MA - Automatismes","Question 05",78.2]
["Test spécifique - 4e MA - Automatismes","Question 06",62.1]
["Test spécifique - 4e MA - Automatismes","Question 07",65.5]
["Test spécifique - 4e MA - Automatismes","Question 08",71.3]
["Test spécifique - 4e MA - Automatismes","Question 09",29.9]
["Test spécifique - 4e MA - Automatismes","Question 10",73.599999999999994]
["Test spécifique - 4e MA - Automatismes","Question 11",42.5]
["Test spécifique - 4e MA - Automatismes","Question 12",57.5]
["Test spécifique - 4e MA - Automatismes","Question 13",46]
["Test spécifique - 4e MA - Automatismes","Question 14",47.1]
["Test spécifique - 4e MA - Automatismes","Question 15",69]
["Test spécifique - 4e MA - Automatismes","Question 16",77]
["Test spécifique - 4e MA - Automatismes","Question 17",32.200000000000003]
["Test spécifique - 4e MA - Automatismes","Question 18",44.8]
["Test spécifique - 4e MA - Automatismes","Question 19",60.9]
["Test spécifique - 4e MA - Automatismes","Question 20",57.5]
["Test spécifique - 4e MA - Automatismes","Question 21",36.799999999999997]
["Test spécifique - 4e MA - Automatismes","Question 22",42.5]
[]
[]
[]
[]
[]
[]
[]
[]
[]
[]
[]
[]
[]
[]
[]
[]
[]
[]
[]
[]
[]
[]
[]
["Test spécifique - 4e MA - Automatismes","Question 01",92.1]
["Test spécifique - 4e MA - Automatismes","Question 02",87.1]
["Test spécifique - 4e MA - Automatismes","Question 03",78.2]
["Test spécifique - 4e MA - Automatismes","Question 04",83.2]
["Test spécifique - 4e MA - Automatismes","Question 05",64.400000000000006]
["Test spécifique - 4e MA - Automatismes","Question 06",71.3]
["Test spécifique - 4e MA - Automatismes","Question 07",45.5]
["Test spécifique - 4e MA - Automatismes","Question 08",61.4]
["Test spécifique - 4e MA - Automatismes","Question 09",22.8]
["Test spécifique - 4e MA - Automatismes","Question 10",49.5]
["Test spécifique - 4e MA - Automatismes","Question 11",37.6]
["Test spécifique - 4e MA - Automatismes","Question 12",44.6]
["Test spécifique - 4e MA - Automatismes","Question 13",34.700000000000003]
["Test spécifique - 4e MA - Automatismes","Question 14",4]
["Test spécifique - 4e MA - Automatismes","Question 15",32.700000000000003]
["Test spécifique - 4e MA - Automatismes","Question 16",38.6]
["Test spécifique - 4e MA - Automatismes","Question 17",29.7]
["Test spécifique - 4e MA - Automatismes","Question 18",36.6]
["Test spécifique - 4e MA - Automatismes","Question 19",28.7]
["Test spécifique - 4e MA - Automatismes","Question 20",29.7]
["Test spécifique - 4e MA - Automatismes","Question 21",14.9]
["Test spécifique - 4e MA - Automatismes","Question 22",35.6]
[]
[]
[]
[]
[]
[]
[]
[]
[]
[]
[]
[]
[]
[]
[]
[]
[]
[]
[]
[]
[]
[]
[]
["Test spécifique - 4e MA - Automatismes","Question 01",95.3]
["Test spécifique - 4e MA - Automatismes","Question 02",92.2]
["Test spécifique - 4e MA - Automatismes","Question 03",84.4]
["Test spécifique - 4e MA - Automatismes","Question 04",79.7]
["Test spécifique - 4e MA - Automatismes","Question 05",68.8]
["Test spécifique - 4e MA - Automatismes","Question 06",64.099999999999994]
["Test spécifique - 4e MA - Automatismes","Question 07",54.7]
["Test spécifique - 4e MA - Automatismes","Question 08",71.900000000000006]
["Test spécifique - 4e MA - Automatismes","Question 09",28.1]
["Test spécifique - 4e MA - Automatismes","Question 10",48.4]
["Test spécifique - 4e MA - Automatismes","Question 11",40.6]
["Test spécifique - 4e MA - Automatismes","Question 12",51.6]
["Test spécifique - 4e MA - Automatismes","Question 13",32.799999999999997]
["Test spécifique - 4e MA - Automatismes","Question 14",53.1]
["Test spécifique - 4e MA - Automatismes","Question 15",53.1]
["Test spécifique - 4e MA - Automatismes","Question 16",53.1]
["Test spécifique - 4e MA - Automatismes","Question 17",31.3]
["Test spécifique - 4e MA - Automatismes","Question 18",50]
["Test spécifique - 4e MA - Automatismes","Question 19",37.5]
["Test spécifique - 4e MA - Automatismes","Question 20",35.9]
["Test spécifique - 4e MA - Automatismes","Question 21",25]
["Test spécifique - 4e MA - Automatismes","Question 22",34.4]
[]
[]
[]
[]
[]
[]
[]
[]
[]
[]
[]
[]
[]
[]
[]
[]
[]
[]
[]
[]
[]
[]
[]
["Test spécifique - 4e MA - Automatismes","Question 01",89.7]
["Test spécifique - 4e MA - Automatismes","Question 02",80.2]
["Test spécifique - 4e MA - Automatismes","Question 03",77.599999999999994]
["Test spécifique - 4e MA - Automatismes","Question 04",81.900000000000006]
["Test spécifique - 4e MA - Automatismes","Question 05",56]
["Test spécifique - 4e MA - Automatismes","Question 06",67.2]
["Test spécifique - 4e MA - Automatismes","Question 07",52.6]
["Test spécifique - 4e MA - Automatismes","Question 08",61.2]
["Test spécifique - 4e MA - Automatismes","Question 09",19]
["Test spécifique - 4e MA - Automatismes","Question 10",49.1]
["Test spécifique - 4e MA - Automatismes","Question 11",42.2]
["Test spécifique - 4e MA - Automatismes","Question 12",46.6]
["Test spécifique - 4e MA - Automatismes","Question 13",31]
["Test spécifique - 4e MA - Automatismes","Question 14",19]
["Test spécifique - 4e MA - Automatismes","Question 15",44.8]
["Test spécifique - 4e MA - Automatismes","Question 16",55.2]
["Test spécifique - 4e MA - Automatismes","Question 17",34.5]
["Test spécifique - 4e MA - Automatismes","Question 18",38.799999999999997]
["Test spécifique - 4e MA - Automatismes","Question 19",50]
["Test spécifique - 4e MA - Automatismes","Question 20",39.700000000000003]
["Test spécifique - 4e MA - Automatismes","Question 21",13.8]
["Test spécifique - 4e MA - Automatismes","Question 22",38.799999999999997]
[]
[]
[]
[]
[]
[]
[]
[]
[]
[]
[]
[]
[]
[]
[]
[]
[]
[]
[]
[]
[]
[]
[]
["Test spécifique - 4e MA - Automatismes","Question 01",91.8]
["Test spécifique - 4e MA - Automatismes","Question 02",87.1]
["Test spécifique - 4e MA - Automatismes","Question 03",77.599999999999994]
["Test spécifique - 4e MA - Automatismes","Question 04",89.4]
["Test spécifique - 4e MA - Automatismes","Question 05",62.4]
["Test spécifique - 4e MA - Automatismes","Question 06",70.599999999999994]
["Test spécifique - 4e MA - Automatismes","Question 07",69.400000000000006]
["Test spécifique - 4e MA - Automatismes","Question 08",71.8]
["Test spécifique - 4e MA - Automatismes","Question 09",35.299999999999997]
["Test spécifique - 4e MA - Automatismes","Question 10",43.5]
["Test spécifique - 4e MA - Automatismes","Question 11",48.2]
["Test spécifique - 4e MA - Automatismes","Question 12",57.6]
["Test spécifique - 4e MA - Automatismes","Question 13",37.6]
["Test spécifique - 4e MA - Automatismes","Question 14",42.4]
["Test spécifique - 4e MA - Automatismes","Question 15",51.8]
["Test spécifique - 4e MA - Automatismes","Question 16",54.1]
["Test spécifique - 4e MA - Automatismes","Question 17",17.600000000000001]
["Test spécifique - 4e MA - Automatismes","Question 18",42.4]
["Test spécifique - 4e MA - Automatismes","Question 19",35.299999999999997]
["Test spécifique - 4e MA - Automatismes","Question 20",42.4]
["Test spécifique - 4e MA - Automatismes","Question 21",18.8]
["Test spécifique - 4e MA - Automatismes","Question 22",40]
[]
[]
[]
[]
[]
[]
[]
[]
[]
[]
[]
[]
[]
[]
[]
[]
[]
[]
[]
[]
[]
[]
[]
["Test spécifique - 4e MA - Automatismes","Question 01",92.1]
["Test spécifique - 4e MA - Automatismes","Question 02",88.6]
["Test spécifique - 4e MA - Automatismes","Question 03",74.599999999999994]
["Test spécifique - 4e MA - Automatismes","Question 04",86]
["Test spécifique - 4e MA - Automatismes","Question 05",69.3]
["Test spécifique - 4e MA - Automatismes","Question 06",64.900000000000006]
["Test spécifique - 4e MA - Automatismes","Question 07",64]
["Test spécifique - 4e MA - Automatismes","Question 08",55.3]
["Test spécifique - 4e MA - Automatismes","Question 09",38.6]
["Test spécifique - 4e MA - Automatismes","Question 10",52.6]
["Test spécifique - 4e MA - Automatismes","Question 11",52.6]
["Test spécifique - 4e MA - Automatismes","Question 12",63.2]
["Test spécifique - 4e MA - Automatismes","Question 13",49.1]
["Test spécifique - 4e MA - Automatismes","Question 14",12.3]
["Test spécifique - 4e MA - Automatismes","Question 15",57]
["Test spécifique - 4e MA - Automatismes","Question 16",41.2]
["Test spécifique - 4e MA - Automatismes","Question 17",40.4]
["Test spécifique - 4e MA - Automatismes","Question 18",45.6]
["Test spécifique - 4e MA - Automatismes","Question 19",28.9]
["Test spécifique - 4e MA - Automatismes","Question 20",39.5]
["Test spécifique - 4e MA - Automatismes","Question 21",30.7]
["Test spécifique - 4e MA - Automatismes","Question 22",41.2]
[]
[]
[]
[]
[]
[]
[]
[]
[]
[]
[]
[]
[]
[]
[]
[]
[]
[]
[]
[]
[]
[]
[]
["Test spécifique - 4e MA - Automatismes","Question 01",93.3]
["Test spécifique - 4e MA - Automatismes","Question 02",88]
["Test spécifique - 4e MA - Automatismes","Question 03",76.7]
["Test spécifique - 4e MA - Automatismes","Question 04",83.3]
["Test spécifique - 4e MA - Automatismes","Question 05",64]
["Test spécifique - 4e MA - Automatismes","Question 06",60.7]
["Test spécifique - 4e MA - Automatismes","Question 07",56]
["Test spécifique - 4e MA - Automatismes","Question 08",58]
["Test spécifique - 4e MA - Automatismes","Question 09",41.3]
["Test spécifique - 4e MA - Automatismes","Question 10",48]
["Test spécifique - 4e MA - Automatismes","Question 11",38.700000000000003]
["Test spécifique - 4e MA - Automatismes","Question 12",54]
["Test spécifique - 4e MA - Automatismes","Question 13",26.7]
["Test spécifique - 4e MA - Automatismes","Question 14",22.7]
["Test spécifique - 4e MA - Automatismes","Question 15",36]
["Test spécifique - 4e MA - Automatismes","Question 16",32.700000000000003]
["Test spécifique - 4e MA - Automatismes","Question 17",34]
["Test spécifique - 4e MA - Automatismes","Question 18",43.3]
["Test spécifique - 4e MA - Automatismes","Question 19",40.700000000000003]
["Test spécifique - 4e MA - Automatismes","Question 20",37.299999999999997]
["Test spécifique - 4e MA - Automatismes","Question 21",26.7]
["Test spécifique - 4e MA - Automatismes","Question 22",35.299999999999997]
[]
[]
[]
[]
[]
[]
[]
[]
[]
[]
[]
[]
[]
[]
[]
[]
[]
[]
[]
[]
[]
[]
[]
["Test spécifique - 4e MA - Automatismes","Question 01",95.2]
["Test spécifique - 4e MA - Automatismes","Question 02",85.7]
["Test spécifique - 4e MA - Automatismes","Question 03",95.2]
["Test spécifique - 4e MA - Automatismes","Question 04",76.2]
["Test spécifique - 4e MA - Automatismes","Question 05",42.9]
["Test spécifique - 4e MA - Automatismes","Question 06",66.7]
["Test spécifique - 4e MA - Automatismes","Question 07",52.4]
["Test spécifique - 4e MA - Automatismes","Question 08",57.1]
["Test spécifique - 4e MA - Automatismes","Question 09",19]
["Test spécifique - 4e MA - Automatismes","Question 10",33.299999999999997]
["Test spécifique - 4e MA - Automatismes","Question 11",23.8]
["Test spécifique - 4e MA - Automatismes","Question 12",57.1]
["Test spécifique - 4e MA - Automatismes","Question 13",38.1]
["Test spécifique - 4e MA - Automatismes","Question 14",14.3]
["Test spécifique - 4e MA - Automatismes","Question 15",47.6]
["Test spécifique - 4e MA - Automatismes","Question 16",38.1]
["Test spécifique - 4e MA - Automatismes","Question 17",33.299999999999997]
["Test spécifique - 4e MA - Automatismes","Question 18",33.299999999999997]
["Test spécifique - 4e MA - Automatismes","Question 19",23.8]
["Test spécifique - 4e MA - Automatismes","Question 20",28.6]
["Test spécifique - 4e MA - Automatismes","Question 21",9.5]
["Test spécifique - 4e MA - Automatismes","Question 22",33.299999999999997]
[]
[]
[]
[]
[]
[]
[]
[]
[]
[]
[]
[]
[]
[]
[]
[]
[]
[]
[]
[]
[]
[]
[]
["Test spécifique - 4e MA - Automatismes","Question 01",92.9]
["Test spécifique - 4e MA - Automatismes","Question 02",90.5]
["Test spécifique - 4e MA - Automatismes","Question 03",81]
["Test spécifique - 4e MA - Automatismes","Question 04",81]
["Test spécifique - 4e MA - Automatismes","Question 05",71.400000000000006]
["Test spécifique - 4e MA - Automatismes","Question 06",40.5]
["Test spécifique - 4e MA - Automatismes","Question 07",57.1]
["Test spécifique - 4e MA - Automatismes","Question 08",76.2]
["Test spécifique - 4e MA - Automatismes","Question 09",50]
["Test spécifique - 4e MA - Automatismes","Question 10",67.900000000000006]
["Test spécifique - 4e MA - Automatismes","Question 11",52.4]
["Test spécifique - 4e MA - Automatismes","Question 12",61.9]
["Test spécifique - 4e MA - Automatismes","Question 13",56]
["Test spécifique - 4e MA - Automatismes","Question 14",58.3]
["Test spécifique - 4e MA - Automatismes","Question 15",64.3]
["Test spécifique - 4e MA - Automatismes","Question 16",71.400000000000006]
["Test spécifique - 4e MA - Automatismes","Question 17",35.700000000000003]
["Test spécifique - 4e MA - Automatismes","Question 18",58.3]
["Test spécifique - 4e MA - Automatismes","Question 19",59.5]
["Test spécifique - 4e MA - Automatismes","Question 20",44]
["Test spécifique - 4e MA - Automatismes","Question 21",38.1]
["Test spécifique - 4e MA - Automatismes","Question 22",48.8]
[]
[]
[]
[]
[]
[]
[]
[]
[]
[]
[]
[]
[]
[]
[]
[]
[]
[]
[]
[]
[]
[]
[]
["Test spécifique - 4e MA - Automatismes","Question 01",93.7]
["Test spécifique - 4e MA - Automatismes","Question 02",95.2]
["Test spécifique - 4e MA - Automatismes","Question 03",88.9]
["Test spécifique - 4e MA - Automatismes","Question 04",84.1]
["Test spécifique - 4e MA - Automatismes","Question 05",76.2]
["Test spécifique - 4e MA - Automatismes","Question 06",77.8]
["Test spécifique - 4e MA - Automatismes","Question 07",61.9]
["Test spécifique - 4e MA - Automatismes","Question 08",81]
["Test spécifique - 4e MA - Automatismes","Question 09",57.1]
["Test spécifique - 4e MA - Automatismes","Question 10",65.099999999999994]
["Test spécifique - 4e MA - Automatismes","Question 11",50.8]
["Test spécifique - 4e MA - Automatismes","Question 12",57.1]
["Test spécifique - 4e MA - Automatismes","Question 13",44.4]
["Test spécifique - 4e MA - Automatismes","Question 14",22.2]
["Test spécifique - 4e MA - Automatismes","Question 15",61.9]
["Test spécifique - 4e MA - Automatismes","Question 16",58.7]
["Test spécifique - 4e MA - Automatismes","Question 17",23.8]
["Test spécifique - 4e MA - Automatismes","Question 18",47.6]
["Test spécifique - 4e MA - Automatismes","Question 19",63.5]
["Test spécifique - 4e MA - Automatismes","Question 20",47.6]
["Test spécifique - 4e MA - Automatismes","Question 21",25.4]
["Test spécifique - 4e MA - Automatismes","Question 22",38.1]
[]
[]
[]
[]
[]
[]
[]
[]
[]
[]
[]
[]
[]
[]
[]
[]
[]
[]
[]
[]
[]
[]
[]
["Test spécifique - 4e MA - Automatismes","Question 01",89.8]
["Test spécifique - 4e MA - Automatismes","Question 02",91.8]
["Test spécifique - 4e MA - Automatismes","Question 03",89.8]
["Test spécifique - 4e MA - Automatismes","Question 04",91.8]
["Test spécifique - 4e MA - Automatismes","Question 05",59.2]
["Test spécifique - 4e MA - Automatismes","Question 06",63.3]
["Test spécifique - 4e MA - Automatismes","Question 07",57.1]
["Test spécifique - 4e MA - Automatismes","Question 08",67.3]
["Test spécifique - 4e MA - Automatismes","Question 09",32.700000000000003]
["Test spécifique - 4e MA - Automatismes","Question 10",44.9]
["Test spécifique - 4e MA - Automatismes","Question 11",57.1]
["Test spécifique - 4e MA - Automatismes","Question 12",53.1]
["Test spécifique - 4e MA - Automatismes","Question 13",67.3]
["Test spécifique - 4e MA - Automatismes","Question 14",34.700000000000003]
["Test spécifique - 4e MA - Automatismes","Question 15",59.2]
["Test spécifique - 4e MA - Automatismes","Question 16",67.3]
["Test spécifique - 4e MA - Automatismes","Question 17",44.9]
["Test spécifique - 4e MA - Automatismes","Question 18",34.700000000000003]
["Test spécifique - 4e MA - Automatismes","Question 19",36.700000000000003]
["Test spécifique - 4e MA - Automatismes","Question 20",28.6]
["Test spécifique - 4e MA - Automatismes","Question 21",22.4]
["Test spécifique - 4e MA - Automatismes","Question 22",38.799999999999997]
[]
[]
[]
[]
[]
[]
[]
[]
[]
[]
[]
[]
[]
[]
[]
[]
[]
[]
[]
[]
[]
[]
[]
["Test spécifique - 4e MA - Automatismes","Question 01",88.7]
["Test spécifique - 4e MA - Automatismes","Question 02",95.2]
["Test spécifique - 4e MA - Automatismes","Question 03",85.5]
["Test spécifique - 4e MA - Automatismes","Question 04",88.7]
["Test spécifique - 4e MA - Automatismes","Question 05",69.400000000000006]
["Test spécifique - 4e MA - Automatismes","Question 06",66.099999999999994]
["Test spécifique - 4e MA - Automatismes","Question 07",62.9]
["Test spécifique - 4e MA - Automatismes","Question 08",74.2]
["Test spécifique - 4e MA - Automatismes","Question 09",50]
["Test spécifique - 4e MA - Automatismes","Question 10",61.3]
["Test spécifique - 4e MA - Automatismes","Question 11",54.8]
["Test spécifique - 4e MA - Automatismes","Question 12",46.8]
["Test spécifique - 4e MA - Automatismes","Question 13",51.6]
["Test spécifique - 4e MA - Automatismes","Question 14",62.9]
["Test spécifique - 4e MA - Automatismes","Question 15",46.8]
["Test spécifique - 4e MA - Automatismes","Question 16",71]
["Test spécifique - 4e MA - Automatismes","Question 17",29]
["Test spécifique - 4e MA - Automatismes","Question 18",54.8]
["Test spécifique - 4e MA - Automatismes","Question 19",59.7]
["Test spécifique - 4e MA - Automatismes","Question 20",50]
["Test spécifique - 4e MA - Automatismes","Question 21",35.5]
["Test spécifique - 4e MA - Automatismes","Question 22",41.9]
[]
[]
[]
[]
[]
[]
[]
[]
[]
[]
[]
[]
[]
[]
[]
[]
[]
[]
[]
[]
[]
[]
[]
["Test spécifique - 4e MA - Automatismes","Question 01",96.8]
["Test spécifique - 4e MA - Automatismes","Question 02",83.9]
["Test spécifique - 4e MA - Automatismes","Question 03",90.3]
["Test spécifique - 4e MA - Automatismes","Question 04",83.9]
["Test spécifique - 4e MA - Automatismes","Question 05",80.599999999999994]
["Test spécifique - 4e MA - Automatismes","Question 06",54.8]
["Test spécifique - 4e MA - Automatismes","Question 07",77.400000000000006]
["Test spécifique - 4e MA - Automatismes","Question 08",77.400000000000006]
["Test spécifique - 4e MA - Automatismes","Question 09",67.7]
["Test spécifique - 4e MA - Automatismes","Question 10",74.2]
["Test spécifique - 4e MA - Automatismes","Question 11",77.400000000000006]
["Test spécifique - 4e MA - Automatismes","Question 12",54.8]
["Test spécifique - 4e MA - Automatismes","Question 13",54.8]
["Test spécifique - 4e MA - Automatismes","Question 14",71]
["Test spécifique - 4e MA - Automatismes","Question 15",61.3]
["Test spécifique - 4e MA - Automatismes","Question 16",61.3]
["Test spécifique - 4e MA - Automatismes","Question 17",64.5]
["Test spécifique - 4e MA - Automatismes","Question 18",58.1]
["Test spécifique - 4e MA - Automatismes","Question 19",48.4]
["Test spécifique - 4e MA - Automatismes","Question 20",35.5]
["Test spécifique - 4e MA - Automatismes","Question 21",64.5]
["Test spécifique - 4e MA - Automatismes","Question 22",51.6]
[]
[]
[]
[]
[]
[]
[]
[]
[]
[]
[]
[]
[]
[]
[]
[]
[]
[]
[]
[]
[]
[]
[]
["Test spécifique - 4e MA - Automatismes","Question 01",96]
["Test spécifique - 4e MA - Automatismes","Question 02",96.5]
["Test spécifique - 4e MA - Automatismes","Question 03",91]
["Test spécifique - 4e MA - Automatismes","Question 04",84.5]
["Test spécifique - 4e MA - Automatismes","Question 05",77]
["Test spécifique - 4e MA - Automatismes","Question 06",77]
["Test spécifique - 4e MA - Automatismes","Question 07",70.5]
["Test spécifique - 4e MA - Automatismes","Question 08",59.5]
["Test spécifique - 4e MA - Automatismes","Question 09",48]
["Test spécifique - 4e MA - Automatismes","Question 10",61]
["Test spécifique - 4e MA - Automatismes","Question 11",56.5]
["Test spécifique - 4e MA - Automatismes","Question 12",59.5]
["Test spécifique - 4e MA - Automatismes","Question 13",65]
["Test spécifique - 4e MA - Automatismes","Question 14",19]
["Test spécifique - 4e MA - Automatismes","Question 15",60]
["Test spécifique - 4e MA - Automatismes","Question 16",61.5]
["Test spécifique - 4e MA - Automatismes","Question 17",33.5]
["Test spécifique - 4e MA - Automatismes","Question 18",55.5]
["Test spécifique - 4e MA - Automatismes","Question 19",43.5]
["Test spécifique - 4e MA - Automatismes","Question 20",39]
["Test spécifique - 4e MA - Automatismes","Question 21",29]
["Test spécifique - 4e MA - Automatismes","Question 22",45]
[]
[]
[]
[]
[]
[]
[]
[]
[]
[]
[]
[]
[]
[]
[]
[]
[]
[]
[]
[]
[]
[]
[]
["Test spécifique - 4e MA - Automatismes","Question 01",92.9]
["Test spécifique - 4e MA - Automatismes","Question 02",89.3]
["Test spécifique - 4e MA - Automatismes","Question 03",85.7]
["Test spécifique - 4e MA - Automatismes","Question 04",78.599999999999994]
["Test spécifique - 4e MA - Automatismes","Question 05",67.900000000000006]
["Test spécifique - 4e MA - Automatismes","Question 06",67.900000000000006]
["Test spécifique - 4e MA - Automatismes","Question 07",60.7]
["Test spécifique - 4e MA - Automatismes","Question 08",50]
["Test spécifique - 4e MA - Automatismes","Question 09",53.6]
["Test spécifique - 4e MA - Automatismes","Question 10",53.6]
["Test spécifique - 4e MA - Automatismes","Question 11",39.299999999999997]
["Test spécifique - 4e MA - Automatismes","Question 12",50]
["Test spécifique - 4e MA - Automatismes","Question 13",28.6]
["Test spécifique - 4e MA - Automatismes","Question 14",21.4]
["Test spécifique - 4e MA - Automatismes","Question 15",42.9]
["Test spécifique - 4e MA - Automatismes","Question 16",53.6]
["Test spécifique - 4e MA - Automatismes","Question 17",28.6]
["Test spécifique - 4e MA - Automatismes","Question 18",50]
["Test spécifique - 4e MA - Automatismes","Question 19",28.6]
["Test spécifique - 4e MA - Automatismes","Question 20",25]
["Test spécifique - 4e MA - Automatismes","Question 21",21.4]
["Test spécifique - 4e MA - Automatismes","Question 22",39.299999999999997]
[]
[]
[]
[]
[]
[]
[]
[]
[]
[]
[]
[]
[]
[]
[]
[]
[]
[]
[]
[]
[]
[]
[]
["Test spécifique - 4e MA - Automatismes","Question 01",100]
["Test spécifique - 4e MA - Automatismes","Question 02",82.6]
["Test spécifique - 4e MA - Automatismes","Question 03",82.6]
["Test spécifique - 4e MA - Automatismes","Question 04",91.3]
["Test spécifique - 4e MA - Automatismes","Question 05",78.3]
["Test spécifique - 4e MA - Automatismes","Question 06",39.1]
["Test spécifique - 4e MA - Automatismes","Question 07",52.2]
["Test spécifique - 4e MA - Automatismes","Question 08",91.3]
["Test spécifique - 4e MA - Automatismes","Question 09",21.7]
["Test spécifique - 4e MA - Automatismes","Question 10",60.9]
["Test spécifique - 4e MA - Automatismes","Question 11",52.2]
["Test spécifique - 4e MA - Automatismes","Question 12",52.2]
["Test spécifique - 4e MA - Automatismes","Question 13",34.799999999999997]
["Test spécifique - 4e MA - Automatismes","Question 14",34.799999999999997]
["Test spécifique - 4e MA - Automatismes","Question 15",13]
["Test spécifique - 4e MA - Automatismes","Question 16",65.2]
["Test spécifique - 4e MA - Automatismes","Question 17",78.3]
["Test spécifique - 4e MA - Automatismes","Question 18",69.599999999999994]
["Test spécifique - 4e MA - Automatismes","Question 19",56.5]
["Test spécifique - 4e MA - Automatismes","Question 20",47.8]
["Test spécifique - 4e MA - Automatismes","Question 21",21.7]
["Test spécifique - 4e MA - Automatismes","Question 22",39.1]
[]
[]
[]
[]
[]
[]
[]
[]
[]
[]
[]
[]
[]
[]
[]
[]
[]
[]
[]
[]
[]
[]
[]
["Test spécifique - 4e MA - Automatismes","Question 01",91.8]
["Test spécifique - 4e MA - Automatismes","Question 02",89.8]
["Test spécifique - 4e MA - Automatismes","Question 03",73.5]
["Test spécifique - 4e MA - Automatismes","Question 04",81.599999999999994]
["Test spécifique - 4e MA - Automatismes","Question 05",10.199999999999999]
["Test spécifique - 4e MA - Automatismes","Question 06",44.9]
["Test spécifique - 4e MA - Automatismes","Question 07",57.1]
["Test spécifique - 4e MA - Automatismes","Question 08",51]
["Test spécifique - 4e MA - Automatismes","Question 09",24.5]
["Test spécifique - 4e MA - Automatismes","Question 10",49]
["Test spécifique - 4e MA - Automatismes","Question 11",34.700000000000003]
["Test spécifique - 4e MA - Automatismes","Question 12",53.1]
["Test spécifique - 4e MA - Automatismes","Question 13",18.399999999999999]
["Test spécifique - 4e MA - Automatismes","Question 14",22.4]
["Test spécifique - 4e MA - Automatismes","Question 15",40.799999999999997]
["Test spécifique - 4e MA - Automatismes","Question 16",46.9]
["Test spécifique - 4e MA - Automatismes","Question 17",24.5]
["Test spécifique - 4e MA - Automatismes","Question 18",32.700000000000003]
["Test spécifique - 4e MA - Automatismes","Question 19",34.700000000000003]
["Test spécifique - 4e MA - Automatismes","Question 20",36.700000000000003]
["Test spécifique - 4e MA - Automatismes","Question 21",24.5]
["Test spécifique - 4e MA - Automatismes","Question 22",28.6]
[]
[]
[]
[]
[]
[]
[]
[]
[]
[]
[]
[]
[]
[]
[]
[]
[]
[]
[]
[]
[]
[]
[]
["Test spécifique - 4e MA - Automatismes","Question 01",94.6]
["Test spécifique - 4e MA - Automatismes","Question 02",84.9]
["Test spécifique - 4e MA - Automatismes","Question 03",77.400000000000006]
["Test spécifique - 4e MA - Automatismes","Question 04",83.9]
["Test spécifique - 4e MA - Automatismes","Question 05",71]
["Test spécifique - 4e MA - Automatismes","Question 06",61.3]
["Test spécifique - 4e MA - Automatismes","Question 07",63.4]
["Test spécifique - 4e MA - Automatismes","Question 08",54.8]
["Test spécifique - 4e MA - Automatismes","Question 09",20.399999999999999]
["Test spécifique - 4e MA - Automatismes","Question 10",43]
["Test spécifique - 4e MA - Automatismes","Question 11",37.6]
["Test spécifique - 4e MA - Automatismes","Question 12",50.5]
["Test spécifique - 4e MA - Automatismes","Question 13",34.4]
["Test spécifique - 4e MA - Automatismes","Question 14",11.8]
["Test spécifique - 4e MA - Automatismes","Question 15",40.9]
["Test spécifique - 4e MA - Automatismes","Question 16",44.1]
["Test spécifique - 4e MA - Automatismes","Question 17",20.399999999999999]
["Test spécifique - 4e MA - Automatismes","Question 18",43]
["Test spécifique - 4e MA - Automatismes","Question 19",39.799999999999997]
["Test spécifique - 4e MA - Automatismes","Question 20",31.2]
["Test spécifique - 4e MA - Automatismes","Question 21",35.5]
["Test spécifique - 4e MA - Automatismes","Question 22",32.299999999999997]
[]
[]
[]
[]
[]
[]
[]
[]
[]
[]
[]
[]
[]
[]
[]
[]
[]
[]
[]
[]
[]
[]
[]
["Test spécifique - 4e MA - Automatismes","Question 01",96.1]
["Test spécifique - 4e MA - Automatismes","Question 02",93.2]
["Test spécifique - 4e MA - Automatismes","Question 03",79.599999999999994]
["Test spécifique - 4e MA - Automatismes","Question 04",90.3]
["Test spécifique - 4e MA - Automatismes","Question 05",75.7]
["Test spécifique - 4e MA - Automatismes","Question 06",68.900000000000006]
["Test spécifique - 4e MA - Automatismes","Question 07",69.900000000000006]
["Test spécifique - 4e MA - Automatismes","Question 08",68.900000000000006]
["Test spécifique - 4e MA - Automatismes","Question 09",29.1]
["Test spécifique - 4e MA - Automatismes","Question 10",65]
["Test spécifique - 4e MA - Automatismes","Question 11",50.5]
["Test spécifique - 4e MA - Automatismes","Question 12",48.5]
["Test spécifique - 4e MA - Automatismes","Question 13",47.6]
["Test spécifique - 4e MA - Automatismes","Question 14",54.4]
["Test spécifique - 4e MA - Automatismes","Question 15",54.4]
["Test spécifique - 4e MA - Automatismes","Question 16",58.3]
["Test spécifique - 4e MA - Automatismes","Question 17",34]
["Test spécifique - 4e MA - Automatismes","Question 18",41.7]
["Test spécifique - 4e MA - Automatismes","Question 19",37.9]
["Test spécifique - 4e MA - Automatismes","Question 20",30.1]
["Test spécifique - 4e MA - Automatismes","Question 21",32]
["Test spécifique - 4e MA - Automatismes","Question 22",42.7]
[]
[]
[]
[]
[]
[]
[]
[]
[]
[]
[]
[]
[]
[]
[]
[]
[]
[]
[]
[]
[]
[]
[]
["Test spécifique - 4e MA - Automatismes","Question 01",87.1]
["Test spécifique - 4e MA - Automatismes","Question 02",83.1]
["Test spécifique - 4e MA - Automatismes","Question 03",72.599999999999994]
["Test spécifique - 4e MA - Automatismes","Question 04",79.8]
["Test spécifique - 4e MA - Automatismes","Question 05",56.5]
["Test spécifique - 4e MA - Automatismes","Question 06",61.3]
["Test spécifique - 4e MA - Automatismes","Question 07",46.8]
["Test spécifique - 4e MA - Automatismes","Question 08",47.6]
["Test spécifique - 4e MA - Automatismes","Question 09",24.2]
["Test spécifique - 4e MA - Automatismes","Question 10",50.8]
["Test spécifique - 4e MA - Automatismes","Question 11",36.299999999999997]
["Test spécifique - 4e MA - Automatismes","Question 12",46.8]
["Test spécifique - 4e MA - Automatismes","Question 13",21]
["Test spécifique - 4e MA - Automatismes","Question 14",25]
["Test spécifique - 4e MA - Automatismes","Question 15",38.700000000000003]
["Test spécifique - 4e MA - Automatismes","Question 16",28.2]
["Test spécifique - 4e MA - Automatismes","Question 17",29.8]
["Test spécifique - 4e MA - Automatismes","Question 18",34.700000000000003]
["Test spécifique - 4e MA - Automatismes","Question 19",31.5]
["Test spécifique - 4e MA - Automatismes","Question 20",36.299999999999997]
["Test spécifique - 4e MA - Automatismes","Question 21",16.899999999999999]
["Test spécifique - 4e MA - Automatismes","Question 22",34.700000000000003]
[]
[]
[]
[]
[]
[]
[]
[]
[]
[]
[]
[]
[]
[]
[]
[]
[]
[]
[]
[]
[]
[]
[]
["Test spécifique - 4e MA - Automatismes","Question 01",90.1]
["Test spécifique - 4e MA - Automatismes","Question 02",83.8]
["Test spécifique - 4e MA - Automatismes","Question 03",75.7]
["Test spécifique - 4e MA - Automatismes","Question 04",78.400000000000006]
["Test spécifique - 4e MA - Automatismes","Question 05",55]
["Test spécifique - 4e MA - Automatismes","Question 06",64]
["Test spécifique - 4e MA - Automatismes","Question 07",52.3]
["Test spécifique - 4e MA - Automatismes","Question 08",56.8]
["Test spécifique - 4e MA - Automatismes","Question 09",34.200000000000003]
["Test spécifique - 4e MA - Automatismes","Question 10",47.7]
["Test spécifique - 4e MA - Automatismes","Question 11",42.3]
["Test spécifique - 4e MA - Automatismes","Question 12",46.8]
["Test spécifique - 4e MA - Automatismes","Question 13",32.4]
["Test spécifique - 4e MA - Automatismes","Question 14",55]
["Test spécifique - 4e MA - Automatismes","Question 15",45]
["Test spécifique - 4e MA - Automatismes","Question 16",31.5]
["Test spécifique - 4e MA - Automatismes","Question 17",32.4]
["Test spécifique - 4e MA - Automatismes","Question 18",42.3]
["Test spécifique - 4e MA - Automatismes","Question 19",50.5]
["Test spécifique - 4e MA - Automatismes","Question 20",30.6]
["Test spécifique - 4e MA - Automatismes","Question 21",39.6]
["Test spécifique - 4e MA - Automatismes","Question 22",30.6]
[]
[]
[]
[]
[]
[]
[]
[]
[]
[]
[]
[]
[]
[]
[]
[]
[]
[]
[]
[]
[]
[]
[]
["Test spécifique - 4e MA - Automatismes","Question 01",85.6]
["Test spécifique - 4e MA - Automatismes","Question 02",85.6]
["Test spécifique - 4e MA - Automatismes","Question 03",78.8]
["Test spécifique - 4e MA - Automatismes","Question 04",72.099999999999994]
["Test spécifique - 4e MA - Automatismes","Question 05",72.099999999999994]
["Test spécifique - 4e MA - Automatismes","Question 06",61.5]
["Test spécifique - 4e MA - Automatismes","Question 07",48.1]
["Test spécifique - 4e MA - Automatismes","Question 08",45.2]
["Test spécifique - 4e MA - Automatismes","Question 09",40.4]
["Test spécifique - 4e MA - Automatismes","Question 10",49]
["Test spécifique - 4e MA - Automatismes","Question 11",44.2]
["Test spécifique - 4e MA - Automatismes","Question 12",40.4]
["Test spécifique - 4e MA - Automatismes","Question 13",28.8]
["Test spécifique - 4e MA - Automatismes","Question 14",32.700000000000003]
["Test spécifique - 4e MA - Automatismes","Question 15",43.3]
["Test spécifique - 4e MA - Automatismes","Question 16",43.3]
["Test spécifique - 4e MA - Automatismes","Question 17",29.8]
["Test spécifique - 4e MA - Automatismes","Question 18",42.3]
["Test spécifique - 4e MA - Automatismes","Question 19",29.8]
["Test spécifique - 4e MA - Automatismes","Question 20",53.8]
["Test spécifique - 4e MA - Automatismes","Question 21",22.1]
["Test spécifique - 4e MA - Automatismes","Question 22",28.8]
[]
[]
[]
[]
[]
[]
[]
[]
[]
[]
[]
[]
[]
[]
[]
[]
[]
[]
[]
[]
[]
[]
[]
["Test spécifique - 4e MA - Automatismes","Question 01",92.4]
["Test spécifique - 4e MA - Automatismes","Question 02",89.1]
["Test spécifique - 4e MA - Automatismes","Question 03",73.900000000000006]
["Test spécifique - 4e MA - Automatismes","Question 04",82.6]
["Test spécifique - 4e MA - Automatismes","Question 05",76.099999999999994]
["Test spécifique - 4e MA - Automatismes","Question 06",60.9]
["Test spécifique - 4e MA - Automatismes","Question 07",52.2]
["Test spécifique - 4e MA - Automatismes","Question 08",53.3]
["Test spécifique - 4e MA - Automatismes","Question 09",25]
["Test spécifique - 4e MA - Automatismes","Question 10",46.7]
["Test spécifique - 4e MA - Automatismes","Question 11",42.4]
["Test spécifique - 4e MA - Automatismes","Question 12",52.2]
["Test spécifique - 4e MA - Automatismes","Question 13",26.1]
["Test spécifique - 4e MA - Automatismes","Question 14",25]
["Test spécifique - 4e MA - Automatismes","Question 15",42.4]
["Test spécifique - 4e MA - Automatismes","Question 16",32.6]
["Test spécifique - 4e MA - Automatismes","Question 17",41.3]
["Test spécifique - 4e MA - Automatismes","Question 18",43.5]
["Test spécifique - 4e MA - Automatismes","Question 19",47.8]
["Test spécifique - 4e MA - Automatismes","Question 20",56.5]
["Test spécifique - 4e MA - Automatismes","Question 21",17.399999999999999]
["Test spécifique - 4e MA - Automatismes","Question 22",26.1]
[]
[]
[]
[]
[]
[]
[]
[]
[]
[]
[]
[]
[]
[]
[]
[]
[]
[]
[]
[]
[]
[]
[]
["Test spécifique - 4e MA - Automatismes","Question 01",94.8]
["Test spécifique - 4e MA - Automatismes","Question 02",95.4]
["Test spécifique - 4e MA - Automatismes","Question 03",94.3]
["Test spécifique - 4e MA - Automatismes","Question 04",91.4]
["Test spécifique - 4e MA - Automatismes","Question 05",64.400000000000006]
["Test spécifique - 4e MA - Automatismes","Question 06",52.9]
["Test spécifique - 4e MA - Automatismes","Question 07",73]
["Test spécifique - 4e MA - Automatismes","Question 08",70.7]
["Test spécifique - 4e MA - Automatismes","Question 09",55.2]
["Test spécifique - 4e MA - Automatismes","Question 10",56.9]
["Test spécifique - 4e MA - Automatismes","Question 11",52.9]
["Test spécifique - 4e MA - Automatismes","Question 12",58.6]
["Test spécifique - 4e MA - Automatismes","Question 13",50.6]
["Test spécifique - 4e MA - Automatismes","Question 14",62.1]
["Test spécifique - 4e MA - Automatismes","Question 15",68.400000000000006]
["Test spécifique - 4e MA - Automatismes","Question 16",56.3]
["Test spécifique - 4e MA - Automatismes","Question 17",37.4]
["Test spécifique - 4e MA - Automatismes","Question 18",56.3]
["Test spécifique - 4e MA - Automatismes","Question 19",52.9]
["Test spécifique - 4e MA - Automatismes","Question 20",37.9]
["Test spécifique - 4e MA - Automatismes","Question 21",32.799999999999997]
["Test spécifique - 4e MA - Automatismes","Question 22",36.799999999999997]
[]
[]
[]
[]
[]
[]
[]
[]
[]
[]
[]
[]
[]
[]
[]
[]
[]
[]
[]
[]
[]
[]
[]
["Test spécifique - 4e MA - Automatismes","Question 01",89]
["Test spécifique - 4e MA - Automatismes","Question 02",91.8]
["Test spécifique - 4e MA - Automatismes","Question 03",84.9]
["Test spécifique - 4e MA - Automatismes","Question 04",83.6]
["Test spécifique - 4e MA - Automatismes","Question 05",65.8]
["Test spécifique - 4e MA - Automatismes","Question 06",69.900000000000006]
["Test spécifique - 4e MA - Automatismes","Question 07",64.400000000000006]
["Test spécifique - 4e MA - Automatismes","Question 08",69.900000000000006]
["Test spécifique - 4e MA - Automatismes","Question 09",34.200000000000003]
["Test spécifique - 4e MA - Automatismes","Question 10",56.2]
["Test spécifique - 4e MA - Automatismes","Question 11",50.7]
["Test spécifique - 4e MA - Automatismes","Question 12",49.3]
["Test spécifique - 4e MA - Automatismes","Question 13",39.700000000000003]
["Test spécifique - 4e MA - Automatismes","Question 14",45.2]
["Test spécifique - 4e MA - Automatismes","Question 15",57.5]
["Test spécifique - 4e MA - Automatismes","Question 16",57.5]
["Test spécifique - 4e MA - Automatismes","Question 17",45.2]
["Test spécifique - 4e MA - Automatismes","Question 18",42.5]
["Test spécifique - 4e MA - Automatismes","Question 19",41.1]
["Test spécifique - 4e MA - Automatismes","Question 20",49.3]
["Test spécifique - 4e MA - Automatismes","Question 21",19.2]
["Test spécifique - 4e MA - Automatismes","Question 22",46.6]
[]
[]
[]
[]
[]
[]
[]
[]
[]
[]
[]
[]
[]
[]
[]
[]
[]
[]
[]
[]
[]
[]
[]
["Test spécifique - 4e MA - Automatismes","Question 01",89.8]
["Test spécifique - 4e MA - Automatismes","Question 02",81.8]
["Test spécifique - 4e MA - Automatismes","Question 03",78.400000000000006]
["Test spécifique - 4e MA - Automatismes","Question 04",85.2]
["Test spécifique - 4e MA - Automatismes","Question 05",77.3]
["Test spécifique - 4e MA - Automatismes","Question 06",68.2]
["Test spécifique - 4e MA - Automatismes","Question 07",60.2]
["Test spécifique - 4e MA - Automatismes","Question 08",63.6]
["Test spécifique - 4e MA - Automatismes","Question 09",55.7]
["Test spécifique - 4e MA - Automatismes","Question 10",60.2]
["Test spécifique - 4e MA - Automatismes","Question 11",55.7]
["Test spécifique - 4e MA - Automatismes","Question 12",58]
["Test spécifique - 4e MA - Automatismes","Question 13",45.5]
["Test spécifique - 4e MA - Automatismes","Question 14",64.8]
["Test spécifique - 4e MA - Automatismes","Question 15",52.3]
["Test spécifique - 4e MA - Automatismes","Question 16",52.3]
["Test spécifique - 4e MA - Automatismes","Question 17",30.7]
["Test spécifique - 4e MA - Automatismes","Question 18",39.799999999999997]
["Test spécifique - 4e MA - Automatismes","Question 19",33]
["Test spécifique - 4e MA - Automatismes","Question 20",55.7]
["Test spécifique - 4e MA - Automatismes","Question 21",25]
["Test spécifique - 4e MA - Automatismes","Question 22",42]
[]
[]
[]
[]
[]
[]
[]
[]
[]
[]
[]
[]
[]
[]
[]
[]
[]
[]
[]
[]
[]
[]
[]
["Test spécifique - 4e MA - Automatismes","Question 01",95]
["Test spécifique - 4e MA - Automatismes","Question 02",93.1]
["Test spécifique - 4e MA - Automatismes","Question 03",76.2]
["Test spécifique - 4e MA - Automatismes","Question 04",92.1]
["Test spécifique - 4e MA - Automatismes","Question 05",76.2]
["Test spécifique - 4e MA - Automatismes","Question 06",85.1]
["Test spécifique - 4e MA - Automatismes","Question 07",64.400000000000006]
["Test spécifique - 4e MA - Automatismes","Question 08",63.4]
["Test spécifique - 4e MA - Automatismes","Question 09",29.7]
["Test spécifique - 4e MA - Automatismes","Question 10",55.4]
["Test spécifique - 4e MA - Automatismes","Question 11",51.5]
["Test spécifique - 4e MA - Automatismes","Question 12",48.5]
["Test spécifique - 4e MA - Automatismes","Question 13",39.6]
["Test spécifique - 4e MA - Automatismes","Question 14",43.6]
["Test spécifique - 4e MA - Automatismes","Question 15",45.5]
["Test spécifique - 4e MA - Automatismes","Question 16",44.6]
["Test spécifique - 4e MA - Automatismes","Question 17",37.6]
["Test spécifique - 4e MA - Automatismes","Question 18",48.5]
["Test spécifique - 4e MA - Automatismes","Question 19",43.6]
["Test spécifique - 4e MA - Automatismes","Question 20",36.6]
["Test spécifique - 4e MA - Automatismes","Question 21",32.700000000000003]
["Test spécifique - 4e MA - Automatismes","Question 22",32.700000000000003]
[]
[]
[]
[]
[]
[]
[]
[]
[]
[]
[]
[]
[]
[]
[]
[]
[]
[]
[]
[]
[]
[]
[]
["Test spécifique - 4e MA - Automatismes","Question 01",91.9]
["Test spécifique - 4e MA - Automatismes","Question 02",91.9]
["Test spécifique - 4e MA - Automatismes","Question 03",82.9]
["Test spécifique - 4e MA - Automatismes","Question 04",82.9]
["Test spécifique - 4e MA - Automatismes","Question 05",50.5]
["Test spécifique - 4e MA - Automatismes","Question 06",64.900000000000006]
["Test spécifique - 4e MA - Automatismes","Question 07",59.5]
["Test spécifique - 4e MA - Automatismes","Question 08",63.1]
["Test spécifique - 4e MA - Automatismes","Question 09",24.3]
["Test spécifique - 4e MA - Automatismes","Question 10",47.7]
["Test spécifique - 4e MA - Automatismes","Question 11",46.8]
["Test spécifique - 4e MA - Automatismes","Question 12",51.4]
["Test spécifique - 4e MA - Automatismes","Question 13",36.9]
["Test spécifique - 4e MA - Automatismes","Question 14",43.2]
["Test spécifique - 4e MA - Automatismes","Question 15",52.3]
["Test spécifique - 4e MA - Automatismes","Question 16",51.4]
["Test spécifique - 4e MA - Automatismes","Question 17",32.4]
["Test spécifique - 4e MA - Automatismes","Question 18",32.4]
["Test spécifique - 4e MA - Automatismes","Question 19",26.1]
["Test spécifique - 4e MA - Automatismes","Question 20",44.1]
["Test spécifique - 4e MA - Automatismes","Question 21",20.7]
["Test spécifique - 4e MA - Automatismes","Question 22",34.200000000000003]
[]
[]
[]
[]
[]
[]
[]
[]
[]
[]
[]
[]
[]
[]
[]
[]
[]
[]
[]
[]
[]
[]
[]
["Test spécifique - 4e MA - Automatismes","Question 01",91.5]
["Test spécifique - 4e MA - Automatismes","Question 02",81.7]
["Test spécifique - 4e MA - Automatismes","Question 03",77.099999999999994]
["Test spécifique - 4e MA - Automatismes","Question 04",79.7]
["Test spécifique - 4e MA - Automatismes","Question 05",59.5]
["Test spécifique - 4e MA - Automatismes","Question 06",62.7]
["Test spécifique - 4e MA - Automatismes","Question 07",54.2]
["Test spécifique - 4e MA - Automatismes","Question 08",57.5]
["Test spécifique - 4e MA - Automatismes","Question 09",34]
["Test spécifique - 4e MA - Automatismes","Question 10",52.3]
["Test spécifique - 4e MA - Automatismes","Question 11",39.9]
["Test spécifique - 4e MA - Automatismes","Question 12",51]
["Test spécifique - 4e MA - Automatismes","Question 13",45.8]
["Test spécifique - 4e MA - Automatismes","Question 14",21.6]
["Test spécifique - 4e MA - Automatismes","Question 15",47.7]
["Test spécifique - 4e MA - Automatismes","Question 16",36.6]
["Test spécifique - 4e MA - Automatismes","Question 17",34]
["Test spécifique - 4e MA - Automatismes","Question 18",51.6]
["Test spécifique - 4e MA - Automatismes","Question 19",32]
["Test spécifique - 4e MA - Automatismes","Question 20",31.4]
["Test spécifique - 4e MA - Automatismes","Question 21",31.4]
["Test spécifique - 4e MA - Automatismes","Question 22",32.700000000000003]
[]
[]
[]
[]
[]
[]
[]
[]
[]
[]
[]
[]
[]
[]
[]
[]
[]
[]
[]
[]
[]
[]
[]
["Test spécifique - 4e MA - Automatismes","Question 01",89.9]
["Test spécifique - 4e MA - Automatismes","Question 02",86.6]
["Test spécifique - 4e MA - Automatismes","Question 03",88.2]
["Test spécifique - 4e MA - Automatismes","Question 04",80.7]
["Test spécifique - 4e MA - Automatismes","Question 05",73.099999999999994]
["Test spécifique - 4e MA - Automatismes","Question 06",65.5]
["Test spécifique - 4e MA - Automatismes","Question 07",52.1]
["Test spécifique - 4e MA - Automatismes","Question 08",61.3]
["Test spécifique - 4e MA - Automatismes","Question 09",43.7]
["Test spécifique - 4e MA - Automatismes","Question 10",56.3]
["Test spécifique - 4e MA - Automatismes","Question 11",47.1]
["Test spécifique - 4e MA - Automatismes","Question 12",52.1]
["Test spécifique - 4e MA - Automatismes","Question 13",47.1]
["Test spécifique - 4e MA - Automatismes","Question 14",68.099999999999994]
["Test spécifique - 4e MA - Automatismes","Question 15",50.4]
["Test spécifique - 4e MA - Automatismes","Question 16",58]
["Test spécifique - 4e MA - Automatismes","Question 17",29.4]
["Test spécifique - 4e MA - Automatismes","Question 18",51.3]
["Test spécifique - 4e MA - Automatismes","Question 19",47.9]
["Test spécifique - 4e MA - Automatismes","Question 20",59.7]
["Test spécifique - 4e MA - Automatismes","Question 21",49.6]
["Test spécifique - 4e MA - Automatismes","Question 22",47.1]
[]
[]
[]
[]
[]
[]
[]
[]
[]
[]
[]
[]
[]
[]
[]
[]
[]
[]
[]
[]
[]
[]
[]
["Test spécifique - 4e MA - Automatismes","Question 01",96.2]
["Test spécifique - 4e MA - Automatismes","Question 02",89.9]
["Test spécifique - 4e MA - Automatismes","Question 03",91.1]
["Test spécifique - 4e MA - Automatismes","Question 04",83.5]
["Test spécifique - 4e MA - Automatismes","Question 05",74.7]
["Test spécifique - 4e MA - Automatismes","Question 06",74.7]
["Test spécifique - 4e MA - Automatismes","Question 07",68.400000000000006]
["Test spécifique - 4e MA - Automatismes","Question 08",64.599999999999994]
["Test spécifique - 4e MA - Automatismes","Question 09",31.6]
["Test spécifique - 4e MA - Automatismes","Question 10",59.5]
["Test spécifique - 4e MA - Automatismes","Question 11",36.700000000000003]
["Test spécifique - 4e MA - Automatismes","Question 12",53.2]
["Test spécifique - 4e MA - Automatismes","Question 13",46.8]
["Test spécifique - 4e MA - Automatismes","Question 14",32.9]
["Test spécifique - 4e MA - Automatismes","Question 15",39.200000000000003]
["Test spécifique - 4e MA - Automatismes","Question 16",53.2]
["Test spécifique - 4e MA - Automatismes","Question 17",21.5]
["Test spécifique - 4e MA - Automatismes","Question 18",31.6]
["Test spécifique - 4e MA - Automatismes","Question 19",45.6]
["Test spécifique - 4e MA - Automatismes","Question 20",36.700000000000003]
["Test spécifique - 4e MA - Automatismes","Question 21",29.1]
["Test spécifique - 4e MA - Automatismes","Question 22",36.700000000000003]
[]
[]
[]
[]
[]
[]
[]
[]
[]
[]
[]
[]
[]
[]
[]
[]
[]
[]
[]
[]
[]
[]
[]
["Test spécifique - 4e MA - Automatismes","Question 01",96.1]
["Test spécifique - 4e MA - Automatismes","Question 02",88.2]
["Test spécifique - 4e MA - Automatismes","Question 03",88.2]
["Test spécifique - 4e MA - Automatismes","Question 04",78.400000000000006]
["Test spécifique - 4e MA - Automatismes","Question 05",80.400000000000006]
["Test spécifique - 4e MA - Automatismes","Question 06",68.599999999999994]
["Test spécifique - 4e MA - Automatismes","Question 07",62.7]
["Test spécifique - 4e MA - Automatismes","Question 08",64.7]
["Test spécifique - 4e MA - Automatismes","Question 09",47.1]
["Test spécifique - 4e MA - Automatismes","Question 10",74.5]
["Test spécifique - 4e MA - Automatismes","Question 11",39.200000000000003]
["Test spécifique - 4e MA - Automatismes","Question 12",56.9]
["Test spécifique - 4e MA - Automatismes","Question 13",29.4]
["Test spécifique - 4e MA - Automatismes","Question 14",52.9]
["Test spécifique - 4e MA - Automatismes","Question 15",45.1]
["Test spécifique - 4e MA - Automatismes","Question 16",70.599999999999994]
["Test spécifique - 4e MA - Automatismes","Question 17",29.4]
["Test spécifique - 4e MA - Automatismes","Question 18",21.6]
["Test spécifique - 4e MA - Automatismes","Question 19",15.7]
["Test spécifique - 4e MA - Automatismes","Question 20",51]
["Test spécifique - 4e MA - Automatismes","Question 21",13.7]
["Test spécifique - 4e MA - Automatismes","Question 22",25.5]
[]
[]
[]
[]
[]
[]
[]
[]
[]
[]
[]
[]
[]
[]
[]
[]
[]
[]
[]
[]
[]
[]
[]
["Test spécifique - 4e MA - Automatismes","Question 01",93.1]
["Test spécifique - 4e MA - Automatismes","Question 02",92.4]
["Test spécifique - 4e MA - Automatismes","Question 03",89.7]
["Test spécifique - 4e MA - Automatismes","Question 04",83.4]
["Test spécifique - 4e MA - Automatismes","Question 05",84.1]
["Test spécifique - 4e MA - Automatismes","Question 06",84.8]
["Test spécifique - 4e MA - Automatismes","Question 07",62.1]
["Test spécifique - 4e MA - Automatismes","Question 08",62.8]
["Test spécifique - 4e MA - Automatismes","Question 09",56.6]
["Test spécifique - 4e MA - Automatismes","Question 10",55.2]
["Test spécifique - 4e MA - Automatismes","Question 11",62.8]
["Test spécifique - 4e MA - Automatismes","Question 12",55.2]
["Test spécifique - 4e MA - Automatismes","Question 13",41.4]
["Test spécifique - 4e MA - Automatismes","Question 14",41.4]
["Test spécifique - 4e MA - Automatismes","Question 15",48.3]
["Test spécifique - 4e MA - Automatismes","Question 16",42.8]
["Test spécifique - 4e MA - Automatismes","Question 17",51.7]
["Test spécifique - 4e MA - Automatismes","Question 18",43.4]
["Test spécifique - 4e MA - Automatismes","Question 19",33.799999999999997]
["Test spécifique - 4e MA - Automatismes","Question 20",35.200000000000003]
["Test spécifique - 4e MA - Automatismes","Question 21",32.4]
["Test spécifique - 4e MA - Automatismes","Question 22",36.6]
[]
[]
[]
[]
[]
[]
[]
[]
[]
[]
[]
[]
[]
[]
[]
[]
[]
[]
[]
[]
[]
[]
[]
["Test spécifique - 4e MA - Automatismes","Question 01",92]
["Test spécifique - 4e MA - Automatismes","Question 02",89.3]
["Test spécifique - 4e MA - Automatismes","Question 03",77.7]
["Test spécifique - 4e MA - Automatismes","Question 04",81.3]
["Test spécifique - 4e MA - Automatismes","Question 05",65.2]
["Test spécifique - 4e MA - Automatismes","Question 06",63.4]
["Test spécifique - 4e MA - Automatismes","Question 07",57.1]
["Test spécifique - 4e MA - Automatismes","Question 08",61.6]
["Test spécifique - 4e MA - Automatismes","Question 09",34.799999999999997]
["Test spécifique - 4e MA - Automatismes","Question 10",49.1]
["Test spécifique - 4e MA - Automatismes","Question 11",43.8]
["Test spécifique - 4e MA - Automatismes","Question 12",54.5]
["Test spécifique - 4e MA - Automatismes","Question 13",25]
["Test spécifique - 4e MA - Automatismes","Question 14",46.4]
["Test spécifique - 4e MA - Automatismes","Question 15",43.8]
["Test spécifique - 4e MA - Automatismes","Question 16",42.9]
["Test spécifique - 4e MA - Automatismes","Question 17",40.200000000000003]
["Test spécifique - 4e MA - Automatismes","Question 18",48.2]
["Test spécifique - 4e MA - Automatismes","Question 19",37.5]
["Test spécifique - 4e MA - Automatismes","Question 20",37.5]
["Test spécifique - 4e MA - Automatismes","Question 21",26.8]
["Test spécifique - 4e MA - Automatismes","Question 22",30.4]
[]
[]
[]
[]
[]
[]
[]
[]
[]
[]
[]
[]
[]
[]
[]
[]
[]
[]
[]
[]
[]
[]
[]
["Test spécifique - 4e MA - Automatismes","Question 01",91.3]
["Test spécifique - 4e MA - Automatismes","Question 02",91.3]
["Test spécifique - 4e MA - Automatismes","Question 03",89.4]
["Test spécifique - 4e MA - Automatismes","Question 04",81.7]
["Test spécifique - 4e MA - Automatismes","Question 05",61.5]
["Test spécifique - 4e MA - Automatismes","Question 06",71.2]
["Test spécifique - 4e MA - Automatismes","Question 07",51.9]
["Test spécifique - 4e MA - Automatismes","Question 08",62.5]
["Test spécifique - 4e MA - Automatismes","Question 09",33.700000000000003]
["Test spécifique - 4e MA - Automatismes","Question 10",51]
["Test spécifique - 4e MA - Automatismes","Question 11",44.2]
["Test spécifique - 4e MA - Automatismes","Question 12",52.9]
["Test spécifique - 4e MA - Automatismes","Question 13",49]
["Test spécifique - 4e MA - Automatismes","Question 14",47.1]
["Test spécifique - 4e MA - Automatismes","Question 15",54.8]
["Test spécifique - 4e MA - Automatismes","Question 16",54.8]
["Test spécifique - 4e MA - Automatismes","Question 17",36.5]
["Test spécifique - 4e MA - Automatismes","Question 18",38.5]
["Test spécifique - 4e MA - Automatismes","Question 19",26]
["Test spécifique - 4e MA - Automatismes","Question 20",55.8]
["Test spécifique - 4e MA - Automatismes","Question 21",26]
["Test spécifique - 4e MA - Automatismes","Question 22",26.9]
[]
[]
[]
[]
[]
[]
[]
[]
[]
[]
[]
[]
[]
[]
[]
[]
[]
[]
[]
[]
[]
[]
[]
["Test spécifique - 4e MA - Automatismes","Question 01",97.7]
["Test spécifique - 4e MA - Automatismes","Question 02",90.7]
["Test spécifique - 4e MA - Automatismes","Question 03",76.7]
["Test spécifique - 4e MA - Automatismes","Question 04",82.6]
["Test spécifique - 4e MA - Automatismes","Question 05",77.900000000000006]
["Test spécifique - 4e MA - Automatismes","Question 06",58.1]
["Test spécifique - 4e MA - Automatismes","Question 07",55.8]
["Test spécifique - 4e MA - Automatismes","Question 08",70.900000000000006]
["Test spécifique - 4e MA - Automatismes","Question 09",29.1]
["Test spécifique - 4e MA - Automatismes","Question 10",53.5]
["Test spécifique - 4e MA - Automatismes","Question 11",55.8]
["Test spécifique - 4e MA - Automatismes","Question 12",57]
["Test spécifique - 4e MA - Automatismes","Question 13",32.6]
["Test spécifique - 4e MA - Automatismes","Question 14",57]
["Test spécifique - 4e MA - Automatismes","Question 15",33.700000000000003]
["Test spécifique - 4e MA - Automatismes","Question 16",48.8]
["Test spécifique - 4e MA - Automatismes","Question 17",27.9]
["Test spécifique - 4e MA - Automatismes","Question 18",32.6]
["Test spécifique - 4e MA - Automatismes","Question 19",30.2]
["Test spécifique - 4e MA - Automatismes","Question 20",43]
["Test spécifique - 4e MA - Automatismes","Question 21",29.1]
["Test spécifique - 4e MA - Automatismes","Question 22",54.7]
[]
[]
[]
[]
[]
[]
[]
[]
[]
[]
[]
[]
[]
[]
[]
[]
[]
[]
[]
[]
[]
[]
[]
["Test spécifique - 4e MA - Automatismes","Question 01",96.3]
["Test spécifique - 4e MA - Automatismes","Question 02",88.1]
["Test spécifique - 4e MA - Automatismes","Question 03",86.2]
["Test spécifique - 4e MA - Automatismes","Question 04",77.099999999999994]
["Test spécifique - 4e MA - Automatismes","Question 05",78.900000000000006]
["Test spécifique - 4e MA - Automatismes","Question 06",63.3]
["Test spécifique - 4e MA - Automatismes","Question 07",60.6]
["Test spécifique - 4e MA - Automatismes","Question 08",66.099999999999994]
["Test spécifique - 4e MA - Automatismes","Question 09",24.8]
["Test spécifique - 4e MA - Automatismes","Question 10",68.8]
["Test spécifique - 4e MA - Automatismes","Question 11",51.4]
["Test spécifique - 4e MA - Automatismes","Question 12",52.3]
["Test spécifique - 4e MA - Automatismes","Question 13",54.1]
["Test spécifique - 4e MA - Automatismes","Question 14",33.9]
["Test spécifique - 4e MA - Automatismes","Question 15",56]
["Test spécifique - 4e MA - Automatismes","Question 16",53.2]
["Test spécifique - 4e MA - Automatismes","Question 17",41.3]
["Test spécifique - 4e MA - Automatismes","Question 18",42.2]
["Test spécifique - 4e MA - Automatismes","Question 19",41.3]
["Test spécifique - 4e MA - Automatismes","Question 20",47.7]
["Test spécifique - 4e MA - Automatismes","Question 21",42.2]
["Test spécifique - 4e MA - Automatismes","Question 22",50.5]
[]
[]
[]
[]
[]
[]
[]
[]
[]
[]
[]
[]
[]
[]
[]
[]
[]
[]
[]
[]
[]
[]
[]
["Test spécifique - 4e MA - Automatismes","Question 01",94.9]
["Test spécifique - 4e MA - Automatismes","Question 02",86.9]
["Test spécifique - 4e MA - Automatismes","Question 03",85.9]
["Test spécifique - 4e MA - Automatismes","Question 04",84.8]
["Test spécifique - 4e MA - Automatismes","Question 05",78.8]
["Test spécifique - 4e MA - Automatismes","Question 06",62.6]
["Test spécifique - 4e MA - Automatismes","Question 07",58.6]
["Test spécifique - 4e MA - Automatismes","Question 08",51.5]
["Test spécifique - 4e MA - Automatismes","Question 09",41.4]
["Test spécifique - 4e MA - Automatismes","Question 10",47.5]
["Test spécifique - 4e MA - Automatismes","Question 11",50.5]
["Test spécifique - 4e MA - Automatismes","Question 12",63.6]
["Test spécifique - 4e MA - Automatismes","Question 13",41.4]
["Test spécifique - 4e MA - Automatismes","Question 14",87.9]
["Test spécifique - 4e MA - Automatismes","Question 15",53.5]
["Test spécifique - 4e MA - Automatismes","Question 16",44.4]
["Test spécifique - 4e MA - Automatismes","Question 17",38.4]
["Test spécifique - 4e MA - Automatismes","Question 18",49.5]
["Test spécifique - 4e MA - Automatismes","Question 19",27.3]
["Test spécifique - 4e MA - Automatismes","Question 20",50.5]
["Test spécifique - 4e MA - Automatismes","Question 21",29.3]
["Test spécifique - 4e MA - Automatismes","Question 22",30.3]
[]
[]
[]
[]
[]
[]
[]
[]
[]
[]
[]
[]
[]
[]
[]
[]
[]
[]
[]
[]
[]
[]
[]
["Test spécifique - 4e MA - Automatismes","Question 01",96]
["Test spécifique - 4e MA - Automatismes","Question 02",95]
["Test spécifique - 4e MA - Automatismes","Question 03",74.3]
["Test spécifique - 4e MA - Automatismes","Question 04",85.1]
["Test spécifique - 4e MA - Automatismes","Question 05",49.5]
["Test spécifique - 4e MA - Automatismes","Question 06",64.400000000000006]
["Test spécifique - 4e MA - Automatismes","Question 07",64.400000000000006]
["Test spécifique - 4e MA - Automatismes","Question 08",50.5]
["Test spécifique - 4e MA - Automatismes","Question 09",20.8]
["Test spécifique - 4e MA - Automatismes","Question 10",54.5]
["Test spécifique - 4e MA - Automatismes","Question 11",55.4]
["Test spécifique - 4e MA - Automatismes","Question 12",52.5]
["Test spécifique - 4e MA - Automatismes","Question 13",38.6]
["Test spécifique - 4e MA - Automatismes","Question 14",35.6]
["Test spécifique - 4e MA - Automatismes","Question 15",37.6]
["Test spécifique - 4e MA - Automatismes","Question 16",45.5]
["Test spécifique - 4e MA - Automatismes","Question 17",26.7]
["Test spécifique - 4e MA - Automatismes","Question 18",43.6]
["Test spécifique - 4e MA - Automatismes","Question 19",44.6]
["Test spécifique - 4e MA - Automatismes","Question 20",41.6]
["Test spécifique - 4e MA - Automatismes","Question 21",35.6]
["Test spécifique - 4e MA - Automatismes","Question 22",31.7]
[]
[]
[]
[]
[]
[]
[]
[]
[]
[]
[]
[]
[]
[]
[]
[]
[]
[]
[]
[]
[]
[]
[]
["Test spécifique - 4e MA - Automatismes","Question 01",94.2]
["Test spécifique - 4e MA - Automatismes","Question 02",92.9]
["Test spécifique - 4e MA - Automatismes","Question 03",91]
["Test spécifique - 4e MA - Automatismes","Question 04",87.7]
["Test spécifique - 4e MA - Automatismes","Question 05",76.8]
["Test spécifique - 4e MA - Automatismes","Question 06",60.6]
["Test spécifique - 4e MA - Automatismes","Question 07",70.3]
["Test spécifique - 4e MA - Automatismes","Question 08",67.7]
["Test spécifique - 4e MA - Automatismes","Question 09",35.5]
["Test spécifique - 4e MA - Automatismes","Question 10",70.3]
["Test spécifique - 4e MA - Automatismes","Question 11",45.2]
["Test spécifique - 4e MA - Automatismes","Question 12",58.7]
["Test spécifique - 4e MA - Automatismes","Question 13",51.6]
["Test spécifique - 4e MA - Automatismes","Question 14",54.8]
["Test spécifique - 4e MA - Automatismes","Question 15",59.4]
["Test spécifique - 4e MA - Automatismes","Question 16",56.8]
["Test spécifique - 4e MA - Automatismes","Question 17",43.2]
["Test spécifique - 4e MA - Automatismes","Question 18",51]
["Test spécifique - 4e MA - Automatismes","Question 19",33.5]
["Test spécifique - 4e MA - Automatismes","Question 20",41.3]
["Test spécifique - 4e MA - Automatismes","Question 21",34.200000000000003]
["Test spécifique - 4e MA - Automatismes","Question 22",49.7]
[]
[]
[]
[]
[]
[]
[]
[]
[]
[]
[]
[]
[]
[]
[]
[]
[]
[]
[]
[]
[]
[]
[]
["Test spécifique - 4e MA - Automatismes","Question 01",91.9]
["Test spécifique - 4e MA - Automatismes","Question 02",85.1]
["Test spécifique - 4e MA - Automatismes","Question 03",91.9]
["Test spécifique - 4e MA - Automatismes","Question 04",78.400000000000006]
["Test spécifique - 4e MA - Automatismes","Question 05",73]
["Test spécifique - 4e MA - Automatismes","Question 06",52.7]
["Test spécifique - 4e MA - Automatismes","Question 07",64.900000000000006]
["Test spécifique - 4e MA - Automatismes","Question 08",66.2]
["Test spécifique - 4e MA - Automatismes","Question 09",29.7]
["Test spécifique - 4e MA - Automatismes","Question 10",51.4]
["Test spécifique - 4e MA - Automatismes","Question 11",37.799999999999997]
["Test spécifique - 4e MA - Automatismes","Question 12",59.5]
["Test spécifique - 4e MA - Automatismes","Question 13",44.6]
["Test spécifique - 4e MA - Automatismes","Question 14",29.7]
["Test spécifique - 4e MA - Automatismes","Question 15",52.7]
["Test spécifique - 4e MA - Automatismes","Question 16",43.2]
["Test spécifique - 4e MA - Automatismes","Question 17",39.200000000000003]
["Test spécifique - 4e MA - Automatismes","Question 18",40.5]
["Test spécifique - 4e MA - Automatismes","Question 19",35.1]
["Test spécifique - 4e MA - Automatismes","Question 20",27]
["Test spécifique - 4e MA - Automatismes","Question 21",27]
["Test spécifique - 4e MA - Automatismes","Question 22",31.1]
[]
[]
[]
[]
[]
[]
[]
[]
[]
[]
[]
[]
[]
[]
[]
[]
[]
[]
[]
[]
[]
[]
[]
["Test spécifique - 4e MA - Automatismes","Question 01",93.5]
["Test spécifique - 4e MA - Automatismes","Question 02",90.2]
["Test spécifique - 4e MA - Automatismes","Question 03",79.3]
["Test spécifique - 4e MA - Automatismes","Question 04",77.2]
["Test spécifique - 4e MA - Automatismes","Question 05",66.3]
["Test spécifique - 4e MA - Automatismes","Question 06",66.3]
["Test spécifique - 4e MA - Automatismes","Question 07",59.8]
["Test spécifique - 4e MA - Automatismes","Question 08",54.3]
["Test spécifique - 4e MA - Automatismes","Question 09",16.3]
["Test spécifique - 4e MA - Automatismes","Question 10",47.8]
["Test spécifique - 4e MA - Automatismes","Question 11",44.6]
["Test spécifique - 4e MA - Automatismes","Question 12",46.7]
["Test spécifique - 4e MA - Automatismes","Question 13",34.799999999999997]
["Test spécifique - 4e MA - Automatismes","Question 14",39.1]
["Test spécifique - 4e MA - Automatismes","Question 15",32.6]
["Test spécifique - 4e MA - Automatismes","Question 16",42.4]
["Test spécifique - 4e MA - Automatismes","Question 17",15.2]
["Test spécifique - 4e MA - Automatismes","Question 18",30.4]
["Test spécifique - 4e MA - Automatismes","Question 19",32.6]
["Test spécifique - 4e MA - Automatismes","Question 20",37]
["Test spécifique - 4e MA - Automatismes","Question 21",13]
["Test spécifique - 4e MA - Automatismes","Question 22",26.1]
[]
[]
[]
[]
[]
[]
[]
[]
[]
[]
[]
[]
[]
[]
[]
[]
[]
[]
[]
[]
[]
[]
[]
["Test spécifique - 4e MA - Automatismes","Question 01",92.9]
["Test spécifique - 4e MA - Automatismes","Question 02",88.8]
["Test spécifique - 4e MA - Automatismes","Question 03",76]
["Test spécifique - 4e MA - Automatismes","Question 04",80.099999999999994]
["Test spécifique - 4e MA - Automatismes","Question 05",62.2]
["Test spécifique - 4e MA - Automatismes","Question 06",65.3]
["Test spécifique - 4e MA - Automatismes","Question 07",48]
["Test spécifique - 4e MA - Automatismes","Question 08",59.2]
["Test spécifique - 4e MA - Automatismes","Question 09",33.700000000000003]
["Test spécifique - 4e MA - Automatismes","Question 10",47.4]
["Test spécifique - 4e MA - Automatismes","Question 11",36.200000000000003]
["Test spécifique - 4e MA - Automatismes","Question 12",44.9]
["Test spécifique - 4e MA - Automatismes","Question 13",32.1]
["Test spécifique - 4e MA - Automatismes","Question 14",26]
["Test spécifique - 4e MA - Automatismes","Question 15",42.9]
["Test spécifique - 4e MA - Automatismes","Question 16",36.200000000000003]
["Test spécifique - 4e MA - Automatismes","Question 17",29.1]
["Test spécifique - 4e MA - Automatismes","Question 18",31.6]
["Test spécifique - 4e MA - Automatismes","Question 19",40.799999999999997]
["Test spécifique - 4e MA - Automatismes","Question 20",34.200000000000003]
["Test spécifique - 4e MA - Automatismes","Question 21",17.899999999999999]
["Test spécifique - 4e MA - Automatismes","Question 22",38.299999999999997]
[]
[]
[]
[]
[]
[]
[]
[]
[]
[]
[]
[]
[]
[]
[]
[]
[]
[]
[]
[]
[]
[]
[]
["Test spécifique - 4e MA - Automatismes","Question 01",95.7]
["Test spécifique - 4e MA - Automatismes","Question 02",91.3]
["Test spécifique - 4e MA - Automatismes","Question 03",84.8]
["Test spécifique - 4e MA - Automatismes","Question 04",92.4]
["Test spécifique - 4e MA - Automatismes","Question 05",70.7]
["Test spécifique - 4e MA - Automatismes","Question 06",57.6]
["Test spécifique - 4e MA - Automatismes","Question 07",59.8]
["Test spécifique - 4e MA - Automatismes","Question 08",75]
["Test spécifique - 4e MA - Automatismes","Question 09",47.8]
["Test spécifique - 4e MA - Automatismes","Question 10",64.099999999999994]
["Test spécifique - 4e MA - Automatismes","Question 11",46.7]
["Test spécifique - 4e MA - Automatismes","Question 12",62]
["Test spécifique - 4e MA - Automatismes","Question 13",37]
["Test spécifique - 4e MA - Automatismes","Question 14",69.599999999999994]
["Test spécifique - 4e MA - Automatismes","Question 15",56.5]
["Test spécifique - 4e MA - Automatismes","Question 16",53.3]
["Test spécifique - 4e MA - Automatismes","Question 17",33.700000000000003]
["Test spécifique - 4e MA - Automatismes","Question 18",42.4]
["Test spécifique - 4e MA - Automatismes","Question 19",52.2]
["Test spécifique - 4e MA - Automatismes","Question 20",40.200000000000003]
["Test spécifique - 4e MA - Automatismes","Question 21",31.5]
["Test spécifique - 4e MA - Automatismes","Question 22",42.4]
[]
[]
[]
[]
[]
[]
[]
[]
[]
[]
[]
[]
[]
[]
[]
[]
[]
[]
[]
[]
[]
[]
[]
["Test spécifique - 4e MA - Automatismes","Question 01",85.2]
["Test spécifique - 4e MA - Automatismes","Question 02",81.5]
["Test spécifique - 4e MA - Automatismes","Question 03",74.099999999999994]
["Test spécifique - 4e MA - Automatismes","Question 04",77.8]
["Test spécifique - 4e MA - Automatismes","Question 05",51.9]
["Test spécifique - 4e MA - Automatismes","Question 06",55.6]
["Test spécifique - 4e MA - Automatismes","Question 07",51.9]
["Test spécifique - 4e MA - Automatismes","Question 08",51.9]
["Test spécifique - 4e MA - Automatismes","Question 09",14.8]
["Test spécifique - 4e MA - Automatismes","Question 10",37]
["Test spécifique - 4e MA - Automatismes","Question 11",37]
["Test spécifique - 4e MA - Automatismes","Question 12",51.9]
["Test spécifique - 4e MA - Automatismes","Question 13",29.6]
["Test spécifique - 4e MA - Automatismes","Question 14",59.3]
["Test spécifique - 4e MA - Automatismes","Question 15",33.299999999999997]
["Test spécifique - 4e MA - Automatismes","Question 16",29.6]
["Test spécifique - 4e MA - Automatismes","Question 17",22.2]
["Test spécifique - 4e MA - Automatismes","Question 18",29.6]
["Test spécifique - 4e MA - Automatismes","Question 19",33.299999999999997]
["Test spécifique - 4e MA - Automatismes","Question 20",25.9]
["Test spécifique - 4e MA - Automatismes","Question 21",22.2]
["Test spécifique - 4e MA - Automatismes","Question 22",40.700000000000003]
[]
[]
[]
[]
[]
[]
[]
[]
[]
[]
[]
[]
[]
[]
[]
[]
[]
[]
[]
[]
[]
[]
[]
["Test spécifique - 4e MA - Automatismes","Question 01",91.8]
["Test spécifique - 4e MA - Automatismes","Question 02",91.8]
["Test spécifique - 4e MA - Automatismes","Question 03",87.8]
["Test spécifique - 4e MA - Automatismes","Question 04",87.8]
["Test spécifique - 4e MA - Automatismes","Question 05",71.400000000000006]
["Test spécifique - 4e MA - Automatismes","Question 06",63.3]
["Test spécifique - 4e MA - Automatismes","Question 07",67.3]
["Test spécifique - 4e MA - Automatismes","Question 08",71.400000000000006]
["Test spécifique - 4e MA - Automatismes","Question 09",30.6]
["Test spécifique - 4e MA - Automatismes","Question 10",51]
["Test spécifique - 4e MA - Automatismes","Question 11",59.2]
["Test spécifique - 4e MA - Automatismes","Question 12",59.2]
["Test spécifique - 4e MA - Automatismes","Question 13",51]
["Test spécifique - 4e MA - Automatismes","Question 14",67.3]
["Test spécifique - 4e MA - Automatismes","Question 15",51]
["Test spécifique - 4e MA - Automatismes","Question 16",53.1]
["Test spécifique - 4e MA - Automatismes","Question 17",55.1]
["Test spécifique - 4e MA - Automatismes","Question 18",32.700000000000003]
["Test spécifique - 4e MA - Automatismes","Question 19",26.5]
["Test spécifique - 4e MA - Automatismes","Question 20",57.1]
["Test spécifique - 4e MA - Automatismes","Question 21",18.399999999999999]
["Test spécifique - 4e MA - Automatismes","Question 22",28.6]
[]
[]
[]
[]
[]
[]
[]
[]
[]
[]
[]
[]
[]
[]
[]
[]
[]
[]
[]
[]
[]
[]
[]
["Test spécifique - 4e MA - Automatismes","Question 01",83.3]
["Test spécifique - 4e MA - Automatismes","Question 02",75]
["Test spécifique - 4e MA - Automatismes","Question 03",75]
["Test spécifique - 4e MA - Automatismes","Question 04",75]
["Test spécifique - 4e MA - Automatismes","Question 05",58.3]
["Test spécifique - 4e MA - Automatismes","Question 06",91.7]
["Test spécifique - 4e MA - Automatismes","Question 07",41.7]
["Test spécifique - 4e MA - Automatismes","Question 08",41.7]
["Test spécifique - 4e MA - Automatismes","Question 09",33.299999999999997]
["Test spécifique - 4e MA - Automatismes","Question 10",58.3]
["Test spécifique - 4e MA - Automatismes","Question 11",41.7]
["Test spécifique - 4e MA - Automatismes","Question 12",41.7]
["Test spécifique - 4e MA - Automatismes","Question 13",25]
["Test spécifique - 4e MA - Automatismes","Question 14",16.7]
["Test spécifique - 4e MA - Automatismes","Question 15",41.7]
["Test spécifique - 4e MA - Automatismes","Question 16",41.7]
["Test spécifique - 4e MA - Automatismes","Question 17",16.7]
["Test spécifique - 4e MA - Automatismes","Question 18",41.7]
["Test spécifique - 4e MA - Automatismes","Question 19",50]
["Test spécifique - 4e MA - Automatismes","Question 20",50]
["Test spécifique - 4e MA - Automatismes","Question 21",16.7]
["Test spécifique - 4e MA - Automatismes","Question 22",16.7]
[]
[]
[]
[]
[]
[]
[]
[]
[]
[]
[]
[]
[]
[]
[]
[]
[]
[]
[]
[]
[]
[]
[]
["Test spécifique - 4e MA - Automatismes","Question 01",95]
["Test spécifique - 4e MA - Automatismes","Question 02",88.1]
["Test spécifique - 4e MA - Automatismes","Question 03",78.599999999999994]
["Test spécifique - 4e MA - Automatismes","Question 04",89.3]
["Test spécifique - 4e MA - Automatismes","Question 05",64.8]
["Test spécifique - 4e MA - Automatismes","Question 06",64.2]
["Test spécifique - 4e MA - Automatismes","Question 07",59.7]
["Test spécifique - 4e MA - Automatismes","Question 08",63.5]
["Test spécifique - 4e MA - Automatismes","Question 09",34.6]
["Test spécifique - 4e MA - Automatismes","Question 10",52.2]
["Test spécifique - 4e MA - Automatismes","Question 11",50.3]
["Test spécifique - 4e MA - Automatismes","Question 12",44]
["Test spécifique - 4e MA - Automatismes","Question 13",36.5]
["Test spécifique - 4e MA - Automatismes","Question 14",23.3]
["Test spécifique - 4e MA - Automatismes","Question 15",45.9]
["Test spécifique - 4e MA - Automatismes","Question 16",42.8]
["Test spécifique - 4e MA - Automatismes","Question 17",32.700000000000003]
["Test spécifique - 4e MA - Automatismes","Question 18",47.8]
["Test spécifique - 4e MA - Automatismes","Question 19",28.9]
["Test spécifique - 4e MA - Automatismes","Question 20",32.1]
["Test spécifique - 4e MA - Automatismes","Question 21",23.3]
["Test spécifique - 4e MA - Automatismes","Question 22",33.299999999999997]
[]
[]
[]
[]
[]
[]
[]
[]
[]
[]
[]
[]
[]
[]
[]
[]
[]
[]
[]
[]
[]
[]
[]
["Test spécifique - 4e MA - Automatismes","Question 01",97.8]
["Test spécifique - 4e MA - Automatismes","Question 02",88.8]
["Test spécifique - 4e MA - Automatismes","Question 03",80.900000000000006]
["Test spécifique - 4e MA - Automatismes","Question 04",80.900000000000006]
["Test spécifique - 4e MA - Automatismes","Question 05",65.2]
["Test spécifique - 4e MA - Automatismes","Question 06",67.400000000000006]
["Test spécifique - 4e MA - Automatismes","Question 07",59.6]
["Test spécifique - 4e MA - Automatismes","Question 08",57.3]
["Test spécifique - 4e MA - Automatismes","Question 09",38.200000000000003]
["Test spécifique - 4e MA - Automatismes","Question 10",44.9]
["Test spécifique - 4e MA - Automatismes","Question 11",52.8]
["Test spécifique - 4e MA - Automatismes","Question 12",57.3]
["Test spécifique - 4e MA - Automatismes","Question 13",44.9]
["Test spécifique - 4e MA - Automatismes","Question 14",23.6]
["Test spécifique - 4e MA - Automatismes","Question 15",41.6]
["Test spécifique - 4e MA - Automatismes","Question 16",38.200000000000003]
["Test spécifique - 4e MA - Automatismes","Question 17",28.1]
["Test spécifique - 4e MA - Automatismes","Question 18",49.4]
["Test spécifique - 4e MA - Automatismes","Question 19",43.8]
["Test spécifique - 4e MA - Automatismes","Question 20",41.6]
["Test spécifique - 4e MA - Automatismes","Question 21",29.2]
["Test spécifique - 4e MA - Automatismes","Question 22",41.6]
[]
[]
[]
[]
[]
[]
[]
[]
[]
[]
[]
[]
[]
[]
[]
[]
[]
[]
[]
[]
[]
[]
[]
["Test spécifique - 4e MA - Automatismes","Question 01",93.9]
["Test spécifique - 4e MA - Automatismes","Question 02",93.9]
["Test spécifique - 4e MA - Automatismes","Question 03",72.8]
["Test spécifique - 4e MA - Automatismes","Question 04",86]
["Test spécifique - 4e MA - Automatismes","Question 05",65.8]
["Test spécifique - 4e MA - Automatismes","Question 06",66.7]
["Test spécifique - 4e MA - Automatismes","Question 07",65.8]
["Test spécifique - 4e MA - Automatismes","Question 08",67.5]
["Test spécifique - 4e MA - Automatismes","Question 09",45.6]
["Test spécifique - 4e MA - Automatismes","Question 10",47.4]
["Test spécifique - 4e MA - Automatismes","Question 11",39.5]
["Test spécifique - 4e MA - Automatismes","Question 12",49.1]
["Test spécifique - 4e MA - Automatismes","Question 13",27.2]
["Test spécifique - 4e MA - Automatismes","Question 14",28.9]
["Test spécifique - 4e MA - Automatismes","Question 15",33.299999999999997]
["Test spécifique - 4e MA - Automatismes","Question 16",32.5]
["Test spécifique - 4e MA - Automatismes","Question 17",32.5]
["Test spécifique - 4e MA - Automatismes","Question 18",36.799999999999997]
["Test spécifique - 4e MA - Automatismes","Question 19",42.1]
["Test spécifique - 4e MA - Automatismes","Question 20",55.3]
["Test spécifique - 4e MA - Automatismes","Question 21",21.1]
["Test spécifique - 4e MA - Automatismes","Question 22",35.1]
[]
[]
[]
[]
[]
[]
[]
[]
[]
[]
[]
[]
[]
[]
[]
[]
[]
[]
[]
[]
[]
[]
[]
["Test spécifique - 4e MA - Automatismes","Question 01",91.5]
["Test spécifique - 4e MA - Automatismes","Question 02",87.3]
["Test spécifique - 4e MA - Automatismes","Question 03",71.099999999999994]
["Test spécifique - 4e MA - Automatismes","Question 04",86.6]
["Test spécifique - 4e MA - Automatismes","Question 05",59.2]
["Test spécifique - 4e MA - Automatismes","Question 06",54.2]
["Test spécifique - 4e MA - Automatismes","Question 07",52.8]
["Test spécifique - 4e MA - Automatismes","Question 08",62.7]
["Test spécifique - 4e MA - Automatismes","Question 09",19]
["Test spécifique - 4e MA - Automatismes","Question 10",43]
["Test spécifique - 4e MA - Automatismes","Question 11",37.299999999999997]
["Test spécifique - 4e MA - Automatismes","Question 12",43]
["Test spécifique - 4e MA - Automatismes","Question 13",20.399999999999999]
["Test spécifique - 4e MA - Automatismes","Question 14",34.5]
["Test spécifique - 4e MA - Automatismes","Question 15",37.299999999999997]
["Test spécifique - 4e MA - Automatismes","Question 16",28.2]
["Test spécifique - 4e MA - Automatismes","Question 17",22.5]
["Test spécifique - 4e MA - Automatismes","Question 18",35.200000000000003]
["Test spécifique - 4e MA - Automatismes","Question 19",24.6]
["Test spécifique - 4e MA - Automatismes","Question 20",23.2]
["Test spécifique - 4e MA - Automatismes","Question 21",24.6]
["Test spécifique - 4e MA - Automatismes","Question 22",35.200000000000003]
[]
[]
[]
[]
[]
[]
[]
[]
[]
[]
[]
[]
[]
[]
[]
[]
[]
[]
[]
[]
[]
[]
[]
["Test spécifique - 4e MA - Automatismes","Question 01",92.1]
["Test spécifique - 4e MA - Automatismes","Question 02",86.5]
["Test spécifique - 4e MA - Automatismes","Question 03",81.7]
["Test spécifique - 4e MA - Automatismes","Question 04",85.7]
["Test spécifique - 4e MA - Automatismes","Question 05",81]
["Test spécifique - 4e MA - Automatismes","Question 06",66.7]
["Test spécifique - 4e MA - Automatismes","Question 07",62.7]
["Test spécifique - 4e MA - Automatismes","Question 08",78.599999999999994]
["Test spécifique - 4e MA - Automatismes","Question 09",40.5]
["Test spécifique - 4e MA - Automatismes","Question 10",57.1]
["Test spécifique - 4e MA - Automatismes","Question 11",57.9]
["Test spécifique - 4e MA - Automatismes","Question 12",58.7]
["Test spécifique - 4e MA - Automatismes","Question 13",42.9]
["Test spécifique - 4e MA - Automatismes","Question 14",48.4]
["Test spécifique - 4e MA - Automatismes","Question 15",63.5]
["Test spécifique - 4e MA - Automatismes","Question 16",54]
["Test spécifique - 4e MA - Automatismes","Question 17",39.700000000000003]
["Test spécifique - 4e MA - Automatismes","Question 18",51.6]
["Test spécifique - 4e MA - Automatismes","Question 19",62.7]
["Test spécifique - 4e MA - Automatismes","Question 20",44.4]
["Test spécifique - 4e MA - Automatismes","Question 21",38.9]
["Test spécifique - 4e MA - Automatismes","Question 22",40.5]
[]
[]
[]
[]
[]
[]
[]
[]
[]
[]
[]
[]
[]
[]
[]
[]
[]
[]
[]
[]
[]
[]
[]
["Test spécifique - 4e MA - Automatismes","Question 01",88.1]
["Test spécifique - 4e MA - Automatismes","Question 02",89.7]
["Test spécifique - 4e MA - Automatismes","Question 03",72.2]
["Test spécifique - 4e MA - Automatismes","Question 04",80.2]
["Test spécifique - 4e MA - Automatismes","Question 05",60.3]
["Test spécifique - 4e MA - Automatismes","Question 06",62.7]
["Test spécifique - 4e MA - Automatismes","Question 07",53.2]
["Test spécifique - 4e MA - Automatismes","Question 08",63.5]
["Test spécifique - 4e MA - Automatismes","Question 09",31.7]
["Test spécifique - 4e MA - Automatismes","Question 10",41.3]
["Test spécifique - 4e MA - Automatismes","Question 11",50.8]
["Test spécifique - 4e MA - Automatismes","Question 12",48.4]
["Test spécifique - 4e MA - Automatismes","Question 13",32.5]
["Test spécifique - 4e MA - Automatismes","Question 14",33.299999999999997]
["Test spécifique - 4e MA - Automatismes","Question 15",31.7]
["Test spécifique - 4e MA - Automatismes","Question 16",34.1]
["Test spécifique - 4e MA - Automatismes","Question 17",46]
["Test spécifique - 4e MA - Automatismes","Question 18",42.1]
["Test spécifique - 4e MA - Automatismes","Question 19",31]
["Test spécifique - 4e MA - Automatismes","Question 20",46.8]
["Test spécifique - 4e MA - Automatismes","Question 21",24.6]
["Test spécifique - 4e MA - Automatismes","Question 22",31]
[]
[]
[]
[]
[]
[]
[]
[]
[]
[]
[]
[]
[]
[]
[]
[]
[]
[]
[]
[]
[]
[]
[]
["Test spécifique - 4e MA - Automatismes","Question 01",95]
["Test spécifique - 4e MA - Automatismes","Question 02",89]
["Test spécifique - 4e MA - Automatismes","Question 03",87]
["Test spécifique - 4e MA - Automatismes","Question 04",85]
["Test spécifique - 4e MA - Automatismes","Question 05",72]
["Test spécifique - 4e MA - Automatismes","Question 06",75]
["Test spécifique - 4e MA - Automatismes","Question 07",55]
["Test spécifique - 4e MA - Automatismes","Question 08",69]
["Test spécifique - 4e MA - Automatismes","Question 09",55]
["Test spécifique - 4e MA - Automatismes","Question 10",67]
["Test spécifique - 4e MA - Automatismes","Question 11",45]
["Test spécifique - 4e MA - Automatismes","Question 12",51]
["Test spécifique - 4e MA - Automatismes","Question 13",52]
["Test spécifique - 4e MA - Automatismes","Question 14",25]
["Test spécifique - 4e MA - Automatismes","Question 15",56]
["Test spécifique - 4e MA - Automatismes","Question 16",64]
["Test spécifique - 4e MA - Automatismes","Question 17",30]
["Test spécifique - 4e MA - Automatismes","Question 18",52]
["Test spécifique - 4e MA - Automatismes","Question 19",43]
["Test spécifique - 4e MA - Automatismes","Question 20",61]
["Test spécifique - 4e MA - Automatismes","Question 21",26]
["Test spécifique - 4e MA - Automatismes","Question 22",39]
[]
[]
[]
[]
[]
[]
[]
[]
[]
[]
[]
[]
[]
[]
[]
[]
[]
[]
[]
[]
[]
[]
[]
["Test spécifique - 4e MA - Automatismes","Question 01",92.2]
["Test spécifique - 4e MA - Automatismes","Question 02",92.8]
["Test spécifique - 4e MA - Automatismes","Question 03",86.3]
["Test spécifique - 4e MA - Automatismes","Question 04",85]
["Test spécifique - 4e MA - Automatismes","Question 05",85]
["Test spécifique - 4e MA - Automatismes","Question 06",59.5]
["Test spécifique - 4e MA - Automatismes","Question 07",60.8]
["Test spécifique - 4e MA - Automatismes","Question 08",69.3]
["Test spécifique - 4e MA - Automatismes","Question 09",33.299999999999997]
["Test spécifique - 4e MA - Automatismes","Question 10",42.5]
["Test spécifique - 4e MA - Automatismes","Question 11",46.4]
["Test spécifique - 4e MA - Automatismes","Question 12",56.9]
["Test spécifique - 4e MA - Automatismes","Question 13",40.5]
["Test spécifique - 4e MA - Automatismes","Question 14",44.4]
["Test spécifique - 4e MA - Automatismes","Question 15",47.1]
["Test spécifique - 4e MA - Automatismes","Question 16",51]
["Test spécifique - 4e MA - Automatismes","Question 17",31.4]
["Test spécifique - 4e MA - Automatismes","Question 18",45.1]
["Test spécifique - 4e MA - Automatismes","Question 19",33.299999999999997]
["Test spécifique - 4e MA - Automatismes","Question 20",45.1]
["Test spécifique - 4e MA - Automatismes","Question 21",27.5]
["Test spécifique - 4e MA - Automatismes","Question 22",30.7]
[]
[]
[]
[]
[]
[]
[]
[]
[]
[]
[]
[]
[]
[]
[]
[]
[]
[]
[]
[]
[]
[]
[]
["Test spécifique - 4e MA - Automatismes","Question 01",92.6]
["Test spécifique - 4e MA - Automatismes","Question 02",91.2]
["Test spécifique - 4e MA - Automatismes","Question 03",77.7]
["Test spécifique - 4e MA - Automatismes","Question 04",85.8]
["Test spécifique - 4e MA - Automatismes","Question 05",39.9]
["Test spécifique - 4e MA - Automatismes","Question 06",71.599999999999994]
["Test spécifique - 4e MA - Automatismes","Question 07",55.4]
["Test spécifique - 4e MA - Automatismes","Question 08",64.2]
["Test spécifique - 4e MA - Automatismes","Question 09",37.200000000000003]
["Test spécifique - 4e MA - Automatismes","Question 10",48.6]
["Test spécifique - 4e MA - Automatismes","Question 11",39.9]
["Test spécifique - 4e MA - Automatismes","Question 12",47.3]
["Test spécifique - 4e MA - Automatismes","Question 13",29.1]
["Test spécifique - 4e MA - Automatismes","Question 14",27]
["Test spécifique - 4e MA - Automatismes","Question 15",47.3]
["Test spécifique - 4e MA - Automatismes","Question 16",32.4]
["Test spécifique - 4e MA - Automatismes","Question 17",23.6]
["Test spécifique - 4e MA - Automatismes","Question 18",45.3]
["Test spécifique - 4e MA - Automatismes","Question 19",61.5]
["Test spécifique - 4e MA - Automatismes","Question 20",29.7]
["Test spécifique - 4e MA - Automatismes","Question 21",31.1]
["Test spécifique - 4e MA - Automatismes","Question 22",28.4]
[]
[]
[]
[]
[]
[]
[]
[]
[]
[]
[]
[]
[]
[]
[]
[]
[]
[]
[]
[]
[]
[]
[]
["Test spécifique - 4e MA - Automatismes","Question 01",92.9]
["Test spécifique - 4e MA - Automatismes","Question 02",95.6]
["Test spécifique - 4e MA - Automatismes","Question 03",87.6]
["Test spécifique - 4e MA - Automatismes","Question 04",87.6]
["Test spécifique - 4e MA - Automatismes","Question 05",85.8]
["Test spécifique - 4e MA - Automatismes","Question 06",69.900000000000006]
["Test spécifique - 4e MA - Automatismes","Question 07",66.400000000000006]
["Test spécifique - 4e MA - Automatismes","Question 08",73.5]
["Test spécifique - 4e MA - Automatismes","Question 09",50.4]
["Test spécifique - 4e MA - Automatismes","Question 10",66.400000000000006]
["Test spécifique - 4e MA - Automatismes","Question 11",46.9]
["Test spécifique - 4e MA - Automatismes","Question 12",47.8]
["Test spécifique - 4e MA - Automatismes","Question 13",48.7]
["Test spécifique - 4e MA - Automatismes","Question 14",40.700000000000003]
["Test spécifique - 4e MA - Automatismes","Question 15",56.6]
["Test spécifique - 4e MA - Automatismes","Question 16",55.8]
["Test spécifique - 4e MA - Automatismes","Question 17",55.8]
["Test spécifique - 4e MA - Automatismes","Question 18",55.8]
["Test spécifique - 4e MA - Automatismes","Question 19",36.299999999999997]
["Test spécifique - 4e MA - Automatismes","Question 20",60.2]
["Test spécifique - 4e MA - Automatismes","Question 21",40.700000000000003]
["Test spécifique - 4e MA - Automatismes","Question 22",34.5]
[]
[]
[]
[]
[]
[]
[]
[]
[]
[]
[]
[]
[]
[]
[]
[]
[]
[]
[]
[]
[]
[]
[]
["Test spécifique - 4e MA - Automatismes","Question 01",89.4]
["Test spécifique - 4e MA - Automatismes","Question 02",87.5]
["Test spécifique - 4e MA - Automatismes","Question 03",78.8]
["Test spécifique - 4e MA - Automatismes","Question 04",82.7]
["Test spécifique - 4e MA - Automatismes","Question 05",56.7]
["Test spécifique - 4e MA - Automatismes","Question 06",61.5]
["Test spécifique - 4e MA - Automatismes","Question 07",54.8]
["Test spécifique - 4e MA - Automatismes","Question 08",65.400000000000006]
["Test spécifique - 4e MA - Automatismes","Question 09",47.1]
["Test spécifique - 4e MA - Automatismes","Question 10",51]
["Test spécifique - 4e MA - Automatismes","Question 11",37.5]
["Test spécifique - 4e MA - Automatismes","Question 12",54.8]
["Test spécifique - 4e MA - Automatismes","Question 13",41.3]
["Test spécifique - 4e MA - Automatismes","Question 14",35.6]
["Test spécifique - 4e MA - Automatismes","Question 15",63.5]
["Test spécifique - 4e MA - Automatismes","Question 16",37.5]
["Test spécifique - 4e MA - Automatismes","Question 17",35.6]
["Test spécifique - 4e MA - Automatismes","Question 18",33.700000000000003]
["Test spécifique - 4e MA - Automatismes","Question 19",40.4]
["Test spécifique - 4e MA - Automatismes","Question 20",51]
["Test spécifique - 4e MA - Automatismes","Question 21",35.6]
["Test spécifique - 4e MA - Automatismes","Question 22",44.2]
[]
[]
[]
[]
[]
[]
[]
[]
[]
[]
[]
[]
[]
[]
[]
[]
[]
[]
[]
[]
[]
[]
[]
["Test spécifique - 4e MA - Automatismes","Question 01",96.1]
["Test spécifique - 4e MA - Automatismes","Question 02",94.1]
["Test spécifique - 4e MA - Automatismes","Question 03",82.4]
["Test spécifique - 4e MA - Automatismes","Question 04",93.1]
["Test spécifique - 4e MA - Automatismes","Question 05",82.4]
["Test spécifique - 4e MA - Automatismes","Question 06",72.5]
["Test spécifique - 4e MA - Automatismes","Question 07",69.599999999999994]
["Test spécifique - 4e MA - Automatismes","Question 08",78.400000000000006]
["Test spécifique - 4e MA - Automatismes","Question 09",46.1]
["Test spécifique - 4e MA - Automatismes","Question 10",59.8]
["Test spécifique - 4e MA - Automatismes","Question 11",58.8]
["Test spécifique - 4e MA - Automatismes","Question 12",69.599999999999994]
["Test spécifique - 4e MA - Automatismes","Question 13",47.1]
["Test spécifique - 4e MA - Automatismes","Question 14",41.2]
["Test spécifique - 4e MA - Automatismes","Question 15",57.8]
["Test spécifique - 4e MA - Automatismes","Question 16",44.1]
["Test spécifique - 4e MA - Automatismes","Question 17",59.8]
["Test spécifique - 4e MA - Automatismes","Question 18",60.8]
["Test spécifique - 4e MA - Automatismes","Question 19",34.299999999999997]
["Test spécifique - 4e MA - Automatismes","Question 20",43.1]
["Test spécifique - 4e MA - Automatismes","Question 21",52]
["Test spécifique - 4e MA - Automatismes","Question 22",35.299999999999997]
[]
[]
[]
[]
[]
[]
[]
[]
[]
[]
[]
[]
[]
[]
[]
[]
[]
[]
[]
[]
[]
[]
[]
["Test spécifique - 4e MA - Automatismes","Question 01",95.3]
["Test spécifique - 4e MA - Automatismes","Question 02",93]
["Test spécifique - 4e MA - Automatismes","Question 03",87.6]
["Test spécifique - 4e MA - Automatismes","Question 04",85.3]
["Test spécifique - 4e MA - Automatismes","Question 05",65.099999999999994]
["Test spécifique - 4e MA - Automatismes","Question 06",60.5]
["Test spécifique - 4e MA - Automatismes","Question 07",66.7]
["Test spécifique - 4e MA - Automatismes","Question 08",76.7]
["Test spécifique - 4e MA - Automatismes","Question 09",37.200000000000003]
["Test spécifique - 4e MA - Automatismes","Question 10",55]
["Test spécifique - 4e MA - Automatismes","Question 11",46.5]
["Test spécifique - 4e MA - Automatismes","Question 12",53.5]
["Test spécifique - 4e MA - Automatismes","Question 13",46.5]
["Test spécifique - 4e MA - Automatismes","Question 14",56.6]
["Test spécifique - 4e MA - Automatismes","Question 15",47.3]
["Test spécifique - 4e MA - Automatismes","Question 16",59.7]
["Test spécifique - 4e MA - Automatismes","Question 17",52.7]
["Test spécifique - 4e MA - Automatismes","Question 18",55.8]
["Test spécifique - 4e MA - Automatismes","Question 19",24.8]
["Test spécifique - 4e MA - Automatismes","Question 20",53.5]
["Test spécifique - 4e MA - Automatismes","Question 21",48.8]
["Test spécifique - 4e MA - Automatismes","Question 22",42.6]
[]
[]
[]
[]
[]
[]
[]
[]
[]
[]
[]
[]
[]
[]
[]
[]
[]
[]
[]
[]
[]
[]
[]
["Test spécifique - 4e MA - Automatismes","Question 01",95.8]
["Test spécifique - 4e MA - Automatismes","Question 02",93]
["Test spécifique - 4e MA - Automatismes","Question 03",93]
["Test spécifique - 4e MA - Automatismes","Question 04",83.2]
["Test spécifique - 4e MA - Automatismes","Question 05",65]
["Test spécifique - 4e MA - Automatismes","Question 06",48.3]
["Test spécifique - 4e MA - Automatismes","Question 07",72]
["Test spécifique - 4e MA - Automatismes","Question 08",67.8]
["Test spécifique - 4e MA - Automatismes","Question 09",37.799999999999997]
["Test spécifique - 4e MA - Automatismes","Question 10",55.9]
["Test spécifique - 4e MA - Automatismes","Question 11",52.4]
["Test spécifique - 4e MA - Automatismes","Question 12",56.6]
["Test spécifique - 4e MA - Automatismes","Question 13",63.6]
["Test spécifique - 4e MA - Automatismes","Question 14",69.900000000000006]
["Test spécifique - 4e MA - Automatismes","Question 15",68.5]
["Test spécifique - 4e MA - Automatismes","Question 16",65]
["Test spécifique - 4e MA - Automatismes","Question 17",42.7]
["Test spécifique - 4e MA - Automatismes","Question 18",41.3]
["Test spécifique - 4e MA - Automatismes","Question 19",37.1]
["Test spécifique - 4e MA - Automatismes","Question 20",49.7]
["Test spécifique - 4e MA - Automatismes","Question 21",32.9]
["Test spécifique - 4e MA - Automatismes","Question 22",39.200000000000003]
[]
[]
[]
[]
[]
[]
[]
[]
[]
[]
[]
[]
[]
[]
[]
[]
[]
[]
[]
[]
[]
[]
[]
["Test spécifique - 4e MA - Automatismes","Question 01",97.9]
["Test spécifique - 4e MA - Automatismes","Question 02",95.9]
["Test spécifique - 4e MA - Automatismes","Question 03",95.4]
["Test spécifique - 4e MA - Automatismes","Question 04",92.8]
["Test spécifique - 4e MA - Automatismes","Question 05",82.6]
["Test spécifique - 4e MA - Automatismes","Question 06",62.6]
["Test spécifique - 4e MA - Automatismes","Question 07",79]
["Test spécifique - 4e MA - Automatismes","Question 08",80]
["Test spécifique - 4e MA - Automatismes","Question 09",67.2]
["Test spécifique - 4e MA - Automatismes","Question 10",70.3]
["Test spécifique - 4e MA - Automatismes","Question 11",63.6]
["Test spécifique - 4e MA - Automatismes","Question 12",60]
["Test spécifique - 4e MA - Automatismes","Question 13",72.3]
["Test spécifique - 4e MA - Automatismes","Question 14",54.9]
["Test spécifique - 4e MA - Automatismes","Question 15",68.2]
["Test spécifique - 4e MA - Automatismes","Question 16",84.1]
["Test spécifique - 4e MA - Automatismes","Question 17",56.9]
["Test spécifique - 4e MA - Automatismes","Question 18",56.9]
["Test spécifique - 4e MA - Automatismes","Question 19",52.8]
["Test spécifique - 4e MA - Automatismes","Question 20",50.3]
["Test spécifique - 4e MA - Automatismes","Question 21",30.8]
["Test spécifique - 4e MA - Automatismes","Question 22",56.4]
[]
[]
[]
[]
[]
[]
[]
[]
[]
[]
[]
[]
[]
[]
[]
[]
[]
[]
[]
[]
[]
[]
[]
["Test spécifique - 4e MA - Automatismes","Question 01",96.9]
["Test spécifique - 4e MA - Automatismes","Question 02",96.9]
["Test spécifique - 4e MA - Automatismes","Question 03",94.6]
["Test spécifique - 4e MA - Automatismes","Question 04",91.5]
["Test spécifique - 4e MA - Automatismes","Question 05",76.099999999999994]
["Test spécifique - 4e MA - Automatismes","Question 06",69.5]
["Test spécifique - 4e MA - Automatismes","Question 07",76.8]
["Test spécifique - 4e MA - Automatismes","Question 08",78.400000000000006]
["Test spécifique - 4e MA - Automatismes","Question 09",76.400000000000006]
["Test spécifique - 4e MA - Automatismes","Question 10",72.599999999999994]
["Test spécifique - 4e MA - Automatismes","Question 11",73]
["Test spécifique - 4e MA - Automatismes","Question 12",63.3]
["Test spécifique - 4e MA - Automatismes","Question 13",71.400000000000006]
["Test spécifique - 4e MA - Automatismes","Question 14",62.2]
["Test spécifique - 4e MA - Automatismes","Question 15",73.7]
["Test spécifique - 4e MA - Automatismes","Question 16",78]
["Test spécifique - 4e MA - Automatismes","Question 17",61.8]
["Test spécifique - 4e MA - Automatismes","Question 18",67.2]
["Test spécifique - 4e MA - Automatismes","Question 19",54.8]
["Test spécifique - 4e MA - Automatismes","Question 20",58.7]
["Test spécifique - 4e MA - Automatismes","Question 21",71.400000000000006]
["Test spécifique - 4e MA - Automatismes","Question 22",57.5]
[]
[]
[]
[]
[]
[]
[]
[]
[]
[]
[]
[]
[]
[]
[]
[]
[]
[]
[]
[]
[]
[]
[]
["Test spécifique - 4e MA - Automatismes","Question 01",96.3]
["Test spécifique - 4e MA - Automatismes","Question 02",96.7]
["Test spécifique - 4e MA - Automatismes","Question 03",92.9]
["Test spécifique - 4e MA - Automatismes","Question 04",89.6]
["Test spécifique - 4e MA - Automatismes","Question 05",78.400000000000006]
["Test spécifique - 4e MA - Automatismes","Question 06",61.8]
["Test spécifique - 4e MA - Automatismes","Question 07",75.099999999999994]
["Test spécifique - 4e MA - Automatismes","Question 08",70.5]
["Test spécifique - 4e MA - Automatismes","Question 09",66.400000000000006]
["Test spécifique - 4e MA - Automatismes","Question 10",60.6]
["Test spécifique - 4e MA - Automatismes","Question 11",72.2]
["Test spécifique - 4e MA - Automatismes","Question 12",63.9]
["Test spécifique - 4e MA - Automatismes","Question 13",71]
["Test spécifique - 4e MA - Automatismes","Question 14",41.1]
["Test spécifique - 4e MA - Automatismes","Question 15",68.5]
["Test spécifique - 4e MA - Automatismes","Question 16",63.5]
["Test spécifique - 4e MA - Automatismes","Question 17",57.7]
["Test spécifique - 4e MA - Automatismes","Question 18",61.4]
["Test spécifique - 4e MA - Automatismes","Question 19",57.3]
["Test spécifique - 4e MA - Automatismes","Question 20",65.599999999999994]
["Test spécifique - 4e MA - Automatismes","Question 21",20.7]
["Test spécifique - 4e MA - Automatismes","Question 22",55.6]
[]
[]
[]
[]
[]
[]
[]
[]
[]
[]
[]
[]
[]
[]
[]
[]
[]
[]
[]
[]
[]
[]
[]
["Test spécifique - 4e MA - Automatismes","Question 01",86.4]
["Test spécifique - 4e MA - Automatismes","Question 02",72.7]
["Test spécifique - 4e MA - Automatismes","Question 03",77.3]
["Test spécifique - 4e MA - Automatismes","Question 04",81.8]
["Test spécifique - 4e MA - Automatismes","Question 05",50]
["Test spécifique - 4e MA - Automatismes","Question 06",68.2]
["Test spécifique - 4e MA - Automatismes","Question 07",50]
["Test spécifique - 4e MA - Automatismes","Question 08",63.6]
["Test spécifique - 4e MA - Automatismes","Question 09",40.9]
["Test spécifique - 4e MA - Automatismes","Question 10",45.5]
["Test spécifique - 4e MA - Automatismes","Question 11",59.1]
["Test spécifique - 4e MA - Automatismes","Question 12",63.6]
["Test spécifique - 4e MA - Automatismes","Question 13",54.5]
["Test spécifique - 4e MA - Automatismes","Question 14",40.9]
["Test spécifique - 4e MA - Automatismes","Question 15",59.1]
["Test spécifique - 4e MA - Automatismes","Question 16",50]
["Test spécifique - 4e MA - Automatismes","Question 17",50]
["Test spécifique - 4e MA - Automatismes","Question 18",36.4]
["Test spécifique - 4e MA - Automatismes","Question 19",50]
["Test spécifique - 4e MA - Automatismes","Question 20",31.8]
["Test spécifique - 4e MA - Automatismes","Question 21",4.5]
["Test spécifique - 4e MA - Automatismes","Question 22",40.9]
[]
[]
[]
[]
[]
[]
[]
[]
[]
[]
[]
[]
[]
[]
[]
[]
[]
[]
[]
[]
[]
[]
[]
["Test spécifique - 4e MA - Automatismes","Question 01",90.6]
["Test spécifique - 4e MA - Automatismes","Question 02",95.7]
["Test spécifique - 4e MA - Automatismes","Question 03",86.3]
["Test spécifique - 4e MA - Automatismes","Question 04",89.2]
["Test spécifique - 4e MA - Automatismes","Question 05",66.900000000000006]
["Test spécifique - 4e MA - Automatismes","Question 06",63.3]
["Test spécifique - 4e MA - Automatismes","Question 07",68.3]
["Test spécifique - 4e MA - Automatismes","Question 08",74.099999999999994]
["Test spécifique - 4e MA - Automatismes","Question 09",28.8]
["Test spécifique - 4e MA - Automatismes","Question 10",60.4]
["Test spécifique - 4e MA - Automatismes","Question 11",47.5]
["Test spécifique - 4e MA - Automatismes","Question 12",54]
["Test spécifique - 4e MA - Automatismes","Question 13",41]
["Test spécifique - 4e MA - Automatismes","Question 14",48.2]
["Test spécifique - 4e MA - Automatismes","Question 15",59]
["Test spécifique - 4e MA - Automatismes","Question 16",64.7]
["Test spécifique - 4e MA - Automatismes","Question 17",38.1]
["Test spécifique - 4e MA - Automatismes","Question 18",53.2]
["Test spécifique - 4e MA - Automatismes","Question 19",20.9]
["Test spécifique - 4e MA - Automatismes","Question 20",46.8]
["Test spécifique - 4e MA - Automatismes","Question 21",25.9]
["Test spécifique - 4e MA - Automatismes","Question 22",38.1]
[]
[]
[]
[]
[]
[]
[]
[]
[]
[]
[]
[]
[]
[]
[]
[]
[]
[]
[]
[]
[]
[]
[]
["Test spécifique - 4e MA - Automatismes","Question 01",96.7]
["Test spécifique - 4e MA - Automatismes","Question 02",97.5]
["Test spécifique - 4e MA - Automatismes","Question 03",97.1]
["Test spécifique - 4e MA - Automatismes","Question 04",92.5]
["Test spécifique - 4e MA - Automatismes","Question 05",87.9]
["Test spécifique - 4e MA - Automatismes","Question 06",52.9]
["Test spécifique - 4e MA - Automatismes","Question 07",85]
["Test spécifique - 4e MA - Automatismes","Question 08",82.5]
["Test spécifique - 4e MA - Automatismes","Question 09",77.5]
["Test spécifique - 4e MA - Automatismes","Question 10",79.2]
["Test spécifique - 4e MA - Automatismes","Question 11",70.8]
["Test spécifique - 4e MA - Automatismes","Question 12",74.599999999999994]
["Test spécifique - 4e MA - Automatismes","Question 13",79.599999999999994]
["Test spécifique - 4e MA - Automatismes","Question 14",49.6]
["Test spécifique - 4e MA - Automatismes","Question 15",72.900000000000006]
["Test spécifique - 4e MA - Automatismes","Question 16",83.7]
["Test spécifique - 4e MA - Automatismes","Question 17",52.9]
["Test spécifique - 4e MA - Automatismes","Question 18",60.8]
["Test spécifique - 4e MA - Automatismes","Question 19",46.7]
["Test spécifique - 4e MA - Automatismes","Question 20",44.6]
["Test spécifique - 4e MA - Automatismes","Question 21",32.9]
["Test spécifique - 4e MA - Automatismes","Question 22",63.3]
[]
[]
[]
[]
[]
[]
[]
[]
[]
[]
[]
[]
[]
[]
[]
[]
[]
[]
[]
[]
[]
[]
[]
["Test spécifique - 4e MA - Automatismes","Question 01",100]
["Test spécifique - 4e MA - Automatismes","Question 02",75]
["Test spécifique - 4e MA - Automatismes","Question 03",78.599999999999994]
["Test spécifique - 4e MA - Automatismes","Question 04",64.3]
["Test spécifique - 4e MA - Automatismes","Question 05",46.4]
["Test spécifique - 4e MA - Automatismes","Question 06",53.6]
["Test spécifique - 4e MA - Automatismes","Question 07",53.6]
["Test spécifique - 4e MA - Automatismes","Question 08",67.900000000000006]
["Test spécifique - 4e MA - Automatismes","Question 09",17.899999999999999]
["Test spécifique - 4e MA - Automatismes","Question 10",50]
["Test spécifique - 4e MA - Automatismes","Question 11",46.4]
["Test spécifique - 4e MA - Automatismes","Question 12",53.6]
["Test spécifique - 4e MA - Automatismes","Question 13",25]
["Test spécifique - 4e MA - Automatismes","Question 14",21.4]
["Test spécifique - 4e MA - Automatismes","Question 15",46.4]
["Test spécifique - 4e MA - Automatismes","Question 16",32.1]
["Test spécifique - 4e MA - Automatismes","Question 17",39.299999999999997]
["Test spécifique - 4e MA - Automatismes","Question 18",50]
["Test spécifique - 4e MA - Automatismes","Question 19",39.299999999999997]
["Test spécifique - 4e MA - Automatismes","Question 20",35.700000000000003]
["Test spécifique - 4e MA - Automatismes","Question 21",25]
["Test spécifique - 4e MA - Automatismes","Question 22",17.899999999999999]
[]
[]
[]
[]
[]
[]
[]
[]
[]
[]
[]
[]
[]
[]
[]
[]
[]
[]
[]
[]
[]
[]
[]
["Test spécifique - 4e MA - Automatismes","Question 01",93.2]
["Test spécifique - 4e MA - Automatismes","Question 02",89.5]
["Test spécifique - 4e MA - Automatismes","Question 03",87.3]
["Test spécifique - 4e MA - Automatismes","Question 04",89.1]
["Test spécifique - 4e MA - Automatismes","Question 05",77.3]
["Test spécifique - 4e MA - Automatismes","Question 06",75]
["Test spécifique - 4e MA - Automatismes","Question 07",66.8]
["Test spécifique - 4e MA - Automatismes","Question 08",69.099999999999994]
["Test spécifique - 4e MA - Automatismes","Question 09",57.3]
["Test spécifique - 4e MA - Automatismes","Question 10",59.5]
["Test spécifique - 4e MA - Automatismes","Question 11",56.8]
["Test spécifique - 4e MA - Automatismes","Question 12",62.3]
["Test spécifique - 4e MA - Automatismes","Question 13",54.1]
["Test spécifique - 4e MA - Automatismes","Question 14",20.9]
["Test spécifique - 4e MA - Automatismes","Question 15",62.7]
["Test spécifique - 4e MA - Automatismes","Question 16",57.3]
["Test spécifique - 4e MA - Automatismes","Question 17",24.5]
["Test spécifique - 4e MA - Automatismes","Question 18",69.099999999999994]
["Test spécifique - 4e MA - Automatismes","Question 19",51.4]
["Test spécifique - 4e MA - Automatismes","Question 20",54.1]
["Test spécifique - 4e MA - Automatismes","Question 21",20.9]
["Test spécifique - 4e MA - Automatismes","Question 22",35.5]
[]
[]
[]
[]
[]
[]
[]
[]
[]
[]
[]
[]
[]
[]
[]
[]
[]
[]
[]
[]
[]
[]
[]
["Test spécifique - 4e MA - Automatismes","Question 01",97.6]
["Test spécifique - 4e MA - Automatismes","Question 02",96.4]
["Test spécifique - 4e MA - Automatismes","Question 03",95.2]
["Test spécifique - 4e MA - Automatismes","Question 04",86.9]
["Test spécifique - 4e MA - Automatismes","Question 05",69]
["Test spécifique - 4e MA - Automatismes","Question 06",61.9]
["Test spécifique - 4e MA - Automatismes","Question 07",65.5]
["Test spécifique - 4e MA - Automatismes","Question 08",54.8]
["Test spécifique - 4e MA - Automatismes","Question 09",53.6]
["Test spécifique - 4e MA - Automatismes","Question 10",50]
["Test spécifique - 4e MA - Automatismes","Question 11",59.5]
["Test spécifique - 4e MA - Automatismes","Question 12",59.5]
["Test spécifique - 4e MA - Automatismes","Question 13",61.9]
["Test spécifique - 4e MA - Automatismes","Question 14",52.4]
["Test spécifique - 4e MA - Automatismes","Question 15",48.8]
["Test spécifique - 4e MA - Automatismes","Question 16",51.2]
["Test spécifique - 4e MA - Automatismes","Question 17",40.5]
["Test spécifique - 4e MA - Automatismes","Question 18",46.4]
["Test spécifique - 4e MA - Automatismes","Question 19",54.8]
["Test spécifique - 4e MA - Automatismes","Question 20",42.9]
["Test spécifique - 4e MA - Automatismes","Question 21",27.4]
["Test spécifique - 4e MA - Automatismes","Question 22",41.7]
[]
[]
[]
[]
[]
[]
[]
[]
[]
[]
[]
[]
[]
[]
[]
[]
[]
[]
[]
[]
[]
[]
[]
["Test spécifique - 4e MA - Automatismes","Question 01",87.8]
["Test spécifique - 4e MA - Automatismes","Question 02",87.8]
["Test spécifique - 4e MA - Automatismes","Question 03",91.9]
["Test spécifique - 4e MA - Automatismes","Question 04",71.599999999999994]
["Test spécifique - 4e MA - Automatismes","Question 05",70.3]
["Test spécifique - 4e MA - Automatismes","Question 06",73]
["Test spécifique - 4e MA - Automatismes","Question 07",60.8]
["Test spécifique - 4e MA - Automatismes","Question 08",36.5]
["Test spécifique - 4e MA - Automatismes","Question 09",37.799999999999997]
["Test spécifique - 4e MA - Automatismes","Question 10",35.1]
["Test spécifique - 4e MA - Automatismes","Question 11",44.6]
["Test spécifique - 4e MA - Automatismes","Question 12",52.7]
["Test spécifique - 4e MA - Automatismes","Question 13",36.5]
["Test spécifique - 4e MA - Automatismes","Question 14",8.1]
["Test spécifique - 4e MA - Automatismes","Question 15",55.4]
["Test spécifique - 4e MA - Automatismes","Question 16",35.1]
["Test spécifique - 4e MA - Automatismes","Question 17",40.5]
["Test spécifique - 4e MA - Automatismes","Question 18",40.5]
["Test spécifique - 4e MA - Automatismes","Question 19",47.3]
["Test spécifique - 4e MA - Automatismes","Question 20",44.6]
["Test spécifique - 4e MA - Automatismes","Question 21",25.7]
["Test spécifique - 4e MA - Automatismes","Question 22",29.7]
[]
[]
[]
[]
[]
[]
[]
[]
[]
[]
[]
[]
[]
[]
[]
[]
[]
[]
[]
[]
[]
[]
[]
["Test spécifique - 4e MA - Automatismes","Question 01",96.3]
["Test spécifique - 4e MA - Automatismes","Question 02",89.9]
["Test spécifique - 4e MA - Automatismes","Question 03",78]
["Test spécifique - 4e MA - Automatismes","Question 04",82.6]
["Test spécifique - 4e MA - Automatismes","Question 05",35.799999999999997]
["Test spécifique - 4e MA - Automatismes","Question 06",64.2]
["Test spécifique - 4e MA - Automatismes","Question 07",68.8]
["Test spécifique - 4e MA - Automatismes","Question 08",58.7]
["Test spécifique - 4e MA - Automatismes","Question 09",33.9]
["Test spécifique - 4e MA - Automatismes","Question 10",54.1]
["Test spécifique - 4e MA - Automatismes","Question 11",54.1]
["Test spécifique - 4e MA - Automatismes","Question 12",47.7]
["Test spécifique - 4e MA - Automatismes","Question 13",44]
["Test spécifique - 4e MA - Automatismes","Question 14",33]
["Test spécifique - 4e MA - Automatismes","Question 15",44]
["Test spécifique - 4e MA - Automatismes","Question 16",46.8]
["Test spécifique - 4e MA - Automatismes","Question 17",33]
["Test spécifique - 4e MA - Automatismes","Question 18",53.2]
["Test spécifique - 4e MA - Automatismes","Question 19",33]
["Test spécifique - 4e MA - Automatismes","Question 20",37.6]
["Test spécifique - 4e MA - Automatismes","Question 21",21.1]
["Test spécifique - 4e MA - Automatismes","Question 22",36.700000000000003]
[]
[]
[]
[]
[]
[]
[]
[]
[]
[]
[]
[]
[]
[]
[]
[]
[]
[]
[]
[]
[]
[]
[]
["Test spécifique - 4e MA - Automatismes","Question 01",90.1]
["Test spécifique - 4e MA - Automatismes","Question 02",79.599999999999994]
["Test spécifique - 4e MA - Automatismes","Question 03",70.2]
["Test spécifique - 4e MA - Automatismes","Question 04",79]
["Test spécifique - 4e MA - Automatismes","Question 05",44.8]
["Test spécifique - 4e MA - Automatismes","Question 06",63]
["Test spécifique - 4e MA - Automatismes","Question 07",43.1]
["Test spécifique - 4e MA - Automatismes","Question 08",63]
["Test spécifique - 4e MA - Automatismes","Question 09",14.9]
["Test spécifique - 4e MA - Automatismes","Question 10",39.200000000000003]
["Test spécifique - 4e MA - Automatismes","Question 11",33.700000000000003]
["Test spécifique - 4e MA - Automatismes","Question 12",41.4]
["Test spécifique - 4e MA - Automatismes","Question 13",22.1]
["Test spécifique - 4e MA - Automatismes","Question 14",18.8]
["Test spécifique - 4e MA - Automatismes","Question 15",31.5]
["Test spécifique - 4e MA - Automatismes","Question 16",29.8]
["Test spécifique - 4e MA - Automatismes","Question 17",24.9]
["Test spécifique - 4e MA - Automatismes","Question 18",38.1]
["Test spécifique - 4e MA - Automatismes","Question 19",35.9]
["Test spécifique - 4e MA - Automatismes","Question 20",33.1]
["Test spécifique - 4e MA - Automatismes","Question 21",27.1]
["Test spécifique - 4e MA - Automatismes","Question 22",23.2]
[]
[]
[]
[]
[]
[]
[]
[]
[]
[]
[]
[]
[]
[]
[]
[]
[]
[]
[]
[]
[]
[]
[]
["Test spécifique - 4e MA - Automatismes","Question 01",91.1]
["Test spécifique - 4e MA - Automatismes","Question 02",86.5]
["Test spécifique - 4e MA - Automatismes","Question 03",80.7]
["Test spécifique - 4e MA - Automatismes","Question 04",82.8]
["Test spécifique - 4e MA - Automatismes","Question 05",57.8]
["Test spécifique - 4e MA - Automatismes","Question 06",64.599999999999994]
["Test spécifique - 4e MA - Automatismes","Question 07",59.9]
["Test spécifique - 4e MA - Automatismes","Question 08",71.900000000000006]
["Test spécifique - 4e MA - Automatismes","Question 09",43.2]
["Test spécifique - 4e MA - Automatismes","Question 10",47.4]
["Test spécifique - 4e MA - Automatismes","Question 11",35.9]
["Test spécifique - 4e MA - Automatismes","Question 12",44.3]
["Test spécifique - 4e MA - Automatismes","Question 13",23.4]
["Test spécifique - 4e MA - Automatismes","Question 14",30.7]
["Test spécifique - 4e MA - Automatismes","Question 15",48.4]
["Test spécifique - 4e MA - Automatismes","Question 16",37]
["Test spécifique - 4e MA - Automatismes","Question 17",39.6]
["Test spécifique - 4e MA - Automatismes","Question 18",38.5]
["Test spécifique - 4e MA - Automatismes","Question 19",52.1]
["Test spécifique - 4e MA - Automatismes","Question 20",33.9]
["Test spécifique - 4e MA - Automatismes","Question 21",26.6]
["Test spécifique - 4e MA - Automatismes","Question 22",30.7]
[]
[]
[]
[]
[]
[]
[]
[]
[]
[]
[]
[]
[]
[]
[]
[]
[]
[]
[]
[]
[]
[]
[]
["Test spécifique - 4e MA - Automatismes","Question 01",93.8]
["Test spécifique - 4e MA - Automatismes","Question 02",89.1]
["Test spécifique - 4e MA - Automatismes","Question 03",76.7]
["Test spécifique - 4e MA - Automatismes","Question 04",85]
["Test spécifique - 4e MA - Automatismes","Question 05",67.900000000000006]
["Test spécifique - 4e MA - Automatismes","Question 06",72]
["Test spécifique - 4e MA - Automatismes","Question 07",55.4]
["Test spécifique - 4e MA - Automatismes","Question 08",62.7]
["Test spécifique - 4e MA - Automatismes","Question 09",33.700000000000003]
["Test spécifique - 4e MA - Automatismes","Question 10",53.4]
["Test spécifique - 4e MA - Automatismes","Question 11",35.200000000000003]
["Test spécifique - 4e MA - Automatismes","Question 12",44]
["Test spécifique - 4e MA - Automatismes","Question 13",26.9]
["Test spécifique - 4e MA - Automatismes","Question 14",63.2]
["Test spécifique - 4e MA - Automatismes","Question 15",48.2]
["Test spécifique - 4e MA - Automatismes","Question 16",40.4]
["Test spécifique - 4e MA - Automatismes","Question 17",30.1]
["Test spécifique - 4e MA - Automatismes","Question 18",37.799999999999997]
["Test spécifique - 4e MA - Automatismes","Question 19",35.799999999999997]
["Test spécifique - 4e MA - Automatismes","Question 20",37.299999999999997]
["Test spécifique - 4e MA - Automatismes","Question 21",28]
["Test spécifique - 4e MA - Automatismes","Question 22",33.700000000000003]
[]
[]
[]
[]
[]
[]
[]
[]
[]
[]
[]
[]
[]
[]
[]
[]
[]
[]
[]
[]
[]
[]
[]
["Test spécifique - 4e MA - Automatismes","Question 01",86.8]
["Test spécifique - 4e MA - Automatismes","Question 02",81.599999999999994]
["Test spécifique - 4e MA - Automatismes","Question 03",86.8]
["Test spécifique - 4e MA - Automatismes","Question 04",77.599999999999994]
["Test spécifique - 4e MA - Automatismes","Question 05",26.3]
["Test spécifique - 4e MA - Automatismes","Question 06",51.3]
["Test spécifique - 4e MA - Automatismes","Question 07",68.400000000000006]
["Test spécifique - 4e MA - Automatismes","Question 08",51.3]
["Test spécifique - 4e MA - Automatismes","Question 09",28.9]
["Test spécifique - 4e MA - Automatismes","Question 10",52.6]
["Test spécifique - 4e MA - Automatismes","Question 11",51.3]
["Test spécifique - 4e MA - Automatismes","Question 12",43.4]
["Test spécifique - 4e MA - Automatismes","Question 13",51.3]
["Test spécifique - 4e MA - Automatismes","Question 14",14.5]
["Test spécifique - 4e MA - Automatismes","Question 15",35.5]
["Test spécifique - 4e MA - Automatismes","Question 16",36.799999999999997]
["Test spécifique - 4e MA - Automatismes","Question 17",48.7]
["Test spécifique - 4e MA - Automatismes","Question 18",42.1]
["Test spécifique - 4e MA - Automatismes","Question 19",32.9]
["Test spécifique - 4e MA - Automatismes","Question 20",48.7]
["Test spécifique - 4e MA - Automatismes","Question 21",31.6]
["Test spécifique - 4e MA - Automatismes","Question 22",28.9]
[]
[]
[]
[]
[]
[]
[]
[]
[]
[]
[]
[]
[]
[]
[]
[]
[]
[]
[]
[]
[]
[]
[]
["Test spécifique - 4e MA - Automatismes","Question 01",97.4]
["Test spécifique - 4e MA - Automatismes","Question 02",89.6]
["Test spécifique - 4e MA - Automatismes","Question 03",83.3]
["Test spécifique - 4e MA - Automatismes","Question 04",86.5]
["Test spécifique - 4e MA - Automatismes","Question 05",75.5]
["Test spécifique - 4e MA - Automatismes","Question 06",65.099999999999994]
["Test spécifique - 4e MA - Automatismes","Question 07",60.4]
["Test spécifique - 4e MA - Automatismes","Question 08",75]
["Test spécifique - 4e MA - Automatismes","Question 09",47.4]
["Test spécifique - 4e MA - Automatismes","Question 10",63.5]
["Test spécifique - 4e MA - Automatismes","Question 11",44.8]
["Test spécifique - 4e MA - Automatismes","Question 12",54.2]
["Test spécifique - 4e MA - Automatismes","Question 13",46.9]
["Test spécifique - 4e MA - Automatismes","Question 14",64.099999999999994]
["Test spécifique - 4e MA - Automatismes","Question 15",68.2]
["Test spécifique - 4e MA - Automatismes","Question 16",63]
["Test spécifique - 4e MA - Automatismes","Question 17",38.5]
["Test spécifique - 4e MA - Automatismes","Question 18",51]
["Test spécifique - 4e MA - Automatismes","Question 19",23.4]
["Test spécifique - 4e MA - Automatismes","Question 20",39.6]
["Test spécifique - 4e MA - Automatismes","Question 21",24]
["Test spécifique - 4e MA - Automatismes","Question 22",36.5]
[]
[]
[]
[]
[]
[]
[]
[]
[]
[]
[]
[]
[]
[]
[]
[]
[]
[]
[]
[]
[]
[]
[]
["Test spécifique - 4e MA - Automatismes","Question 01",93.5]
["Test spécifique - 4e MA - Automatismes","Question 02",93.5]
["Test spécifique - 4e MA - Automatismes","Question 03",79.400000000000006]
["Test spécifique - 4e MA - Automatismes","Question 04",91.6]
["Test spécifique - 4e MA - Automatismes","Question 05",72]
["Test spécifique - 4e MA - Automatismes","Question 06",62.6]
["Test spécifique - 4e MA - Automatismes","Question 07",70.099999999999994]
["Test spécifique - 4e MA - Automatismes","Question 08",69.2]
["Test spécifique - 4e MA - Automatismes","Question 09",34.6]
["Test spécifique - 4e MA - Automatismes","Question 10",57]
["Test spécifique - 4e MA - Automatismes","Question 11",47.7]
["Test spécifique - 4e MA - Automatismes","Question 12",59.8]
["Test spécifique - 4e MA - Automatismes","Question 13",38.299999999999997]
["Test spécifique - 4e MA - Automatismes","Question 14",45.8]
["Test spécifique - 4e MA - Automatismes","Question 15",45.8]
["Test spécifique - 4e MA - Automatismes","Question 16",46.7]
["Test spécifique - 4e MA - Automatismes","Question 17",46.7]
["Test spécifique - 4e MA - Automatismes","Question 18",30.8]
["Test spécifique - 4e MA - Automatismes","Question 19",31.8]
["Test spécifique - 4e MA - Automatismes","Question 20",29.9]
["Test spécifique - 4e MA - Automatismes","Question 21",39.299999999999997]
["Test spécifique - 4e MA - Automatismes","Question 22",44.9]
[]
[]
[]
[]
[]
[]
[]
[]
[]
[]
[]
[]
[]
[]
[]
[]
[]
[]
[]
[]
[]
[]
[]
["Test spécifique - 4e MA - Automatismes","Question 01",86.7]
["Test spécifique - 4e MA - Automatismes","Question 02",88.5]
["Test spécifique - 4e MA - Automatismes","Question 03",77]
["Test spécifique - 4e MA - Automatismes","Question 04",81.2]
["Test spécifique - 4e MA - Automatismes","Question 05",38.200000000000003]
["Test spécifique - 4e MA - Automatismes","Question 06",61.2]
["Test spécifique - 4e MA - Automatismes","Question 07",50.3]
["Test spécifique - 4e MA - Automatismes","Question 08",57.6]
["Test spécifique - 4e MA - Automatismes","Question 09",30.3]
["Test spécifique - 4e MA - Automatismes","Question 10",41.8]
["Test spécifique - 4e MA - Automatismes","Question 11",39.4]
["Test spécifique - 4e MA - Automatismes","Question 12",47.9]
["Test spécifique - 4e MA - Automatismes","Question 13",38.200000000000003]
["Test spécifique - 4e MA - Automatismes","Question 14",36.4]
["Test spécifique - 4e MA - Automatismes","Question 15",46.1]
["Test spécifique - 4e MA - Automatismes","Question 16",37.6]
["Test spécifique - 4e MA - Automatismes","Question 17",40]
["Test spécifique - 4e MA - Automatismes","Question 18",37]
["Test spécifique - 4e MA - Automatismes","Question 19",25.5]
["Test spécifique - 4e MA - Automatismes","Question 20",37.6]
["Test spécifique - 4e MA - Automatismes","Question 21",24.8]
["Test spécifique - 4e MA - Automatismes","Question 22",38.200000000000003]
[]
[]
[]
[]
[]
[]
[]
[]
[]
[]
[]
[]
[]
[]
[]
[]
[]
[]
[]
[]
[]
[]
[]
["Test spécifique - 4e MA - Automatismes","Question 01",94.4]
["Test spécifique - 4e MA - Automatismes","Question 02",91]
["Test spécifique - 4e MA - Automatismes","Question 03",79.2]
["Test spécifique - 4e MA - Automatismes","Question 04",84.7]
["Test spécifique - 4e MA - Automatismes","Question 05",53.5]
["Test spécifique - 4e MA - Automatismes","Question 06",60.4]
["Test spécifique - 4e MA - Automatismes","Question 07",59.7]
["Test spécifique - 4e MA - Automatismes","Question 08",70.099999999999994]
["Test spécifique - 4e MA - Automatismes","Question 09",41]
["Test spécifique - 4e MA - Automatismes","Question 10",47.9]
["Test spécifique - 4e MA - Automatismes","Question 11",43.8]
["Test spécifique - 4e MA - Automatismes","Question 12",61.8]
["Test spécifique - 4e MA - Automatismes","Question 13",29.9]
["Test spécifique - 4e MA - Automatismes","Question 14",31.3]
["Test spécifique - 4e MA - Automatismes","Question 15",36.1]
["Test spécifique - 4e MA - Automatismes","Question 16",36.1]
["Test spécifique - 4e MA - Automatismes","Question 17",31.9]
["Test spécifique - 4e MA - Automatismes","Question 18",47.2]
["Test spécifique - 4e MA - Automatismes","Question 19",47.9]
["Test spécifique - 4e MA - Automatismes","Question 20",36.1]
["Test spécifique - 4e MA - Automatismes","Question 21",22.2]
["Test spécifique - 4e MA - Automatismes","Question 22",34.700000000000003]
[]
[]
[]
[]
[]
[]
[]
[]
[]
[]
[]
[]
[]
[]
[]
[]
[]
[]
[]
[]
[]
[]
[]
["Test spécifique - 4e MA - Automatismes","Question 01",92.6]
["Test spécifique - 4e MA - Automatismes","Question 02",89.8]
["Test spécifique - 4e MA - Automatismes","Question 03",75.900000000000006]
["Test spécifique - 4e MA - Automatismes","Question 04",78.7]
["Test spécifique - 4e MA - Automatismes","Question 05",66.7]
["Test spécifique - 4e MA - Automatismes","Question 06",60.2]
["Test spécifique - 4e MA - Automatismes","Question 07",65.7]
["Test spécifique - 4e MA - Automatismes","Question 08",54.6]
["Test spécifique - 4e MA - Automatismes","Question 09",53.7]
["Test spécifique - 4e MA - Automatismes","Question 10",56.5]
["Test spécifique - 4e MA - Automatismes","Question 11",52.8]
["Test spécifique - 4e MA - Automatismes","Question 12",65.7]
["Test spécifique - 4e MA - Automatismes","Question 13",45.4]
["Test spécifique - 4e MA - Automatismes","Question 14",58.3]
["Test spécifique - 4e MA - Automatismes","Question 15",44.4]
["Test spécifique - 4e MA - Automatismes","Question 16",58.3]
["Test spécifique - 4e MA - Automatismes","Question 17",50]
["Test spécifique - 4e MA - Automatismes","Question 18",47.2]
["Test spécifique - 4e MA - Automatismes","Question 19",38.9]
["Test spécifique - 4e MA - Automatismes","Question 20",36.1]
["Test spécifique - 4e MA - Automatismes","Question 21",38]
["Test spécifique - 4e MA - Automatismes","Question 22",51.9]
[]
[]
[]
[]
[]
[]
[]
[]
[]
[]
[]
[]
[]
[]
[]
[]
[]
[]
[]
[]
[]
[]
[]
["Test spécifique - 4e MA - Automatismes","Question 01",93.7]
["Test spécifique - 4e MA - Automatismes","Question 02",90.2]
["Test spécifique - 4e MA - Automatismes","Question 03",86.7]
["Test spécifique - 4e MA - Automatismes","Question 04",88.8]
["Test spécifique - 4e MA - Automatismes","Question 05",66.400000000000006]
["Test spécifique - 4e MA - Automatismes","Question 06",67.8]
["Test spécifique - 4e MA - Automatismes","Question 07",65]
["Test spécifique - 4e MA - Automatismes","Question 08",70.599999999999994]
["Test spécifique - 4e MA - Automatismes","Question 09",48.3]
["Test spécifique - 4e MA - Automatismes","Question 10",55.2]
["Test spécifique - 4e MA - Automatismes","Question 11",49.7]
["Test spécifique - 4e MA - Automatismes","Question 12",53.1]
["Test spécifique - 4e MA - Automatismes","Question 13",48.3]
["Test spécifique - 4e MA - Automatismes","Question 14",66.400000000000006]
["Test spécifique - 4e MA - Automatismes","Question 15",65.7]
["Test spécifique - 4e MA - Automatismes","Question 16",61.5]
["Test spécifique - 4e MA - Automatismes","Question 17",32.200000000000003]
["Test spécifique - 4e MA - Automatismes","Question 18",46.2]
["Test spécifique - 4e MA - Automatismes","Question 19",22.4]
["Test spécifique - 4e MA - Automatismes","Question 20",36.4]
["Test spécifique - 4e MA - Automatismes","Question 21",28.7]
["Test spécifique - 4e MA - Automatismes","Question 22",43.4]
[]
[]
[]
[]
[]
[]
[]
[]
[]
[]
[]
[]
[]
[]
[]
[]
[]
[]
[]
[]
[]
[]
[]
["Test spécifique - 4e MA - Automatismes","Question 01",93]
["Test spécifique - 4e MA - Automatismes","Question 02",89.4]
["Test spécifique - 4e MA - Automatismes","Question 03",76.8]
["Test spécifique - 4e MA - Automatismes","Question 04",82.4]
["Test spécifique - 4e MA - Automatismes","Question 05",78.900000000000006]
["Test spécifique - 4e MA - Automatismes","Question 06",66.2]
["Test spécifique - 4e MA - Automatismes","Question 07",55.6]
["Test spécifique - 4e MA - Automatismes","Question 08",57.7]
["Test spécifique - 4e MA - Automatismes","Question 09",44.4]
["Test spécifique - 4e MA - Automatismes","Question 10",50]
["Test spécifique - 4e MA - Automatismes","Question 11",48.6]
["Test spécifique - 4e MA - Automatismes","Question 12",54.9]
["Test spécifique - 4e MA - Automatismes","Question 13",43]
["Test spécifique - 4e MA - Automatismes","Question 14",57.7]
["Test spécifique - 4e MA - Automatismes","Question 15",49.3]
["Test spécifique - 4e MA - Automatismes","Question 16",40.799999999999997]
["Test spécifique - 4e MA - Automatismes","Question 17",34.5]
["Test spécifique - 4e MA - Automatismes","Question 18",42.3]
["Test spécifique - 4e MA - Automatismes","Question 19",23.2]
["Test spécifique - 4e MA - Automatismes","Question 20",52.1]
["Test spécifique - 4e MA - Automatismes","Question 21",31.7]
["Test spécifique - 4e MA - Automatismes","Question 22",32.4]
[]
[]
[]
[]
[]
[]
[]
[]
[]
[]
[]
[]
[]
[]
[]
[]
[]
[]
[]
[]
[]
[]
[]
["Test spécifique - 4e MA - Automatismes","Question 01",94.3]
["Test spécifique - 4e MA - Automatismes","Question 02",91.8]
["Test spécifique - 4e MA - Automatismes","Question 03",80.400000000000006]
["Test spécifique - 4e MA - Automatismes","Question 04",88]
["Test spécifique - 4e MA - Automatismes","Question 05",67.099999999999994]
["Test spécifique - 4e MA - Automatismes","Question 06",68.400000000000006]
["Test spécifique - 4e MA - Automatismes","Question 07",67.7]
["Test spécifique - 4e MA - Automatismes","Question 08",75.3]
["Test spécifique - 4e MA - Automatismes","Question 09",22.8]
["Test spécifique - 4e MA - Automatismes","Question 10",55.1]
["Test spécifique - 4e MA - Automatismes","Question 11",43.7]
["Test spécifique - 4e MA - Automatismes","Question 12",57.6]
["Test spécifique - 4e MA - Automatismes","Question 13",36.1]
["Test spécifique - 4e MA - Automatismes","Question 14",9.5]
["Test spécifique - 4e MA - Automatismes","Question 15",47.5]
["Test spécifique - 4e MA - Automatismes","Question 16",41.8]
["Test spécifique - 4e MA - Automatismes","Question 17",31]
["Test spécifique - 4e MA - Automatismes","Question 18",52.5]
["Test spécifique - 4e MA - Automatismes","Question 19",46.2]
["Test spécifique - 4e MA - Automatismes","Question 20",41.8]
["Test spécifique - 4e MA - Automatismes","Question 21",24.1]
["Test spécifique - 4e MA - Automatismes","Question 22",32.299999999999997]
[]
[]
[]
[]
[]
[]
[]
[]
[]
[]
[]
[]
[]
[]
[]
[]
[]
[]
[]
[]
[]
[]
[]
["Test spécifique - 4e MA - Automatismes","Question 01",93.2]
["Test spécifique - 4e MA - Automatismes","Question 02",87.6]
["Test spécifique - 4e MA - Automatismes","Question 03",82.6]
["Test spécifique - 4e MA - Automatismes","Question 04",83.9]
["Test spécifique - 4e MA - Automatismes","Question 05",60.2]
["Test spécifique - 4e MA - Automatismes","Question 06",68.900000000000006]
["Test spécifique - 4e MA - Automatismes","Question 07",66.5]
["Test spécifique - 4e MA - Automatismes","Question 08",67.7]
["Test spécifique - 4e MA - Automatismes","Question 09",34.200000000000003]
["Test spécifique - 4e MA - Automatismes","Question 10",56.5]
["Test spécifique - 4e MA - Automatismes","Question 11",48.4]
["Test spécifique - 4e MA - Automatismes","Question 12",50.3]
["Test spécifique - 4e MA - Automatismes","Question 13",44.7]
["Test spécifique - 4e MA - Automatismes","Question 14",25.5]
["Test spécifique - 4e MA - Automatismes","Question 15",52.2]
["Test spécifique - 4e MA - Automatismes","Question 16",48.4]
["Test spécifique - 4e MA - Automatismes","Question 17",33.5]
["Test spécifique - 4e MA - Automatismes","Question 18",47.2]
["Test spécifique - 4e MA - Automatismes","Question 19",49.1]
["Test spécifique - 4e MA - Automatismes","Question 20",57.1]
["Test spécifique - 4e MA - Automatismes","Question 21",29.8]
["Test spécifique - 4e MA - Automatismes","Question 22",44.1]
[]
[]
[]
[]
[]
[]
[]
[]
[]
[]
[]
[]
[]
[]
[]
[]
[]
[]
[]
[]
[]
[]
[]
["Test spécifique - 4e MA - Automatismes","Question 01",93.6]
["Test spécifique - 4e MA - Automatismes","Question 02",94.9]
["Test spécifique - 4e MA - Automatismes","Question 03",85.9]
["Test spécifique - 4e MA - Automatismes","Question 04",85.9]
["Test spécifique - 4e MA - Automatismes","Question 05",73.099999999999994]
["Test spécifique - 4e MA - Automatismes","Question 06",56.4]
["Test spécifique - 4e MA - Automatismes","Question 07",59]
["Test spécifique - 4e MA - Automatismes","Question 08",71.8]
["Test spécifique - 4e MA - Automatismes","Question 09",52.6]
["Test spécifique - 4e MA - Automatismes","Question 10",65.400000000000006]
["Test spécifique - 4e MA - Automatismes","Question 11",55.1]
["Test spécifique - 4e MA - Automatismes","Question 12",55.1]
["Test spécifique - 4e MA - Automatismes","Question 13",48.7]
["Test spécifique - 4e MA - Automatismes","Question 14",66.7]
["Test spécifique - 4e MA - Automatismes","Question 15",66.7]
["Test spécifique - 4e MA - Automatismes","Question 16",65.400000000000006]
["Test spécifique - 4e MA - Automatismes","Question 17",51.3]
["Test spécifique - 4e MA - Automatismes","Question 18",38.5]
["Test spécifique - 4e MA - Automatismes","Question 19",48.7]
["Test spécifique - 4e MA - Automatismes","Question 20",39.700000000000003]
["Test spécifique - 4e MA - Automatismes","Question 21",19.2]
["Test spécifique - 4e MA - Automatismes","Question 22",47.4]
[]
[]
[]
[]
[]
[]
[]
[]
[]
[]
[]
[]
[]
[]
[]
[]
[]
[]
[]
[]
[]
[]
[]
["Test spécifique - 4e MA - Automatismes","Question 01",90.7]
["Test spécifique - 4e MA - Automatismes","Question 02",84.1]
["Test spécifique - 4e MA - Automatismes","Question 03",83.2]
["Test spécifique - 4e MA - Automatismes","Question 04",83.2]
["Test spécifique - 4e MA - Automatismes","Question 05",62.6]
["Test spécifique - 4e MA - Automatismes","Question 06",59.8]
["Test spécifique - 4e MA - Automatismes","Question 07",51.4]
["Test spécifique - 4e MA - Automatismes","Question 08",59.8]
["Test spécifique - 4e MA - Automatismes","Question 09",20.6]
["Test spécifique - 4e MA - Automatismes","Question 10",49.5]
["Test spécifique - 4e MA - Automatismes","Question 11",28]
["Test spécifique - 4e MA - Automatismes","Question 12",46.7]
["Test spécifique - 4e MA - Automatismes","Question 13",28]
["Test spécifique - 4e MA - Automatismes","Question 14",52.3]
["Test spécifique - 4e MA - Automatismes","Question 15",48.6]
["Test spécifique - 4e MA - Automatismes","Question 16",31.8]
["Test spécifique - 4e MA - Automatismes","Question 17",25.2]
["Test spécifique - 4e MA - Automatismes","Question 18",31.8]
["Test spécifique - 4e MA - Automatismes","Question 19",29]
["Test spécifique - 4e MA - Automatismes","Question 20",31.8]
["Test spécifique - 4e MA - Automatismes","Question 21",29]
["Test spécifique - 4e MA - Automatismes","Question 22",29]
[]
[]
[]
[]
[]
[]
[]
[]
[]
[]
[]
[]
[]
[]
[]
[]
[]
[]
[]
[]
[]
[]
[]
["Test spécifique - 4e MA - Automatismes","Question 01",90.2]
["Test spécifique - 4e MA - Automatismes","Question 02",81.3]
["Test spécifique - 4e MA - Automatismes","Question 03",68.3]
["Test spécifique - 4e MA - Automatismes","Question 04",81.3]
["Test spécifique - 4e MA - Automatismes","Question 05",49.6]
["Test spécifique - 4e MA - Automatismes","Question 06",51.2]
["Test spécifique - 4e MA - Automatismes","Question 07",51.2]
["Test spécifique - 4e MA - Automatismes","Question 08",59.3]
["Test spécifique - 4e MA - Automatismes","Question 09",26.8]
["Test spécifique - 4e MA - Automatismes","Question 10",34.1]
["Test spécifique - 4e MA - Automatismes","Question 11",40.700000000000003]
["Test spécifique - 4e MA - Automatismes","Question 12",54.5]
["Test spécifique - 4e MA - Automatismes","Question 13",19.5]
["Test spécifique - 4e MA - Automatismes","Question 14",17.100000000000001]
["Test spécifique - 4e MA - Automatismes","Question 15",38.200000000000003]
["Test spécifique - 4e MA - Automatismes","Question 16",29.3]
["Test spécifique - 4e MA - Automatismes","Question 17",31.7]
["Test spécifique - 4e MA - Automatismes","Question 18",38.200000000000003]
["Test spécifique - 4e MA - Automatismes","Question 19",33.299999999999997]
["Test spécifique - 4e MA - Automatismes","Question 20",45.5]
["Test spécifique - 4e MA - Automatismes","Question 21",26.8]
["Test spécifique - 4e MA - Automatismes","Question 22",34.1]
[]
[]
[]
[]
[]
[]
[]
[]
[]
[]
[]
[]
[]
[]
[]
[]
[]
[]
[]
[]
[]
[]
[]
["Test spécifique - 4e MA - Automatismes","Question 01",92.6]
["Test spécifique - 4e MA - Automatismes","Question 02",91.9]
["Test spécifique - 4e MA - Automatismes","Question 03",85.8]
["Test spécifique - 4e MA - Automatismes","Question 04",79.099999999999994]
["Test spécifique - 4e MA - Automatismes","Question 05",75]
["Test spécifique - 4e MA - Automatismes","Question 06",64.900000000000006]
["Test spécifique - 4e MA - Automatismes","Question 07",57.4]
["Test spécifique - 4e MA - Automatismes","Question 08",61.5]
["Test spécifique - 4e MA - Automatismes","Question 09",34.5]
["Test spécifique - 4e MA - Automatismes","Question 10",42.6]
["Test spécifique - 4e MA - Automatismes","Question 11",51.4]
["Test spécifique - 4e MA - Automatismes","Question 12",52.7]
["Test spécifique - 4e MA - Automatismes","Question 13",37.200000000000003]
["Test spécifique - 4e MA - Automatismes","Question 14",25.7]
["Test spécifique - 4e MA - Automatismes","Question 15",45.3]
["Test spécifique - 4e MA - Automatismes","Question 16",32.4]
["Test spécifique - 4e MA - Automatismes","Question 17",50.7]
["Test spécifique - 4e MA - Automatismes","Question 18",37.200000000000003]
["Test spécifique - 4e MA - Automatismes","Question 19",39.200000000000003]
["Test spécifique - 4e MA - Automatismes","Question 20",49.3]
["Test spécifique - 4e MA - Automatismes","Question 21",20.9]
["Test spécifique - 4e MA - Automatismes","Question 22",29.1]
[]
[]
[]
[]
[]
[]
[]
[]
[]
[]
[]
[]
[]
[]
[]
[]
[]
[]
[]
[]
[]
[]
[]
["Test spécifique - 4e MA - Automatismes","Question 01",97.4]
["Test spécifique - 4e MA - Automatismes","Question 02",94]
["Test spécifique - 4e MA - Automatismes","Question 03",88]
["Test spécifique - 4e MA - Automatismes","Question 04",92.3]
["Test spécifique - 4e MA - Automatismes","Question 05",84.6]
["Test spécifique - 4e MA - Automatismes","Question 06",59.8]
["Test spécifique - 4e MA - Automatismes","Question 07",70.900000000000006]
["Test spécifique - 4e MA - Automatismes","Question 08",81.2]
["Test spécifique - 4e MA - Automatismes","Question 09",46.2]
["Test spécifique - 4e MA - Automatismes","Question 10",60.7]
["Test spécifique - 4e MA - Automatismes","Question 11",63.2]
["Test spécifique - 4e MA - Automatismes","Question 12",61.5]
["Test spécifique - 4e MA - Automatismes","Question 13",45.3]
["Test spécifique - 4e MA - Automatismes","Question 14",47.9]
["Test spécifique - 4e MA - Automatismes","Question 15",62.4]
["Test spécifique - 4e MA - Automatismes","Question 16",64.099999999999994]
["Test spécifique - 4e MA - Automatismes","Question 17",48.7]
["Test spécifique - 4e MA - Automatismes","Question 18",72.599999999999994]
["Test spécifique - 4e MA - Automatismes","Question 19",62.4]
["Test spécifique - 4e MA - Automatismes","Question 20",52.1]
["Test spécifique - 4e MA - Automatismes","Question 21",43.6]
["Test spécifique - 4e MA - Automatismes","Question 22",41.9]
[]
[]
[]
[]
[]
[]
[]
[]
[]
[]
[]
[]
[]
[]
[]
[]
[]
[]
[]
[]
[]
[]
[]
["Test spécifique - 4e MA - Automatismes","Question 01",95.6]
["Test spécifique - 4e MA - Automatismes","Question 02",93]
["Test spécifique - 4e MA - Automatismes","Question 03",84.2]
["Test spécifique - 4e MA - Automatismes","Question 04",89.5]
["Test spécifique - 4e MA - Automatismes","Question 05",67.5]
["Test spécifique - 4e MA - Automatismes","Question 06",72.8]
["Test spécifique - 4e MA - Automatismes","Question 07",65.8]
["Test spécifique - 4e MA - Automatismes","Question 08",62.3]
["Test spécifique - 4e MA - Automatismes","Question 09",26.3]
["Test spécifique - 4e MA - Automatismes","Question 10",59.6]
["Test spécifique - 4e MA - Automatismes","Question 11",56.1]
["Test spécifique - 4e MA - Automatismes","Question 12",57]
["Test spécifique - 4e MA - Automatismes","Question 13",46.5]
["Test spécifique - 4e MA - Automatismes","Question 14",16.7]
["Test spécifique - 4e MA - Automatismes","Question 15",44.7]
["Test spécifique - 4e MA - Automatismes","Question 16",61.4]
["Test spécifique - 4e MA - Automatismes","Question 17",41.2]
["Test spécifique - 4e MA - Automatismes","Question 18",59.6]
["Test spécifique - 4e MA - Automatismes","Question 19",36]
["Test spécifique - 4e MA - Automatismes","Question 20",36.799999999999997]
["Test spécifique - 4e MA - Automatismes","Question 21",28.9]
["Test spécifique - 4e MA - Automatismes","Question 22",42.1]
[]
[]
[]
[]
[]
[]
[]
[]
[]
[]
[]
[]
[]
[]
[]
[]
[]
[]
[]
[]
[]
[]
[]
["Test spécifique - 4e MA - Automatismes","Question 01",92.6]
["Test spécifique - 4e MA - Automatismes","Question 02",90.4]
["Test spécifique - 4e MA - Automatismes","Question 03",81.900000000000006]
["Test spécifique - 4e MA - Automatismes","Question 04",90.4]
["Test spécifique - 4e MA - Automatismes","Question 05",55.3]
["Test spécifique - 4e MA - Automatismes","Question 06",60.6]
["Test spécifique - 4e MA - Automatismes","Question 07",62.8]
["Test spécifique - 4e MA - Automatismes","Question 08",58.5]
["Test spécifique - 4e MA - Automatismes","Question 09",20.2]
["Test spécifique - 4e MA - Automatismes","Question 10",51.1]
["Test spécifique - 4e MA - Automatismes","Question 11",54.3]
["Test spécifique - 4e MA - Automatismes","Question 12",51.1]
["Test spécifique - 4e MA - Automatismes","Question 13",39.4]
["Test spécifique - 4e MA - Automatismes","Question 14",46.8]
["Test spécifique - 4e MA - Automatismes","Question 15",45.7]
["Test spécifique - 4e MA - Automatismes","Question 16",55.3]
["Test spécifique - 4e MA - Automatismes","Question 17",33]
["Test spécifique - 4e MA - Automatismes","Question 18",45.7]
["Test spécifique - 4e MA - Automatismes","Question 19",48.9]
["Test spécifique - 4e MA - Automatismes","Question 20",48.9]
["Test spécifique - 4e MA - Automatismes","Question 21",20.2]
["Test spécifique - 4e MA - Automatismes","Question 22",33]
[]
[]
[]
[]
[]
[]
[]
[]
[]
[]
[]
[]
[]
[]
[]
[]
[]
[]
[]
[]
[]
[]
[]
["Test spécifique - 4e MA - Automatismes","Question 01",94.6]
["Test spécifique - 4e MA - Automatismes","Question 02",93.8]
["Test spécifique - 4e MA - Automatismes","Question 03",96.1]
["Test spécifique - 4e MA - Automatismes","Question 04",86.8]
["Test spécifique - 4e MA - Automatismes","Question 05",69]
["Test spécifique - 4e MA - Automatismes","Question 06",70.5]
["Test spécifique - 4e MA - Automatismes","Question 07",61.2]
["Test spécifique - 4e MA - Automatismes","Question 08",63.6]
["Test spécifique - 4e MA - Automatismes","Question 09",42.6]
["Test spécifique - 4e MA - Automatismes","Question 10",51.9]
["Test spécifique - 4e MA - Automatismes","Question 11",56.6]
["Test spécifique - 4e MA - Automatismes","Question 12",56.6]
["Test spécifique - 4e MA - Automatismes","Question 13",47.3]
["Test spécifique - 4e MA - Automatismes","Question 14",31.8]
["Test spécifique - 4e MA - Automatismes","Question 15",59.7]
["Test spécifique - 4e MA - Automatismes","Question 16",52.7]
["Test spécifique - 4e MA - Automatismes","Question 17",28.7]
["Test spécifique - 4e MA - Automatismes","Question 18",44.2]
["Test spécifique - 4e MA - Automatismes","Question 19",41.1]
["Test spécifique - 4e MA - Automatismes","Question 20",41.1]
["Test spécifique - 4e MA - Automatismes","Question 21",21.7]
["Test spécifique - 4e MA - Automatismes","Question 22",45]
[]
[]
[]
[]
[]
[]
[]
[]
[]
[]
[]
[]
[]
[]
[]
[]
[]
[]
[]
[]
[]
[]
[]
["Test spécifique - 4e MA - Automatismes","Question 01",94.8]
["Test spécifique - 4e MA - Automatismes","Question 02",93.8]
["Test spécifique - 4e MA - Automatismes","Question 03",84.4]
["Test spécifique - 4e MA - Automatismes","Question 04",82.9]
["Test spécifique - 4e MA - Automatismes","Question 05",66.8]
["Test spécifique - 4e MA - Automatismes","Question 06",57.3]
["Test spécifique - 4e MA - Automatismes","Question 07",70.099999999999994]
["Test spécifique - 4e MA - Automatismes","Question 08",55.5]
["Test spécifique - 4e MA - Automatismes","Question 09",30.8]
["Test spécifique - 4e MA - Automatismes","Question 10",49.8]
["Test spécifique - 4e MA - Automatismes","Question 11",48.3]
["Test spécifique - 4e MA - Automatismes","Question 12",48.6]
["Test spécifique - 4e MA - Automatismes","Question 13",42.7]
["Test spécifique - 4e MA - Automatismes","Question 14",7.1]
["Test spécifique - 4e MA - Automatismes","Question 15",53.1]
["Test spécifique - 4e MA - Automatismes","Question 16",50.7]
["Test spécifique - 4e MA - Automatismes","Question 17",37.9]
["Test spécifique - 4e MA - Automatismes","Question 18",50.2]
["Test spécifique - 4e MA - Automatismes","Question 19",62.4]
["Test spécifique - 4e MA - Automatismes","Question 20",46.7]
["Test spécifique - 4e MA - Automatismes","Question 21",28.4]
["Test spécifique - 4e MA - Automatismes","Question 22",35.5]
[]
[]
[]
[]
[]
[]
[]
[]
[]
[]
[]
[]
[]
[]
[]
[]
[]
[]
[]
[]
[]
[]
[]
["Test spécifique - 4e MA - Automatismes","Question 01",93.2]
["Test spécifique - 4e MA - Automatismes","Question 02",95.1]
["Test spécifique - 4e MA - Automatismes","Question 03",89.5]
["Test spécifique - 4e MA - Automatismes","Question 04",88.9]
["Test spécifique - 4e MA - Automatismes","Question 05",80.900000000000006]
["Test spécifique - 4e MA - Automatismes","Question 06",50.6]
["Test spécifique - 4e MA - Automatismes","Question 07",62.3]
["Test spécifique - 4e MA - Automatismes","Question 08",74.099999999999994]
["Test spécifique - 4e MA - Automatismes","Question 09",47.5]
["Test spécifique - 4e MA - Automatismes","Question 10",45.1]
["Test spécifique - 4e MA - Automatismes","Question 11",45.7]
["Test spécifique - 4e MA - Automatismes","Question 12",58]
["Test spécifique - 4e MA - Automatismes","Question 13",49.4]
["Test spécifique - 4e MA - Automatismes","Question 14",41.4]
["Test spécifique - 4e MA - Automatismes","Question 15",56.2]
["Test spécifique - 4e MA - Automatismes","Question 16",54.9]
["Test spécifique - 4e MA - Automatismes","Question 17",33.299999999999997]
["Test spécifique - 4e MA - Automatismes","Question 18",51.9]
["Test spécifique - 4e MA - Automatismes","Question 19",33.299999999999997]
["Test spécifique - 4e MA - Automatismes","Question 20",54.3]
["Test spécifique - 4e MA - Automatismes","Question 21",35.799999999999997]
["Test spécifique - 4e MA - Automatismes","Question 22",39.5]
[]
[]
[]
[]
[]
[]
[]
[]
[]
[]
[]
[]
[]
[]
[]
[]
[]
[]
[]
[]
[]
[]
[]
["Test spécifique - 4e MA - Automatismes","Question 01",93.3]
["Test spécifique - 4e MA - Automatismes","Question 02",89.6]
["Test spécifique - 4e MA - Automatismes","Question 03",88.9]
["Test spécifique - 4e MA - Automatismes","Question 04",82.2]
["Test spécifique - 4e MA - Automatismes","Question 05",73.3]
["Test spécifique - 4e MA - Automatismes","Question 06",78.5]
["Test spécifique - 4e MA - Automatismes","Question 07",60.7]
["Test spécifique - 4e MA - Automatismes","Question 08",68.099999999999994]
["Test spécifique - 4e MA - Automatismes","Question 09",65.900000000000006]
["Test spécifique - 4e MA - Automatismes","Question 10",43]
["Test spécifique - 4e MA - Automatismes","Question 11",54.8]
["Test spécifique - 4e MA - Automatismes","Question 12",53.3]
["Test spécifique - 4e MA - Automatismes","Question 13",48.9]
["Test spécifique - 4e MA - Automatismes","Question 14",5.9]
["Test spécifique - 4e MA - Automatismes","Question 15",40.700000000000003]
["Test spécifique - 4e MA - Automatismes","Question 16",43.7]
["Test spécifique - 4e MA - Automatismes","Question 17",30.4]
["Test spécifique - 4e MA - Automatismes","Question 18",45.9]
["Test spécifique - 4e MA - Automatismes","Question 19",35.6]
["Test spécifique - 4e MA - Automatismes","Question 20",58.5]
["Test spécifique - 4e MA - Automatismes","Question 21",45.2]
["Test spécifique - 4e MA - Automatismes","Question 22",26.7]
[]
[]
[]
[]
[]
[]
[]
[]
[]
[]
[]
[]
[]
[]
[]
[]
[]
[]
[]
[]
[]
[]
[]
["Test spécifique - 4e MA - Automatismes","Question 01",95.5]
["Test spécifique - 4e MA - Automatismes","Question 02",95.5]
["Test spécifique - 4e MA - Automatismes","Question 03",90.6]
["Test spécifique - 4e MA - Automatismes","Question 04",88.3]
["Test spécifique - 4e MA - Automatismes","Question 05",77.599999999999994]
["Test spécifique - 4e MA - Automatismes","Question 06",68.2]
["Test spécifique - 4e MA - Automatismes","Question 07",68.2]
["Test spécifique - 4e MA - Automatismes","Question 08",71.7]
["Test spécifique - 4e MA - Automatismes","Question 09",41.3]
["Test spécifique - 4e MA - Automatismes","Question 10",62.3]
["Test spécifique - 4e MA - Automatismes","Question 11",52.5]
["Test spécifique - 4e MA - Automatismes","Question 12",60.5]
["Test spécifique - 4e MA - Automatismes","Question 13",43.9]
["Test spécifique - 4e MA - Automatismes","Question 14",48]
["Test spécifique - 4e MA - Automatismes","Question 15",61]
["Test spécifique - 4e MA - Automatismes","Question 16",61.9]
["Test spécifique - 4e MA - Automatismes","Question 17",29.6]
["Test spécifique - 4e MA - Automatismes","Question 18",46.2]
["Test spécifique - 4e MA - Automatismes","Question 19",47.1]
["Test spécifique - 4e MA - Automatismes","Question 20",50.7]
["Test spécifique - 4e MA - Automatismes","Question 21",33.6]
["Test spécifique - 4e MA - Automatismes","Question 22",45.7]
[]
[]
[]
[]
[]
[]
[]
[]
[]
[]
[]
[]
[]
[]
[]
[]
[]
[]
[]
[]
[]
[]
[]
["Test spécifique - 4e MA - Automatismes","Question 01",88.5]
["Test spécifique - 4e MA - Automatismes","Question 02",88.5]
["Test spécifique - 4e MA - Automatismes","Question 03",87.5]
["Test spécifique - 4e MA - Automatismes","Question 04",82]
["Test spécifique - 4e MA - Automatismes","Question 05",80.5]
["Test spécifique - 4e MA - Automatismes","Question 06",70]
["Test spécifique - 4e MA - Automatismes","Question 07",59.5]
["Test spécifique - 4e MA - Automatismes","Question 08",70]
["Test spécifique - 4e MA - Automatismes","Question 09",31.5]
["Test spécifique - 4e MA - Automatismes","Question 10",52.5]
["Test spécifique - 4e MA - Automatismes","Question 11",51.5]
["Test spécifique - 4e MA - Automatismes","Question 12",51.5]
["Test spécifique - 4e MA - Automatismes","Question 13",33]
["Test spécifique - 4e MA - Automatismes","Question 14",33]
["Test spécifique - 4e MA - Automatismes","Question 15",45.5]
["Test spécifique - 4e MA - Automatismes","Question 16",45.5]
["Test spécifique - 4e MA - Automatismes","Question 17",29]
["Test spécifique - 4e MA - Automatismes","Question 18",41]
["Test spécifique - 4e MA - Automatismes","Question 19",33]
["Test spécifique - 4e MA - Automatismes","Question 20",35]
["Test spécifique - 4e MA - Automatismes","Question 21",41]
["Test spécifique - 4e MA - Automatismes","Question 22",38]
[]
[]
[]
[]
[]
[]
[]
[]
[]
[]
[]
[]
[]
[]
[]
[]
[]
[]
[]
[]
[]
[]
[]
["Test spécifique - 4e MA - Automatismes","Question 01",92.1]
["Test spécifique - 4e MA - Automatismes","Question 02",89.5]
["Test spécifique - 4e MA - Automatismes","Question 03",81.099999999999994]
["Test spécifique - 4e MA - Automatismes","Question 04",87.9]
["Test spécifique - 4e MA - Automatismes","Question 05",67.400000000000006]
["Test spécifique - 4e MA - Automatismes","Question 06",68.900000000000006]
["Test spécifique - 4e MA - Automatismes","Question 07",53.7]
["Test spécifique - 4e MA - Automatismes","Question 08",56.3]
["Test spécifique - 4e MA - Automatismes","Question 09",33.200000000000003]
["Test spécifique - 4e MA - Automatismes","Question 10",52.1]
["Test spécifique - 4e MA - Automatismes","Question 11",46.3]
["Test spécifique - 4e MA - Automatismes","Question 12",46.8]
["Test spécifique - 4e MA - Automatismes","Question 13",37.4]
["Test spécifique - 4e MA - Automatismes","Question 14",15.3]
["Test spécifique - 4e MA - Automatismes","Question 15",40]
["Test spécifique - 4e MA - Automatismes","Question 16",37.9]
["Test spécifique - 4e MA - Automatismes","Question 17",31.6]
["Test spécifique - 4e MA - Automatismes","Question 18",43.7]
["Test spécifique - 4e MA - Automatismes","Question 19",33.700000000000003]
["Test spécifique - 4e MA - Automatismes","Question 20",36.799999999999997]
["Test spécifique - 4e MA - Automatismes","Question 21",24.2]
["Test spécifique - 4e MA - Automatismes","Question 22",37.9]
[]
[]
[]
[]
[]
[]
[]
[]
[]
[]
[]
[]
[]
[]
[]
[]
[]
[]
[]
[]
[]
[]
[]
["Test spécifique - 4e MA - Automatismes","Question 01",89.3]
["Test spécifique - 4e MA - Automatismes","Question 02",90.1]
["Test spécifique - 4e MA - Automatismes","Question 03",83.2]
["Test spécifique - 4e MA - Automatismes","Question 04",78.599999999999994]
["Test spécifique - 4e MA - Automatismes","Question 05",60.3]
["Test spécifique - 4e MA - Automatismes","Question 06",72.5]
["Test spécifique - 4e MA - Automatismes","Question 07",63.4]
["Test spécifique - 4e MA - Automatismes","Question 08",71.8]
["Test spécifique - 4e MA - Automatismes","Question 09",38.9]
["Test spécifique - 4e MA - Automatismes","Question 10",52.7]
["Test spécifique - 4e MA - Automatismes","Question 11",49.6]
["Test spécifique - 4e MA - Automatismes","Question 12",59.5]
["Test spécifique - 4e MA - Automatismes","Question 13",48.1]
["Test spécifique - 4e MA - Automatismes","Question 14",42.7]
["Test spécifique - 4e MA - Automatismes","Question 15",58.8]
["Test spécifique - 4e MA - Automatismes","Question 16",61.8]
["Test spécifique - 4e MA - Automatismes","Question 17",30.5]
["Test spécifique - 4e MA - Automatismes","Question 18",45.8]
["Test spécifique - 4e MA - Automatismes","Question 19",34.4]
["Test spécifique - 4e MA - Automatismes","Question 20",49.6]
["Test spécifique - 4e MA - Automatismes","Question 21",26.7]
["Test spécifique - 4e MA - Automatismes","Question 22",39.700000000000003]
[]
[]
[]
[]
[]
[]
[]
[]
[]
[]
[]
[]
[]
[]
[]
[]
[]
[]
[]
[]
[]
[]
[]
["Test spécifique - 4e MA - Automatismes","Question 01",96.2]
["Test spécifique - 4e MA - Automatismes","Question 02",91.6]
["Test spécifique - 4e MA - Automatismes","Question 03",80.900000000000006]
["Test spécifique - 4e MA - Automatismes","Question 04",86.3]
["Test spécifique - 4e MA - Automatismes","Question 05",67.900000000000006]
["Test spécifique - 4e MA - Automatismes","Question 06",71.8]
["Test spécifique - 4e MA - Automatismes","Question 07",61.1]
["Test spécifique - 4e MA - Automatismes","Question 08",60.3]
["Test spécifique - 4e MA - Automatismes","Question 09",31.3]
["Test spécifique - 4e MA - Automatismes","Question 10",45]
["Test spécifique - 4e MA - Automatismes","Question 11",49.6]
["Test spécifique - 4e MA - Automatismes","Question 12",58.8]
["Test spécifique - 4e MA - Automatismes","Question 13",32.799999999999997]
["Test spécifique - 4e MA - Automatismes","Question 14",4.5999999999999996]
["Test spécifique - 4e MA - Automatismes","Question 15",52.7]
["Test spécifique - 4e MA - Automatismes","Question 16",35.9]
["Test spécifique - 4e MA - Automatismes","Question 17",28.2]
["Test spécifique - 4e MA - Automatismes","Question 18",46.6]
["Test spécifique - 4e MA - Automatismes","Question 19",33.6]
["Test spécifique - 4e MA - Automatismes","Question 20",35.1]
["Test spécifique - 4e MA - Automatismes","Question 21",16.8]
["Test spécifique - 4e MA - Automatismes","Question 22",29.8]
[]
[]
[]
[]
[]
[]
[]
[]
[]
[]
[]
[]
[]
[]
[]
[]
[]
[]
[]
[]
[]
[]
[]
["Test spécifique - 4e MA - Automatismes","Question 01",94.4]
["Test spécifique - 4e MA - Automatismes","Question 02",84.6]
["Test spécifique - 4e MA - Automatismes","Question 03",73.400000000000006]
["Test spécifique - 4e MA - Automatismes","Question 04",88.8]
["Test spécifique - 4e MA - Automatismes","Question 05",64.3]
["Test spécifique - 4e MA - Automatismes","Question 06",64.3]
["Test spécifique - 4e MA - Automatismes","Question 07",58.7]
["Test spécifique - 4e MA - Automatismes","Question 08",53.8]
["Test spécifique - 4e MA - Automatismes","Question 09",21]
["Test spécifique - 4e MA - Automatismes","Question 10",42.7]
["Test spécifique - 4e MA - Automatismes","Question 11",34.299999999999997]
["Test spécifique - 4e MA - Automatismes","Question 12",53.1]
["Test spécifique - 4e MA - Automatismes","Question 13",30.1]
["Test spécifique - 4e MA - Automatismes","Question 14",55.9]
["Test spécifique - 4e MA - Automatismes","Question 15",34.299999999999997]
["Test spécifique - 4e MA - Automatismes","Question 16",37.799999999999997]
["Test spécifique - 4e MA - Automatismes","Question 17",35]
["Test spécifique - 4e MA - Automatismes","Question 18",42.7]
["Test spécifique - 4e MA - Automatismes","Question 19",39.9]
["Test spécifique - 4e MA - Automatismes","Question 20",32.200000000000003]
["Test spécifique - 4e MA - Automatismes","Question 21",27.3]
["Test spécifique - 4e MA - Automatismes","Question 22",29.4]
[]
[]
[]
[]
[]
[]
[]
[]
[]
[]
[]
[]
[]
[]
[]
[]
[]
[]
[]
[]
[]
[]
[]
["Test spécifique - 4e MA - Automatismes","Question 01",94.4]
["Test spécifique - 4e MA - Automatismes","Question 02",88.7]
["Test spécifique - 4e MA - Automatismes","Question 03",85.5]
["Test spécifique - 4e MA - Automatismes","Question 04",86.3]
["Test spécifique - 4e MA - Automatismes","Question 05",64.5]
["Test spécifique - 4e MA - Automatismes","Question 06",64.5]
["Test spécifique - 4e MA - Automatismes","Question 07",48.4]
["Test spécifique - 4e MA - Automatismes","Question 08",56.5]
["Test spécifique - 4e MA - Automatismes","Question 09",50]
["Test spécifique - 4e MA - Automatismes","Question 10",48.4]
["Test spécifique - 4e MA - Automatismes","Question 11",33.1]
["Test spécifique - 4e MA - Automatismes","Question 12",44.4]
["Test spécifique - 4e MA - Automatismes","Question 13",33.9]
["Test spécifique - 4e MA - Automatismes","Question 14",26.6]
["Test spécifique - 4e MA - Automatismes","Question 15",49.2]
["Test spécifique - 4e MA - Automatismes","Question 16",48.4]
["Test spécifique - 4e MA - Automatismes","Question 17",29.8]
["Test spécifique - 4e MA - Automatismes","Question 18",30.6]
["Test spécifique - 4e MA - Automatismes","Question 19",37.1]
["Test spécifique - 4e MA - Automatismes","Question 20",47.6]
["Test spécifique - 4e MA - Automatismes","Question 21",36.299999999999997]
["Test spécifique - 4e MA - Automatismes","Question 22",33.1]
[]
[]
[]
[]
[]
[]
[]
[]
[]
[]
[]
[]
[]
[]
[]
[]
[]
[]
[]
[]
[]
[]
[]
["Test spécifique - 4e MA - Automatismes","Question 01",90.1]
["Test spécifique - 4e MA - Automatismes","Question 02",93]
["Test spécifique - 4e MA - Automatismes","Question 03",82.6]
["Test spécifique - 4e MA - Automatismes","Question 04",79.099999999999994]
["Test spécifique - 4e MA - Automatismes","Question 05",76.7]
["Test spécifique - 4e MA - Automatismes","Question 06",63.4]
["Test spécifique - 4e MA - Automatismes","Question 07",65.7]
["Test spécifique - 4e MA - Automatismes","Question 08",63.4]
["Test spécifique - 4e MA - Automatismes","Question 09",39]
["Test spécifique - 4e MA - Automatismes","Question 10",50.6]
["Test spécifique - 4e MA - Automatismes","Question 11",41.9]
["Test spécifique - 4e MA - Automatismes","Question 12",55.8]
["Test spécifique - 4e MA - Automatismes","Question 13",36.6]
["Test spécifique - 4e MA - Automatismes","Question 14",50]
["Test spécifique - 4e MA - Automatismes","Question 15",55.8]
["Test spécifique - 4e MA - Automatismes","Question 16",50.6]
["Test spécifique - 4e MA - Automatismes","Question 17",34.9]
["Test spécifique - 4e MA - Automatismes","Question 18",43]
["Test spécifique - 4e MA - Automatismes","Question 19",25.6]
["Test spécifique - 4e MA - Automatismes","Question 20",77.3]
["Test spécifique - 4e MA - Automatismes","Question 21",18.600000000000001]
["Test spécifique - 4e MA - Automatismes","Question 22",36]
[]
[]
[]
[]
[]
[]
[]
[]
[]
[]
[]
[]
[]
[]
[]
[]
[]
[]
[]
[]
[]
[]
[]
["Test spécifique - 4e MA - Automatismes","Question 01",95]
["Test spécifique - 4e MA - Automatismes","Question 02",88.2]
["Test spécifique - 4e MA - Automatismes","Question 03",80.099999999999994]
["Test spécifique - 4e MA - Automatismes","Question 04",83.2]
["Test spécifique - 4e MA - Automatismes","Question 05",60.9]
["Test spécifique - 4e MA - Automatismes","Question 06",72]
["Test spécifique - 4e MA - Automatismes","Question 07",62.7]
["Test spécifique - 4e MA - Automatismes","Question 08",65.2]
["Test spécifique - 4e MA - Automatismes","Question 09",37.9]
["Test spécifique - 4e MA - Automatismes","Question 10",57.1]
["Test spécifique - 4e MA - Automatismes","Question 11",50.9]
["Test spécifique - 4e MA - Automatismes","Question 12",58.4]
["Test spécifique - 4e MA - Automatismes","Question 13",33.5]
["Test spécifique - 4e MA - Automatismes","Question 14",17.399999999999999]
["Test spécifique - 4e MA - Automatismes","Question 15",50.9]
["Test spécifique - 4e MA - Automatismes","Question 16",42.9]
["Test spécifique - 4e MA - Automatismes","Question 17",39.799999999999997]
["Test spécifique - 4e MA - Automatismes","Question 18",42.9]
["Test spécifique - 4e MA - Automatismes","Question 19",57.1]
["Test spécifique - 4e MA - Automatismes","Question 20",32.9]
["Test spécifique - 4e MA - Automatismes","Question 21",43.5]
["Test spécifique - 4e MA - Automatismes","Question 22",43.5]
[]
[]
[]
[]
[]
[]
[]
[]
[]
[]
[]
[]
[]
[]
[]
[]
[]
[]
[]
[]
[]
[]
[]
["Test spécifique - 4e MA - Automatismes","Question 01",91.8]
["Test spécifique - 4e MA - Automatismes","Question 02",89.7]
["Test spécifique - 4e MA - Automatismes","Question 03",91.8]
["Test spécifique - 4e MA - Automatismes","Question 04",77.3]
["Test spécifique - 4e MA - Automatismes","Question 05",73.2]
["Test spécifique - 4e MA - Automatismes","Question 06",64.900000000000006]
["Test spécifique - 4e MA - Automatismes","Question 07",62.9]
["Test spécifique - 4e MA - Automatismes","Question 08",70.099999999999994]
["Test spécifique - 4e MA - Automatismes","Question 09",52.6]
["Test spécifique - 4e MA - Automatismes","Question 10",66]
["Test spécifique - 4e MA - Automatismes","Question 11",56.7]
["Test spécifique - 4e MA - Automatismes","Question 12",53.6]
["Test spécifique - 4e MA - Automatismes","Question 13",52.6]
["Test spécifique - 4e MA - Automatismes","Question 14",61.9]
["Test spécifique - 4e MA - Automatismes","Question 15",51.5]
["Test spécifique - 4e MA - Automatismes","Question 16",53.6]
["Test spécifique - 4e MA - Automatismes","Question 17",46.4]
["Test spécifique - 4e MA - Automatismes","Question 18",51.5]
["Test spécifique - 4e MA - Automatismes","Question 19",43.3]
["Test spécifique - 4e MA - Automatismes","Question 20",42.3]
["Test spécifique - 4e MA - Automatismes","Question 21",32]
["Test spécifique - 4e MA - Automatismes","Question 22",34]
[]
[]
[]
[]
[]
[]
[]
[]
[]
[]
[]
[]
[]
[]
[]
[]
[]
[]
[]
[]
[]
[]
[]
["Test spécifique - 4e MA - Automatismes","Question 01",88.2]
["Test spécifique - 4e MA - Automatismes","Question 02",76.3]
["Test spécifique - 4e MA - Automatismes","Question 03",66.7]
["Test spécifique - 4e MA - Automatismes","Question 04",72]
["Test spécifique - 4e MA - Automatismes","Question 05",43]
["Test spécifique - 4e MA - Automatismes","Question 06",66.7]
["Test spécifique - 4e MA - Automatismes","Question 07",36.6]
["Test spécifique - 4e MA - Automatismes","Question 08",41.9]
["Test spécifique - 4e MA - Automatismes","Question 09",21.5]
["Test spécifique - 4e MA - Automatismes","Question 10",33.299999999999997]
["Test spécifique - 4e MA - Automatismes","Question 11",20.399999999999999]
["Test spécifique - 4e MA - Automatismes","Question 12",39.799999999999997]
["Test spécifique - 4e MA - Automatismes","Question 13",9.6999999999999993]
["Test spécifique - 4e MA - Automatismes","Question 14",7.5]
["Test spécifique - 4e MA - Automatismes","Question 15",28]
["Test spécifique - 4e MA - Automatismes","Question 16",22.6]
["Test spécifique - 4e MA - Automatismes","Question 17",19.399999999999999]
["Test spécifique - 4e MA - Automatismes","Question 18",29]
["Test spécifique - 4e MA - Automatismes","Question 19",25.8]
["Test spécifique - 4e MA - Automatismes","Question 20",46.2]
["Test spécifique - 4e MA - Automatismes","Question 21",11.8]
["Test spécifique - 4e MA - Automatismes","Question 22",23.7]
[]
[]
[]
[]
[]
[]
[]
[]
[]
[]
[]
[]
[]
[]
[]
[]
[]
[]
[]
[]
[]
[]
[]
["Test spécifique - 4e MA - Automatismes","Question 01",92.3]
["Test spécifique - 4e MA - Automatismes","Question 02",87.2]
["Test spécifique - 4e MA - Automatismes","Question 03",80.099999999999994]
["Test spécifique - 4e MA - Automatismes","Question 04",82.7]
["Test spécifique - 4e MA - Automatismes","Question 05",67.3]
["Test spécifique - 4e MA - Automatismes","Question 06",60.9]
["Test spécifique - 4e MA - Automatismes","Question 07",55.8]
["Test spécifique - 4e MA - Automatismes","Question 08",69.900000000000006]
["Test spécifique - 4e MA - Automatismes","Question 09",25.6]
["Test spécifique - 4e MA - Automatismes","Question 10",51.3]
["Test spécifique - 4e MA - Automatismes","Question 11",44.2]
["Test spécifique - 4e MA - Automatismes","Question 12",52.6]
["Test spécifique - 4e MA - Automatismes","Question 13",30.8]
["Test spécifique - 4e MA - Automatismes","Question 14",25.6]
["Test spécifique - 4e MA - Automatismes","Question 15",44.9]
["Test spécifique - 4e MA - Automatismes","Question 16",35.9]
["Test spécifique - 4e MA - Automatismes","Question 17",39.1]
["Test spécifique - 4e MA - Automatismes","Question 18",42.9]
["Test spécifique - 4e MA - Automatismes","Question 19",20.5]
["Test spécifique - 4e MA - Automatismes","Question 20",41]
["Test spécifique - 4e MA - Automatismes","Question 21",34]
["Test spécifique - 4e MA - Automatismes","Question 22",22.4]
[]
[]
[]
[]
[]
[]
[]
[]
[]
[]
[]
[]
[]
[]
[]
[]
[]
[]
[]
[]
[]
[]
[]
["Test spécifique - 4e MA - Automatismes","Question 01",95.7]
["Test spécifique - 4e MA - Automatismes","Question 02",90.8]
["Test spécifique - 4e MA - Automatismes","Question 03",85.1]
["Test spécifique - 4e MA - Automatismes","Question 04",86.5]
["Test spécifique - 4e MA - Automatismes","Question 05",71.599999999999994]
["Test spécifique - 4e MA - Automatismes","Question 06",66.7]
["Test spécifique - 4e MA - Automatismes","Question 07",66]
["Test spécifique - 4e MA - Automatismes","Question 08",63.1]
["Test spécifique - 4e MA - Automatismes","Question 09",39]
["Test spécifique - 4e MA - Automatismes","Question 10",63.1]
["Test spécifique - 4e MA - Automatismes","Question 11",56.7]
["Test spécifique - 4e MA - Automatismes","Question 12",47.5]
["Test spécifique - 4e MA - Automatismes","Question 13",55.3]
["Test spécifique - 4e MA - Automatismes","Question 14",50.4]
["Test spécifique - 4e MA - Automatismes","Question 15",56.7]
["Test spécifique - 4e MA - Automatismes","Question 16",66]
["Test spécifique - 4e MA - Automatismes","Question 17",36.9]
["Test spécifique - 4e MA - Automatismes","Question 18",48.2]
["Test spécifique - 4e MA - Automatismes","Question 19",36.200000000000003]
["Test spécifique - 4e MA - Automatismes","Question 20",45.4]
["Test spécifique - 4e MA - Automatismes","Question 21",40.4]
["Test spécifique - 4e MA - Automatismes","Question 22",46.8]
[]
[]
[]
[]
[]
[]
[]
[]
[]
[]
[]
[]
[]
[]
[]
[]
[]
[]
[]
[]
[]
[]
[]
["Test spécifique - 4e MA - Automatismes","Question 01",94.7]
["Test spécifique - 4e MA - Automatismes","Question 02",86.4]
["Test spécifique - 4e MA - Automatismes","Question 03",83.4]
["Test spécifique - 4e MA - Automatismes","Question 04",85.2]
["Test spécifique - 4e MA - Automatismes","Question 05",58]
["Test spécifique - 4e MA - Automatismes","Question 06",60.4]
["Test spécifique - 4e MA - Automatismes","Question 07",58]
["Test spécifique - 4e MA - Automatismes","Question 08",55]
["Test spécifique - 4e MA - Automatismes","Question 09",42.6]
["Test spécifique - 4e MA - Automatismes","Question 10",43.8]
["Test spécifique - 4e MA - Automatismes","Question 11",40.799999999999997]
["Test spécifique - 4e MA - Automatismes","Question 12",47.9]
["Test spécifique - 4e MA - Automatismes","Question 13",32.5]
["Test spécifique - 4e MA - Automatismes","Question 14",41.4]
["Test spécifique - 4e MA - Automatismes","Question 15",49.1]
["Test spécifique - 4e MA - Automatismes","Question 16",42]
["Test spécifique - 4e MA - Automatismes","Question 17",22.5]
["Test spécifique - 4e MA - Automatismes","Question 18",32.5]
["Test spécifique - 4e MA - Automatismes","Question 19",23.7]
["Test spécifique - 4e MA - Automatismes","Question 20",45.6]
["Test spécifique - 4e MA - Automatismes","Question 21",27.2]
["Test spécifique - 4e MA - Automatismes","Question 22",34.9]
[]
[]
[]
[]
[]
[]
[]
[]
[]
[]
[]
[]
[]
[]
[]
[]
[]
[]
[]
[]
[]
[]
[]
["Test spécifique - 4e MA - Automatismes","Question 01",94.9]
["Test spécifique - 4e MA - Automatismes","Question 02",84.6]
["Test spécifique - 4e MA - Automatismes","Question 03",78.2]
["Test spécifique - 4e MA - Automatismes","Question 04",78.2]
["Test spécifique - 4e MA - Automatismes","Question 05",56.4]
["Test spécifique - 4e MA - Automatismes","Question 06",74.400000000000006]
["Test spécifique - 4e MA - Automatismes","Question 07",50]
["Test spécifique - 4e MA - Automatismes","Question 08",55.1]
["Test spécifique - 4e MA - Automatismes","Question 09",39.700000000000003]
["Test spécifique - 4e MA - Automatismes","Question 10",56.4]
["Test spécifique - 4e MA - Automatismes","Question 11",32.1]
["Test spécifique - 4e MA - Automatismes","Question 12",41]
["Test spécifique - 4e MA - Automatismes","Question 13",37.200000000000003]
["Test spécifique - 4e MA - Automatismes","Question 14",37.200000000000003]
["Test spécifique - 4e MA - Automatismes","Question 15",47.4]
["Test spécifique - 4e MA - Automatismes","Question 16",43.6]
["Test spécifique - 4e MA - Automatismes","Question 17",26.9]
["Test spécifique - 4e MA - Automatismes","Question 18",43.6]
["Test spécifique - 4e MA - Automatismes","Question 19",29.5]
["Test spécifique - 4e MA - Automatismes","Question 20",28.2]
["Test spécifique - 4e MA - Automatismes","Question 21",25.6]
["Test spécifique - 4e MA - Automatismes","Question 22",30.8]
[]
[]
[]
[]
[]
[]
[]
[]
[]
[]
[]
[]
[]
[]
[]
[]
[]
[]
[]
[]
[]
[]
[]
["Test spécifique - 4e MA - Automatismes","Question 01",96.7]
["Test spécifique - 4e MA - Automatismes","Question 02",93.5]
["Test spécifique - 4e MA - Automatismes","Question 03",91.3]
["Test spécifique - 4e MA - Automatismes","Question 04",87]
["Test spécifique - 4e MA - Automatismes","Question 05",94.6]
["Test spécifique - 4e MA - Automatismes","Question 06",69.599999999999994]
["Test spécifique - 4e MA - Automatismes","Question 07",70.7]
["Test spécifique - 4e MA - Automatismes","Question 08",72.8]
["Test spécifique - 4e MA - Automatismes","Question 09",56.5]
["Test spécifique - 4e MA - Automatismes","Question 10",65.2]
["Test spécifique - 4e MA - Automatismes","Question 11",57.6]
["Test spécifique - 4e MA - Automatismes","Question 12",52.2]
["Test spécifique - 4e MA - Automatismes","Question 13",60.9]
["Test spécifique - 4e MA - Automatismes","Question 14",82.6]
["Test spécifique - 4e MA - Automatismes","Question 15",59.8]
["Test spécifique - 4e MA - Automatismes","Question 16",70.7]
["Test spécifique - 4e MA - Automatismes","Question 17",39.1]
["Test spécifique - 4e MA - Automatismes","Question 18",59.8]
["Test spécifique - 4e MA - Automatismes","Question 19",40.200000000000003]
["Test spécifique - 4e MA - Automatismes","Question 20",26.1]
["Test spécifique - 4e MA - Automatismes","Question 21",37]
["Test spécifique - 4e MA - Automatismes","Question 22",35.9]
[]
[]
[]
[]
[]
[]
[]
[]
[]
[]
[]
[]
[]
[]
[]
[]
[]
[]
[]
[]
[]
[]
[]
["Test spécifique - 4e MA - Automatismes","Question 01",96.3]
["Test spécifique - 4e MA - Automatismes","Question 02",94.4]
["Test spécifique - 4e MA - Automatismes","Question 03",87.9]
["Test spécifique - 4e MA - Automatismes","Question 04",93.5]
["Test spécifique - 4e MA - Automatismes","Question 05",74.8]
["Test spécifique - 4e MA - Automatismes","Question 06",65.400000000000006]
["Test spécifique - 4e MA - Automatismes","Question 07",65.400000000000006]
["Test spécifique - 4e MA - Automatismes","Question 08",67.3]
["Test spécifique - 4e MA - Automatismes","Question 09",38.299999999999997]
["Test spécifique - 4e MA - Automatismes","Question 10",61.7]
["Test spécifique - 4e MA - Automatismes","Question 11",54.2]
["Test spécifique - 4e MA - Automatismes","Question 12",46.7]
["Test spécifique - 4e MA - Automatismes","Question 13",44.9]
["Test spécifique - 4e MA - Automatismes","Question 14",53.3]
["Test spécifique - 4e MA - Automatismes","Question 15",56.1]
["Test spécifique - 4e MA - Automatismes","Question 16",53.3]
["Test spécifique - 4e MA - Automatismes","Question 17",20.6]
["Test spécifique - 4e MA - Automatismes","Question 18",59.8]
["Test spécifique - 4e MA - Automatismes","Question 19",29]
["Test spécifique - 4e MA - Automatismes","Question 20",54.2]
["Test spécifique - 4e MA - Automatismes","Question 21",31.8]
["Test spécifique - 4e MA - Automatismes","Question 22",38.299999999999997]
[]
[]
[]
[]
[]
[]
[]
[]
[]
[]
[]
[]
[]
[]
[]
[]
[]
[]
[]
[]
[]
[]
[]
["Test spécifique - 4e MA - Automatismes","Question 01",86.3]
["Test spécifique - 4e MA - Automatismes","Question 02",81.2]
["Test spécifique - 4e MA - Automatismes","Question 03",85.5]
["Test spécifique - 4e MA - Automatismes","Question 04",76.900000000000006]
["Test spécifique - 4e MA - Automatismes","Question 05",71.8]
["Test spécifique - 4e MA - Automatismes","Question 06",69.2]
["Test spécifique - 4e MA - Automatismes","Question 07",52.1]
["Test spécifique - 4e MA - Automatismes","Question 08",53.8]
["Test spécifique - 4e MA - Automatismes","Question 09",49.6]
["Test spécifique - 4e MA - Automatismes","Question 10",51.3]
["Test spécifique - 4e MA - Automatismes","Question 11",50.4]
["Test spécifique - 4e MA - Automatismes","Question 12",54.7]
["Test spécifique - 4e MA - Automatismes","Question 13",38.5]
["Test spécifique - 4e MA - Automatismes","Question 14",17.899999999999999]
["Test spécifique - 4e MA - Automatismes","Question 15",57.3]
["Test spécifique - 4e MA - Automatismes","Question 16",47]
["Test spécifique - 4e MA - Automatismes","Question 17",44.4]
["Test spécifique - 4e MA - Automatismes","Question 18",53]
["Test spécifique - 4e MA - Automatismes","Question 19",36.799999999999997]
["Test spécifique - 4e MA - Automatismes","Question 20",43.6]
["Test spécifique - 4e MA - Automatismes","Question 21",39.299999999999997]
["Test spécifique - 4e MA - Automatismes","Question 22",41]
[]
[]
[]
[]
[]
[]
[]
[]
[]
[]
[]
[]
[]
[]
[]
[]
[]
[]
[]
[]
[]
[]
[]
["Test spécifique - 4e MA - Automatismes","Question 01",95]
["Test spécifique - 4e MA - Automatismes","Question 02",88.1]
["Test spécifique - 4e MA - Automatismes","Question 03",75.2]
["Test spécifique - 4e MA - Automatismes","Question 04",84.2]
["Test spécifique - 4e MA - Automatismes","Question 05",70.3]
["Test spécifique - 4e MA - Automatismes","Question 06",67.3]
["Test spécifique - 4e MA - Automatismes","Question 07",64.400000000000006]
["Test spécifique - 4e MA - Automatismes","Question 08",67.3]
["Test spécifique - 4e MA - Automatismes","Question 09",33.700000000000003]
["Test spécifique - 4e MA - Automatismes","Question 10",54.5]
["Test spécifique - 4e MA - Automatismes","Question 11",48.5]
["Test spécifique - 4e MA - Automatismes","Question 12",60.4]
["Test spécifique - 4e MA - Automatismes","Question 13",23.8]
["Test spécifique - 4e MA - Automatismes","Question 14",26.7]
["Test spécifique - 4e MA - Automatismes","Question 15",49.5]
["Test spécifique - 4e MA - Automatismes","Question 16",55.4]
["Test spécifique - 4e MA - Automatismes","Question 17",30.7]
["Test spécifique - 4e MA - Automatismes","Question 18",40.6]
["Test spécifique - 4e MA - Automatismes","Question 19",24.8]
["Test spécifique - 4e MA - Automatismes","Question 20",45.5]
["Test spécifique - 4e MA - Automatismes","Question 21",22.8]
["Test spécifique - 4e MA - Automatismes","Question 22",36.6]
[]
[]
[]
[]
[]
[]
[]
[]
[]
[]
[]
[]
[]
[]
[]
[]
[]
[]
[]
[]
[]
[]
[]
["Test spécifique - 4e MA - Automatismes","Question 01",98.3]
["Test spécifique - 4e MA - Automatismes","Question 02",92.6]
["Test spécifique - 4e MA - Automatismes","Question 03",89.3]
["Test spécifique - 4e MA - Automatismes","Question 04",90.9]
["Test spécifique - 4e MA - Automatismes","Question 05",69.400000000000006]
["Test spécifique - 4e MA - Automatismes","Question 06",68.599999999999994]
["Test spécifique - 4e MA - Automatismes","Question 07",69.400000000000006]
["Test spécifique - 4e MA - Automatismes","Question 08",70.2]
["Test spécifique - 4e MA - Automatismes","Question 09",38.799999999999997]
["Test spécifique - 4e MA - Automatismes","Question 10",52.9]
["Test spécifique - 4e MA - Automatismes","Question 11",54.5]
["Test spécifique - 4e MA - Automatismes","Question 12",62.8]
["Test spécifique - 4e MA - Automatismes","Question 13",58.7]
["Test spécifique - 4e MA - Automatismes","Question 14",45.5]
["Test spécifique - 4e MA - Automatismes","Question 15",64.5]
["Test spécifique - 4e MA - Automatismes","Question 16",58.7]
["Test spécifique - 4e MA - Automatismes","Question 17",28.9]
["Test spécifique - 4e MA - Automatismes","Question 18",55.4]
["Test spécifique - 4e MA - Automatismes","Question 19",48.8]
["Test spécifique - 4e MA - Automatismes","Question 20",57.9]
["Test spécifique - 4e MA - Automatismes","Question 21",39.700000000000003]
["Test spécifique - 4e MA - Automatismes","Question 22",38.799999999999997]
[]
[]
[]
[]
[]
[]
[]
[]
[]
[]
[]
[]
[]
[]
[]
[]
[]
[]
[]
[]
[]
[]
[]
["Test spécifique - 4e MA - Automatismes","Question 01",92.6]
["Test spécifique - 4e MA - Automatismes","Question 02",87.8]
["Test spécifique - 4e MA - Automatismes","Question 03",84.6]
["Test spécifique - 4e MA - Automatismes","Question 04",84]
["Test spécifique - 4e MA - Automatismes","Question 05",82.4]
["Test spécifique - 4e MA - Automatismes","Question 06",68.599999999999994]
["Test spécifique - 4e MA - Automatismes","Question 07",66.5]
["Test spécifique - 4e MA - Automatismes","Question 08",65.400000000000006]
["Test spécifique - 4e MA - Automatismes","Question 09",45.2]
["Test spécifique - 4e MA - Automatismes","Question 10",56.4]
["Test spécifique - 4e MA - Automatismes","Question 11",51.1]
["Test spécifique - 4e MA - Automatismes","Question 12",51.1]
["Test spécifique - 4e MA - Automatismes","Question 13",44.1]
["Test spécifique - 4e MA - Automatismes","Question 14",61.7]
["Test spécifique - 4e MA - Automatismes","Question 15",57.4]
["Test spécifique - 4e MA - Automatismes","Question 16",53.2]
["Test spécifique - 4e MA - Automatismes","Question 17",44.7]
["Test spécifique - 4e MA - Automatismes","Question 18",47.9]
["Test spécifique - 4e MA - Automatismes","Question 19",39.4]
["Test spécifique - 4e MA - Automatismes","Question 20",34]
["Test spécifique - 4e MA - Automatismes","Question 21",33.5]
["Test spécifique - 4e MA - Automatismes","Question 22",37.799999999999997]
[]
[]
[]
[]
[]
[]
[]
[]
[]
[]
[]
[]
[]
[]
[]
[]
[]
[]
[]
[]
[]
[]
[]
["Test spécifique - 4e MA - Automatismes","Question 01",83.7]
["Test spécifique - 4e MA - Automatismes","Question 02",87.8]
["Test spécifique - 4e MA - Automatismes","Question 03",71.400000000000006]
["Test spécifique - 4e MA - Automatismes","Question 04",89.8]
["Test spécifique - 4e MA - Automatismes","Question 05",49]
["Test spécifique - 4e MA - Automatismes","Question 06",59.2]
["Test spécifique - 4e MA - Automatismes","Question 07",65.3]
["Test spécifique - 4e MA - Automatismes","Question 08",79.599999999999994]
["Test spécifique - 4e MA - Automatismes","Question 09",32.700000000000003]
["Test spécifique - 4e MA - Automatismes","Question 10",42.9]
["Test spécifique - 4e MA - Automatismes","Question 11",30.6]
["Test spécifique - 4e MA - Automatismes","Question 12",40.799999999999997]
["Test spécifique - 4e MA - Automatismes","Question 13",24.5]
["Test spécifique - 4e MA - Automatismes","Question 14",40.799999999999997]
["Test spécifique - 4e MA - Automatismes","Question 15",40.799999999999997]
["Test spécifique - 4e MA - Automatismes","Question 16",30.6]
["Test spécifique - 4e MA - Automatismes","Question 17",20.399999999999999]
["Test spécifique - 4e MA - Automatismes","Question 18",44.9]
["Test spécifique - 4e MA - Automatismes","Question 19",38.799999999999997]
["Test spécifique - 4e MA - Automatismes","Question 20",42.9]
["Test spécifique - 4e MA - Automatismes","Question 21",32.700000000000003]
["Test spécifique - 4e MA - Automatismes","Question 22",38.799999999999997]
[]
[]
[]
[]
[]
[]
[]
[]
[]
[]
[]
[]
[]
[]
[]
[]
[]
[]
[]
[]
[]
[]
[]
["Test spécifique - 4e MA - Automatismes","Question 01",92.7]
["Test spécifique - 4e MA - Automatismes","Question 02",90.3]
["Test spécifique - 4e MA - Automatismes","Question 03",86.2]
["Test spécifique - 4e MA - Automatismes","Question 04",87]
["Test spécifique - 4e MA - Automatismes","Question 05",57.9]
["Test spécifique - 4e MA - Automatismes","Question 06",47.4]
["Test spécifique - 4e MA - Automatismes","Question 07",67.2]
["Test spécifique - 4e MA - Automatismes","Question 08",70.900000000000006]
["Test spécifique - 4e MA - Automatismes","Question 09",42.1]
["Test spécifique - 4e MA - Automatismes","Question 10",59.5]
["Test spécifique - 4e MA - Automatismes","Question 11",43.7]
["Test spécifique - 4e MA - Automatismes","Question 12",50.6]
["Test spécifique - 4e MA - Automatismes","Question 13",50.6]
["Test spécifique - 4e MA - Automatismes","Question 14",59.5]
["Test spécifique - 4e MA - Automatismes","Question 15",52.6]
["Test spécifique - 4e MA - Automatismes","Question 16",53]
["Test spécifique - 4e MA - Automatismes","Question 17",42.1]
["Test spécifique - 4e MA - Automatismes","Question 18",43.7]
["Test spécifique - 4e MA - Automatismes","Question 19",36.799999999999997]
["Test spécifique - 4e MA - Automatismes","Question 20",51.4]
["Test spécifique - 4e MA - Automatismes","Question 21",44.5]
["Test spécifique - 4e MA - Automatismes","Question 22",45.7]
[]
[]
[]
[]
[]
[]
[]
[]
[]
[]
[]
[]
[]
[]
[]
[]
[]
[]
[]
[]
[]
[]
[]
["Test spécifique - 4e MA - Automatismes","Question 01",98.4]
["Test spécifique - 4e MA - Automatismes","Question 02",94.6]
["Test spécifique - 4e MA - Automatismes","Question 03",94.6]
["Test spécifique - 4e MA - Automatismes","Question 04",92.2]
["Test spécifique - 4e MA - Automatismes","Question 05",86]
["Test spécifique - 4e MA - Automatismes","Question 06",62.8]
["Test spécifique - 4e MA - Automatismes","Question 07",75.2]
["Test spécifique - 4e MA - Automatismes","Question 08",72.900000000000006]
["Test spécifique - 4e MA - Automatismes","Question 09",59.7]
["Test spécifique - 4e MA - Automatismes","Question 10",57.4]
["Test spécifique - 4e MA - Automatismes","Question 11",71.3]
["Test spécifique - 4e MA - Automatismes","Question 12",65.099999999999994]
["Test spécifique - 4e MA - Automatismes","Question 13",62.8]
["Test spécifique - 4e MA - Automatismes","Question 14",58.1]
["Test spécifique - 4e MA - Automatismes","Question 15",65.099999999999994]
["Test spécifique - 4e MA - Automatismes","Question 16",64.3]
["Test spécifique - 4e MA - Automatismes","Question 17",41.9]
["Test spécifique - 4e MA - Automatismes","Question 18",48.8]
["Test spécifique - 4e MA - Automatismes","Question 19",34.9]
["Test spécifique - 4e MA - Automatismes","Question 20",41.9]
["Test spécifique - 4e MA - Automatismes","Question 21",43.4]
["Test spécifique - 4e MA - Automatismes","Question 22",48.8]
[]
[]
[]
[]
[]
[]
[]
[]
[]
[]
[]
[]
[]
[]
[]
[]
[]
[]
[]
[]
[]
[]
[]
["Test spécifique - 4e MA - Automatismes","Question 01",94.2]
["Test spécifique - 4e MA - Automatismes","Question 02",95.8]
["Test spécifique - 4e MA - Automatismes","Question 03",77.5]
["Test spécifique - 4e MA - Automatismes","Question 04",91.7]
["Test spécifique - 4e MA - Automatismes","Question 05",78.3]
["Test spécifique - 4e MA - Automatismes","Question 06",68.3]
["Test spécifique - 4e MA - Automatismes","Question 07",65.8]
["Test spécifique - 4e MA - Automatismes","Question 08",66.7]
["Test spécifique - 4e MA - Automatismes","Question 09",49.2]
["Test spécifique - 4e MA - Automatismes","Question 10",56.7]
["Test spécifique - 4e MA - Automatismes","Question 11",53.3]
["Test spécifique - 4e MA - Automatismes","Question 12",57.5]
["Test spécifique - 4e MA - Automatismes","Question 13",36.700000000000003]
["Test spécifique - 4e MA - Automatismes","Question 14",24.2]
["Test spécifique - 4e MA - Automatismes","Question 15",44.2]
["Test spécifique - 4e MA - Automatismes","Question 16",46.7]
["Test spécifique - 4e MA - Automatismes","Question 17",21.7]
["Test spécifique - 4e MA - Automatismes","Question 18",48.3]
["Test spécifique - 4e MA - Automatismes","Question 19",61.7]
["Test spécifique - 4e MA - Automatismes","Question 20",45]
["Test spécifique - 4e MA - Automatismes","Question 21",30.8]
["Test spécifique - 4e MA - Automatismes","Question 22",36.700000000000003]
[]
[]
[]
[]
[]
[]
[]
[]
[]
[]
[]
[]
[]
[]
[]
[]
[]
[]
[]
[]
[]
[]
[]
["Test spécifique - 4e MA - Automatismes","Question 01",94.9]
["Test spécifique - 4e MA - Automatismes","Question 02",92.4]
["Test spécifique - 4e MA - Automatismes","Question 03",81]
["Test spécifique - 4e MA - Automatismes","Question 04",84.2]
["Test spécifique - 4e MA - Automatismes","Question 05",72.8]
["Test spécifique - 4e MA - Automatismes","Question 06",63.9]
["Test spécifique - 4e MA - Automatismes","Question 07",70.3]
["Test spécifique - 4e MA - Automatismes","Question 08",63.3]
["Test spécifique - 4e MA - Automatismes","Question 09",43]
["Test spécifique - 4e MA - Automatismes","Question 10",56.3]
["Test spécifique - 4e MA - Automatismes","Question 11",57]
["Test spécifique - 4e MA - Automatismes","Question 12",58.2]
["Test spécifique - 4e MA - Automatismes","Question 13",45.6]
["Test spécifique - 4e MA - Automatismes","Question 14",38.6]
["Test spécifique - 4e MA - Automatismes","Question 15",60.1]
["Test spécifique - 4e MA - Automatismes","Question 16",57]
["Test spécifique - 4e MA - Automatismes","Question 17",43]
["Test spécifique - 4e MA - Automatismes","Question 18",53.2]
["Test spécifique - 4e MA - Automatismes","Question 19",30.4]
["Test spécifique - 4e MA - Automatismes","Question 20",39.200000000000003]
["Test spécifique - 4e MA - Automatismes","Question 21",28.5]
["Test spécifique - 4e MA - Automatismes","Question 22",37.299999999999997]
[]
[]
[]
[]
[]
[]
[]
[]
[]
[]
[]
[]
[]
[]
[]
[]
[]
[]
[]
[]
[]
[]
[]
["Test spécifique - 4e MA - Automatismes","Question 01",93.7]
["Test spécifique - 4e MA - Automatismes","Question 02",92.9]
["Test spécifique - 4e MA - Automatismes","Question 03",77.2]
["Test spécifique - 4e MA - Automatismes","Question 04",86.6]
["Test spécifique - 4e MA - Automatismes","Question 05",73.2]
["Test spécifique - 4e MA - Automatismes","Question 06",72.400000000000006]
["Test spécifique - 4e MA - Automatismes","Question 07",58.3]
["Test spécifique - 4e MA - Automatismes","Question 08",66.900000000000006]
["Test spécifique - 4e MA - Automatismes","Question 09",52]
["Test spécifique - 4e MA - Automatismes","Question 10",59.8]
["Test spécifique - 4e MA - Automatismes","Question 11",49.6]
["Test spécifique - 4e MA - Automatismes","Question 12",48]
["Test spécifique - 4e MA - Automatismes","Question 13",45.7]
["Test spécifique - 4e MA - Automatismes","Question 14",42.5]
["Test spécifique - 4e MA - Automatismes","Question 15",47.2]
["Test spécifique - 4e MA - Automatismes","Question 16",58.3]
["Test spécifique - 4e MA - Automatismes","Question 17",32.299999999999997]
["Test spécifique - 4e MA - Automatismes","Question 18",51.2]
["Test spécifique - 4e MA - Automatismes","Question 19",43.3]
["Test spécifique - 4e MA - Automatismes","Question 20",36.200000000000003]
["Test spécifique - 4e MA - Automatismes","Question 21",15.7]
["Test spécifique - 4e MA - Automatismes","Question 22",48.8]
[]
[]
[]
[]
[]
[]
[]
[]
[]
[]
[]
[]
[]
[]
[]
[]
[]
[]
[]
[]
[]
[]
[]
["Test spécifique - 4e MA - Automatismes","Question 01",96.4]
["Test spécifique - 4e MA - Automatismes","Question 02",89.2]
["Test spécifique - 4e MA - Automatismes","Question 03",83.1]
["Test spécifique - 4e MA - Automatismes","Question 04",92.8]
["Test spécifique - 4e MA - Automatismes","Question 05",55.4]
["Test spécifique - 4e MA - Automatismes","Question 06",68.7]
["Test spécifique - 4e MA - Automatismes","Question 07",61.4]
["Test spécifique - 4e MA - Automatismes","Question 08",66.3]
["Test spécifique - 4e MA - Automatismes","Question 09",26.5]
["Test spécifique - 4e MA - Automatismes","Question 10",48.2]
["Test spécifique - 4e MA - Automatismes","Question 11",51.8]
["Test spécifique - 4e MA - Automatismes","Question 12",50.6]
["Test spécifique - 4e MA - Automatismes","Question 13",30.1]
["Test spécifique - 4e MA - Automatismes","Question 14",39.799999999999997]
["Test spécifique - 4e MA - Automatismes","Question 15",56.6]
["Test spécifique - 4e MA - Automatismes","Question 16",56.6]
["Test spécifique - 4e MA - Automatismes","Question 17",24.1]
["Test spécifique - 4e MA - Automatismes","Question 18",43.4]
["Test spécifique - 4e MA - Automatismes","Question 19",30.1]
["Test spécifique - 4e MA - Automatismes","Question 20",50.6]
["Test spécifique - 4e MA - Automatismes","Question 21",24.1]
["Test spécifique - 4e MA - Automatismes","Question 22",34.9]
[]
[]
[]
[]
[]
[]
[]
[]
[]
[]
[]
[]
[]
[]
[]
[]
[]
[]
[]
[]
[]
[]
[]
["Test spécifique - 4e MA - Automatismes","Question 01",94.2]
["Test spécifique - 4e MA - Automatismes","Question 02",89.9]
["Test spécifique - 4e MA - Automatismes","Question 03",72.5]
["Test spécifique - 4e MA - Automatismes","Question 04",81.2]
["Test spécifique - 4e MA - Automatismes","Question 05",62.3]
["Test spécifique - 4e MA - Automatismes","Question 06",60.9]
["Test spécifique - 4e MA - Automatismes","Question 07",60.9]
["Test spécifique - 4e MA - Automatismes","Question 08",60.9]
["Test spécifique - 4e MA - Automatismes","Question 09",27.5]
["Test spécifique - 4e MA - Automatismes","Question 10",40.6]
["Test spécifique - 4e MA - Automatismes","Question 11",42]
["Test spécifique - 4e MA - Automatismes","Question 12",56.5]
["Test spécifique - 4e MA - Automatismes","Question 13",21.7]
["Test spécifique - 4e MA - Automatismes","Question 14",18.8]
["Test spécifique - 4e MA - Automatismes","Question 15",39.1]
["Test spécifique - 4e MA - Automatismes","Question 16",36.200000000000003]
["Test spécifique - 4e MA - Automatismes","Question 17",27.5]
["Test spécifique - 4e MA - Automatismes","Question 18",33.299999999999997]
["Test spécifique - 4e MA - Automatismes","Question 19",21.7]
["Test spécifique - 4e MA - Automatismes","Question 20",27.5]
["Test spécifique - 4e MA - Automatismes","Question 21",18.8]
["Test spécifique - 4e MA - Automatismes","Question 22",20.3]
[]
[]
[]
[]
[]
[]
[]
[]
[]
[]
[]
[]
[]
[]
[]
[]
[]
[]
[]
[]
[]
[]
[]
["Test spécifique - 4e MA - Automatismes","Question 01",95.8]
["Test spécifique - 4e MA - Automatismes","Question 02",90]
["Test spécifique - 4e MA - Automatismes","Question 03",86.7]
["Test spécifique - 4e MA - Automatismes","Question 04",82.5]
["Test spécifique - 4e MA - Automatismes","Question 05",73.3]
["Test spécifique - 4e MA - Automatismes","Question 06",55]
["Test spécifique - 4e MA - Automatismes","Question 07",61.7]
["Test spécifique - 4e MA - Automatismes","Question 08",65]
["Test spécifique - 4e MA - Automatismes","Question 09",52.5]
["Test spécifique - 4e MA - Automatismes","Question 10",50.8]
["Test spécifique - 4e MA - Automatismes","Question 11",47.5]
["Test spécifique - 4e MA - Automatismes","Question 12",55]
["Test spécifique - 4e MA - Automatismes","Question 13",50]
["Test spécifique - 4e MA - Automatismes","Question 14",51.7]
["Test spécifique - 4e MA - Automatismes","Question 15",53.3]
["Test spécifique - 4e MA - Automatismes","Question 16",55]
["Test spécifique - 4e MA - Automatismes","Question 17",28.3]
["Test spécifique - 4e MA - Automatismes","Question 18",59.2]
["Test spécifique - 4e MA - Automatismes","Question 19",49.2]
["Test spécifique - 4e MA - Automatismes","Question 20",46.7]
["Test spécifique - 4e MA - Automatismes","Question 21",22.5]
["Test spécifique - 4e MA - Automatismes","Question 22",30.8]
[]
[]
[]
[]
[]
[]
[]
[]
[]
[]
[]
[]
[]
[]
[]
[]
[]
[]
[]
[]
[]
[]
[]
["Test spécifique - 4e MA - Automatismes","Question 01",90.2]
["Test spécifique - 4e MA - Automatismes","Question 02",89.6]
["Test spécifique - 4e MA - Automatismes","Question 03",80.3]
["Test spécifique - 4e MA - Automatismes","Question 04",84.4]
["Test spécifique - 4e MA - Automatismes","Question 05",65.900000000000006]
["Test spécifique - 4e MA - Automatismes","Question 06",69.400000000000006]
["Test spécifique - 4e MA - Automatismes","Question 07",56.1]
["Test spécifique - 4e MA - Automatismes","Question 08",57.2]
["Test spécifique - 4e MA - Automatismes","Question 09",31.8]
["Test spécifique - 4e MA - Automatismes","Question 10",50.3]
["Test spécifique - 4e MA - Automatismes","Question 11",42.2]
["Test spécifique - 4e MA - Automatismes","Question 12",56.6]
["Test spécifique - 4e MA - Automatismes","Question 13",37]
["Test spécifique - 4e MA - Automatismes","Question 14",24.9]
["Test spécifique - 4e MA - Automatismes","Question 15",46.8]
["Test spécifique - 4e MA - Automatismes","Question 16",34.1]
["Test spécifique - 4e MA - Automatismes","Question 17",34.700000000000003]
["Test spécifique - 4e MA - Automatismes","Question 18",35.299999999999997]
["Test spécifique - 4e MA - Automatismes","Question 19",30.1]
["Test spécifique - 4e MA - Automatismes","Question 20",52]
["Test spécifique - 4e MA - Automatismes","Question 21",16.8]
["Test spécifique - 4e MA - Automatismes","Question 22",36.4]
[]
[]
[]
[]
[]
[]
[]
[]
[]
[]
[]
[]
[]
[]
[]
[]
[]
[]
[]
[]
[]
[]
[]
["Test spécifique - 4e MA - Automatismes","Question 01",92.9]
["Test spécifique - 4e MA - Automatismes","Question 02",89.3]
["Test spécifique - 4e MA - Automatismes","Question 03",87.5]
["Test spécifique - 4e MA - Automatismes","Question 04",91.1]
["Test spécifique - 4e MA - Automatismes","Question 05",71.400000000000006]
["Test spécifique - 4e MA - Automatismes","Question 06",64.3]
["Test spécifique - 4e MA - Automatismes","Question 07",51.8]
["Test spécifique - 4e MA - Automatismes","Question 08",64.3]
["Test spécifique - 4e MA - Automatismes","Question 09",32.1]
["Test spécifique - 4e MA - Automatismes","Question 10",62.5]
["Test spécifique - 4e MA - Automatismes","Question 11",50]
["Test spécifique - 4e MA - Automatismes","Question 12",53.6]
["Test spécifique - 4e MA - Automatismes","Question 13",35.700000000000003]
["Test spécifique - 4e MA - Automatismes","Question 14",42.9]
["Test spécifique - 4e MA - Automatismes","Question 15",41.1]
["Test spécifique - 4e MA - Automatismes","Question 16",44.6]
["Test spécifique - 4e MA - Automatismes","Question 17",32.1]
["Test spécifique - 4e MA - Automatismes","Question 18",53.6]
["Test spécifique - 4e MA - Automatismes","Question 19",25]
["Test spécifique - 4e MA - Automatismes","Question 20",55.4]
["Test spécifique - 4e MA - Automatismes","Question 21",23.2]
["Test spécifique - 4e MA - Automatismes","Question 22",30.4]
[]
[]
[]
[]
[]
[]
[]
[]
[]
[]
[]
[]
[]
[]
[]
[]
[]
[]
[]
[]
[]
[]
[]
["Test spécifique - 4e MA - Automatismes","Question 01",95.8]
["Test spécifique - 4e MA - Automatismes","Question 02",86.7]
["Test spécifique - 4e MA - Automatismes","Question 03",93.3]
["Test spécifique - 4e MA - Automatismes","Question 04",86.7]
["Test spécifique - 4e MA - Automatismes","Question 05",70]
["Test spécifique - 4e MA - Automatismes","Question 06",47.5]
["Test spécifique - 4e MA - Automatismes","Question 07",74.2]
["Test spécifique - 4e MA - Automatismes","Question 08",70]
["Test spécifique - 4e MA - Automatismes","Question 09",44.2]
["Test spécifique - 4e MA - Automatismes","Question 10",63.3]
["Test spécifique - 4e MA - Automatismes","Question 11",50.8]
["Test spécifique - 4e MA - Automatismes","Question 12",66.7]
["Test spécifique - 4e MA - Automatismes","Question 13",55]
["Test spécifique - 4e MA - Automatismes","Question 14",65.8]
["Test spécifique - 4e MA - Automatismes","Question 15",67.5]
["Test spécifique - 4e MA - Automatismes","Question 16",65.8]
["Test spécifique - 4e MA - Automatismes","Question 17",48.3]
["Test spécifique - 4e MA - Automatismes","Question 18",63.3]
["Test spécifique - 4e MA - Automatismes","Question 19",50]
["Test spécifique - 4e MA - Automatismes","Question 20",46.7]
["Test spécifique - 4e MA - Automatismes","Question 21",26.7]
["Test spécifique - 4e MA - Automatismes","Question 22",44.2]
[]
[]
[]
[]
[]
[]
[]
[]
[]
[]
[]
[]
[]
[]
[]
[]
[]
[]
[]
[]
[]
[]
[]
["Test spécifique - 4e MA - Automatismes","Question 01",87.9]
["Test spécifique - 4e MA - Automatismes","Question 02",87.1]
["Test spécifique - 4e MA - Automatismes","Question 03",78.2]
["Test spécifique - 4e MA - Automatismes","Question 04",81.5]
["Test spécifique - 4e MA - Automatismes","Question 05",60.5]
["Test spécifique - 4e MA - Automatismes","Question 06",54]
["Test spécifique - 4e MA - Automatismes","Question 07",53.2]
["Test spécifique - 4e MA - Automatismes","Question 08",66.099999999999994]
["Test spécifique - 4e MA - Automatismes","Question 09",42.7]
["Test spécifique - 4e MA - Automatismes","Question 10",46]
["Test spécifique - 4e MA - Automatismes","Question 11",37.9]
["Test spécifique - 4e MA - Automatismes","Question 12",57.3]
["Test spécifique - 4e MA - Automatismes","Question 13",38.700000000000003]
["Test spécifique - 4e MA - Automatismes","Question 14",35.5]
["Test spécifique - 4e MA - Automatismes","Question 15",50]
["Test spécifique - 4e MA - Automatismes","Question 16",41.9]
["Test spécifique - 4e MA - Automatismes","Question 17",38.700000000000003]
["Test spécifique - 4e MA - Automatismes","Question 18",30.6]
["Test spécifique - 4e MA - Automatismes","Question 19",35.5]
["Test spécifique - 4e MA - Automatismes","Question 20",37.1]
["Test spécifique - 4e MA - Automatismes","Question 21",15.3]
["Test spécifique - 4e MA - Automatismes","Question 22",41.9]
[]
[]
[]
[]
[]
[]
[]
[]
[]
[]
[]
[]
[]
[]
[]
[]
[]
[]
[]
[]
[]
[]
[]
["Test spécifique - 4e MA - Automatismes","Question 01",91]
["Test spécifique - 4e MA - Automatismes","Question 02",91]
["Test spécifique - 4e MA - Automatismes","Question 03",79.3]
["Test spécifique - 4e MA - Automatismes","Question 04",80.7]
["Test spécifique - 4e MA - Automatismes","Question 05",63.4]
["Test spécifique - 4e MA - Automatismes","Question 06",62.8]
["Test spécifique - 4e MA - Automatismes","Question 07",57.2]
["Test spécifique - 4e MA - Automatismes","Question 08",67.599999999999994]
["Test spécifique - 4e MA - Automatismes","Question 09",42.1]
["Test spécifique - 4e MA - Automatismes","Question 10",51.7]
["Test spécifique - 4e MA - Automatismes","Question 11",51]
["Test spécifique - 4e MA - Automatismes","Question 12",55.2]
["Test spécifique - 4e MA - Automatismes","Question 13",38.6]
["Test spécifique - 4e MA - Automatismes","Question 14",9.6999999999999993]
["Test spécifique - 4e MA - Automatismes","Question 15",45.5]
["Test spécifique - 4e MA - Automatismes","Question 16",43.4]
["Test spécifique - 4e MA - Automatismes","Question 17",31.7]
["Test spécifique - 4e MA - Automatismes","Question 18",50.3]
["Test spécifique - 4e MA - Automatismes","Question 19",35.200000000000003]
["Test spécifique - 4e MA - Automatismes","Question 20",37.200000000000003]
["Test spécifique - 4e MA - Automatismes","Question 21",21.4]
["Test spécifique - 4e MA - Automatismes","Question 22",40]
[]
[]
[]
[]
[]
[]
[]
[]
[]
[]
[]
[]
[]
[]
[]
[]
[]
[]
[]
[]
[]
[]
[]
["Test spécifique - 4e MA - Automatismes","Question 01",92.5]
["Test spécifique - 4e MA - Automatismes","Question 02",83]
["Test spécifique - 4e MA - Automatismes","Question 03",63.2]
["Test spécifique - 4e MA - Automatismes","Question 04",76.400000000000006]
["Test spécifique - 4e MA - Automatismes","Question 05",41.5]
["Test spécifique - 4e MA - Automatismes","Question 06",64.2]
["Test spécifique - 4e MA - Automatismes","Question 07",55.7]
["Test spécifique - 4e MA - Automatismes","Question 08",51.9]
["Test spécifique - 4e MA - Automatismes","Question 09",17]
["Test spécifique - 4e MA - Automatismes","Question 10",34.9]
["Test spécifique - 4e MA - Automatismes","Question 11",39.6]
["Test spécifique - 4e MA - Automatismes","Question 12",50]
["Test spécifique - 4e MA - Automatismes","Question 13",17]
["Test spécifique - 4e MA - Automatismes","Question 14",11.3]
["Test spécifique - 4e MA - Automatismes","Question 15",35.799999999999997]
["Test spécifique - 4e MA - Automatismes","Question 16",27.4]
["Test spécifique - 4e MA - Automatismes","Question 17",38.700000000000003]
["Test spécifique - 4e MA - Automatismes","Question 18",28.3]
["Test spécifique - 4e MA - Automatismes","Question 19",32.1]
["Test spécifique - 4e MA - Automatismes","Question 20",27.4]
["Test spécifique - 4e MA - Automatismes","Question 21",27.4]
["Test spécifique - 4e MA - Automatismes","Question 22",25.5]
[]
[]
[]
[]
[]
[]
[]
[]
[]
[]
[]
[]
[]
[]
[]
[]
[]
[]
[]
[]
[]
[]
[]
["Test spécifique - 4e MA - Automatismes","Question 01",96.7]
["Test spécifique - 4e MA - Automatismes","Question 02",95.9]
["Test spécifique - 4e MA - Automatismes","Question 03",83.7]
["Test spécifique - 4e MA - Automatismes","Question 04",86.2]
["Test spécifique - 4e MA - Automatismes","Question 05",78.900000000000006]
["Test spécifique - 4e MA - Automatismes","Question 06",65.900000000000006]
["Test spécifique - 4e MA - Automatismes","Question 07",74]
["Test spécifique - 4e MA - Automatismes","Question 08",77.2]
["Test spécifique - 4e MA - Automatismes","Question 09",54.5]
["Test spécifique - 4e MA - Automatismes","Question 10",61.8]
["Test spécifique - 4e MA - Automatismes","Question 11",55.3]
["Test spécifique - 4e MA - Automatismes","Question 12",49.6]
["Test spécifique - 4e MA - Automatismes","Question 13",51.2]
["Test spécifique - 4e MA - Automatismes","Question 14",35.799999999999997]
["Test spécifique - 4e MA - Automatismes","Question 15",48]
["Test spécifique - 4e MA - Automatismes","Question 16",56.9]
["Test spécifique - 4e MA - Automatismes","Question 17",32.5]
["Test spécifique - 4e MA - Automatismes","Question 18",42.3]
["Test spécifique - 4e MA - Automatismes","Question 19",48]
["Test spécifique - 4e MA - Automatismes","Question 20",40.700000000000003]
["Test spécifique - 4e MA - Automatismes","Question 21",37.4]
["Test spécifique - 4e MA - Automatismes","Question 22",42.3]
[]
[]
[]
[]
[]
[]
[]
[]
[]
[]
[]
[]
[]
[]
[]
[]
[]
[]
[]
[]
[]
[]
[]
["Test spécifique - 4e MA - Automatismes","Question 01",92.6]
["Test spécifique - 4e MA - Automatismes","Question 02",86.8]
["Test spécifique - 4e MA - Automatismes","Question 03",83.8]
["Test spécifique - 4e MA - Automatismes","Question 04",86.8]
["Test spécifique - 4e MA - Automatismes","Question 05",79.400000000000006]
["Test spécifique - 4e MA - Automatismes","Question 06",57.4]
["Test spécifique - 4e MA - Automatismes","Question 07",52.9]
["Test spécifique - 4e MA - Automatismes","Question 08",69.099999999999994]
["Test spécifique - 4e MA - Automatismes","Question 09",38.200000000000003]
["Test spécifique - 4e MA - Automatismes","Question 10",51.5]
["Test spécifique - 4e MA - Automatismes","Question 11",50]
["Test spécifique - 4e MA - Automatismes","Question 12",51.5]
["Test spécifique - 4e MA - Automatismes","Question 13",36.799999999999997]
["Test spécifique - 4e MA - Automatismes","Question 14",66.2]
["Test spécifique - 4e MA - Automatismes","Question 15",45.6]
["Test spécifique - 4e MA - Automatismes","Question 16",42.6]
["Test spécifique - 4e MA - Automatismes","Question 17",39.700000000000003]
["Test spécifique - 4e MA - Automatismes","Question 18",44.1]
["Test spécifique - 4e MA - Automatismes","Question 19",33.799999999999997]
["Test spécifique - 4e MA - Automatismes","Question 20",38.200000000000003]
["Test spécifique - 4e MA - Automatismes","Question 21",16.2]
["Test spécifique - 4e MA - Automatismes","Question 22",35.299999999999997]
[]
[]
[]
[]
[]
[]
[]
[]
[]
[]
[]
[]
[]
[]
[]
[]
[]
[]
[]
[]
[]
[]
[]
["Test spécifique - 4e MA - Automatismes","Question 01",92.7]
["Test spécifique - 4e MA - Automatismes","Question 02",97.6]
["Test spécifique - 4e MA - Automatismes","Question 03",87.8]
["Test spécifique - 4e MA - Automatismes","Question 04",82.9]
["Test spécifique - 4e MA - Automatismes","Question 05",85.4]
["Test spécifique - 4e MA - Automatismes","Question 06",63.4]
["Test spécifique - 4e MA - Automatismes","Question 07",65.900000000000006]
["Test spécifique - 4e MA - Automatismes","Question 08",73.2]
["Test spécifique - 4e MA - Automatismes","Question 09",46.3]
["Test spécifique - 4e MA - Automatismes","Question 10",43.9]
["Test spécifique - 4e MA - Automatismes","Question 11",53.7]
["Test spécifique - 4e MA - Automatismes","Question 12",58.5]
["Test spécifique - 4e MA - Automatismes","Question 13",48.8]
["Test spécifique - 4e MA - Automatismes","Question 14",19.5]
["Test spécifique - 4e MA - Automatismes","Question 15",39]
["Test spécifique - 4e MA - Automatismes","Question 16",36.6]
["Test spécifique - 4e MA - Automatismes","Question 17",46.3]
["Test spécifique - 4e MA - Automatismes","Question 18",46.3]
["Test spécifique - 4e MA - Automatismes","Question 19",34.1]
["Test spécifique - 4e MA - Automatismes","Question 20",36.6]
["Test spécifique - 4e MA - Automatismes","Question 21",70.7]
["Test spécifique - 4e MA - Automatismes","Question 22",22]
[]
[]
[]
[]
[]
[]
[]
[]
[]
[]
[]
[]
[]
[]
[]
[]
[]
[]
[]
[]
[]
[]
[]
["Test spécifique - 4e MA - Automatismes","Question 01",95.9]
["Test spécifique - 4e MA - Automatismes","Question 02",91.8]
["Test spécifique - 4e MA - Automatismes","Question 03",90.8]
["Test spécifique - 4e MA - Automatismes","Question 04",88.8]
["Test spécifique - 4e MA - Automatismes","Question 05",75.5]
["Test spécifique - 4e MA - Automatismes","Question 06",68.400000000000006]
["Test spécifique - 4e MA - Automatismes","Question 07",71.400000000000006]
["Test spécifique - 4e MA - Automatismes","Question 08",73.5]
["Test spécifique - 4e MA - Automatismes","Question 09",45.9]
["Test spécifique - 4e MA - Automatismes","Question 10",62.2]
["Test spécifique - 4e MA - Automatismes","Question 11",65.3]
["Test spécifique - 4e MA - Automatismes","Question 12",60.2]
["Test spécifique - 4e MA - Automatismes","Question 13",55.1]
["Test spécifique - 4e MA - Automatismes","Question 14",9.1999999999999993]
["Test spécifique - 4e MA - Automatismes","Question 15",67.3]
["Test spécifique - 4e MA - Automatismes","Question 16",71.400000000000006]
["Test spécifique - 4e MA - Automatismes","Question 17",44.9]
["Test spécifique - 4e MA - Automatismes","Question 18",44.9]
["Test spécifique - 4e MA - Automatismes","Question 19",33.700000000000003]
["Test spécifique - 4e MA - Automatismes","Question 20",51]
["Test spécifique - 4e MA - Automatismes","Question 21",18.399999999999999]
["Test spécifique - 4e MA - Automatismes","Question 22",44.9]
[]
[]
[]
[]
[]
[]
[]
[]
[]
[]
[]
[]
[]
[]
[]
[]
[]
[]
[]
[]
[]
[]
[]
["Test spécifique - 4e MA - Automatismes","Question 01",87.5]
["Test spécifique - 4e MA - Automatismes","Question 02",89.3]
["Test spécifique - 4e MA - Automatismes","Question 03",82.1]
["Test spécifique - 4e MA - Automatismes","Question 04",80.400000000000006]
["Test spécifique - 4e MA - Automatismes","Question 05",48.2]
["Test spécifique - 4e MA - Automatismes","Question 06",71.400000000000006]
["Test spécifique - 4e MA - Automatismes","Question 07",66.099999999999994]
["Test spécifique - 4e MA - Automatismes","Question 08",37.5]
["Test spécifique - 4e MA - Automatismes","Question 09",48.2]
["Test spécifique - 4e MA - Automatismes","Question 10",39.299999999999997]
["Test spécifique - 4e MA - Automatismes","Question 11",46.4]
["Test spécifique - 4e MA - Automatismes","Question 12",60.7]
["Test spécifique - 4e MA - Automatismes","Question 13",41.1]
["Test spécifique - 4e MA - Automatismes","Question 14",17.899999999999999]
["Test spécifique - 4e MA - Automatismes","Question 15",44.6]
["Test spécifique - 4e MA - Automatismes","Question 16",39.299999999999997]
["Test spécifique - 4e MA - Automatismes","Question 17",51.8]
["Test spécifique - 4e MA - Automatismes","Question 18",41.1]
["Test spécifique - 4e MA - Automatismes","Question 19",35.700000000000003]
["Test spécifique - 4e MA - Automatismes","Question 20",32.1]
["Test spécifique - 4e MA - Automatismes","Question 21",28.6]
["Test spécifique - 4e MA - Automatismes","Question 22",25]
[]
[]
[]
[]
[]
[]
[]
[]
[]
[]
[]
[]
[]
[]
[]
[]
[]
[]
[]
[]
[]
[]
[]
["Test spécifique - 4e MA - Automatismes","Question 01",94.4]
["Test spécifique - 4e MA - Automatismes","Question 02",89.5]
["Test spécifique - 4e MA - Automatismes","Question 03",74.8]
["Test spécifique - 4e MA - Automatismes","Question 04",83.9]
["Test spécifique - 4e MA - Automatismes","Question 05",55.2]
["Test spécifique - 4e MA - Automatismes","Question 06",65]
["Test spécifique - 4e MA - Automatismes","Question 07",61.5]
["Test spécifique - 4e MA - Automatismes","Question 08",62.2]
["Test spécifique - 4e MA - Automatismes","Question 09",24.5]
["Test spécifique - 4e MA - Automatismes","Question 10",40.6]
["Test spécifique - 4e MA - Automatismes","Question 11",38.5]
["Test spécifique - 4e MA - Automatismes","Question 12",60.8]
["Test spécifique - 4e MA - Automatismes","Question 13",25.9]
["Test spécifique - 4e MA - Automatismes","Question 14",22.4]
["Test spécifique - 4e MA - Automatismes","Question 15",39.200000000000003]
["Test spécifique - 4e MA - Automatismes","Question 16",29.4]
["Test spécifique - 4e MA - Automatismes","Question 17",30.8]
["Test spécifique - 4e MA - Automatismes","Question 18",42.7]
["Test spécifique - 4e MA - Automatismes","Question 19",30.1]
["Test spécifique - 4e MA - Automatismes","Question 20",26.6]
["Test spécifique - 4e MA - Automatismes","Question 21",18.899999999999999]
["Test spécifique - 4e MA - Automatismes","Question 22",30.8]
[]
[]
[]
[]
[]
[]
[]
[]
[]
[]
[]
[]
[]
[]
[]
[]
[]
[]
[]
[]
[]
[]
[]
["Test spécifique - 4e MA - Automatismes","Question 01",93.8]
["Test spécifique - 4e MA - Automatismes","Question 02",88.7]
["Test spécifique - 4e MA - Automatismes","Question 03",85.6]
["Test spécifique - 4e MA - Automatismes","Question 04",80.400000000000006]
["Test spécifique - 4e MA - Automatismes","Question 05",63.9]
["Test spécifique - 4e MA - Automatismes","Question 06",79.400000000000006]
["Test spécifique - 4e MA - Automatismes","Question 07",56.7]
["Test spécifique - 4e MA - Automatismes","Question 08",56.7]
["Test spécifique - 4e MA - Automatismes","Question 09",52.6]
["Test spécifique - 4e MA - Automatismes","Question 10",60.8]
["Test spécifique - 4e MA - Automatismes","Question 11",45.4]
["Test spécifique - 4e MA - Automatismes","Question 12",56.7]
["Test spécifique - 4e MA - Automatismes","Question 13",36.1]
["Test spécifique - 4e MA - Automatismes","Question 14",18.600000000000001]
["Test spécifique - 4e MA - Automatismes","Question 15",53.6]
["Test spécifique - 4e MA - Automatismes","Question 16",49.5]
["Test spécifique - 4e MA - Automatismes","Question 17",28.9]
["Test spécifique - 4e MA - Automatismes","Question 18",44.3]
["Test spécifique - 4e MA - Automatismes","Question 19",36.1]
["Test spécifique - 4e MA - Automatismes","Question 20",48.5]
["Test spécifique - 4e MA - Automatismes","Question 21",27.8]
["Test spécifique - 4e MA - Automatismes","Question 22",36.1]
[]
[]
[]
[]
[]
[]
[]
[]
[]
[]
[]
[]
[]
[]
[]
[]
[]
[]
[]
[]
[]
[]
[]
["Test spécifique - 4e MA - Automatismes","Question 01",92.6]
["Test spécifique - 4e MA - Automatismes","Question 02",90.5]
["Test spécifique - 4e MA - Automatismes","Question 03",85.1]
["Test spécifique - 4e MA - Automatismes","Question 04",79.7]
["Test spécifique - 4e MA - Automatismes","Question 05",72.3]
["Test spécifique - 4e MA - Automatismes","Question 06",66.900000000000006]
["Test spécifique - 4e MA - Automatismes","Question 07",58.1]
["Test spécifique - 4e MA - Automatismes","Question 08",64.900000000000006]
["Test spécifique - 4e MA - Automatismes","Question 09",26.4]
["Test spécifique - 4e MA - Automatismes","Question 10",50]
["Test spécifique - 4e MA - Automatismes","Question 11",43.2]
["Test spécifique - 4e MA - Automatismes","Question 12",48]
["Test spécifique - 4e MA - Automatismes","Question 13",39.9]
["Test spécifique - 4e MA - Automatismes","Question 14",40.5]
["Test spécifique - 4e MA - Automatismes","Question 15",50.7]
["Test spécifique - 4e MA - Automatismes","Question 16",41.9]
["Test spécifique - 4e MA - Automatismes","Question 17",34.5]
["Test spécifique - 4e MA - Automatismes","Question 18",43.2]
["Test spécifique - 4e MA - Automatismes","Question 19",40.5]
["Test spécifique - 4e MA - Automatismes","Question 20",34.5]
["Test spécifique - 4e MA - Automatismes","Question 21",23]
["Test spécifique - 4e MA - Automatismes","Question 22",33.799999999999997]
[]
[]
[]
[]
[]
[]
[]
[]
[]
[]
[]
[]
[]
[]
[]
[]
[]
[]
[]
[]
[]
[]
[]
["Test spécifique - 4e MA - Automatismes","Question 01",85.6]
["Test spécifique - 4e MA - Automatismes","Question 02",88]
["Test spécifique - 4e MA - Automatismes","Question 03",69.599999999999994]
["Test spécifique - 4e MA - Automatismes","Question 04",76.8]
["Test spécifique - 4e MA - Automatismes","Question 05",68.8]
["Test spécifique - 4e MA - Automatismes","Question 06",68.8]
["Test spécifique - 4e MA - Automatismes","Question 07",59.2]
["Test spécifique - 4e MA - Automatismes","Question 08",47.2]
["Test spécifique - 4e MA - Automatismes","Question 09",20]
["Test spécifique - 4e MA - Automatismes","Question 10",52]
["Test spécifique - 4e MA - Automatismes","Question 11",34.4]
["Test spécifique - 4e MA - Automatismes","Question 12",56]
["Test spécifique - 4e MA - Automatismes","Question 13",21.6]
["Test spécifique - 4e MA - Automatismes","Question 14",28.8]
["Test spécifique - 4e MA - Automatismes","Question 15",39.200000000000003]
["Test spécifique - 4e MA - Automatismes","Question 16",40.799999999999997]
["Test spécifique - 4e MA - Automatismes","Question 17",25.6]
["Test spécifique - 4e MA - Automatismes","Question 18",37.6]
["Test spécifique - 4e MA - Automatismes","Question 19",38.4]
["Test spécifique - 4e MA - Automatismes","Question 20",27.2]
["Test spécifique - 4e MA - Automatismes","Question 21",22.4]
["Test spécifique - 4e MA - Automatismes","Question 22",32]
[]
[]
[]
[]
[]
[]
[]
[]
[]
[]
[]
[]
[]
[]
[]
[]
[]
[]
[]
[]
[]
[]
[]
["Test spécifique - 4e MA - Automatismes","Question 01",94.1]
["Test spécifique - 4e MA - Automatismes","Question 02",83.8]
["Test spécifique - 4e MA - Automatismes","Question 03",75]
["Test spécifique - 4e MA - Automatismes","Question 04",73.5]
["Test spécifique - 4e MA - Automatismes","Question 05",67.599999999999994]
["Test spécifique - 4e MA - Automatismes","Question 06",64.7]
["Test spécifique - 4e MA - Automatismes","Question 07",51.5]
["Test spécifique - 4e MA - Automatismes","Question 08",63.2]
["Test spécifique - 4e MA - Automatismes","Question 09",29.4]
["Test spécifique - 4e MA - Automatismes","Question 10",55.9]
["Test spécifique - 4e MA - Automatismes","Question 11",52.9]
["Test spécifique - 4e MA - Automatismes","Question 12",60.3]
["Test spécifique - 4e MA - Automatismes","Question 13",17.600000000000001]
["Test spécifique - 4e MA - Automatismes","Question 14",22.1]
["Test spécifique - 4e MA - Automatismes","Question 15",32.4]
["Test spécifique - 4e MA - Automatismes","Question 16",41.2]
["Test spécifique - 4e MA - Automatismes","Question 17",29.4]
["Test spécifique - 4e MA - Automatismes","Question 18",41.2]
["Test spécifique - 4e MA - Automatismes","Question 19",23.5]
["Test spécifique - 4e MA - Automatismes","Question 20",41.2]
["Test spécifique - 4e MA - Automatismes","Question 21",11.8]
["Test spécifique - 4e MA - Automatismes","Question 22",38.200000000000003]
[]
[]
[]
[]
[]
[]
[]
[]
[]
[]
[]
[]
[]
[]
[]
[]
[]
[]
[]
[]
[]
[]
[]
["Test spécifique - 4e MA - Automatismes","Question 01",92.5]
["Test spécifique - 4e MA - Automatismes","Question 02",85]
["Test spécifique - 4e MA - Automatismes","Question 03",82.5]
["Test spécifique - 4e MA - Automatismes","Question 04",86.3]
["Test spécifique - 4e MA - Automatismes","Question 05",68.8]
["Test spécifique - 4e MA - Automatismes","Question 06",58.7]
["Test spécifique - 4e MA - Automatismes","Question 07",71.2]
["Test spécifique - 4e MA - Automatismes","Question 08",75]
["Test spécifique - 4e MA - Automatismes","Question 09",37.5]
["Test spécifique - 4e MA - Automatismes","Question 10",56.3]
["Test spécifique - 4e MA - Automatismes","Question 11",50]
["Test spécifique - 4e MA - Automatismes","Question 12",55]
["Test spécifique - 4e MA - Automatismes","Question 13",32.5]
["Test spécifique - 4e MA - Automatismes","Question 14",53.8]
["Test spécifique - 4e MA - Automatismes","Question 15",42.5]
["Test spécifique - 4e MA - Automatismes","Question 16",42.5]
["Test spécifique - 4e MA - Automatismes","Question 17",38.700000000000003]
["Test spécifique - 4e MA - Automatismes","Question 18",38.700000000000003]
["Test spécifique - 4e MA - Automatismes","Question 19",48.8]
["Test spécifique - 4e MA - Automatismes","Question 20",48.8]
["Test spécifique - 4e MA - Automatismes","Question 21",30]
["Test spécifique - 4e MA - Automatismes","Question 22",36.299999999999997]
[]
[]
[]
[]
[]
[]
[]
[]
[]
[]
[]
[]
[]
[]
[]
[]
[]
[]
[]
[]
[]
[]
[]
["Test spécifique - 4e MA - Automatismes","Question 01",91.5]
["Test spécifique - 4e MA - Automatismes","Question 02",93.2]
["Test spécifique - 4e MA - Automatismes","Question 03",83.1]
["Test spécifique - 4e MA - Automatismes","Question 04",71.2]
["Test spécifique - 4e MA - Automatismes","Question 05",79.7]
["Test spécifique - 4e MA - Automatismes","Question 06",50.8]
["Test spécifique - 4e MA - Automatismes","Question 07",52.5]
["Test spécifique - 4e MA - Automatismes","Question 08",69.5]
["Test spécifique - 4e MA - Automatismes","Question 09",66.099999999999994]
["Test spécifique - 4e MA - Automatismes","Question 10",67.8]
["Test spécifique - 4e MA - Automatismes","Question 11",47.5]
["Test spécifique - 4e MA - Automatismes","Question 12",61]
["Test spécifique - 4e MA - Automatismes","Question 13",44.1]
["Test spécifique - 4e MA - Automatismes","Question 14",50.8]
["Test spécifique - 4e MA - Automatismes","Question 15",55.9]
["Test spécifique - 4e MA - Automatismes","Question 16",52.5]
["Test spécifique - 4e MA - Automatismes","Question 17",39]
["Test spécifique - 4e MA - Automatismes","Question 18",37.299999999999997]
["Test spécifique - 4e MA - Automatismes","Question 19",50.8]
["Test spécifique - 4e MA - Automatismes","Question 20",47.5]
["Test spécifique - 4e MA - Automatismes","Question 21",33.9]
["Test spécifique - 4e MA - Automatismes","Question 22",64.400000000000006]
[]
[]
[]
[]
[]
[]
[]
[]
[]
[]
[]
[]
[]
[]
[]
[]
[]
[]
[]
[]
[]
[]
[]
["Test spécifique - 4e MA - Automatismes","Question 01",87.9]
["Test spécifique - 4e MA - Automatismes","Question 02",84.7]
["Test spécifique - 4e MA - Automatismes","Question 03",75]
["Test spécifique - 4e MA - Automatismes","Question 04",73.400000000000006]
["Test spécifique - 4e MA - Automatismes","Question 05",50.8]
["Test spécifique - 4e MA - Automatismes","Question 06",58.9]
["Test spécifique - 4e MA - Automatismes","Question 07",50]
["Test spécifique - 4e MA - Automatismes","Question 08",55.6]
["Test spécifique - 4e MA - Automatismes","Question 09",31.5]
["Test spécifique - 4e MA - Automatismes","Question 10",36.299999999999997]
["Test spécifique - 4e MA - Automatismes","Question 11",41.9]
["Test spécifique - 4e MA - Automatismes","Question 12",55.6]
["Test spécifique - 4e MA - Automatismes","Question 13",30.6]
["Test spécifique - 4e MA - Automatismes","Question 14",41.9]
["Test spécifique - 4e MA - Automatismes","Question 15",37.1]
["Test spécifique - 4e MA - Automatismes","Question 16",35.5]
["Test spécifique - 4e MA - Automatismes","Question 17",31.5]
["Test spécifique - 4e MA - Automatismes","Question 18",46.8]
["Test spécifique - 4e MA - Automatismes","Question 19",37.1]
["Test spécifique - 4e MA - Automatismes","Question 20",26.6]
["Test spécifique - 4e MA - Automatismes","Question 21",29]
["Test spécifique - 4e MA - Automatismes","Question 22",46]
[]
[]
[]
[]
[]
[]
[]
[]
[]
[]
[]
[]
[]
[]
[]
[]
[]
[]
[]
[]
[]
[]
[]
["Test spécifique - 4e MA - Automatismes","Question 01",96.5]
["Test spécifique - 4e MA - Automatismes","Question 02",89.5]
["Test spécifique - 4e MA - Automatismes","Question 03",89.5]
["Test spécifique - 4e MA - Automatismes","Question 04",93]
["Test spécifique - 4e MA - Automatismes","Question 05",75.400000000000006]
["Test spécifique - 4e MA - Automatismes","Question 06",86]
["Test spécifique - 4e MA - Automatismes","Question 07",59.6]
["Test spécifique - 4e MA - Automatismes","Question 08",66.7]
["Test spécifique - 4e MA - Automatismes","Question 09",42.1]
["Test spécifique - 4e MA - Automatismes","Question 10",50.9]
["Test spécifique - 4e MA - Automatismes","Question 11",63.2]
["Test spécifique - 4e MA - Automatismes","Question 12",66.7]
["Test spécifique - 4e MA - Automatismes","Question 13",52.6]
["Test spécifique - 4e MA - Automatismes","Question 14",40.4]
["Test spécifique - 4e MA - Automatismes","Question 15",47.4]
["Test spécifique - 4e MA - Automatismes","Question 16",42.1]
["Test spécifique - 4e MA - Automatismes","Question 17",22.8]
["Test spécifique - 4e MA - Automatismes","Question 18",66.7]
["Test spécifique - 4e MA - Automatismes","Question 19",54.4]
["Test spécifique - 4e MA - Automatismes","Question 20",47.4]
["Test spécifique - 4e MA - Automatismes","Question 21",40.4]
["Test spécifique - 4e MA - Automatismes","Question 22",31.6]
[]
[]
[]
[]
[]
[]
[]
[]
[]
[]
[]
[]
[]
[]
[]
[]
[]
[]
[]
[]
[]
[]
[]
["Test spécifique - 4e MA - Automatismes","Question 01",93.2]
["Test spécifique - 4e MA - Automatismes","Question 02",89.8]
["Test spécifique - 4e MA - Automatismes","Question 03",84.7]
["Test spécifique - 4e MA - Automatismes","Question 04",93.2]
["Test spécifique - 4e MA - Automatismes","Question 05",71.2]
["Test spécifique - 4e MA - Automatismes","Question 06",40.700000000000003]
["Test spécifique - 4e MA - Automatismes","Question 07",62.7]
["Test spécifique - 4e MA - Automatismes","Question 08",69.5]
["Test spécifique - 4e MA - Automatismes","Question 09",32.200000000000003]
["Test spécifique - 4e MA - Automatismes","Question 10",47.5]
["Test spécifique - 4e MA - Automatismes","Question 11",52.5]
["Test spécifique - 4e MA - Automatismes","Question 12",55.9]
["Test spécifique - 4e MA - Automatismes","Question 13",61]
["Test spécifique - 4e MA - Automatismes","Question 14",13.6]
["Test spécifique - 4e MA - Automatismes","Question 15",54.2]
["Test spécifique - 4e MA - Automatismes","Question 16",52.5]
["Test spécifique - 4e MA - Automatismes","Question 17",61]
["Test spécifique - 4e MA - Automatismes","Question 18",39]
["Test spécifique - 4e MA - Automatismes","Question 19",33.9]
["Test spécifique - 4e MA - Automatismes","Question 20",55.9]
["Test spécifique - 4e MA - Automatismes","Question 21",45.8]
["Test spécifique - 4e MA - Automatismes","Question 22",28.8]
[]
[]
[]
[]
[]
[]
[]
[]
[]
[]
[]
[]
[]
[]
[]
[]
[]
[]
[]
[]
[]
[]
[]
["Test spécifique - 4e MA - Automatismes","Question 01",84.5]
["Test spécifique - 4e MA - Automatismes","Question 02",81.7]
["Test spécifique - 4e MA - Automatismes","Question 03",70.400000000000006]
["Test spécifique - 4e MA - Automatismes","Question 04",69]
["Test spécifique - 4e MA - Automatismes","Question 05",59.2]
["Test spécifique - 4e MA - Automatismes","Question 06",50.7]
["Test spécifique - 4e MA - Automatismes","Question 07",52.1]
["Test spécifique - 4e MA - Automatismes","Question 08",50.7]
["Test spécifique - 4e MA - Automatismes","Question 09",32.4]
["Test spécifique - 4e MA - Automatismes","Question 10",40.799999999999997]
["Test spécifique - 4e MA - Automatismes","Question 11",28.2]
["Test spécifique - 4e MA - Automatismes","Question 12",43.7]
["Test spécifique - 4e MA - Automatismes","Question 13",29.6]
["Test spécifique - 4e MA - Automatismes","Question 14",31]
["Test spécifique - 4e MA - Automatismes","Question 15",52.1]
["Test spécifique - 4e MA - Automatismes","Question 16",29.6]
["Test spécifique - 4e MA - Automatismes","Question 17",28.2]
["Test spécifique - 4e MA - Automatismes","Question 18",26.8]
["Test spécifique - 4e MA - Automatismes","Question 19",38]
["Test spécifique - 4e MA - Automatismes","Question 20",29.6]
["Test spécifique - 4e MA - Automatismes","Question 21",23.9]
["Test spécifique - 4e MA - Automatismes","Question 22",36.6]
[]
[]
[]
[]
[]
[]
[]
[]
[]
[]
[]
[]
[]
[]
[]
[]
[]
[]
[]
[]
[]
[]
[]
["Test spécifique - 4e MA - Automatismes","Question 01",94.2]
["Test spécifique - 4e MA - Automatismes","Question 02",94.2]
["Test spécifique - 4e MA - Automatismes","Question 03",90]
["Test spécifique - 4e MA - Automatismes","Question 04",95]
["Test spécifique - 4e MA - Automatismes","Question 05",66.7]
["Test spécifique - 4e MA - Automatismes","Question 06",72.5]
["Test spécifique - 4e MA - Automatismes","Question 07",72.5]
["Test spécifique - 4e MA - Automatismes","Question 08",74.2]
["Test spécifique - 4e MA - Automatismes","Question 09",31.7]
["Test spécifique - 4e MA - Automatismes","Question 10",53.3]
["Test spécifique - 4e MA - Automatismes","Question 11",66.7]
["Test spécifique - 4e MA - Automatismes","Question 12",65.8]
["Test spécifique - 4e MA - Automatismes","Question 13",57.5]
["Test spécifique - 4e MA - Automatismes","Question 14",6.7]
["Test spécifique - 4e MA - Automatismes","Question 15",76.7]
["Test spécifique - 4e MA - Automatismes","Question 16",62.5]
["Test spécifique - 4e MA - Automatismes","Question 17",26.7]
["Test spécifique - 4e MA - Automatismes","Question 18",56.7]
["Test spécifique - 4e MA - Automatismes","Question 19",59.2]
["Test spécifique - 4e MA - Automatismes","Question 20",40.799999999999997]
["Test spécifique - 4e MA - Automatismes","Question 21",28.3]
["Test spécifique - 4e MA - Automatismes","Question 22",43.3]
[]
[]
[]
[]
[]
[]
[]
[]
[]
[]
[]
[]
[]
[]
[]
[]
[]
[]
[]
[]
[]
[]
[]
["Test spécifique - 4e MA - Automatismes","Question 01",90.8]
["Test spécifique - 4e MA - Automatismes","Question 02",90.8]
["Test spécifique - 4e MA - Automatismes","Question 03",86.2]
["Test spécifique - 4e MA - Automatismes","Question 04",83.1]
["Test spécifique - 4e MA - Automatismes","Question 05",58.5]
["Test spécifique - 4e MA - Automatismes","Question 06",61.5]
["Test spécifique - 4e MA - Automatismes","Question 07",76.900000000000006]
["Test spécifique - 4e MA - Automatismes","Question 08",61.5]
["Test spécifique - 4e MA - Automatismes","Question 09",38.5]
["Test spécifique - 4e MA - Automatismes","Question 10",60]
["Test spécifique - 4e MA - Automatismes","Question 11",55.4]
["Test spécifique - 4e MA - Automatismes","Question 12",43.1]
["Test spécifique - 4e MA - Automatismes","Question 13",55.4]
["Test spécifique - 4e MA - Automatismes","Question 14",47.7]
["Test spécifique - 4e MA - Automatismes","Question 15",46.2]
["Test spécifique - 4e MA - Automatismes","Question 16",49.2]
["Test spécifique - 4e MA - Automatismes","Question 17",33.799999999999997]
["Test spécifique - 4e MA - Automatismes","Question 18",55.4]
["Test spécifique - 4e MA - Automatismes","Question 19",33.799999999999997]
["Test spécifique - 4e MA - Automatismes","Question 20",46.2]
["Test spécifique - 4e MA - Automatismes","Question 21",30.8]
["Test spécifique - 4e MA - Automatismes","Question 22",44.6]
[]
[]
[]
[]
[]
[]
[]
[]
[]
[]
[]
[]
[]
[]
[]
[]
[]
[]
[]
[]
[]
[]
[]
["Test spécifique - 4e MA - Automatismes","Question 01",97.6]
["Test spécifique - 4e MA - Automatismes","Question 02",96.9]
["Test spécifique - 4e MA - Automatismes","Question 03",95.3]
["Test spécifique - 4e MA - Automatismes","Question 04",93.7]
["Test spécifique - 4e MA - Automatismes","Question 05",89]
["Test spécifique - 4e MA - Automatismes","Question 06",64.599999999999994]
["Test spécifique - 4e MA - Automatismes","Question 07",78.7]
["Test spécifique - 4e MA - Automatismes","Question 08",79.5]
["Test spécifique - 4e MA - Automatismes","Question 09",57.5]
["Test spécifique - 4e MA - Automatismes","Question 10",67.7]
["Test spécifique - 4e MA - Automatismes","Question 11",64.599999999999994]
["Test spécifique - 4e MA - Automatismes","Question 12",64.599999999999994]
["Test spécifique - 4e MA - Automatismes","Question 13",64.599999999999994]
["Test spécifique - 4e MA - Automatismes","Question 14",60.6]
["Test spécifique - 4e MA - Automatismes","Question 15",66.099999999999994]
["Test spécifique - 4e MA - Automatismes","Question 16",78]
["Test spécifique - 4e MA - Automatismes","Question 17",52]
["Test spécifique - 4e MA - Automatismes","Question 18",52.8]
["Test spécifique - 4e MA - Automatismes","Question 19",59.1]
["Test spécifique - 4e MA - Automatismes","Question 20",45.7]
["Test spécifique - 4e MA - Automatismes","Question 21",56.7]
["Test spécifique - 4e MA - Automatismes","Question 22",52.8]
[]
[]
[]
[]
[]
[]
[]
[]
[]
[]
[]
[]
[]
[]
[]
[]
[]
[]
[]
[]
[]
[]
[]
["Test spécifique - 4e MA - Automatismes","Question 01",93.9]
["Test spécifique - 4e MA - Automatismes","Question 02",96.6]
["Test spécifique - 4e MA - Automatismes","Question 03",93.2]
["Test spécifique - 4e MA - Automatismes","Question 04",95.9]
["Test spécifique - 4e MA - Automatismes","Question 05",89.2]
["Test spécifique - 4e MA - Automatismes","Question 06",77.400000000000006]
["Test spécifique - 4e MA - Automatismes","Question 07",78.900000000000006]
["Test spécifique - 4e MA - Automatismes","Question 08",76.400000000000006]
["Test spécifique - 4e MA - Automatismes","Question 09",35.799999999999997]
["Test spécifique - 4e MA - Automatismes","Question 10",76.7]
["Test spécifique - 4e MA - Automatismes","Question 11",63.3]
["Test spécifique - 4e MA - Automatismes","Question 12",67.8]
["Test spécifique - 4e MA - Automatismes","Question 13",71.900000000000006]
["Test spécifique - 4e MA - Automatismes","Question 14",78.099999999999994]
["Test spécifique - 4e MA - Automatismes","Question 15",75.3]
["Test spécifique - 4e MA - Automatismes","Question 16",77.599999999999994]
["Test spécifique - 4e MA - Automatismes","Question 17",37.700000000000003]
["Test spécifique - 4e MA - Automatismes","Question 18",71.400000000000006]
["Test spécifique - 4e MA - Automatismes","Question 19",58.9]
["Test spécifique - 4e MA - Automatismes","Question 20",62.3]
["Test spécifique - 4e MA - Automatismes","Question 21",44.5]
["Test spécifique - 4e MA - Automatismes","Question 22",57.5]
[]
[]
[]
[]
[]
[]
[]
[]
[]
[]
[]
[]
[]
[]
[]
[]
[]
[]
[]
[]
[]
[]
[]
["Test spécifique - 4e MA - Automatismes","Question 01",97.4]
["Test spécifique - 4e MA - Automatismes","Question 02",96.5]
["Test spécifique - 4e MA - Automatismes","Question 03",91.2]
["Test spécifique - 4e MA - Automatismes","Question 04",91.2]
["Test spécifique - 4e MA - Automatismes","Question 05",83.3]
["Test spécifique - 4e MA - Automatismes","Question 06",47.4]
["Test spécifique - 4e MA - Automatismes","Question 07",84.2]
["Test spécifique - 4e MA - Automatismes","Question 08",81.599999999999994]
["Test spécifique - 4e MA - Automatismes","Question 09",67.5]
["Test spécifique - 4e MA - Automatismes","Question 10",78.900000000000006]
["Test spécifique - 4e MA - Automatismes","Question 11",64.900000000000006]
["Test spécifique - 4e MA - Automatismes","Question 12",71.099999999999994]
["Test spécifique - 4e MA - Automatismes","Question 13",75.400000000000006]
["Test spécifique - 4e MA - Automatismes","Question 14",71.900000000000006]
["Test spécifique - 4e MA - Automatismes","Question 15",76.3]
["Test spécifique - 4e MA - Automatismes","Question 16",78.099999999999994]
["Test spécifique - 4e MA - Automatismes","Question 17",57]
["Test spécifique - 4e MA - Automatismes","Question 18",50.9]
["Test spécifique - 4e MA - Automatismes","Question 19",43.9]
["Test spécifique - 4e MA - Automatismes","Question 20",44.7]
["Test spécifique - 4e MA - Automatismes","Question 21",31.6]
["Test spécifique - 4e MA - Automatismes","Question 22",61.4]
[]
[]
[]
[]
[]
[]
[]
[]
[]
[]
[]
[]
[]
[]
[]
[]
[]
[]
[]
[]
[]
[]
[]
["Test spécifique - 4e MA - Automatismes","Question 01",92.5]
["Test spécifique - 4e MA - Automatismes","Question 02",82.5]
["Test spécifique - 4e MA - Automatismes","Question 03",87.5]
["Test spécifique - 4e MA - Automatismes","Question 04",82.5]
["Test spécifique - 4e MA - Automatismes","Question 05",65]
["Test spécifique - 4e MA - Automatismes","Question 06",72.5]
["Test spécifique - 4e MA - Automatismes","Question 07",62.5]
["Test spécifique - 4e MA - Automatismes","Question 08",65]
["Test spécifique - 4e MA - Automatismes","Question 09",57.5]
["Test spécifique - 4e MA - Automatismes","Question 10",65]
["Test spécifique - 4e MA - Automatismes","Question 11",45]
["Test spécifique - 4e MA - Automatismes","Question 12",62.5]
["Test spécifique - 4e MA - Automatismes","Question 13",52.5]
["Test spécifique - 4e MA - Automatismes","Question 14",17.5]
["Test spécifique - 4e MA - Automatismes","Question 15",40]
["Test spécifique - 4e MA - Automatismes","Question 16",62.5]
["Test spécifique - 4e MA - Automatismes","Question 17",30]
["Test spécifique - 4e MA - Automatismes","Question 18",47.5]
["Test spécifique - 4e MA - Automatismes","Question 19",47.5]
["Test spécifique - 4e MA - Automatismes","Question 20",55]
["Test spécifique - 4e MA - Automatismes","Question 21",37.5]
["Test spécifique - 4e MA - Automatismes","Question 22",32.5]
[]
[]
[]
[]
[]
[]
[]
[]
[]
[]
[]
[]
[]
[]
[]
[]
[]
[]
[]
[]
[]
[]
[]
["Test spécifique - 4e MA - Automatismes","Question 01",96.4]
["Test spécifique - 4e MA - Automatismes","Question 02",91.6]
["Test spécifique - 4e MA - Automatismes","Question 03",88]
["Test spécifique - 4e MA - Automatismes","Question 04",85.5]
["Test spécifique - 4e MA - Automatismes","Question 05",83.1]
["Test spécifique - 4e MA - Automatismes","Question 06",59]
["Test spécifique - 4e MA - Automatismes","Question 07",69.900000000000006]
["Test spécifique - 4e MA - Automatismes","Question 08",68.7]
["Test spécifique - 4e MA - Automatismes","Question 09",39.799999999999997]
["Test spécifique - 4e MA - Automatismes","Question 10",51.8]
["Test spécifique - 4e MA - Automatismes","Question 11",61.4]
["Test spécifique - 4e MA - Automatismes","Question 12",56.6]
["Test spécifique - 4e MA - Automatismes","Question 13",53]
["Test spécifique - 4e MA - Automatismes","Question 14",69.900000000000006]
["Test spécifique - 4e MA - Automatismes","Question 15",65.099999999999994]
["Test spécifique - 4e MA - Automatismes","Question 16",48.2]
["Test spécifique - 4e MA - Automatismes","Question 17",45.8]
["Test spécifique - 4e MA - Automatismes","Question 18",48.2]
["Test spécifique - 4e MA - Automatismes","Question 19",42.2]
["Test spécifique - 4e MA - Automatismes","Question 20",60.2]
["Test spécifique - 4e MA - Automatismes","Question 21",47]
["Test spécifique - 4e MA - Automatismes","Question 22",28.9]
[]
[]
[]
[]
[]
[]
[]
[]
[]
[]
[]
[]
[]
[]
[]
[]
[]
[]
[]
[]
[]
[]
[]
["Test spécifique - 4e MA - Automatismes","Question 01",97.1]
["Test spécifique - 4e MA - Automatismes","Question 02",97.1]
["Test spécifique - 4e MA - Automatismes","Question 03",90.3]
["Test spécifique - 4e MA - Automatismes","Question 04",91.4]
["Test spécifique - 4e MA - Automatismes","Question 05",87.4]
["Test spécifique - 4e MA - Automatismes","Question 06",77.099999999999994]
["Test spécifique - 4e MA - Automatismes","Question 07",78.3]
["Test spécifique - 4e MA - Automatismes","Question 08",78.900000000000006]
["Test spécifique - 4e MA - Automatismes","Question 09",66.900000000000006]
["Test spécifique - 4e MA - Automatismes","Question 10",70.900000000000006]
["Test spécifique - 4e MA - Automatismes","Question 11",66.3]
["Test spécifique - 4e MA - Automatismes","Question 12",66.3]
["Test spécifique - 4e MA - Automatismes","Question 13",65.7]
["Test spécifique - 4e MA - Automatismes","Question 14",70.900000000000006]
["Test spécifique - 4e MA - Automatismes","Question 15",62.9]
["Test spécifique - 4e MA - Automatismes","Question 16",78.900000000000006]
["Test spécifique - 4e MA - Automatismes","Question 17",37.1]
["Test spécifique - 4e MA - Automatismes","Question 18",73.099999999999994]
["Test spécifique - 4e MA - Automatismes","Question 19",54.3]
["Test spécifique - 4e MA - Automatismes","Question 20",37.700000000000003]
["Test spécifique - 4e MA - Automatismes","Question 21",38.299999999999997]
["Test spécifique - 4e MA - Automatismes","Question 22",50.3]
[]
[]
[]
[]
[]
[]
[]
[]
[]
[]
[]
[]
[]
[]
[]
[]
[]
[]
[]
[]
[]
[]
[]
["Test spécifique - 4e MA - Automatismes","Question 01",94.9]
["Test spécifique - 4e MA - Automatismes","Question 02",94.9]
["Test spécifique - 4e MA - Automatismes","Question 03",91.8]
["Test spécifique - 4e MA - Automatismes","Question 04",89.8]
["Test spécifique - 4e MA - Automatismes","Question 05",74.5]
["Test spécifique - 4e MA - Automatismes","Question 06",72.400000000000006]
["Test spécifique - 4e MA - Automatismes","Question 07",71.400000000000006]
["Test spécifique - 4e MA - Automatismes","Question 08",68.400000000000006]
["Test spécifique - 4e MA - Automatismes","Question 09",50]
["Test spécifique - 4e MA - Automatismes","Question 10",69.400000000000006]
["Test spécifique - 4e MA - Automatismes","Question 11",61.2]
["Test spécifique - 4e MA - Automatismes","Question 12",64.3]
["Test spécifique - 4e MA - Automatismes","Question 13",61.2]
["Test spécifique - 4e MA - Automatismes","Question 14",50]
["Test spécifique - 4e MA - Automatismes","Question 15",65.3]
["Test spécifique - 4e MA - Automatismes","Question 16",76.5]
["Test spécifique - 4e MA - Automatismes","Question 17",41.8]
["Test spécifique - 4e MA - Automatismes","Question 18",48]
["Test spécifique - 4e MA - Automatismes","Question 19",44.9]
["Test spécifique - 4e MA - Automatismes","Question 20",41.8]
["Test spécifique - 4e MA - Automatismes","Question 21",57.1]
["Test spécifique - 4e MA - Automatismes","Question 22",57.1]
[]
[]
[]
[]
[]
[]
[]
[]
[]
[]
[]
[]
[]
[]
[]
[]
[]
[]
[]
[]
[]
[]
[]
["Test spécifique - 4e MA - Automatismes","Question 01",95.5]
["Test spécifique - 4e MA - Automatismes","Question 02",97]
["Test spécifique - 4e MA - Automatismes","Question 03",86.4]
["Test spécifique - 4e MA - Automatismes","Question 04",80.3]
["Test spécifique - 4e MA - Automatismes","Question 05",74.2]
["Test spécifique - 4e MA - Automatismes","Question 06",71.2]
["Test spécifique - 4e MA - Automatismes","Question 07",68.2]
["Test spécifique - 4e MA - Automatismes","Question 08",51.5]
["Test spécifique - 4e MA - Automatismes","Question 09",51.5]
["Test spécifique - 4e MA - Automatismes","Question 10",54.5]
["Test spécifique - 4e MA - Automatismes","Question 11",43.9]
["Test spécifique - 4e MA - Automatismes","Question 12",66.7]
["Test spécifique - 4e MA - Automatismes","Question 13",56.1]
["Test spécifique - 4e MA - Automatismes","Question 14",12.1]
["Test spécifique - 4e MA - Automatismes","Question 15",66.7]
["Test spécifique - 4e MA - Automatismes","Question 16",59.1]
["Test spécifique - 4e MA - Automatismes","Question 17",37.9]
["Test spécifique - 4e MA - Automatismes","Question 18",40.9]
["Test spécifique - 4e MA - Automatismes","Question 19",51.5]
["Test spécifique - 4e MA - Automatismes","Question 20",48.5]
["Test spécifique - 4e MA - Automatismes","Question 21",30.3]
["Test spécifique - 4e MA - Automatismes","Question 22",47]
[]
[]
[]
[]
[]
[]
[]
[]
[]
[]
[]
[]
[]
[]
[]
[]
[]
[]
[]
[]
[]
[]
[]
["Test spécifique - 4e MA - Automatismes","Question 01",96.3]
["Test spécifique - 4e MA - Automatismes","Question 02",92.7]
["Test spécifique - 4e MA - Automatismes","Question 03",92.7]
["Test spécifique - 4e MA - Automatismes","Question 04",90.2]
["Test spécifique - 4e MA - Automatismes","Question 05",79.3]
["Test spécifique - 4e MA - Automatismes","Question 06",46.3]
["Test spécifique - 4e MA - Automatismes","Question 07",67.099999999999994]
["Test spécifique - 4e MA - Automatismes","Question 08",73.2]
["Test spécifique - 4e MA - Automatismes","Question 09",63.4]
["Test spécifique - 4e MA - Automatismes","Question 10",46.3]
["Test spécifique - 4e MA - Automatismes","Question 11",42.7]
["Test spécifique - 4e MA - Automatismes","Question 12",69.5]
["Test spécifique - 4e MA - Automatismes","Question 13",62.2]
["Test spécifique - 4e MA - Automatismes","Question 14",92.7]
["Test spécifique - 4e MA - Automatismes","Question 15",64.599999999999994]
["Test spécifique - 4e MA - Automatismes","Question 16",69.5]
["Test spécifique - 4e MA - Automatismes","Question 17",47.6]
["Test spécifique - 4e MA - Automatismes","Question 18",56.1]
["Test spécifique - 4e MA - Automatismes","Question 19",45.1]
["Test spécifique - 4e MA - Automatismes","Question 20",62.2]
["Test spécifique - 4e MA - Automatismes","Question 21",30.5]
["Test spécifique - 4e MA - Automatismes","Question 22",40.200000000000003]
[]
[]
[]
[]
[]
[]
[]
[]
[]
[]
[]
[]
[]
[]
[]
[]
[]
[]
[]
[]
[]
[]
[]
["Test spécifique - 4e MA - Automatismes","Question 01",92.9]
["Test spécifique - 4e MA - Automatismes","Question 02",91.7]
["Test spécifique - 4e MA - Automatismes","Question 03",81]
["Test spécifique - 4e MA - Automatismes","Question 04",85.7]
["Test spécifique - 4e MA - Automatismes","Question 05",46.4]
["Test spécifique - 4e MA - Automatismes","Question 06",35.700000000000003]
["Test spécifique - 4e MA - Automatismes","Question 07",59.5]
["Test spécifique - 4e MA - Automatismes","Question 08",48.8]
["Test spécifique - 4e MA - Automatismes","Question 09",22.6]
["Test spécifique - 4e MA - Automatismes","Question 10",45.2]
["Test spécifique - 4e MA - Automatismes","Question 11",52.4]
["Test spécifique - 4e MA - Automatismes","Question 12",65.5]
["Test spécifique - 4e MA - Automatismes","Question 13",40.5]
["Test spécifique - 4e MA - Automatismes","Question 14",32.1]
["Test spécifique - 4e MA - Automatismes","Question 15",54.8]
["Test spécifique - 4e MA - Automatismes","Question 16",44]
["Test spécifique - 4e MA - Automatismes","Question 17",46.4]
["Test spécifique - 4e MA - Automatismes","Question 18",48.8]
["Test spécifique - 4e MA - Automatismes","Question 19",35.700000000000003]
["Test spécifique - 4e MA - Automatismes","Question 20",46.4]
["Test spécifique - 4e MA - Automatismes","Question 21",31]
["Test spécifique - 4e MA - Automatismes","Question 22",39.299999999999997]
[]
[]
[]
[]
[]
[]
[]
[]
[]
[]
[]
[]
[]
[]
[]
[]
[]
[]
[]
[]
[]
[]
[]
["Test spécifique - 4e MA - Automatismes","Question 01",90.2]
["Test spécifique - 4e MA - Automatismes","Question 02",92.7]
["Test spécifique - 4e MA - Automatismes","Question 03",96.3]
["Test spécifique - 4e MA - Automatismes","Question 04",86.6]
["Test spécifique - 4e MA - Automatismes","Question 05",91.5]
["Test spécifique - 4e MA - Automatismes","Question 06",59.8]
["Test spécifique - 4e MA - Automatismes","Question 07",74.400000000000006]
["Test spécifique - 4e MA - Automatismes","Question 08",69.5]
["Test spécifique - 4e MA - Automatismes","Question 09",46.3]
["Test spécifique - 4e MA - Automatismes","Question 10",70.7]
["Test spécifique - 4e MA - Automatismes","Question 11",57.3]
["Test spécifique - 4e MA - Automatismes","Question 12",57.3]
["Test spécifique - 4e MA - Automatismes","Question 13",54.9]
["Test spécifique - 4e MA - Automatismes","Question 14",89]
["Test spécifique - 4e MA - Automatismes","Question 15",68.3]
["Test spécifique - 4e MA - Automatismes","Question 16",75.599999999999994]
["Test spécifique - 4e MA - Automatismes","Question 17",41.5]
["Test spécifique - 4e MA - Automatismes","Question 18",51.2]
["Test spécifique - 4e MA - Automatismes","Question 19",61]
["Test spécifique - 4e MA - Automatismes","Question 20",61]
["Test spécifique - 4e MA - Automatismes","Question 21",43.9]
["Test spécifique - 4e MA - Automatismes","Question 22",54.9]
[]
[]
[]
[]
[]
[]
[]
[]
[]
[]
[]
[]
[]
[]
[]
[]
[]
[]
[]
[]
[]
[]
[]
["Test spécifique - 4e MA - Automatismes","Question 01",94.9]
["Test spécifique - 4e MA - Automatismes","Question 02",97.4]
["Test spécifique - 4e MA - Automatismes","Question 03",82.1]
["Test spécifique - 4e MA - Automatismes","Question 04",87.2]
["Test spécifique - 4e MA - Automatismes","Question 05",59]
["Test spécifique - 4e MA - Automatismes","Question 06",66.7]
["Test spécifique - 4e MA - Automatismes","Question 07",69.2]
["Test spécifique - 4e MA - Automatismes","Question 08",56.4]
["Test spécifique - 4e MA - Automatismes","Question 09",64.099999999999994]
["Test spécifique - 4e MA - Automatismes","Question 10",43.6]
["Test spécifique - 4e MA - Automatismes","Question 11",51.3]
["Test spécifique - 4e MA - Automatismes","Question 12",53.8]
["Test spécifique - 4e MA - Automatismes","Question 13",25.6]
["Test spécifique - 4e MA - Automatismes","Question 14",15.4]
["Test spécifique - 4e MA - Automatismes","Question 15",48.7]
["Test spécifique - 4e MA - Automatismes","Question 16",46.2]
["Test spécifique - 4e MA - Automatismes","Question 17",23.1]
["Test spécifique - 4e MA - Automatismes","Question 18",38.5]
["Test spécifique - 4e MA - Automatismes","Question 19",15.4]
["Test spécifique - 4e MA - Automatismes","Question 20",48.7]
["Test spécifique - 4e MA - Automatismes","Question 21",38.5]
["Test spécifique - 4e MA - Automatismes","Question 22",35.9]
[]
[]
[]
[]
[]
[]
[]
[]
[]
[]
[]
[]
[]
[]
[]
[]
[]
[]
[]
[]
[]
[]
[]
["Test spécifique - 4e MA - Automatismes","Question 01",90.7]
["Test spécifique - 4e MA - Automatismes","Question 02",84.5]
["Test spécifique - 4e MA - Automatismes","Question 03",83.5]
["Test spécifique - 4e MA - Automatismes","Question 04",92.8]
["Test spécifique - 4e MA - Automatismes","Question 05",56.7]
["Test spécifique - 4e MA - Automatismes","Question 06",48.5]
["Test spécifique - 4e MA - Automatismes","Question 07",57.7]
["Test spécifique - 4e MA - Automatismes","Question 08",67]
["Test spécifique - 4e MA - Automatismes","Question 09",32]
["Test spécifique - 4e MA - Automatismes","Question 10",49.5]
["Test spécifique - 4e MA - Automatismes","Question 11",43.3]
["Test spécifique - 4e MA - Automatismes","Question 12",50.5]
["Test spécifique - 4e MA - Automatismes","Question 13",29.9]
["Test spécifique - 4e MA - Automatismes","Question 14",19.600000000000001]
["Test spécifique - 4e MA - Automatismes","Question 15",44.3]
["Test spécifique - 4e MA - Automatismes","Question 16",41.2]
["Test spécifique - 4e MA - Automatismes","Question 17",28.9]
["Test spécifique - 4e MA - Automatismes","Question 18",33]
["Test spécifique - 4e MA - Automatismes","Question 19",51.5]
["Test spécifique - 4e MA - Automatismes","Question 20",41.2]
["Test spécifique - 4e MA - Automatismes","Question 21",25.8]
["Test spécifique - 4e MA - Automatismes","Question 22",39.200000000000003]
[]
[]
[]
[]
[]
[]
[]
[]
[]
[]
[]
[]
[]
[]
[]
[]
[]
[]
[]
[]
[]
[]
[]
["Test spécifique - 4e MA - Automatismes","Question 01",88.4]
["Test spécifique - 4e MA - Automatismes","Question 02",82.6]
["Test spécifique - 4e MA - Automatismes","Question 03",74.400000000000006]
["Test spécifique - 4e MA - Automatismes","Question 04",79.099999999999994]
["Test spécifique - 4e MA - Automatismes","Question 05",64]
["Test spécifique - 4e MA - Automatismes","Question 06",55.8]
["Test spécifique - 4e MA - Automatismes","Question 07",52.3]
["Test spécifique - 4e MA - Automatismes","Question 08",64]
["Test spécifique - 4e MA - Automatismes","Question 09",44.2]
["Test spécifique - 4e MA - Automatismes","Question 10",36]
["Test spécifique - 4e MA - Automatismes","Question 11",32.6]
["Test spécifique - 4e MA - Automatismes","Question 12",47.7]
["Test spécifique - 4e MA - Automatismes","Question 13",27.9]
["Test spécifique - 4e MA - Automatismes","Question 14",44.2]
["Test spécifique - 4e MA - Automatismes","Question 15",54.7]
["Test spécifique - 4e MA - Automatismes","Question 16",29.1]
["Test spécifique - 4e MA - Automatismes","Question 17",33.700000000000003]
["Test spécifique - 4e MA - Automatismes","Question 18",25.6]
["Test spécifique - 4e MA - Automatismes","Question 19",30.2]
["Test spécifique - 4e MA - Automatismes","Question 20",32.6]
["Test spécifique - 4e MA - Automatismes","Question 21",29.1]
["Test spécifique - 4e MA - Automatismes","Question 22",40.700000000000003]
[]
[]
[]
[]
[]
[]
[]
[]
[]
[]
[]
[]
[]
[]
[]
[]
[]
[]
[]
[]
[]
[]
[]
["Test spécifique - 4e MA - Automatismes","Question 01",91.5]
["Test spécifique - 4e MA - Automatismes","Question 02",89.2]
["Test spécifique - 4e MA - Automatismes","Question 03",86.2]
["Test spécifique - 4e MA - Automatismes","Question 04",86.2]
["Test spécifique - 4e MA - Automatismes","Question 05",70.8]
["Test spécifique - 4e MA - Automatismes","Question 06",74.599999999999994]
["Test spécifique - 4e MA - Automatismes","Question 07",63.8]
["Test spécifique - 4e MA - Automatismes","Question 08",66.900000000000006]
["Test spécifique - 4e MA - Automatismes","Question 09",29.2]
["Test spécifique - 4e MA - Automatismes","Question 10",51.5]
["Test spécifique - 4e MA - Automatismes","Question 11",47.7]
["Test spécifique - 4e MA - Automatismes","Question 12",56.2]
["Test spécifique - 4e MA - Automatismes","Question 13",45.4]
["Test spécifique - 4e MA - Automatismes","Question 14",33.1]
["Test spécifique - 4e MA - Automatismes","Question 15",67.7]
["Test spécifique - 4e MA - Automatismes","Question 16",61.5]
["Test spécifique - 4e MA - Automatismes","Question 17",32.299999999999997]
["Test spécifique - 4e MA - Automatismes","Question 18",41.5]
["Test spécifique - 4e MA - Automatismes","Question 19",43.8]
["Test spécifique - 4e MA - Automatismes","Question 20",33.799999999999997]
["Test spécifique - 4e MA - Automatismes","Question 21",20.8]
["Test spécifique - 4e MA - Automatismes","Question 22",35.4]
[]
[]
[]
[]
[]
[]
[]
[]
[]
[]
[]
[]
[]
[]
[]
[]
[]
[]
[]
[]
[]
[]
[]
["Test spécifique - 4e MA - Automatismes","Question 01",95.7]
["Test spécifique - 4e MA - Automatismes","Question 02",93.5]
["Test spécifique - 4e MA - Automatismes","Question 03",81.5]
["Test spécifique - 4e MA - Automatismes","Question 04",88]
["Test spécifique - 4e MA - Automatismes","Question 05",80.400000000000006]
["Test spécifique - 4e MA - Automatismes","Question 06",65.2]
["Test spécifique - 4e MA - Automatismes","Question 07",54.3]
["Test spécifique - 4e MA - Automatismes","Question 08",71.7]
["Test spécifique - 4e MA - Automatismes","Question 09",33.700000000000003]
["Test spécifique - 4e MA - Automatismes","Question 10",58.7]
["Test spécifique - 4e MA - Automatismes","Question 11",52.2]
["Test spécifique - 4e MA - Automatismes","Question 12",48.9]
["Test spécifique - 4e MA - Automatismes","Question 13",46.7]
["Test spécifique - 4e MA - Automatismes","Question 14",29.3]
["Test spécifique - 4e MA - Automatismes","Question 15",41.3]
["Test spécifique - 4e MA - Automatismes","Question 16",46.7]
["Test spécifique - 4e MA - Automatismes","Question 17",28.3]
["Test spécifique - 4e MA - Automatismes","Question 18",46.7]
["Test spécifique - 4e MA - Automatismes","Question 19",32.6]
["Test spécifique - 4e MA - Automatismes","Question 20",46.7]
["Test spécifique - 4e MA - Automatismes","Question 21",25]
["Test spécifique - 4e MA - Automatismes","Question 22",40.200000000000003]
[]
[]
[]
[]
[]
[]
[]
[]
[]
[]
[]
[]
[]
[]
[]
[]
[]
[]
[]
[]
[]
[]
[]
["Test spécifique - 4e MA - Automatismes","Question 01",95]
["Test spécifique - 4e MA - Automatismes","Question 02",96.5]
["Test spécifique - 4e MA - Automatismes","Question 03",90.1]
["Test spécifique - 4e MA - Automatismes","Question 04",85.8]
["Test spécifique - 4e MA - Automatismes","Question 05",87.2]
["Test spécifique - 4e MA - Automatismes","Question 06",61.7]
["Test spécifique - 4e MA - Automatismes","Question 07",73.8]
["Test spécifique - 4e MA - Automatismes","Question 08",70.900000000000006]
["Test spécifique - 4e MA - Automatismes","Question 09",54.6]
["Test spécifique - 4e MA - Automatismes","Question 10",66]
["Test spécifique - 4e MA - Automatismes","Question 11",56]
["Test spécifique - 4e MA - Automatismes","Question 12",63.8]
["Test spécifique - 4e MA - Automatismes","Question 13",61]
["Test spécifique - 4e MA - Automatismes","Question 14",34]
["Test spécifique - 4e MA - Automatismes","Question 15",63.8]
["Test spécifique - 4e MA - Automatismes","Question 16",52.5]
["Test spécifique - 4e MA - Automatismes","Question 17",48.9]
["Test spécifique - 4e MA - Automatismes","Question 18",57.4]
["Test spécifique - 4e MA - Automatismes","Question 19",33.299999999999997]
["Test spécifique - 4e MA - Automatismes","Question 20",44.7]
["Test spécifique - 4e MA - Automatismes","Question 21",25.5]
["Test spécifique - 4e MA - Automatismes","Question 22",45.4]
[]
[]
[]
[]
[]
[]
[]
[]
[]
[]
[]
[]
[]
[]
[]
[]
[]
[]
[]
[]
[]
[]
[]
["Test spécifique - 4e MA - Automatismes","Question 01",91]
["Test spécifique - 4e MA - Automatismes","Question 02",88]
["Test spécifique - 4e MA - Automatismes","Question 03",82]
["Test spécifique - 4e MA - Automatismes","Question 04",83]
["Test spécifique - 4e MA - Automatismes","Question 05",62]
["Test spécifique - 4e MA - Automatismes","Question 06",69]
["Test spécifique - 4e MA - Automatismes","Question 07",48]
["Test spécifique - 4e MA - Automatismes","Question 08",61]
["Test spécifique - 4e MA - Automatismes","Question 09",20]
["Test spécifique - 4e MA - Automatismes","Question 10",44]
["Test spécifique - 4e MA - Automatismes","Question 11",39]
["Test spécifique - 4e MA - Automatismes","Question 12",55]
["Test spécifique - 4e MA - Automatismes","Question 13",29]
["Test spécifique - 4e MA - Automatismes","Question 14",33]
["Test spécifique - 4e MA - Automatismes","Question 15",46]
["Test spécifique - 4e MA - Automatismes","Question 16",35]
["Test spécifique - 4e MA - Automatismes","Question 17",34]
["Test spécifique - 4e MA - Automatismes","Question 18",38]
["Test spécifique - 4e MA - Automatismes","Question 19",31]
["Test spécifique - 4e MA - Automatismes","Question 20",42]
["Test spécifique - 4e MA - Automatismes","Question 21",36]
["Test spécifique - 4e MA - Automatismes","Question 22",33]
[]
[]
[]
[]
[]
[]
[]
[]
[]
[]
[]
[]
[]
[]
[]
[]
[]
[]
[]
[]
[]
[]
[]
["Test spécifique - 4e MA - Automatismes","Question 01",93.5]
["Test spécifique - 4e MA - Automatismes","Question 02",95.7]
["Test spécifique - 4e MA - Automatismes","Question 03",95.7]
["Test spécifique - 4e MA - Automatismes","Question 04",87.1]
["Test spécifique - 4e MA - Automatismes","Question 05",81.7]
["Test spécifique - 4e MA - Automatismes","Question 06",60.2]
["Test spécifique - 4e MA - Automatismes","Question 07",69.900000000000006]
["Test spécifique - 4e MA - Automatismes","Question 08",68.8]
["Test spécifique - 4e MA - Automatismes","Question 09",68.8]
["Test spécifique - 4e MA - Automatismes","Question 10",60.2]
["Test spécifique - 4e MA - Automatismes","Question 11",54.8]
["Test spécifique - 4e MA - Automatismes","Question 12",64.5]
["Test spécifique - 4e MA - Automatismes","Question 13",65.599999999999994]
["Test spécifique - 4e MA - Automatismes","Question 14",21.5]
["Test spécifique - 4e MA - Automatismes","Question 15",60.2]
["Test spécifique - 4e MA - Automatismes","Question 16",61.3]
["Test spécifique - 4e MA - Automatismes","Question 17",33.299999999999997]
["Test spécifique - 4e MA - Automatismes","Question 18",61.3]
["Test spécifique - 4e MA - Automatismes","Question 19",58.1]
["Test spécifique - 4e MA - Automatismes","Question 20",49.5]
["Test spécifique - 4e MA - Automatismes","Question 21",24.7]
["Test spécifique - 4e MA - Automatismes","Question 22",35.5]
[]
[]
[]
[]
[]
[]
[]
[]
[]
[]
[]
[]
[]
[]
[]
[]
[]
[]
[]
[]
[]
[]
[]
["Test spécifique - 4e MA - Automatismes","Question 01",96.1]
["Test spécifique - 4e MA - Automatismes","Question 02",96.1]
["Test spécifique - 4e MA - Automatismes","Question 03",80.400000000000006]
["Test spécifique - 4e MA - Automatismes","Question 04",88.2]
["Test spécifique - 4e MA - Automatismes","Question 05",78.400000000000006]
["Test spécifique - 4e MA - Automatismes","Question 06",37.299999999999997]
["Test spécifique - 4e MA - Automatismes","Question 07",60.8]
["Test spécifique - 4e MA - Automatismes","Question 08",64.7]
["Test spécifique - 4e MA - Automatismes","Question 09",11.8]
["Test spécifique - 4e MA - Automatismes","Question 10",60.8]
["Test spécifique - 4e MA - Automatismes","Question 11",52.9]
["Test spécifique - 4e MA - Automatismes","Question 12",51]
["Test spécifique - 4e MA - Automatismes","Question 13",45.1]
["Test spécifique - 4e MA - Automatismes","Question 14",3.9]
["Test spécifique - 4e MA - Automatismes","Question 15",66.7]
["Test spécifique - 4e MA - Automatismes","Question 16",43.1]
["Test spécifique - 4e MA - Automatismes","Question 17",39.200000000000003]
["Test spécifique - 4e MA - Automatismes","Question 18",33.299999999999997]
["Test spécifique - 4e MA - Automatismes","Question 19",29.4]
["Test spécifique - 4e MA - Automatismes","Question 20",21.6]
["Test spécifique - 4e MA - Automatismes","Question 21",7.8]
["Test spécifique - 4e MA - Automatismes","Question 22",35.299999999999997]
[]
[]
[]
[]
[]
[]
[]
[]
[]
[]
[]
[]
[]
[]
[]
[]
[]
[]
[]
[]
[]
[]
[]
["Test spécifique - 4e MA - Automatismes","Question 01",93.3]
["Test spécifique - 4e MA - Automatismes","Question 02",90.5]
["Test spécifique - 4e MA - Automatismes","Question 03",83.8]
["Test spécifique - 4e MA - Automatismes","Question 04",81]
["Test spécifique - 4e MA - Automatismes","Question 05",67.599999999999994]
["Test spécifique - 4e MA - Automatismes","Question 06",61.9]
["Test spécifique - 4e MA - Automatismes","Question 07",59]
["Test spécifique - 4e MA - Automatismes","Question 08",50.5]
["Test spécifique - 4e MA - Automatismes","Question 09",42.9]
["Test spécifique - 4e MA - Automatismes","Question 10",66.7]
["Test spécifique - 4e MA - Automatismes","Question 11",49.5]
["Test spécifique - 4e MA - Automatismes","Question 12",49.5]
["Test spécifique - 4e MA - Automatismes","Question 13",33.299999999999997]
["Test spécifique - 4e MA - Automatismes","Question 14",74.3]
["Test spécifique - 4e MA - Automatismes","Question 15",52.4]
["Test spécifique - 4e MA - Automatismes","Question 16",57.1]
["Test spécifique - 4e MA - Automatismes","Question 17",33.299999999999997]
["Test spécifique - 4e MA - Automatismes","Question 18",32.4]
["Test spécifique - 4e MA - Automatismes","Question 19",40]
["Test spécifique - 4e MA - Automatismes","Question 20",34.299999999999997]
["Test spécifique - 4e MA - Automatismes","Question 21",26.7]
["Test spécifique - 4e MA - Automatismes","Question 22",33.299999999999997]
[]
[]
[]
[]
[]
[]
[]
[]
[]
[]
[]
[]
[]
[]
[]
[]
[]
[]
[]
[]
[]
[]
[]
["Test spécifique - 4e MA - Automatismes","Question 01",94.5]
["Test spécifique - 4e MA - Automatismes","Question 02",84.9]
["Test spécifique - 4e MA - Automatismes","Question 03",82.2]
["Test spécifique - 4e MA - Automatismes","Question 04",83.6]
["Test spécifique - 4e MA - Automatismes","Question 05",65.8]
["Test spécifique - 4e MA - Automatismes","Question 06",69.900000000000006]
["Test spécifique - 4e MA - Automatismes","Question 07",65.8]
["Test spécifique - 4e MA - Automatismes","Question 08",63]
["Test spécifique - 4e MA - Automatismes","Question 09",32.9]
["Test spécifique - 4e MA - Automatismes","Question 10",49.3]
["Test spécifique - 4e MA - Automatismes","Question 11",46.6]
["Test spécifique - 4e MA - Automatismes","Question 12",50.7]
["Test spécifique - 4e MA - Automatismes","Question 13",21.9]
["Test spécifique - 4e MA - Automatismes","Question 14",21.9]
["Test spécifique - 4e MA - Automatismes","Question 15",46.6]
["Test spécifique - 4e MA - Automatismes","Question 16",35.6]
["Test spécifique - 4e MA - Automatismes","Question 17",30.1]
["Test spécifique - 4e MA - Automatismes","Question 18",37]
["Test spécifique - 4e MA - Automatismes","Question 19",39.700000000000003]
["Test spécifique - 4e MA - Automatismes","Question 20",52.1]
["Test spécifique - 4e MA - Automatismes","Question 21",32.9]
["Test spécifique - 4e MA - Automatismes","Question 22",32.9]
[]
[]
[]
[]
[]
[]
[]
[]
[]
[]
[]
[]
[]
[]
[]
[]
[]
[]
[]
[]
[]
[]
[]
["Test spécifique - 4e MA - Automatismes","Question 01",94.6]
["Test spécifique - 4e MA - Automatismes","Question 02",87.5]
["Test spécifique - 4e MA - Automatismes","Question 03",76.8]
["Test spécifique - 4e MA - Automatismes","Question 04",83.9]
["Test spécifique - 4e MA - Automatismes","Question 05",70.8]
["Test spécifique - 4e MA - Automatismes","Question 06",56.5]
["Test spécifique - 4e MA - Automatismes","Question 07",54.2]
["Test spécifique - 4e MA - Automatismes","Question 08",65.5]
["Test spécifique - 4e MA - Automatismes","Question 09",50]
["Test spécifique - 4e MA - Automatismes","Question 10",44.6]
["Test spécifique - 4e MA - Automatismes","Question 11",44.6]
["Test spécifique - 4e MA - Automatismes","Question 12",56.5]
["Test spécifique - 4e MA - Automatismes","Question 13",41.1]
["Test spécifique - 4e MA - Automatismes","Question 14",73.2]
["Test spécifique - 4e MA - Automatismes","Question 15",45.2]
["Test spécifique - 4e MA - Automatismes","Question 16",34.5]
["Test spécifique - 4e MA - Automatismes","Question 17",64.900000000000006]
["Test spécifique - 4e MA - Automatismes","Question 18",32.1]
["Test spécifique - 4e MA - Automatismes","Question 19",28]
["Test spécifique - 4e MA - Automatismes","Question 20",30.4]
["Test spécifique - 4e MA - Automatismes","Question 21",29.2]
["Test spécifique - 4e MA - Automatismes","Question 22",35.1]
[]
[]
[]
[]
[]
[]
[]
[]
[]
[]
[]
[]
[]
[]
[]
[]
[]
[]
[]
[]
[]
[]
[]
["Test spécifique - 4e MA - Automatismes","Question 01",86.9]
["Test spécifique - 4e MA - Automatismes","Question 02",85.7]
["Test spécifique - 4e MA - Automatismes","Question 03",76.2]
["Test spécifique - 4e MA - Automatismes","Question 04",72.599999999999994]
["Test spécifique - 4e MA - Automatismes","Question 05",66.7]
["Test spécifique - 4e MA - Automatismes","Question 06",41.7]
["Test spécifique - 4e MA - Automatismes","Question 07",66.7]
["Test spécifique - 4e MA - Automatismes","Question 08",58.3]
["Test spécifique - 4e MA - Automatismes","Question 09",51.2]
["Test spécifique - 4e MA - Automatismes","Question 10",53.6]
["Test spécifique - 4e MA - Automatismes","Question 11",47.6]
["Test spécifique - 4e MA - Automatismes","Question 12",48.8]
["Test spécifique - 4e MA - Automatismes","Question 13",35.700000000000003]
["Test spécifique - 4e MA - Automatismes","Question 14",14.3]
["Test spécifique - 4e MA - Automatismes","Question 15",58.3]
["Test spécifique - 4e MA - Automatismes","Question 16",47.6]
["Test spécifique - 4e MA - Automatismes","Question 17",44]
["Test spécifique - 4e MA - Automatismes","Question 18",32.1]
["Test spécifique - 4e MA - Automatismes","Question 19",32.1]
["Test spécifique - 4e MA - Automatismes","Question 20",41.7]
["Test spécifique - 4e MA - Automatismes","Question 21",31]
["Test spécifique - 4e MA - Automatismes","Question 22",28.6]
[]
[]
[]
[]
[]
[]
[]
[]
[]
[]
[]
[]
[]
[]
[]
[]
[]
[]
[]
[]
[]
[]
[]
["Test spécifique - 4e MA - Automatismes","Question 01",95.3]
["Test spécifique - 4e MA - Automatismes","Question 02",94.3]
["Test spécifique - 4e MA - Automatismes","Question 03",81.900000000000006]
["Test spécifique - 4e MA - Automatismes","Question 04",86]
["Test spécifique - 4e MA - Automatismes","Question 05",88.1]
["Test spécifique - 4e MA - Automatismes","Question 06",76.7]
["Test spécifique - 4e MA - Automatismes","Question 07",69.900000000000006]
["Test spécifique - 4e MA - Automatismes","Question 08",65.3]
["Test spécifique - 4e MA - Automatismes","Question 09",36.799999999999997]
["Test spécifique - 4e MA - Automatismes","Question 10",54.4]
["Test spécifique - 4e MA - Automatismes","Question 11",47.7]
["Test spécifique - 4e MA - Automatismes","Question 12",62.7]
["Test spécifique - 4e MA - Automatismes","Question 13",39.4]
["Test spécifique - 4e MA - Automatismes","Question 14",32.1]
["Test spécifique - 4e MA - Automatismes","Question 15",59.6]
["Test spécifique - 4e MA - Automatismes","Question 16",51.8]
["Test spécifique - 4e MA - Automatismes","Question 17",26.9]
["Test spécifique - 4e MA - Automatismes","Question 18",40.4]
["Test spécifique - 4e MA - Automatismes","Question 19",51.3]
["Test spécifique - 4e MA - Automatismes","Question 20",42]
["Test spécifique - 4e MA - Automatismes","Question 21",25.4]
["Test spécifique - 4e MA - Automatismes","Question 22",38.299999999999997]
[]
[]
[]
[]
[]
[]
[]
[]
[]
[]
[]
[]
[]
[]
[]
[]
[]
[]
[]
[]
[]
[]
[]
["Test spécifique - 4e MA - Automatismes","Question 01",96]
["Test spécifique - 4e MA - Automatismes","Question 02",88.7]
["Test spécifique - 4e MA - Automatismes","Question 03",83.9]
["Test spécifique - 4e MA - Automatismes","Question 04",88.7]
["Test spécifique - 4e MA - Automatismes","Question 05",58.1]
["Test spécifique - 4e MA - Automatismes","Question 06",66.900000000000006]
["Test spécifique - 4e MA - Automatismes","Question 07",60.5]
["Test spécifique - 4e MA - Automatismes","Question 08",59.7]
["Test spécifique - 4e MA - Automatismes","Question 09",50.8]
["Test spécifique - 4e MA - Automatismes","Question 10",41.9]
["Test spécifique - 4e MA - Automatismes","Question 11",54]
["Test spécifique - 4e MA - Automatismes","Question 12",45.2]
["Test spécifique - 4e MA - Automatismes","Question 13",47.6]
["Test spécifique - 4e MA - Automatismes","Question 14",48.4]
["Test spécifique - 4e MA - Automatismes","Question 15",51.6]
["Test spécifique - 4e MA - Automatismes","Question 16",46.8]
["Test spécifique - 4e MA - Automatismes","Question 17",29]
["Test spécifique - 4e MA - Automatismes","Question 18",48.4]
["Test spécifique - 4e MA - Automatismes","Question 19",34.700000000000003]
["Test spécifique - 4e MA - Automatismes","Question 20",39.5]
["Test spécifique - 4e MA - Automatismes","Question 21",25]
["Test spécifique - 4e MA - Automatismes","Question 22",38.700000000000003]
[]
[]
[]
[]
[]
[]
[]
[]
[]
[]
[]
[]
[]
[]
[]
[]
[]
[]
[]
[]
[]
[]
[]
["Test spécifique - 4e MA - Automatismes","Question 01",87.5]
["Test spécifique - 4e MA - Automatismes","Question 02",83.9]
["Test spécifique - 4e MA - Automatismes","Question 03",87.5]
["Test spécifique - 4e MA - Automatismes","Question 04",78.599999999999994]
["Test spécifique - 4e MA - Automatismes","Question 05",69.599999999999994]
["Test spécifique - 4e MA - Automatismes","Question 06",55.4]
["Test spécifique - 4e MA - Automatismes","Question 07",53.6]
["Test spécifique - 4e MA - Automatismes","Question 08",50]
["Test spécifique - 4e MA - Automatismes","Question 09",35.700000000000003]
["Test spécifique - 4e MA - Automatismes","Question 10",58.9]
["Test spécifique - 4e MA - Automatismes","Question 11",44.6]
["Test spécifique - 4e MA - Automatismes","Question 12",50]
["Test spécifique - 4e MA - Automatismes","Question 13",41.1]
["Test spécifique - 4e MA - Automatismes","Question 14",50]
["Test spécifique - 4e MA - Automatismes","Question 15",46.4]
["Test spécifique - 4e MA - Automatismes","Question 16",41.1]
["Test spécifique - 4e MA - Automatismes","Question 17",51.8]
["Test spécifique - 4e MA - Automatismes","Question 18",46.4]
["Test spécifique - 4e MA - Automatismes","Question 19",30.4]
["Test spécifique - 4e MA - Automatismes","Question 20",64.3]
["Test spécifique - 4e MA - Automatismes","Question 21",37.5]
["Test spécifique - 4e MA - Automatismes","Question 22",25]
[]
[]
[]
[]
[]
[]
[]
[]
[]
[]
[]
[]
[]
[]
[]
[]
[]
[]
[]
[]
[]
[]
[]
["Test spécifique - 4e MA - Automatismes","Question 01",96.8]
["Test spécifique - 4e MA - Automatismes","Question 02",96.8]
["Test spécifique - 4e MA - Automatismes","Question 03",91.6]
["Test spécifique - 4e MA - Automatismes","Question 04",88.4]
["Test spécifique - 4e MA - Automatismes","Question 05",84.2]
["Test spécifique - 4e MA - Automatismes","Question 06",71.599999999999994]
["Test spécifique - 4e MA - Automatismes","Question 07",70.5]
["Test spécifique - 4e MA - Automatismes","Question 08",71.599999999999994]
["Test spécifique - 4e MA - Automatismes","Question 09",58.9]
["Test spécifique - 4e MA - Automatismes","Question 10",62.1]
["Test spécifique - 4e MA - Automatismes","Question 11",56.8]
["Test spécifique - 4e MA - Automatismes","Question 12",66.3]
["Test spécifique - 4e MA - Automatismes","Question 13",65.3]
["Test spécifique - 4e MA - Automatismes","Question 14",63.2]
["Test spécifique - 4e MA - Automatismes","Question 15",69.5]
["Test spécifique - 4e MA - Automatismes","Question 16",57.9]
["Test spécifique - 4e MA - Automatismes","Question 17",45.3]
["Test spécifique - 4e MA - Automatismes","Question 18",48.4]
["Test spécifique - 4e MA - Automatismes","Question 19",27.4]
["Test spécifique - 4e MA - Automatismes","Question 20",61.1]
["Test spécifique - 4e MA - Automatismes","Question 21",48.4]
["Test spécifique - 4e MA - Automatismes","Question 22",33.700000000000003]
[]
[]
[]
[]
[]
[]
[]
[]
[]
[]
[]
[]
[]
[]
[]
[]
[]
[]
[]
[]
[]
[]
[]
["Test spécifique - 4e MA - Automatismes","Question 01",87.5]
["Test spécifique - 4e MA - Automatismes","Question 02",90.6]
["Test spécifique - 4e MA - Automatismes","Question 03",84.4]
["Test spécifique - 4e MA - Automatismes","Question 04",78.099999999999994]
["Test spécifique - 4e MA - Automatismes","Question 05",76]
["Test spécifique - 4e MA - Automatismes","Question 06",62.5]
["Test spécifique - 4e MA - Automatismes","Question 07",58.3]
["Test spécifique - 4e MA - Automatismes","Question 08",47.9]
["Test spécifique - 4e MA - Automatismes","Question 09",29.2]
["Test spécifique - 4e MA - Automatismes","Question 10",51]
["Test spécifique - 4e MA - Automatismes","Question 11",42.7]
["Test spécifique - 4e MA - Automatismes","Question 12",56.3]
["Test spécifique - 4e MA - Automatismes","Question 13",42.7]
["Test spécifique - 4e MA - Automatismes","Question 14",15.6]
["Test spécifique - 4e MA - Automatismes","Question 15",59.4]
["Test spécifique - 4e MA - Automatismes","Question 16",42.7]
["Test spécifique - 4e MA - Automatismes","Question 17",24]
["Test spécifique - 4e MA - Automatismes","Question 18",36.5]
["Test spécifique - 4e MA - Automatismes","Question 19",36.5]
["Test spécifique - 4e MA - Automatismes","Question 20",49]
["Test spécifique - 4e MA - Automatismes","Question 21",21.9]
["Test spécifique - 4e MA - Automatismes","Question 22",38.5]
[]
[]
[]
[]
[]
[]
[]
[]
[]
[]
[]
[]
[]
[]
[]
[]
[]
[]
[]
[]
[]
[]
[]
["Test spécifique - 4e MA - Automatismes","Question 01",98.1]
["Test spécifique - 4e MA - Automatismes","Question 02",88.9]
["Test spécifique - 4e MA - Automatismes","Question 03",92.6]
["Test spécifique - 4e MA - Automatismes","Question 04",88.9]
["Test spécifique - 4e MA - Automatismes","Question 05",42.6]
["Test spécifique - 4e MA - Automatismes","Question 06",59.3]
["Test spécifique - 4e MA - Automatismes","Question 07",57.4]
["Test spécifique - 4e MA - Automatismes","Question 08",64.8]
["Test spécifique - 4e MA - Automatismes","Question 09",37]
["Test spécifique - 4e MA - Automatismes","Question 10",42.6]
["Test spécifique - 4e MA - Automatismes","Question 11",40.700000000000003]
["Test spécifique - 4e MA - Automatismes","Question 12",50]
["Test spécifique - 4e MA - Automatismes","Question 13",42.6]
["Test spécifique - 4e MA - Automatismes","Question 14",31.5]
["Test spécifique - 4e MA - Automatismes","Question 15",55.6]
["Test spécifique - 4e MA - Automatismes","Question 16",53.7]
["Test spécifique - 4e MA - Automatismes","Question 17",33.299999999999997]
["Test spécifique - 4e MA - Automatismes","Question 18",48.1]
["Test spécifique - 4e MA - Automatismes","Question 19",55.6]
["Test spécifique - 4e MA - Automatismes","Question 20",50]
["Test spécifique - 4e MA - Automatismes","Question 21",44.4]
["Test spécifique - 4e MA - Automatismes","Question 22",38.9]
[]
[]
[]
[]
[]
[]
[]
[]
[]
[]
[]
[]
[]
[]
[]
[]
[]
[]
[]
[]
[]
[]
[]
["Test spécifique - 4e MA - Automatismes","Question 01",98.5]
["Test spécifique - 4e MA - Automatismes","Question 02",97.1]
["Test spécifique - 4e MA - Automatismes","Question 03",77.900000000000006]
["Test spécifique - 4e MA - Automatismes","Question 04",86.8]
["Test spécifique - 4e MA - Automatismes","Question 05",64.7]
["Test spécifique - 4e MA - Automatismes","Question 06",52.9]
["Test spécifique - 4e MA - Automatismes","Question 07",63.2]
["Test spécifique - 4e MA - Automatismes","Question 08",75]
["Test spécifique - 4e MA - Automatismes","Question 09",32.4]
["Test spécifique - 4e MA - Automatismes","Question 10",64.7]
["Test spécifique - 4e MA - Automatismes","Question 11",51.5]
["Test spécifique - 4e MA - Automatismes","Question 12",58.8]
["Test spécifique - 4e MA - Automatismes","Question 13",45.6]
["Test spécifique - 4e MA - Automatismes","Question 14",30.9]
["Test spécifique - 4e MA - Automatismes","Question 15",50]
["Test spécifique - 4e MA - Automatismes","Question 16",54.4]
["Test spécifique - 4e MA - Automatismes","Question 17",38.200000000000003]
["Test spécifique - 4e MA - Automatismes","Question 18",35.299999999999997]
["Test spécifique - 4e MA - Automatismes","Question 19",39.700000000000003]
["Test spécifique - 4e MA - Automatismes","Question 20",48.5]
["Test spécifique - 4e MA - Automatismes","Question 21",13.2]
["Test spécifique - 4e MA - Automatismes","Question 22",26.5]
[]
[]
[]
[]
[]
[]
[]
[]
[]
[]
[]
[]
[]
[]
[]
[]
[]
[]
[]
[]
[]
[]
[]
["Test spécifique - 4e MA - Automatismes","Question 01",98.7]
["Test spécifique - 4e MA - Automatismes","Question 02",94.9]
["Test spécifique - 4e MA - Automatismes","Question 03",81]
["Test spécifique - 4e MA - Automatismes","Question 04",89.9]
["Test spécifique - 4e MA - Automatismes","Question 05",50.6]
["Test spécifique - 4e MA - Automatismes","Question 06",63.3]
["Test spécifique - 4e MA - Automatismes","Question 07",67.099999999999994]
["Test spécifique - 4e MA - Automatismes","Question 08",57]
["Test spécifique - 4e MA - Automatismes","Question 09",16.5]
["Test spécifique - 4e MA - Automatismes","Question 10",49.4]
["Test spécifique - 4e MA - Automatismes","Question 11",49.4]
["Test spécifique - 4e MA - Automatismes","Question 12",50.6]
["Test spécifique - 4e MA - Automatismes","Question 13",46.8]
["Test spécifique - 4e MA - Automatismes","Question 14",38]
["Test spécifique - 4e MA - Automatismes","Question 15",50.6]
["Test spécifique - 4e MA - Automatismes","Question 16",38]
["Test spécifique - 4e MA - Automatismes","Question 17",36.700000000000003]
["Test spécifique - 4e MA - Automatismes","Question 18",40.5]
["Test spécifique - 4e MA - Automatismes","Question 19",20.3]
["Test spécifique - 4e MA - Automatismes","Question 20",65.8]
["Test spécifique - 4e MA - Automatismes","Question 21",16.5]
["Test spécifique - 4e MA - Automatismes","Question 22",27.8]
[]
[]
[]
[]
[]
[]
[]
[]
[]
[]
[]
[]
[]
[]
[]
[]
[]
[]
[]
[]
[]
[]
[]
["Test spécifique - 4e MA - Automatismes","Question 01",92]
["Test spécifique - 4e MA - Automatismes","Question 02",94.7]
["Test spécifique - 4e MA - Automatismes","Question 03",76]
["Test spécifique - 4e MA - Automatismes","Question 04",78.7]
["Test spécifique - 4e MA - Automatismes","Question 05",72]
["Test spécifique - 4e MA - Automatismes","Question 06",69.3]
["Test spécifique - 4e MA - Automatismes","Question 07",53.3]
["Test spécifique - 4e MA - Automatismes","Question 08",45.3]
["Test spécifique - 4e MA - Automatismes","Question 09",36]
["Test spécifique - 4e MA - Automatismes","Question 10",40]
["Test spécifique - 4e MA - Automatismes","Question 11",40]
["Test spécifique - 4e MA - Automatismes","Question 12",54.7]
["Test spécifique - 4e MA - Automatismes","Question 13",32]
["Test spécifique - 4e MA - Automatismes","Question 14",50.7]
["Test spécifique - 4e MA - Automatismes","Question 15",56]
["Test spécifique - 4e MA - Automatismes","Question 16",41.3]
["Test spécifique - 4e MA - Automatismes","Question 17",25.3]
["Test spécifique - 4e MA - Automatismes","Question 18",37.299999999999997]
["Test spécifique - 4e MA - Automatismes","Question 19",36]
["Test spécifique - 4e MA - Automatismes","Question 20",46.7]
["Test spécifique - 4e MA - Automatismes","Question 21",29.3]
["Test spécifique - 4e MA - Automatismes","Question 22",29.3]
[]
[]
[]
[]
[]
[]
[]
[]
[]
[]
[]
[]
[]
[]
[]
[]
[]
[]
[]
[]
[]
[]
[]
["Test spécifique - 4e MA - Automatismes","Question 01",89.4]
["Test spécifique - 4e MA - Automatismes","Question 02",85.1]
["Test spécifique - 4e MA - Automatismes","Question 03",86.2]
["Test spécifique - 4e MA - Automatismes","Question 04",86.2]
["Test spécifique - 4e MA - Automatismes","Question 05",62.8]
["Test spécifique - 4e MA - Automatismes","Question 06",75.5]
["Test spécifique - 4e MA - Automatismes","Question 07",59.6]
["Test spécifique - 4e MA - Automatismes","Question 08",72.3]
["Test spécifique - 4e MA - Automatismes","Question 09",56.4]
["Test spécifique - 4e MA - Automatismes","Question 10",46.8]
["Test spécifique - 4e MA - Automatismes","Question 11",51.1]
["Test spécifique - 4e MA - Automatismes","Question 12",57.4]
["Test spécifique - 4e MA - Automatismes","Question 13",43.6]
["Test spécifique - 4e MA - Automatismes","Question 14",47.9]
["Test spécifique - 4e MA - Automatismes","Question 15",50]
["Test spécifique - 4e MA - Automatismes","Question 16",39.4]
["Test spécifique - 4e MA - Automatismes","Question 17",35.1]
["Test spécifique - 4e MA - Automatismes","Question 18",48.9]
["Test spécifique - 4e MA - Automatismes","Question 19",48.9]
["Test spécifique - 4e MA - Automatismes","Question 20",54.3]
["Test spécifique - 4e MA - Automatismes","Question 21",44.7]
["Test spécifique - 4e MA - Automatismes","Question 22",45.7]
[]
[]
[]
[]
[]
[]
[]
[]
[]
[]
[]
[]
[]
[]
[]
[]
[]
[]
[]
[]
[]
[]
[]
["Test spécifique - 4e MA - Automatismes","Question 01",88.6]
["Test spécifique - 4e MA - Automatismes","Question 02",87.3]
["Test spécifique - 4e MA - Automatismes","Question 03",83.5]
["Test spécifique - 4e MA - Automatismes","Question 04",86.1]
["Test spécifique - 4e MA - Automatismes","Question 05",79.7]
["Test spécifique - 4e MA - Automatismes","Question 06",51.9]
["Test spécifique - 4e MA - Automatismes","Question 07",49.4]
["Test spécifique - 4e MA - Automatismes","Question 08",68.400000000000006]
["Test spécifique - 4e MA - Automatismes","Question 09",40.5]
["Test spécifique - 4e MA - Automatismes","Question 10",41.8]
["Test spécifique - 4e MA - Automatismes","Question 11",45.6]
["Test spécifique - 4e MA - Automatismes","Question 12",53.2]
["Test spécifique - 4e MA - Automatismes","Question 13",31.6]
["Test spécifique - 4e MA - Automatismes","Question 14",41.8]
["Test spécifique - 4e MA - Automatismes","Question 15",49.4]
["Test spécifique - 4e MA - Automatismes","Question 16",39.200000000000003]
["Test spécifique - 4e MA - Automatismes","Question 17",38]
["Test spécifique - 4e MA - Automatismes","Question 18",46.8]
["Test spécifique - 4e MA - Automatismes","Question 19",43]
["Test spécifique - 4e MA - Automatismes","Question 20",40.5]
["Test spécifique - 4e MA - Automatismes","Question 21",32.9]
["Test spécifique - 4e MA - Automatismes","Question 22",31.6]
[]
[]
[]
[]
[]
[]
[]
[]
[]
[]
[]
[]
[]
[]
[]
[]
[]
[]
[]
[]
[]
[]
[]
["Test spécifique - 4e MA - Automatismes","Question 01",92.3]
["Test spécifique - 4e MA - Automatismes","Question 02",86.2]
["Test spécifique - 4e MA - Automatismes","Question 03",73.5]
["Test spécifique - 4e MA - Automatismes","Question 04",80.099999999999994]
["Test spécifique - 4e MA - Automatismes","Question 05",59.2]
["Test spécifique - 4e MA - Automatismes","Question 06",43.9]
["Test spécifique - 4e MA - Automatismes","Question 07",49.5]
["Test spécifique - 4e MA - Automatismes","Question 08",61.7]
["Test spécifique - 4e MA - Automatismes","Question 09",40.299999999999997]
["Test spécifique - 4e MA - Automatismes","Question 10",48]
["Test spécifique - 4e MA - Automatismes","Question 11",42.3]
["Test spécifique - 4e MA - Automatismes","Question 12",55.6]
["Test spécifique - 4e MA - Automatismes","Question 13",32.700000000000003]
["Test spécifique - 4e MA - Automatismes","Question 14",30.6]
["Test spécifique - 4e MA - Automatismes","Question 15",51.5]
["Test spécifique - 4e MA - Automatismes","Question 16",34.700000000000003]
["Test spécifique - 4e MA - Automatismes","Question 17",32.1]
["Test spécifique - 4e MA - Automatismes","Question 18",37.799999999999997]
["Test spécifique - 4e MA - Automatismes","Question 19",36.700000000000003]
["Test spécifique - 4e MA - Automatismes","Question 20",33.700000000000003]
["Test spécifique - 4e MA - Automatismes","Question 21",30.1]
["Test spécifique - 4e MA - Automatismes","Question 22",29.6]
[]
[]
[]
[]
[]
[]
[]
[]
[]
[]
[]
[]
[]
[]
[]
[]
[]
[]
[]
[]
[]
[]
[]
["Test spécifique - 4e MA - Automatismes","Question 01",91.2]
["Test spécifique - 4e MA - Automatismes","Question 02",89.4]
["Test spécifique - 4e MA - Automatismes","Question 03",80.5]
["Test spécifique - 4e MA - Automatismes","Question 04",83.2]
["Test spécifique - 4e MA - Automatismes","Question 05",70.8]
["Test spécifique - 4e MA - Automatismes","Question 06",69]
["Test spécifique - 4e MA - Automatismes","Question 07",61.1]
["Test spécifique - 4e MA - Automatismes","Question 08",54]
["Test spécifique - 4e MA - Automatismes","Question 09",45.1]
["Test spécifique - 4e MA - Automatismes","Question 10",50.4]
["Test spécifique - 4e MA - Automatismes","Question 11",47.8]
["Test spécifique - 4e MA - Automatismes","Question 12",57.5]
["Test spécifique - 4e MA - Automatismes","Question 13",34.5]
["Test spécifique - 4e MA - Automatismes","Question 14",31]
["Test spécifique - 4e MA - Automatismes","Question 15",52.2]
["Test spécifique - 4e MA - Automatismes","Question 16",61.1]
["Test spécifique - 4e MA - Automatismes","Question 17",26.5]
["Test spécifique - 4e MA - Automatismes","Question 18",39.799999999999997]
["Test spécifique - 4e MA - Automatismes","Question 19",51.3]
["Test spécifique - 4e MA - Automatismes","Question 20",41.6]
["Test spécifique - 4e MA - Automatismes","Question 21",27.4]
["Test spécifique - 4e MA - Automatismes","Question 22",45.1]
[]
[]
[]
[]
[]
[]
[]
[]
[]
[]
[]
[]
[]
[]
[]
[]
[]
[]
[]
[]
[]
[]
[]
["Test spécifique - 4e MA - Automatismes","Question 01",96.2]
["Test spécifique - 4e MA - Automatismes","Question 02",94.9]
["Test spécifique - 4e MA - Automatismes","Question 03",94.9]
["Test spécifique - 4e MA - Automatismes","Question 04",81]
["Test spécifique - 4e MA - Automatismes","Question 05",72.2]
["Test spécifique - 4e MA - Automatismes","Question 06",62]
["Test spécifique - 4e MA - Automatismes","Question 07",62]
["Test spécifique - 4e MA - Automatismes","Question 08",60.8]
["Test spécifique - 4e MA - Automatismes","Question 09",45.6]
["Test spécifique - 4e MA - Automatismes","Question 10",50.6]
["Test spécifique - 4e MA - Automatismes","Question 11",45.6]
["Test spécifique - 4e MA - Automatismes","Question 12",54.4]
["Test spécifique - 4e MA - Automatismes","Question 13",51.9]
["Test spécifique - 4e MA - Automatismes","Question 14",30.4]
["Test spécifique - 4e MA - Automatismes","Question 15",57]
["Test spécifique - 4e MA - Automatismes","Question 16",41.8]
["Test spécifique - 4e MA - Automatismes","Question 17",29.1]
["Test spécifique - 4e MA - Automatismes","Question 18",53.2]
["Test spécifique - 4e MA - Automatismes","Question 19",35.4]
["Test spécifique - 4e MA - Automatismes","Question 20",67.099999999999994]
["Test spécifique - 4e MA - Automatismes","Question 21",39.200000000000003]
["Test spécifique - 4e MA - Automatismes","Question 22",44.3]
[]
[]
[]
[]
[]
[]
[]
[]
[]
[]
[]
[]
[]
[]
[]
[]
[]
[]
[]
[]
[]
[]
[]
["Test spécifique - 4e MA - Automatismes","Question 01",86.6]
["Test spécifique - 4e MA - Automatismes","Question 02",88.4]
["Test spécifique - 4e MA - Automatismes","Question 03",77.400000000000006]
["Test spécifique - 4e MA - Automatismes","Question 04",85.4]
["Test spécifique - 4e MA - Automatismes","Question 05",68.900000000000006]
["Test spécifique - 4e MA - Automatismes","Question 06",56.7]
["Test spécifique - 4e MA - Automatismes","Question 07",61]
["Test spécifique - 4e MA - Automatismes","Question 08",56.7]
["Test spécifique - 4e MA - Automatismes","Question 09",37.200000000000003]
["Test spécifique - 4e MA - Automatismes","Question 10",51.8]
["Test spécifique - 4e MA - Automatismes","Question 11",47.6]
["Test spécifique - 4e MA - Automatismes","Question 12",50]
["Test spécifique - 4e MA - Automatismes","Question 13",35.4]
["Test spécifique - 4e MA - Automatismes","Question 14",55.5]
["Test spécifique - 4e MA - Automatismes","Question 15",53]
["Test spécifique - 4e MA - Automatismes","Question 16",45.1]
["Test spécifique - 4e MA - Automatismes","Question 17",36]
["Test spécifique - 4e MA - Automatismes","Question 18",45.1]
["Test spécifique - 4e MA - Automatismes","Question 19",44.5]
["Test spécifique - 4e MA - Automatismes","Question 20",31.7]
["Test spécifique - 4e MA - Automatismes","Question 21",34.1]
["Test spécifique - 4e MA - Automatismes","Question 22",37.799999999999997]
[]
[]
[]
[]
[]
[]
[]
[]
[]
[]
[]
[]
[]
[]
[]
[]
[]
[]
[]
[]
[]
[]
[]
["Test spécifique - 4e MA - Automatismes","Question 01",92.4]
["Test spécifique - 4e MA - Automatismes","Question 02",84.6]
["Test spécifique - 4e MA - Automatismes","Question 03",76.900000000000006]
["Test spécifique - 4e MA - Automatismes","Question 04",81.7]
["Test spécifique - 4e MA - Automatismes","Question 05",46.2]
["Test spécifique - 4e MA - Automatismes","Question 06",67.3]
["Test spécifique - 4e MA - Automatismes","Question 07",39.4]
["Test spécifique - 4e MA - Automatismes","Question 08",56.7]
["Test spécifique - 4e MA - Automatismes","Question 09",38.1]
["Test spécifique - 4e MA - Automatismes","Question 10",45.2]
["Test spécifique - 4e MA - Automatismes","Question 11",38.5]
["Test spécifique - 4e MA - Automatismes","Question 12",51]
["Test spécifique - 4e MA - Automatismes","Question 13",24]
["Test spécifique - 4e MA - Automatismes","Question 14",8.6999999999999993]
["Test spécifique - 4e MA - Automatismes","Question 15",37.5]
["Test spécifique - 4e MA - Automatismes","Question 16",33.700000000000003]
["Test spécifique - 4e MA - Automatismes","Question 17",39.4]
["Test spécifique - 4e MA - Automatismes","Question 18",26.9]
["Test spécifique - 4e MA - Automatismes","Question 19",26.9]
["Test spécifique - 4e MA - Automatismes","Question 20",38.5]
["Test spécifique - 4e MA - Automatismes","Question 21",24]
["Test spécifique - 4e MA - Automatismes","Question 22",28.8]
[]
[]
[]
[]
[]
[]
[]
[]
[]
[]
[]
[]
[]
[]
[]
[]
[]
[]
[]
[]
[]
[]
[]
["Test spécifique - 4e MA - Automatismes","Question 01",97.3]
["Test spécifique - 4e MA - Automatismes","Question 02",98.6]
["Test spécifique - 4e MA - Automatismes","Question 03",90.5]
["Test spécifique - 4e MA - Automatismes","Question 04",97.3]
["Test spécifique - 4e MA - Automatismes","Question 05",83.8]
["Test spécifique - 4e MA - Automatismes","Question 06",60.8]
["Test spécifique - 4e MA - Automatismes","Question 07",79.7]
["Test spécifique - 4e MA - Automatismes","Question 08",81.099999999999994]
["Test spécifique - 4e MA - Automatismes","Question 09",62.2]
["Test spécifique - 4e MA - Automatismes","Question 10",63.5]
["Test spécifique - 4e MA - Automatismes","Question 11",73]
["Test spécifique - 4e MA - Automatismes","Question 12",74.3]
["Test spécifique - 4e MA - Automatismes","Question 13",68.900000000000006]
["Test spécifique - 4e MA - Automatismes","Question 14",73]
["Test spécifique - 4e MA - Automatismes","Question 15",70.3]
["Test spécifique - 4e MA - Automatismes","Question 16",75.7]
["Test spécifique - 4e MA - Automatismes","Question 17",60.8]
["Test spécifique - 4e MA - Automatismes","Question 18",66.2]
["Test spécifique - 4e MA - Automatismes","Question 19",56.8]
["Test spécifique - 4e MA - Automatismes","Question 20",45.9]
["Test spécifique - 4e MA - Automatismes","Question 21",36.5]
["Test spécifique - 4e MA - Automatismes","Question 22",43.2]
[]
[]
[]
[]
[]
[]
[]
[]
[]
[]
[]
[]
[]
[]
[]
[]
[]
[]
[]
[]
[]
[]
[]
["Test spécifique - 4e MA - Automatismes","Question 01",95.8]
["Test spécifique - 4e MA - Automatismes","Question 02",82.1]
["Test spécifique - 4e MA - Automatismes","Question 03",73.7]
["Test spécifique - 4e MA - Automatismes","Question 04",85.3]
["Test spécifique - 4e MA - Automatismes","Question 05",61.1]
["Test spécifique - 4e MA - Automatismes","Question 06",63.2]
["Test spécifique - 4e MA - Automatismes","Question 07",44.2]
["Test spécifique - 4e MA - Automatismes","Question 08",67.400000000000006]
["Test spécifique - 4e MA - Automatismes","Question 09",23.2]
["Test spécifique - 4e MA - Automatismes","Question 10",38.9]
["Test spécifique - 4e MA - Automatismes","Question 11",36.799999999999997]
["Test spécifique - 4e MA - Automatismes","Question 12",38.9]
["Test spécifique - 4e MA - Automatismes","Question 13",35.799999999999997]
["Test spécifique - 4e MA - Automatismes","Question 14",12.6]
["Test spécifique - 4e MA - Automatismes","Question 15",46.3]
["Test spécifique - 4e MA - Automatismes","Question 16",27.4]
["Test spécifique - 4e MA - Automatismes","Question 17",22.1]
["Test spécifique - 4e MA - Automatismes","Question 18",55.8]
["Test spécifique - 4e MA - Automatismes","Question 19",27.4]
["Test spécifique - 4e MA - Automatismes","Question 20",30.5]
["Test spécifique - 4e MA - Automatismes","Question 21",20]
["Test spécifique - 4e MA - Automatismes","Question 22",27.4]
[]
[]
[]
[]
[]
[]
[]
[]
[]
[]
[]
[]
[]
[]
[]
[]
[]
[]
[]
[]
[]
[]
[]
["Test spécifique - 4e MA - Automatismes","Question 01",93.8]
["Test spécifique - 4e MA - Automatismes","Question 02",97.5]
["Test spécifique - 4e MA - Automatismes","Question 03",95]
["Test spécifique - 4e MA - Automatismes","Question 04",93.8]
["Test spécifique - 4e MA - Automatismes","Question 05",85]
["Test spécifique - 4e MA - Automatismes","Question 06",53.8]
["Test spécifique - 4e MA - Automatismes","Question 07",72.5]
["Test spécifique - 4e MA - Automatismes","Question 08",75]
["Test spécifique - 4e MA - Automatismes","Question 09",55]
["Test spécifique - 4e MA - Automatismes","Question 10",61.3]
["Test spécifique - 4e MA - Automatismes","Question 11",58.7]
["Test spécifique - 4e MA - Automatismes","Question 12",56.3]
["Test spécifique - 4e MA - Automatismes","Question 13",45]
["Test spécifique - 4e MA - Automatismes","Question 14",58.7]
["Test spécifique - 4e MA - Automatismes","Question 15",47.5]
["Test spécifique - 4e MA - Automatismes","Question 16",62.5]
["Test spécifique - 4e MA - Automatismes","Question 17",25]
["Test spécifique - 4e MA - Automatismes","Question 18",47.5]
["Test spécifique - 4e MA - Automatismes","Question 19",46.3]
["Test spécifique - 4e MA - Automatismes","Question 20",38.700000000000003]
["Test spécifique - 4e MA - Automatismes","Question 21",17.5]
["Test spécifique - 4e MA - Automatismes","Question 22",42.5]